Workbook

Sheet Spisak_sluzba (hidden)
A5: 2017/0004 | B5: Андрић Лазар
A6: 2017/0090 | B6: Антоловић Милан
A7: 2017/0054 | B7: Бошњаковић Милан
A8: 2017/0141 | B8: Василов Иван
A9: 2017/0045 | B9: Васиљевић Сава
A10: 2017/0020 | B10: Васић Катарина
A11: 2017/0086 | B11: Воларевић Ђорђе
A12: 2017/0073 | B12: Вукославчевић Лазар
A13: 2017/0008 | B13: Гајић Боривој
A14: 2017/0014 | B14: Гелев Павле
A15: 2017/0037 | B15: Девић Никола
A16: 2017/0130 | B16: Деспотовић Милош
A17: 2017/0024 | B17: Ђукановић Петар
A18: 2017/0156 | B18: Ђурђевић Филип
A19: 2017/0093 | B19: Здравковић Лука
A20: 2017/0132 | B20: Зец Уна
A21: 2017/0135 | B21: Зечевић Невена
A22: 2017/0119 | B22: Зорић Душан
A23: 2017/0059 | B23: Јакшић Вукан
A24: 2017/0094 | B24: Јелић Јана
A25: 2017/0061 | B25: Јовановић Данило
A26: 2017/0107 | B26: Јовановић Ђорђе
A27: 2017/0158 | B27: Јовановић Иван
A28: 2017/0076 | B28: Јовановић Ненад
A29: 2017/0131 | B29: Јовичић Ина
A30: 2017/0178 | B30: Калуђеровић Вања
A31: 2017/0162 | B31: Карами Мохаммад
A32: 2017/0019 | B32: Клицов Јелена
A33: 2017/0033 | B33: Ковачевић Марија
A34: 2017/0057 | B34: Ковић Николина
A35: 2017/0085 | B35: Контић Селена
A36: 2017/0010 | B36: Космовски Душан
A37: 2017/0136 | B37: Крејовић Анастасија
A38: 2015/0111 | B38: Крстић Стеван
A39: 2017/0040 | B39: Кубуровић Сава
A40: 2017/0071 | B40: Максимовић Никола
A41: 2017/0084 | B41: Малечкар Кристина
A42: 2017/0025 | B42: Манић Александра
A43: 2017/0058 | B43: Мариновић Лазар
A44: 2017/0122 | B44: Марјановић Борис
A45: 2017/0120 | B45: Марјановић Марко
A46: 2017/0016 | B46: Марковић Вукашин
A47: 2017/0109 | B47: Матић Љубодраг
A48: 2017/0111 | B48: Микић Марија
A49: 2017/0065 | B49: Миливојевић Кристина
A50: 2017/0102 | B50: Миливојевић Кристина
A51: 2017/0123 | B51: Миловановић Ђорђе
A52: 2017/0050 | B52: Миловић Ана
A53: 2017/0031 | B53: Милојковић Петар
A54: 2017/0013 | B54: Милосављевић Милан
A55: 2017/0003 | B55: Милошевић Ђорђе
A56: 2017/0081 | B56: Михаиловић Даша
A57: 2017/0148 | B57: Најдановић Младен
A58: 2017/0015 | B58: Нешковић Марко
A59: 2017/0118 | B59: Никодијевић Петар
A60: 2017/0063 | B60: Нинковић Тамара
A61: 2017/0066 | B61: Обрадовић Александра
A62: 2017/0021 | B62: Обреновић Милош
A63: 2017/0133 | B63: Павићевић Стефан
A64: 2017/0044 | B64: Павлов Петар
A65: 2017/0097 | B65: Павловић Никола
A66: 2017/0134 | B66: Пантелић Теодора
A67: 2017/0067 | B67: Петковић Татјана
A68: 2017/0146 | B68: Петровић Филип
A69: 2017/0128 | B69: Пјевовић Ања
A70: 2017/0042 | B70: Покимица Александар
A71: 2017/0139 | B71: Поповић Лара
A72: 2017/0038 | B72: Прибаковић Катарина
A73: 2017/0104 | B73: Пузовић Огњен
A74: 2017/0153 | B74: Радуловић Лука
A75: 2017/0005 | B75: Рајковић Јован
A76: 2017/0114 | B76: Ристић Владимир
A77: 2017/0048 | B77: Ристић Растко
A78: 2017/0018 | B78: Ружић Ђорђе
A79: 2017/0110 | B79: Сантибанез Божић Андрија
A80: 2017/0053 | B80: Симић Тамара
A81: 2017/0082 | B81: Симоновић Драгомир
A82: 2017/0116 | B82: Средојевић Немања
A83: 2017/0129 | B83: Сретеновић Давид
A84: 2017/0078 | B84: Станишић Огњен
A85: 2017/0140 | B85: Станковић Стефан
A86: 2017/0060 | B86: Станојковић Малина
A87: 2017/0105 | B87: Стевановић Филип
A88: 2017/0029 | B88: Стојановић Александар
A89: 2017/0017 | B89: Стојановић Јана
A90: 2017/0074 | B90: Стојановић Срђан
A91: 2017/0002 | B91: Стојков Урош
A92: 2017/0112 | B92: Стојшин Вукашин
A93: 2017/0095 | B93: Стошић Марина
A94: 2017/0117 | B94: Стошић Михајло
A95: 2017/0026 | B95: Тапић Немања
A96: 2017/0036 | B96: Томашевић Реља
A97: 2017/0096 | B97: Туфегџић Сања
A98: 2017/0001 | B98: Хас Давид
A99: 2017/0009 | B99: Цвјетиновић Јована
A100: 2017/0070 | B100: Црногорац Лука
A101: 2017/0030 | B101: Чешљаров Данијела
A102: 2017/0154 | B102: Џаврић Миљан
A103: 2017/0055 | B103: Шулкић Милан

Sheet OCENA
C2: ОЦЕНА и БРОЈ БОДОВА СЕ ПОЈАВЉУЈЕ ТЕК КАДА УНЕСЕТЕ ПОДAТКЕ НА СЛЕДЕЋИ НАЧИН: | T2: веће и једнако од | U2: мање | V2: оцена | W2: текст | Y2: РОК
C3: 1. У сива поља уписати остварени број бодова; | T3: 51 | U3: 61 | V3: 6 | W3: шест | Y3: Јануар
C4: 2. у поље рок уписати рок у коме је остварен коначан резултат и у коме је пријављен испит. | T4: 61 | U4: 71 | V4: 7 | W4: седам | Y4: Фебруар
T5: 71 | U5: 81 | V5: 8 | W5: осам | Y5: Април
T6: 81 | U6: 91 | V6: 9 | W6: девет | Y6: Јун
C7: WORD | D7: EXCEL | E7: PPOINT | F7: TEST_1 | T7: 91 | U7: 100 | V7: 10 | W7: десет | Y7: Јул
Y8: Септембар
Y9: Октобар
C10: Akt_nast_bod | D10: Akt_vežbe_bod | E10: WORD bod | F10: EXCEL bod | G10: PPOINT bod | H10: TEST_1 bod | I10: ISPIT | J10: Ukupno | K10: OCENA | L10: ROK | Y10: Октобар 2
C11: =IF(I11<>"",5,"") ->  | D11: =IF(I11<>"",5,"") ->  | E11: =IF(C8<>"",IF(C8>=24,(C8/32)*14,""),"") ->  | F11: =IF(D8<>"",IF(D8>=24,(D8/32)*14,""),"") ->  | G11: =IF(E8<>"",IF(E8>=11,(E8/21)*14,""),"") ->  | H11: =IF(F8<>"",IF(F8>=9,(F8/15)*28,""),"") ->  | I11: =IF(L11<>"",IF(AND(E11<>"",F11<>"",G11<>"",H11<>""),IF(OR(L11="Јун",L11="Јул"),20,IF(OR(L11="Септембар",L11="Октобар"),15,10)),""),"") ->  | J11: =IF(AND(C11<>"",D11<>"",I11<>"",E11<>"",F11<>"",H11<>"",G11<>""),ROUND(SUM(C11,D11,I11,E11,F11,H11,G11),0),"") ->  | K11: =IF(J11<>"",VLOOKUP(J11,T3:W7,3),"") -> 

Sheet INDEKS
T1: =OAS_2017_18!C2 -> Prezime i ime
F2: ПРЕЗИМЕ И ИМЕ | T2: =OAS_2017_18!C3 -> Андрић Лазар
F3: Стојановић Срђан | T3: =OAS_2017_18!C4 -> Антоловић Милан
T4: =OAS_2017_18!C5 -> Бошњаковић Милан
T5: =OAS_2017_18!C6 -> Василов Иван
D6: ПОДАЦИ О ПРЕДИСПИТНИМ ОБАВЕЗАМА И ПОЛАГАЊУ ИСПИТА | M6: спорт | N6: СС1О02 | T6: =OAS_2017_18!C7 -> Васиљевић Сава
D7: ИНФОРМАТИКА | M7: рекреација | N7: СР1О02 | T7: =OAS_2017_18!C8 -> Васић Катарина
D8: (назив предмета) | T8: =OAS_2017_18!C9 -> Воларевић Ђорђе
D9: OA1И02 | G9: 4 | I9: ИЗБОРНИ | T9: =OAS_2017_18!C10 -> Вукославчевић Лазар
D10: (шифра предмета) | G10: (ЕСПБ бодова) | I10: (обавезни, изборни) | T10: =OAS_2017_18!C11 -> Гајић Боривој
D11: Назив предисптитне обевезе | G11: Број поена | H11: Датум овере/полагања | J11: Потпис наставника | T11: =OAS_2017_18!C12 -> Гелев Павле
D12: Присуство | G12: =IF(F3<>"",VLOOKUP(F3,OAS_2017_18!$C$3:$AG$1000,22,FALSE),"") -> 10 | H12: =IF(ISNA(IF(F3<>"",VLOOKUP(F3,OAS_2017_18!C3:AG1000,21,FALSE),"")),"",IF(F3<>"",VLOOKUP(F3,OAS_2017_18!C3:AG1000,21,FALSE),"")) -> 2018-09-12 | T12: =OAS_2017_18!C13 -> Девић Никола
D13: Практично | G13: =IF(F3<>"",VLOOKUP(F3,OAS_2017_18!$C$3:$AG$1000,24,FALSE),"") -> 35 | H13: =IF(ISNA(IF(F3<>"",VLOOKUP(F3,OAS_2017_18!C3:AG1000,23,FALSE),"")),"",IF(F3<>"",VLOOKUP(F3,OAS_2017_18!C3:AG1000,23,FALSE),"")) -> 2018-06-03 | T13: =OAS_2017_18!C14 -> Деспотовић Милош
D14: ТЕСТ | G14: =IF(F3<>"",VLOOKUP(F3,OAS_2017_18!C3:AG1000,26,FALSE),"") -> 21 | H14: =IF(ISNA(IF(F3<>"",VLOOKUP(F3,OAS_2017_18!C3:AG1000,25,FALSE),"")),"",IF(F3<>"",VLOOKUP(F3,OAS_2017_18!C3:AG1000,25,FALSE),"")) -> 2018-06-13 | T14: =OAS_2017_18!C15 -> Ђукановић Петар
D15: Испит (усмени) | G15: =IF(F3<>"",VLOOKUP(F3,OAS_2017_18!C3:AG1000,28,FALSE),"") -> 15 | H15: =IF(ISNA(IF(F3<>"",VLOOKUP(F3,OAS_2017_18!C3:AG1000,31,FALSE),"")),"",IF(F3<>"",VLOOKUP(F3,OAS_2017_18!C3:AG1000,31,FALSE),"")) -> 2018-09-12 | T15: =OAS_2017_18!C16 -> Ђурђевић Филип
D16: Испит | G16: =IF(F3<>"",VLOOKUP(F3,OAS_2017_18!C3:AG1000,18,FALSE),"") -> 81 | H16: =IF(ISNA(IF(F3<>"",VLOOKUP(F3,OAS_2017_18!C3:AG1000,30,FALSE),"")),"",IF(F3<>"",VLOOKUP(F3,OAS_2017_18!C3:AG1000,31,FALSE),"")) -> 2018-09-12 | T16: =OAS_2017_18!C17 -> Здравковић Лука
D17: Закључна оцена | G17: =IF(G16<>"",VLOOKUP(F3,OAS_2017_18!C3:AG1000,30,FALSE),"") -> 9 | I17: =IF(G17<>""," (","")&IF(G17<>"",VLOOKUP(G17,OCENA!$V$3:$W$7,2),"")&IF(G17<>"",")","") -> (девет) | T17: =OAS_2017_18!C18 -> Зец Уна
D18: Наставник | T18: =OAS_2017_18!C19 -> Зечевић Невена
T19: =OAS_2017_18!C20 -> Зорић Душан
T20: =OAS_2017_18!C21 -> Јакшић Вукан
T21: =OAS_2017_18!C22 -> Јелић Јана
T22: =OAS_2017_18!C23 -> Јовановић Данило
T23: =OAS_2017_18!C24 -> Јовановић Ђорђе
T24: =OAS_2017_18!C25 -> Јовановић Иван
T25: =OAS_2017_18!C26 -> Јовановић Ненад
T26: =OAS_2017_18!C27 -> Јовичић Ина
T27: =OAS_2017_18!C28 -> Калуђеровић Вања
T28: =OAS_2017_18!C29 -> Карами Мохаммад
T29: =OAS_2017_18!C30 -> Клицов Јелена
T30: =OAS_2017_18!C31 -> Ковачевић Марија
T31: =OAS_2017_18!C32 -> Ковић Николина
T32: =OAS_2017_18!C33 -> Контић Селена
T33: =OAS_2017_18!C34 -> Космовски Душан
T34: =OAS_2017_18!C35 -> Крејовић Анастасија
T35: =OAS_2017_18!C36 -> Крстић Стеван
T36: =OAS_2017_18!C37 -> Кубуровић Сава
T37: =OAS_2017_18!C38 -> Максимовић Никола
T38: =OAS_2017_18!C39 -> Малечкар Кристина
T39: =OAS_2017_18!C40 -> Манић Александра
T40: =OAS_2017_18!C41 -> Мариновић Лазар
T41: =OAS_2017_18!C42 -> Марјановић Борис
T42: =OAS_2017_18!C43 -> Марјановић Марко
T43: =OAS_2017_18!C44 -> Марковић Вукашин
T44: =OAS_2017_18!C45 -> Матић Љубодраг
T45: =OAS_2017_18!C46 -> Микић Марија
T46: =OAS_2017_18!C47 -> Миливојевић Кристина
T47: =OAS_2017_18!C48 -> Миливојевић Кристина
T48: =OAS_2017_18!C49 -> Миловановић Ђорђе
T49: =OAS_2017_18!C50 -> Миловић Ана
T50: =OAS_2017_18!C51 -> Милојковић Петар
T51: =OAS_2017_18!C52 -> Милосављевић Милан
T52: =OAS_2017_18!C53 -> Милошевић Ђорђе
T53: =OAS_2017_18!C54 -> Михаиловић Даша
T54: =OAS_2017_18!C55 -> Најдановић Младен
T55: =OAS_2017_18!C56 -> Нешковић Марко
T56: =OAS_2017_18!C57 -> Никодијевић Петар
T57: =OAS_2017_18!C58 -> Нинковић Тамара
T58: =OAS_2017_18!C59 -> Обрадовић Александра
T59: =OAS_2017_18!C60 -> Обреновић Милош
T60: =OAS_2017_18!C61 -> Павићевић Стефан
T61: =OAS_2017_18!C62 -> Павлов Петар
T62: =OAS_2017_18!C63 -> Павловић Никола
T63: =OAS_2017_18!C64 -> Пантелић Теодора
T64: =OAS_2017_18!C65 -> Петковић Татјана
T65: =OAS_2017_18!C66 -> Петровић Филип
T66: =OAS_2017_18!C67 -> Пјевовић Ања
T67: =OAS_2017_18!C68 -> Покимица Александар
T68: =OAS_2017_18!C69 -> Поповић Лара
T69: =OAS_2017_18!C70 -> Прибаковић Катарина
T70: =OAS_2017_18!C71 -> Пузовић Огњен
T71: =OAS_2017_18!C72 -> Радуловић Лука
T72: =OAS_2017_18!C73 -> Рајковић Јован
T73: =OAS_2017_18!C74 -> Ристић Владимир
T74: =OAS_2017_18!C75 -> Ристић Растко
T75: =OAS_2017_18!C76 -> Ружић Ђорђе
T76: =OAS_2017_18!C77 -> Сантибанез Божић Андрија
T77: =OAS_2017_18!C78 -> Симић Тамара
T78: =OAS_2017_18!C79 -> Симоновић Драгомир
T79: =OAS_2017_18!C80 -> Средојевић Немања
T80: =OAS_2017_18!C81 -> Сретеновић Давид
T81: =OAS_2017_18!C82 -> Станишић Огњен
T82: =OAS_2017_18!C83 -> Станковић Стефан
T83: =OAS_2017_18!C84 -> Станојковић Малина
T84: =OAS_2017_18!C85 -> Стевановић Филип
T85: =OAS_2017_18!C86 -> Стојановић Александар
T86: =OAS_2017_18!C87 -> Стојановић Јана
T87: =OAS_2017_18!C88 -> Стојановић Срђан
T88: =OAS_2017_18!C89 -> Стојков Урош
T89: =OAS_2017_18!C90 -> Стојшин Вукашин
T90: =OAS_2017_18!C91 -> Стошић Марина
T91: =OAS_2017_18!C92 -> Стошић Михајло
T92: =OAS_2017_18!C93 -> Тапић Немања
T93: =OAS_2017_18!C94 -> Томашевић Реља
T94: =OAS_2017_18!C95 -> Туфегџић Сања
T95: =OAS_2017_18!C96 -> Хас Давид
T96: =OAS_2017_18!C97 -> Цвјетиновић Јована
T97: =OAS_2017_18!C98 -> Црногорац Лука
T98: =OAS_2017_18!C99 -> Чешљаров Данијела
T99: =OAS_2017_18!C100 -> Џаврић Миљан
T100: =OAS_2017_18!C101 -> Шулкић Милан
T101: =OAS_2017_18!C102 -> 
T102: =OAS_2017_18!C103 -> 
T103: =OAS_2017_18!C104 -> 
T104: =OAS_2017_18!C105 -> 
T105: =OAS_2017_18!C106 -> 
T106: =OAS_2017_18!C107 -> 
T107: =OAS_2017_18!C108 -> 
T108: =OAS_2017_18!C109 -> 
T109: =OAS_2017_18!C110 -> 
T110: =OAS_2017_18!C111 -> 
T111: =OAS_2017_18!C112 -> 
T112: =OAS_2017_18!C113 -> 
T113: =OAS_2017_18!C114 -> 
T114: =OAS_2017_18!C115 -> 
T115: =OAS_2017_18!C116 -> 
T116: =OAS_2017_18!C117 -> 
T117: =OAS_2017_18!C118 -> 
T118: =OAS_2017_18!C119 -> 
T119: =OAS_2017_18!C120 -> 
T120: =OAS_2017_18!C121 -> 
T121: =OAS_2017_18!C122 -> 
T122: =OAS_2017_18!C123 -> 
T123: =OAS_2017_18!C124 -> 
T124: =OAS_2017_18!C125 -> 
T125: =OAS_2017_18!C126 -> 
T126: =OAS_2017_18!C127 -> 
T127: =OAS_2017_18!C128 -> 
T128: =OAS_2017_18!C129 -> 
T129: =OAS_2017_18!C130 -> 
T130: =OAS_2017_18!C131 -> 
T131: =OAS_2017_18!C132 -> 
T132: =OAS_2017_18!C133 -> 
T133: =OAS_2017_18!C134 -> 
T134: =OAS_2017_18!C135 -> 
T135: =OAS_2017_18!C136 -> 
T136: =OAS_2017_18!C137 -> 
T137: =OAS_2017_18!C138 -> 
T138: =OAS_2017_18!C139 -> 
T139: =OAS_2017_18!C140 -> 
T140: =OAS_2017_18!C141 -> 
T141: =OAS_2017_18!C142 -> 
T142: =OAS_2017_18!C143 -> 
T143: =OAS_2017_18!C144 -> 
T144: =OAS_2017_18!C145 -> 
T145: =OAS_2017_18!C146 -> 
T146: =OAS_2017_18!C147 -> 
T147: =OAS_2017_18!C148 -> 
T148: =OAS_2017_18!C149 -> 
T149: =OAS_2017_18!C150 -> 
T150: =OAS_2017_18!C151 -> 
T151: =OAS_2017_18!C152 -> 
T152: =OAS_2017_18!C153 -> 
T153: =OAS_2017_18!C154 -> 
T154: =OAS_2017_18!C155 -> 
T155: =OAS_2017_18!C156 -> 
T156: =OAS_2017_18!C157 -> 
T157: =OAS_2017_18!C158 -> 
T158: =OAS_2017_18!C159 -> 
T159: =OAS_2017_18!C160 -> 
T160: =OAS_2017_18!C161 -> 
T161: =OAS_2017_18!C162 -> 
T162: =OAS_2017_18!C163 -> 
T163: =OAS_2017_18!C164 -> 
T164: =OAS_2017_18!C165 -> 
T165: =OAS_2017_18!C166 -> 
T166: =OAS_2017_18!C167 -> 
T167: =OAS_2017_18!C168 -> 
T168: =OAS_2017_18!C169 -> 
T169: =OAS_2017_18!C170 -> 
T170: =OAS_2017_18!C171 -> 
T171: =OAS_2017_18!C172 -> 
T172: =OAS_2017_18!C173 -> 
T173: =OAS_2017_18!C174 -> 
T174: =OAS_2017_18!C175 -> 
T175: =OAS_2017_18!C176 -> 
T176: =OAS_2017_18!C177 -> 
T177: =OAS_2017_18!C178 -> 
T178: =OAS_2017_18!C179 -> 
T179: =OAS_2017_18!C180 -> 
T180: =OAS_2017_18!C181 -> 
T181: =OAS_2017_18!C182 -> 
T182: =OAS_2017_18!C183 -> 
T183: =OAS_2017_18!C184 -> 
T184: =OAS_2017_18!C185 -> 
T185: =OAS_2017_18!C186 -> 
T186: =OAS_2017_18!C187 -> 
T187: =OAS_2017_18!C188 -> 
T188: =OAS_2017_18!C189 -> 
T189: =OAS_2017_18!C190 -> 
T190: =OAS_2017_18!C191 -> 
T191: =OAS_2017_18!C192 -> 
T192: =OAS_2017_18!C193 -> 
T193: =OAS_2017_18!C194 -> 
T194: =OAS_2017_18!C195 -> 
T195: =OAS_2017_18!C196 -> 
T196: =OAS_2017_18!C197 -> 
T197: =OAS_2017_18!C198 -> 
T198: =OAS_2017_18!C199 -> 
T199: =OAS_2017_18!C200 -> 
T200: =OAS_2017_18!C201 -> 
... 799 more rows

Sheet OAS_2017_18
F1: POENI | L1: BODOVI | T1: OCENA
A2: RB | B2: Broj indeksa | C2: Prezime i ime | D2: SPORT | E2: Status | F2: WORD | G2: EXCEL | H2: PPOINT | I2: TEST_1 | J2: TEST_2 | K2: USLOV | L2: Akt_nast_bod | M2: Akt_vežbe_bod | N2: WORD bod | O2: EXCEL bod | P2: PPOINT bod | Q2: TEST_1 bod | R2: TEST_2 bod | S2: ISPIT | T2: Ukupno | U2: OCENA | V2: ROK | W2: Datum ocena | X2: PRISUTVO | Y2: Datum prisustvo | Z2: PRAKTIČNO ISPIT | AA2: Datum praktično | AB2: Test ocena | AC2: Datum test | AD2: ISPIT ocena | AE2: УКУПНО | AF2: OCENA | AG2: Ispit3 | AI2: Јануар | AJ2: Фебруар | AK2: Април | AL2: Јун | AM2: Јул | AN2: Септембар | AO2: Октобар | AP2: Октобар 2 | AR2: Јануар | AS2: Фебруар | AT2: Април | AU2: Јун | AV2: Јул | AW2: Септембар | AX2: Октобар | AY2: Октобар 2 | AZ2: =B2 -> Broj indeksa | BA2: Јануар | BB2: Фебруар | BC2: Април | BD2: Јун | BE2: Јул | BF2: Септембар | BG2: Октобар | BH2: Октобар 2 | BK2: веће и једнако од | BL2: мање | BM2: оцена | BN2: текст | BP2: РОК | BQ2: Присуство | BR2: Активност | BS2: Практично | BT2: Тест | BU2: Испит
A3: 1 | B3: =IF(Spisak_sluzba!A5<>"",Spisak_sluzba!A5,"") -> 2017/0004 | C3: =IF(Spisak_sluzba!B5<>"",Spisak_sluzba!B5,"") -> Андрић Лазар | D3: =IF(Spisak_sluzba!C5<>"",Spisak_sluzba!C5,"") ->  | E3: =IF(Spisak_sluzba!D5<>"",Spisak_sluzba!D5,"") ->  | F3: =IF(OR(Predrok_april!F3<>"",Predrok_maj!F3<>"",Januar!F3<>"",Februar!F3<>"",April!F3<>"",Juni!F3<>"",Juli!F3,Septembar!F3<>"",Oktobar!F3<>"",Oktobar_2!F3<>""),MAX(Predrok_april!F3,Predrok_maj!F3,Januar!F3,Februar!F3,April!F3,Juni!F3,Juli!F3,Septembar!F3,Oktobar!F3,Oktobar_2!F3),"") -> 28 | G3: =IF(OR(Predrok_april!G3<>"",Predrok_maj!G3<>"",Januar!G3<>"",Februar!G3<>"",April!G3<>"",Juni!G3<>"",Juli!G3,Septembar!G3<>"",Oktobar!G3<>"",Oktobar_2!G3<>""),MAX(Predrok_april!G3,Predrok_maj!G3,Januar!G3,Februar!G3,April!G3,Juni!G3,Juli!G3,Septembar!G3,Oktobar!G3,Oktobar_2!G3),"") -> 29 | H3: =IF(OR(Predrok_april!H3<>"",Predrok_maj!H3<>"",Januar!H3<>"",Februar!H3<>"",April!H3<>"",Juni!H3<>"",Juli!H3,Septembar!H3<>"",Oktobar!H3<>"",Oktobar_2!H3<>""),MAX(Predrok_april!H3,Predrok_maj!H3,Januar!H3,Februar!H3,April!H3,Juni!H3,Juli!H3,Septembar!H3,Oktobar!H3,Oktobar_2!H3),"") -> 26 | I3: =IF(OR(Predrok_april!I3<>"",Predrok_maj!I3<>"",Januar!I3<>"",Februar!I3<>"",April!I3<>"",Juni!I3<>"",Juli!I3,Septembar!I3<>"",Oktobar!I3<>"",Oktobar_2!I3<>""),MAX(Predrok_april!I3,Predrok_maj!I3,Januar!I3,Februar!I3,April!I3,Juni!I3,Juli!I3,Septembar!I3,Oktobar!I3,Oktobar_2!I3),"") -> 9 | K3: =IF(B3<>"",IF(AND(F3<>"",G3<>"",H3<>"",I3<>""),"DA","NE"),"") -> DA | L3: =IF(S3<>"",5,"") -> 5 | M3: =IF(S3<>"",5,"") -> 5 | N3: =IF(F3<>"",IF(F3>=24,(F3/32)*14,""),"") -> 12 | O3: =IF(G3<>"",IF(G3>=24,(G3/32)*14,""),"") -> 13 | P3: =IF(H3<>"",IF(H3>=11,(H3/32)*14,""),"") -> 11 | Q3: =IF(I3<>"",IF(I3>=9,(I3/15)*28,""),"") -> 17 | S3: =IF(V3<>"",IF(AND(N3<>"",O3<>"",P3<>"",Q3<>""),IF(OR(V3="Јун",V3="Јул"),20,IF(OR(V3="Септембар",V3="Октобар"),15,10)),""),"") -> 20 | T3: =IF(AND(L3<>"",M3<>"",S3<>"",N3<>"",O3<>"",Q3<>"",P3<>""),ROUNDUP(SUM(L3,M3,S3,N3,O3,Q3,P3,R3),0),"") -> 84 | U3: =IF(T3<>"",VLOOKUP(T3,$BK$3:$BM$7,3),"") -> 9 | V3: Јун | W3: =IF(X3<>"",VLOOKUP(V3,$BP$3:$BU$10,6,FALSE),"") -> 2018-06-13 | X3: =IF(AND(U3<>"",V3<>""),M3+L3,"") -> 10 | Y3: =IF(X3<>"",VLOOKUP(V3,$BP$2:$BU$10,2,FALSE),"") -> 2018-06-03 | Z3: =IF(X3<>"",SUM(N3,O3,P3),"") -> 36 | AA3: =IF(X3<>"",VLOOKUP(V3,$BP$2:$BU$10,4,FALSE),"") -> 2018-06-13 | AB3: =IF(X3<>"",Q3+R3,"") -> 17 | AC3: =IF(X3<>"",VLOOKUP(V3,$BP$2:$BU$10,5,FALSE),"") -> 2018-06-13 | AD3: =IF(AND(U3<>"",V3<>""),S3,"") -> 20 | AE3: =IF(X3<>"",SUM(X3,AD3,Z3,AB3),"") -> 83 | AF3: =IF(AND(U3<>"",V3<>""),U3,"") -> 9 | AG3: =IF(X3<>"",VLOOKUP(V3,$BP$2:$BU$10,6,FALSE),"") -> 2018-06-13 | AI3: =Januar!R3 ->  | AJ3: =Februar!R3 ->  | AK3: =April!R3 ->  | AL3: =Juni!R3 -> Јун | AM3: =Juli!R3 ->  | AN3: =Septembar!R3 ->  | AO3: =Oktobar!R3 ->  | AP3: =Oktobar_2!R3 ->  | AR3: =Januar!T3 ->  | AS3: =Februar!T3 ->  | AT3: =April!T3 ->  | AU3: =Juni!T3 -> Јун | AV3: =Juli!T3 ->  | AW3: =Septembar!T3 ->  | AX3: =Oktobar!T3 ->  | AY3: =Oktobar_2!T3 ->  | AZ3: =IF(B3<>"",B3,"") -> 2017/0004 | BA3: =IF(AU3<>"",1,"") -> 1 | BK3: 51 | BL3: 61 | BM3: 6 | BN3: шест | BP3: Јануар
A4: 2 | B4: =IF(Spisak_sluzba!A6<>"",Spisak_sluzba!A6,"") -> 2017/0090 | C4: =IF(Spisak_sluzba!B6<>"",Spisak_sluzba!B6,"") -> Антоловић Милан | D4: =IF(Spisak_sluzba!C6<>"",Spisak_sluzba!C6,"") ->  | E4: =IF(Spisak_sluzba!D6<>"",Spisak_sluzba!D6,"") ->  | F4: =IF(OR(Predrok_april!F4<>"",Predrok_maj!F4<>"",Januar!F4<>"",Februar!F4<>"",April!F4<>"",Juni!F4<>"",Juli!F4,Septembar!F4<>"",Oktobar!F4<>"",Oktobar_2!F4<>""),MAX(Predrok_april!F4,Predrok_maj!F4,Januar!F4,Februar!F4,April!F4,Juni!F4,Juli!F4,Septembar!F4,Oktobar!F4,Oktobar_2!F4),"") -> 27 | G4: =IF(OR(Predrok_april!G4<>"",Predrok_maj!G4<>"",Januar!G4<>"",Februar!G4<>"",April!G4<>"",Juni!G4<>"",Juli!G4,Septembar!G4<>"",Oktobar!G4<>"",Oktobar_2!G4<>""),MAX(Predrok_april!G4,Predrok_maj!G4,Januar!G4,Februar!G4,April!G4,Juni!G4,Juli!G4,Septembar!G4,Oktobar!G4,Oktobar_2!G4),"") ->  | H4: =IF(OR(Predrok_april!H4<>"",Predrok_maj!H4<>"",Januar!H4<>"",Februar!H4<>"",April!H4<>"",Juni!H4<>"",Juli!H4,Septembar!H4<>"",Oktobar!H4<>"",Oktobar_2!H4<>""),MAX(Predrok_april!H4,Predrok_maj!H4,Januar!H4,Februar!H4,April!H4,Juni!H4,Juli!H4,Septembar!H4,Oktobar!H4,Oktobar_2!H4),"") ->  | I4: =IF(OR(Predrok_april!I4<>"",Predrok_maj!I4<>"",Januar!I4<>"",Februar!I4<>"",April!I4<>"",Juni!I4<>"",Juli!I4,Septembar!I4<>"",Oktobar!I4<>"",Oktobar_2!I4<>""),MAX(Predrok_april!I4,Predrok_maj!I4,Januar!I4,Februar!I4,April!I4,Juni!I4,Juli!I4,Septembar!I4,Oktobar!I4,Oktobar_2!I4),"") -> 11 | K4: NE | N4: 12 | Q4: 21 | S4: =IF(V4<>"",IF(AND(N4<>"",O4<>"",P4<>"",Q4<>""),IF(OR(V4="Јун",V4="Јул"),20,IF(OR(V4="Септембар",V4="Октобар"),15,10)),""),"") ->  | U4: =IF(T4<>"",VLOOKUP(T4,$BK$3:$BM$7,3),"") ->  | W4: =IF(X4<>"",VLOOKUP(V4,$BP$3:$BU$10,6,FALSE),"") ->  | Z4: =IF(X4<>"",SUM(N4,O4,P4),"") ->  | AD4: =IF(AND(U4<>"",V4<>""),S4,"") ->  | AE4: =IF(X4<>"",SUM(X4,AD4,Z4,AB4),"") ->  | AI4: =Januar!R4 ->  | AJ4: =Februar!R4 ->  | AK4: =April!R4 ->  | AL4: =Juni!R4 ->  | AM4: =Juli!R4 ->  | AN4: =Septembar!R4 ->  | AO4: =Oktobar!R4 ->  | AP4: =Oktobar_2!R4 ->  | AR4: =Januar!T4 ->  | AS4: =Februar!T4 ->  | AT4: =April!T4 ->  | AU4: =Juni!T4 -> Јун | AV4: =Juli!T4 -> Јул | AW4: =Septembar!T4 ->  | AX4: =Oktobar!T4 ->  | AY4: =Oktobar_2!T4 ->  | AZ4: =IF(B4<>"",B4,"") -> 2017/0090 | BA4: 1 | BK4: 61 | BL4: 71 | BM4: 7 | BN4: седам | BP4: Фебруар
A5: 3 | B5: =IF(Spisak_sluzba!A7<>"",Spisak_sluzba!A7,"") -> 2017/0054 | C5: =IF(Spisak_sluzba!B7<>"",Spisak_sluzba!B7,"") -> Бошњаковић Милан | D5: =IF(Spisak_sluzba!C7<>"",Spisak_sluzba!C7,"") ->  | E5: =IF(Spisak_sluzba!D7<>"",Spisak_sluzba!D7,"") ->  | F5: =IF(OR(Predrok_april!F5<>"",Predrok_maj!F5<>"",Januar!F5<>"",Februar!F5<>"",April!F5<>"",Juni!F5<>"",Juli!F5,Septembar!F5<>"",Oktobar!F5<>"",Oktobar_2!F5<>""),MAX(Predrok_april!F5,Predrok_maj!F5,Januar!F5,Februar!F5,April!F5,Juni!F5,Juli!F5,Septembar!F5,Oktobar!F5,Oktobar_2!F5),"") -> 27 | G5: =IF(OR(Predrok_april!G5<>"",Predrok_maj!G5<>"",Januar!G5<>"",Februar!G5<>"",April!G5<>"",Juni!G5<>"",Juli!G5,Septembar!G5<>"",Oktobar!G5<>"",Oktobar_2!G5<>""),MAX(Predrok_april!G5,Predrok_maj!G5,Januar!G5,Februar!G5,April!G5,Juni!G5,Juli!G5,Septembar!G5,Oktobar!G5,Oktobar_2!G5),"") -> 28 | H5: =IF(OR(Predrok_april!H5<>"",Predrok_maj!H5<>"",Januar!H5<>"",Februar!H5<>"",April!H5<>"",Juni!H5<>"",Juli!H5,Septembar!H5<>"",Oktobar!H5<>"",Oktobar_2!H5<>""),MAX(Predrok_april!H5,Predrok_maj!H5,Januar!H5,Februar!H5,April!H5,Juni!H5,Juli!H5,Septembar!H5,Oktobar!H5,Oktobar_2!H5),"") -> 29 | I5: =IF(OR(Predrok_april!I5<>"",Predrok_maj!I5<>"",Januar!I5<>"",Februar!I5<>"",April!I5<>"",Juni!I5<>"",Juli!I5,Septembar!I5<>"",Oktobar!I5<>"",Oktobar_2!I5<>""),MAX(Predrok_april!I5,Predrok_maj!I5,Januar!I5,Februar!I5,April!I5,Juni!I5,Juli!I5,Septembar!I5,Oktobar!I5,Oktobar_2!I5),"") -> 11 | K5: DA | L5: 5 | M5: 5 | N5: 12 | O5: 12 | P5: 13 | Q5: 21 | S5: 15 | T5: 83.0 | U5: 9 | V5: Септембар | W5: 2018-09-01 | X5: 10 | Y5: 2018-06-03 | Z5: 37 | AA5: 2018-06-13 | AB5: 21 | AC5: 2018-09-01 | AD5: 15 | AE5: 82 | AF5: 9 | AG5: 2018-09-01 | AI5: =Januar!R5 ->  | AJ5: =Februar!R5 ->  | AK5: =April!R5 ->  | AL5: =Juni!R5 -> Јун | AM5: =Juli!R5 -> Јул | AN5: =Septembar!R5 -> Септембар | AO5: =Oktobar!R5 ->  | AP5: =Oktobar_2!R5 ->  | AR5: =Januar!T5 ->  | AS5: =Februar!T5 ->  | AT5: =April!T5 ->  | AU5: =Juni!T5 -> Јун | AV5: =Juli!T5 -> Јул | AW5: =Septembar!T5 -> Септембар | AX5: =Oktobar!T5 ->  | AY5: =Oktobar_2!T5 ->  | AZ5: 2017/0054 | BA5: 1 | BK5: 71 | BL5: 71 | BM5: 8 | BN5: осам | BP5: Април
A6: 4 | B6: =IF(Spisak_sluzba!A8<>"",Spisak_sluzba!A8,"") -> 2017/0141 | C6: =IF(Spisak_sluzba!B8<>"",Spisak_sluzba!B8,"") -> Василов Иван | D6: =IF(Spisak_sluzba!C8<>"",Spisak_sluzba!C8,"") ->  | E6: =IF(Spisak_sluzba!D8<>"",Spisak_sluzba!D8,"") ->  | F6: =IF(OR(Predrok_april!F6<>"",Predrok_maj!F6<>"",Januar!F6<>"",Februar!F6<>"",April!F6<>"",Juni!F6<>"",Juli!F6,Septembar!F6<>"",Oktobar!F6<>"",Oktobar_2!F6<>""),MAX(Predrok_april!F6,Predrok_maj!F6,Januar!F6,Februar!F6,April!F6,Juni!F6,Juli!F6,Septembar!F6,Oktobar!F6,Oktobar_2!F6),"") -> 30 | G6: =IF(OR(Predrok_april!G6<>"",Predrok_maj!G6<>"",Januar!G6<>"",Februar!G6<>"",April!G6<>"",Juni!G6<>"",Juli!G6,Septembar!G6<>"",Oktobar!G6<>"",Oktobar_2!G6<>""),MAX(Predrok_april!G6,Predrok_maj!G6,Januar!G6,Februar!G6,April!G6,Juni!G6,Juli!G6,Septembar!G6,Oktobar!G6,Oktobar_2!G6),"") -> 29 | H6: =IF(OR(Predrok_april!H6<>"",Predrok_maj!H6<>"",Januar!H6<>"",Februar!H6<>"",April!H6<>"",Juni!H6<>"",Juli!H6,Septembar!H6<>"",Oktobar!H6<>"",Oktobar_2!H6<>""),MAX(Predrok_april!H6,Predrok_maj!H6,Januar!H6,Februar!H6,April!H6,Juni!H6,Juli!H6,Septembar!H6,Oktobar!H6,Oktobar_2!H6),"") -> 26 | I6: =IF(OR(Predrok_april!I6<>"",Predrok_maj!I6<>"",Januar!I6<>"",Februar!I6<>"",April!I6<>"",Juni!I6<>"",Juli!I6,Septembar!I6<>"",Oktobar!I6<>"",Oktobar_2!I6<>""),MAX(Predrok_april!I6,Predrok_maj!I6,Januar!I6,Februar!I6,April!I6,Juni!I6,Juli!I6,Septembar!I6,Oktobar!I6,Oktobar_2!I6),"") -> 13 | K6: DA | L6: 5 | M6: 5 | N6: 13 | O6: 13 | P6: 11 | Q6: 24 | S6: 20 | T6: 92.0 | U6: 10 | V6: Јул | W6: 2018-07-10 | X6: 10 | Y6: 2018-06-03 | Z6: 37 | AA6: 2018-06-13 | AB6: 24 | AC6: 2018-07-10 | AD6: 20 | AE6: 91 | AF6: 10 | AG6: 2018-07-10 | AI6: =Januar!R6 ->  | AJ6: =Februar!R6 ->  | AK6: =April!R6 ->  | AL6: =Juni!R6 -> Јун | AM6: =Juli!R6 -> Јул | AN6: =Septembar!R6 ->  | AO6: =Oktobar!R6 ->  | AP6: =Oktobar_2!R6 ->  | AR6: =Januar!T6 ->  | AS6: =Februar!T6 ->  | AT6: =April!T6 ->  | AU6: =Juni!T6 -> Јун | AV6: =Juli!T6 -> Јул | AW6: =Septembar!T6 ->  | AX6: =Oktobar!T6 ->  | AY6: =Oktobar_2!T6 ->  | AZ6: 2017/0141 | BA6: 1 | BK6: 81 | BL6: 91 | BM6: 9 | BN6: девет | BP6: Јун | BQ6: 2018-06-03 | BR6: 2018-06-03 | BS6: 2018-06-13 | BT6: 2018-06-13 | BU6: 2018-06-13
A7: 5 | B7: =IF(Spisak_sluzba!A9<>"",Spisak_sluzba!A9,"") -> 2017/0045 | C7: =IF(Spisak_sluzba!B9<>"",Spisak_sluzba!B9,"") -> Васиљевић Сава | D7: =IF(Spisak_sluzba!C9<>"",Spisak_sluzba!C9,"") ->  | E7: =IF(Spisak_sluzba!D9<>"",Spisak_sluzba!D9,"") ->  | F7: =IF(OR(Predrok_april!F7<>"",Predrok_maj!F7<>"",Januar!F7<>"",Februar!F7<>"",April!F7<>"",Juni!F7<>"",Juli!F7,Septembar!F7<>"",Oktobar!F7<>"",Oktobar_2!F7<>""),MAX(Predrok_april!F7,Predrok_maj!F7,Januar!F7,Februar!F7,April!F7,Juni!F7,Juli!F7,Septembar!F7,Oktobar!F7,Oktobar_2!F7),"") -> 28 | G7: =IF(OR(Predrok_april!G7<>"",Predrok_maj!G7<>"",Januar!G7<>"",Februar!G7<>"",April!G7<>"",Juni!G7<>"",Juli!G7,Septembar!G7<>"",Oktobar!G7<>"",Oktobar_2!G7<>""),MAX(Predrok_april!G7,Predrok_maj!G7,Januar!G7,Februar!G7,April!G7,Juni!G7,Juli!G7,Septembar!G7,Oktobar!G7,Oktobar_2!G7),"") -> 26 | H7: =IF(OR(Predrok_april!H7<>"",Predrok_maj!H7<>"",Januar!H7<>"",Februar!H7<>"",April!H7<>"",Juni!H7<>"",Juli!H7,Septembar!H7<>"",Oktobar!H7<>"",Oktobar_2!H7<>""),MAX(Predrok_april!H7,Predrok_maj!H7,Januar!H7,Februar!H7,April!H7,Juni!H7,Juli!H7,Septembar!H7,Oktobar!H7,Oktobar_2!H7),"") -> 28 | I7: =IF(OR(Predrok_april!I7<>"",Predrok_maj!I7<>"",Januar!I7<>"",Februar!I7<>"",April!I7<>"",Juni!I7<>"",Juli!I7,Septembar!I7<>"",Oktobar!I7<>"",Oktobar_2!I7<>""),MAX(Predrok_april!I7,Predrok_maj!I7,Januar!I7,Februar!I7,April!I7,Juni!I7,Juli!I7,Septembar!I7,Oktobar!I7,Oktobar_2!I7),"") -> 12 | K7: DA | L7: 5 | M7: 5 | N7: 12 | O7: 11 | P7: 12 | Q7: 22 | S7: 20 | T7: 89.0 | U7: 9 | V7: Јун | W7: 2018-06-13 | X7: 10 | Y7: 2018-06-03 | Z7: 36 | AA7: 2018-06-13 | AB7: 22 | AC7: 2018-06-13 | AD7: 20 | AE7: 88 | AF7: 9 | AG7: 2018-06-13 | AI7: =Januar!R7 ->  | AJ7: =Februar!R7 ->  | AK7: =April!R7 ->  | AL7: =Juni!R7 -> Јун | AM7: =Juli!R7 ->  | AN7: =Septembar!R7 ->  | AO7: =Oktobar!R7 ->  | AP7: =Oktobar_2!R7 ->  | AR7: =Januar!T7 ->  | AS7: =Februar!T7 ->  | AT7: =April!T7 ->  | AU7: =Juni!T7 -> Јун | AV7: =Juli!T7 ->  | AW7: =Septembar!T7 ->  | AX7: =Oktobar!T7 ->  | AY7: =Oktobar_2!T7 ->  | AZ7: 2017/0045 | BA7: 1 | BK7: 91 | BL7: 100 | BM7: 10 | BN7: десет | BP7: Јул | BQ7: 2018-06-03 | BR7: 2018-06-03 | BS7: 2018-06-13 | BT7: 2018-07-10 | BU7: 2018-07-10
A8: 6 | B8: =IF(Spisak_sluzba!A10<>"",Spisak_sluzba!A10,"") -> 2017/0020 | C8: =IF(Spisak_sluzba!B10<>"",Spisak_sluzba!B10,"") -> Васић Катарина | D8: =IF(Spisak_sluzba!C10<>"",Spisak_sluzba!C10,"") ->  | E8: =IF(Spisak_sluzba!D10<>"",Spisak_sluzba!D10,"") ->  | F8: =IF(OR(Predrok_april!F8<>"",Predrok_maj!F8<>"",Januar!F8<>"",Februar!F8<>"",April!F8<>"",Juni!F8<>"",Juli!F8,Septembar!F8<>"",Oktobar!F8<>"",Oktobar_2!F8<>""),MAX(Predrok_april!F8,Predrok_maj!F8,Januar!F8,Februar!F8,April!F8,Juni!F8,Juli!F8,Septembar!F8,Oktobar!F8,Oktobar_2!F8),"") -> 26 | G8: =IF(OR(Predrok_april!G8<>"",Predrok_maj!G8<>"",Januar!G8<>"",Februar!G8<>"",April!G8<>"",Juni!G8<>"",Juli!G8,Septembar!G8<>"",Oktobar!G8<>"",Oktobar_2!G8<>""),MAX(Predrok_april!G8,Predrok_maj!G8,Januar!G8,Februar!G8,April!G8,Juni!G8,Juli!G8,Septembar!G8,Oktobar!G8,Oktobar_2!G8),"") -> 27 | H8: =IF(OR(Predrok_april!H8<>"",Predrok_maj!H8<>"",Januar!H8<>"",Februar!H8<>"",April!H8<>"",Juni!H8<>"",Juli!H8,Septembar!H8<>"",Oktobar!H8<>"",Oktobar_2!H8<>""),MAX(Predrok_april!H8,Predrok_maj!H8,Januar!H8,Februar!H8,April!H8,Juni!H8,Juli!H8,Septembar!H8,Oktobar!H8,Oktobar_2!H8),"") -> 28 | I8: =IF(OR(Predrok_april!I8<>"",Predrok_maj!I8<>"",Januar!I8<>"",Februar!I8<>"",April!I8<>"",Juni!I8<>"",Juli!I8,Septembar!I8<>"",Oktobar!I8<>"",Oktobar_2!I8<>""),MAX(Predrok_april!I8,Predrok_maj!I8,Januar!I8,Februar!I8,April!I8,Juni!I8,Juli!I8,Septembar!I8,Oktobar!I8,Oktobar_2!I8),"") -> 9 | K8: DA | L8: 5 | M8: 5 | N8: 11 | O8: 12 | P8: 12 | Q8: 17 | S8: 20 | T8: 83.0 | U8: 9 | V8: Јун | W8: 2018-06-13 | X8: 10 | Y8: 2018-06-03 | Z8: 35 | AA8: 2018-06-13 | AB8: 17 | AC8: 2018-06-13 | AD8: 20 | AE8: 82 | AF8: 9 | AG8: 2018-06-13 | AI8: =Januar!R8 ->  | AJ8: =Februar!R8 ->  | AK8: =April!R8 ->  | AL8: =Juni!R8 -> Јун | AM8: =Juli!R8 ->  | AN8: =Septembar!R8 ->  | AO8: =Oktobar!R8 ->  | AP8: =Oktobar_2!R8 ->  | AR8: =Januar!T8 ->  | AS8: =Februar!T8 ->  | AT8: =April!T8 ->  | AU8: =Juni!T8 -> Јун | AV8: =Juli!T8 ->  | AW8: =Septembar!T8 ->  | AX8: =Oktobar!T8 ->  | AY8: =Oktobar_2!T8 ->  | AZ8: 2017/0020 | BA8: 1 | BP8: Септембар | BQ8: 2018-06-03 | BS8: 2018-06-13 | BT8: 2018-09-01 | BU8: 2018-09-01
A9: 7 | B9: =IF(Spisak_sluzba!A11<>"",Spisak_sluzba!A11,"") -> 2017/0086 | C9: =IF(Spisak_sluzba!B11<>"",Spisak_sluzba!B11,"") -> Воларевић Ђорђе | D9: =IF(Spisak_sluzba!C11<>"",Spisak_sluzba!C11,"") ->  | E9: =IF(Spisak_sluzba!D11<>"",Spisak_sluzba!D11,"") ->  | F9: =IF(OR(Predrok_april!F9<>"",Predrok_maj!F9<>"",Januar!F9<>"",Februar!F9<>"",April!F9<>"",Juni!F9<>"",Juli!F9,Septembar!F9<>"",Oktobar!F9<>"",Oktobar_2!F9<>""),MAX(Predrok_april!F9,Predrok_maj!F9,Januar!F9,Februar!F9,April!F9,Juni!F9,Juli!F9,Septembar!F9,Oktobar!F9,Oktobar_2!F9),"") -> 32 | G9: =IF(OR(Predrok_april!G9<>"",Predrok_maj!G9<>"",Januar!G9<>"",Februar!G9<>"",April!G9<>"",Juni!G9<>"",Juli!G9,Septembar!G9<>"",Oktobar!G9<>"",Oktobar_2!G9<>""),MAX(Predrok_april!G9,Predrok_maj!G9,Januar!G9,Februar!G9,April!G9,Juni!G9,Juli!G9,Septembar!G9,Oktobar!G9,Oktobar_2!G9),"") -> 28 | H9: =IF(OR(Predrok_april!H9<>"",Predrok_maj!H9<>"",Januar!H9<>"",Februar!H9<>"",April!H9<>"",Juni!H9<>"",Juli!H9,Septembar!H9<>"",Oktobar!H9<>"",Oktobar_2!H9<>""),MAX(Predrok_april!H9,Predrok_maj!H9,Januar!H9,Februar!H9,April!H9,Juni!H9,Juli!H9,Septembar!H9,Oktobar!H9,Oktobar_2!H9),"") -> 31 | I9: =IF(OR(Predrok_april!I9<>"",Predrok_maj!I9<>"",Januar!I9<>"",Februar!I9<>"",April!I9<>"",Juni!I9<>"",Juli!I9,Septembar!I9<>"",Oktobar!I9<>"",Oktobar_2!I9<>""),MAX(Predrok_april!I9,Predrok_maj!I9,Januar!I9,Februar!I9,April!I9,Juni!I9,Juli!I9,Septembar!I9,Oktobar!I9,Oktobar_2!I9),"") -> 13 | K9: DA | L9: 5 | M9: 5 | N9: 14 | O9: 12 | P9: 14 | Q9: 24 | S9: 20 | T9: 95.0 | U9: 10 | V9: Јун | W9: 2018-06-13 | X9: 10 | Y9: 2018-06-03 | Z9: 40 | AA9: 2018-06-13 | AB9: 24 | AC9: 2018-06-13 | AD9: 20 | AE9: 94 | AF9: 10 | AG9: 2018-06-13 | AI9: =Januar!R9 ->  | AJ9: =Februar!R9 ->  | AK9: =April!R9 ->  | AL9: =Juni!R9 -> Јун | AM9: =Juli!R9 ->  | AN9: =Septembar!R9 ->  | AO9: =Oktobar!R9 ->  | AP9: =Oktobar_2!R9 ->  | AR9: =Januar!T9 ->  | AS9: =Februar!T9 ->  | AT9: =April!T9 ->  | AU9: =Juni!T9 -> Јун | AV9: =Juli!T9 ->  | AW9: =Septembar!T9 ->  | AX9: =Oktobar!T9 ->  | AY9: =Oktobar_2!T9 ->  | AZ9: 2017/0086 | BA9: 1 | BP9: Октобар | BQ9: 2018-06-03 | BR9: 2018-06-03 | BS9: 2018-06-13 | BT9: 2018-09-12 | BU9: 2018-09-12
A10: 8 | B10: =IF(Spisak_sluzba!A12<>"",Spisak_sluzba!A12,"") -> 2017/0073 | C10: =IF(Spisak_sluzba!B12<>"",Spisak_sluzba!B12,"") -> Вукославчевић Лазар | D10: =IF(Spisak_sluzba!C12<>"",Spisak_sluzba!C12,"") ->  | E10: =IF(Spisak_sluzba!D12<>"",Spisak_sluzba!D12,"") ->  | F10: =IF(OR(Predrok_april!F10<>"",Predrok_maj!F10<>"",Januar!F10<>"",Februar!F10<>"",April!F10<>"",Juni!F10<>"",Juli!F10,Septembar!F10<>"",Oktobar!F10<>"",Oktobar_2!F10<>""),MAX(Predrok_april!F10,Predrok_maj!F10,Januar!F10,Februar!F10,April!F10,Juni!F10,Juli!F10,Septembar!F10,Oktobar!F10,Oktobar_2!F10),"") -> 24 | G10: =IF(OR(Predrok_april!G10<>"",Predrok_maj!G10<>"",Januar!G10<>"",Februar!G10<>"",April!G10<>"",Juni!G10<>"",Juli!G10,Septembar!G10<>"",Oktobar!G10<>"",Oktobar_2!G10<>""),MAX(Predrok_april!G10,Predrok_maj!G10,Januar!G10,Februar!G10,April!G10,Juni!G10,Juli!G10,Septembar!G10,Oktobar!G10,Oktobar_2!G10),"") -> 26 | H10: =IF(OR(Predrok_april!H10<>"",Predrok_maj!H10<>"",Januar!H10<>"",Februar!H10<>"",April!H10<>"",Juni!H10<>"",Juli!H10,Septembar!H10<>"",Oktobar!H10<>"",Oktobar_2!H10<>""),MAX(Predrok_april!H10,Predrok_maj!H10,Januar!H10,Februar!H10,April!H10,Juni!H10,Juli!H10,Septembar!H10,Oktobar!H10,Oktobar_2!H10),"") -> 28 | I10: =IF(OR(Predrok_april!I10<>"",Predrok_maj!I10<>"",Januar!I10<>"",Februar!I10<>"",April!I10<>"",Juni!I10<>"",Juli!I10,Septembar!I10<>"",Oktobar!I10<>"",Oktobar_2!I10<>""),MAX(Predrok_april!I10,Predrok_maj!I10,Januar!I10,Februar!I10,April!I10,Juni!I10,Juli!I10,Septembar!I10,Oktobar!I10,Oktobar_2!I10),"") -> 12 | K10: DA | L10: 5 | M10: 5 | N10: 11 | O10: 11 | P10: 12 | Q10: 22 | S10: 15 | T10: 82.0 | U10: 9 | V10: Октобар | W10: 2018-09-12 | X10: 10 | Y10: 2018-06-03 | Z10: 34 | AA10: 2018-06-13 | AB10: 22 | AC10: 2018-09-12 | AD10: 15 | AE10: 82 | AF10: 9 | AG10: 2018-09-12 | AI10: =Januar!R10 ->  | AJ10: =Februar!R10 ->  | AK10: =April!R10 ->  | AL10: =Juni!R10 ->  | AM10: =Juli!R10 ->  | AN10: =Septembar!R10 ->  | AO10: =Oktobar!R10 ->  | AP10: =Oktobar_2!R10 ->  | AR10: =Januar!T10 ->  | AS10: =Februar!T10 ->  | AT10: =April!T10 ->  | AU10: =Juni!T10 ->  | AV10: =Juli!T10 ->  | AW10: =Septembar!T10 ->  | AX10: =Oktobar!T10 ->  | AY10: =Oktobar_2!T10 ->  | AZ10: 2017/0073 | BP10: Октобар (2)
A11: 9 | B11: =IF(Spisak_sluzba!A13<>"",Spisak_sluzba!A13,"") -> 2017/0008 | C11: =IF(Spisak_sluzba!B13<>"",Spisak_sluzba!B13,"") -> Гајић Боривој | D11: =IF(Spisak_sluzba!C13<>"",Spisak_sluzba!C13,"") ->  | E11: =IF(Spisak_sluzba!D13<>"",Spisak_sluzba!D13,"") ->  | F11: =IF(OR(Predrok_april!F11<>"",Predrok_maj!F11<>"",Januar!F11<>"",Februar!F11<>"",April!F11<>"",Juni!F11<>"",Juli!F11,Septembar!F11<>"",Oktobar!F11<>"",Oktobar_2!F11<>""),MAX(Predrok_april!F11,Predrok_maj!F11,Januar!F11,Februar!F11,April!F11,Juni!F11,Juli!F11,Septembar!F11,Oktobar!F11,Oktobar_2!F11),"") -> 32 | G11: =IF(OR(Predrok_april!G11<>"",Predrok_maj!G11<>"",Januar!G11<>"",Februar!G11<>"",April!G11<>"",Juni!G11<>"",Juli!G11,Septembar!G11<>"",Oktobar!G11<>"",Oktobar_2!G11<>""),MAX(Predrok_april!G11,Predrok_maj!G11,Januar!G11,Februar!G11,April!G11,Juni!G11,Juli!G11,Septembar!G11,Oktobar!G11,Oktobar_2!G11),"") -> 29 | H11: =IF(OR(Predrok_april!H11<>"",Predrok_maj!H11<>"",Januar!H11<>"",Februar!H11<>"",April!H11<>"",Juni!H11<>"",Juli!H11,Septembar!H11<>"",Oktobar!H11<>"",Oktobar_2!H11<>""),MAX(Predrok_april!H11,Predrok_maj!H11,Januar!H11,Februar!H11,April!H11,Juni!H11,Juli!H11,Septembar!H11,Oktobar!H11,Oktobar_2!H11),"") -> 24 | I11: =IF(OR(Predrok_april!I11<>"",Predrok_maj!I11<>"",Januar!I11<>"",Februar!I11<>"",April!I11<>"",Juni!I11<>"",Juli!I11,Septembar!I11<>"",Oktobar!I11<>"",Oktobar_2!I11<>""),MAX(Predrok_april!I11,Predrok_maj!I11,Januar!I11,Februar!I11,April!I11,Juni!I11,Juli!I11,Septembar!I11,Oktobar!I11,Oktobar_2!I11),"") -> 9 | K11: DA | L11: 5 | M11: 5 | N11: 14 | O11: 13 | P11: 11 | Q11: 17 | S11: 20 | T11: 84.0 | U11: 9 | V11: Јун | W11: 2018-06-13 | X11: 10 | Y11: 2018-06-03 | Z11: 37 | AA11: 2018-06-13 | AB11: 17 | AC11: 2018-06-13 | AD11: 20 | AE11: 84 | AF11: 9 | AG11: 2018-06-13 | AI11: =Januar!R11 ->  | AJ11: =Februar!R11 ->  | AK11: =April!R11 ->  | AL11: =Juni!R11 -> Јун | AM11: =Juli!R11 ->  | AN11: =Septembar!R11 ->  | AO11: =Oktobar!R11 ->  | AP11: =Oktobar_2!R11 ->  | AR11: =Januar!T11 ->  | AS11: =Februar!T11 ->  | AT11: =April!T11 ->  | AU11: =Juni!T11 -> Јун | AV11: =Juli!T11 ->  | AW11: =Septembar!T11 ->  | AX11: =Oktobar!T11 ->  | AY11: =Oktobar_2!T11 ->  | AZ11: 2017/0008 | BA11: 1
A12: 10 | B12: =IF(Spisak_sluzba!A14<>"",Spisak_sluzba!A14,"") -> 2017/0014 | C12: =IF(Spisak_sluzba!B14<>"",Spisak_sluzba!B14,"") -> Гелев Павле | D12: =IF(Spisak_sluzba!C14<>"",Spisak_sluzba!C14,"") ->  | E12: =IF(Spisak_sluzba!D14<>"",Spisak_sluzba!D14,"") ->  | F12: =IF(OR(Predrok_april!F12<>"",Predrok_maj!F12<>"",Januar!F12<>"",Februar!F12<>"",April!F12<>"",Juni!F12<>"",Juli!F12,Septembar!F12<>"",Oktobar!F12<>"",Oktobar_2!F12<>""),MAX(Predrok_april!F12,Predrok_maj!F12,Januar!F12,Februar!F12,April!F12,Juni!F12,Juli!F12,Septembar!F12,Oktobar!F12,Oktobar_2!F12),"") -> 25 | G12: =IF(OR(Predrok_april!G12<>"",Predrok_maj!G12<>"",Januar!G12<>"",Februar!G12<>"",April!G12<>"",Juni!G12<>"",Juli!G12,Septembar!G12<>"",Oktobar!G12<>"",Oktobar_2!G12<>""),MAX(Predrok_april!G12,Predrok_maj!G12,Januar!G12,Februar!G12,April!G12,Juni!G12,Juli!G12,Septembar!G12,Oktobar!G12,Oktobar_2!G12),"") -> 24 | H12: =IF(OR(Predrok_april!H12<>"",Predrok_maj!H12<>"",Januar!H12<>"",Februar!H12<>"",April!H12<>"",Juni!H12<>"",Juli!H12,Septembar!H12<>"",Oktobar!H12<>"",Oktobar_2!H12<>""),MAX(Predrok_april!H12,Predrok_maj!H12,Januar!H12,Februar!H12,April!H12,Juni!H12,Juli!H12,Septembar!H12,Oktobar!H12,Oktobar_2!H12),"") -> 24 | I12: =IF(OR(Predrok_april!I12<>"",Predrok_maj!I12<>"",Januar!I12<>"",Februar!I12<>"",April!I12<>"",Juni!I12<>"",Juli!I12,Septembar!I12<>"",Oktobar!I12<>"",Oktobar_2!I12<>""),MAX(Predrok_april!I12,Predrok_maj!I12,Januar!I12,Februar!I12,April!I12,Juni!I12,Juli!I12,Septembar!I12,Oktobar!I12,Oktobar_2!I12),"") -> 12 | K12: DA | L12: 5 | M12: 5 | N12: 11 | O12: 11 | P12: 11 | Q12: 22 | S12: 20 | T12: 85.0 | U12: 9 | V12: Јул | W12: 2018-07-10 | X12: 10 | Y12: 2018-06-03 | Z12: 32 | AA12: 2018-06-13 | AB12: 22 | AC12: 2018-07-10 | AD12: 20 | AE12: 84 | AF12: 9 | AG12: 2018-07-10 | AI12: =Januar!R12 ->  | AJ12: =Februar!R12 ->  | AK12: =April!R12 ->  | AL12: =Juni!R12 -> Јун | AM12: =Juli!R12 -> Јул | AN12: =Septembar!R12 ->  | AO12: =Oktobar!R12 ->  | AP12: =Oktobar_2!R12 ->  | AR12: =Januar!T12 ->  | AS12: =Februar!T12 ->  | AT12: =April!T12 ->  | AU12: =Juni!T12 -> Јун | AV12: =Juli!T12 -> Јул | AW12: =Septembar!T12 ->  | AX12: =Oktobar!T12 ->  | AY12: =Oktobar_2!T12 ->  | AZ12: 2017/0014 | BA12: 1
A13: 11 | B13: =IF(Spisak_sluzba!A15<>"",Spisak_sluzba!A15,"") -> 2017/0037 | C13: =IF(Spisak_sluzba!B15<>"",Spisak_sluzba!B15,"") -> Девић Никола | D13: =IF(Spisak_sluzba!C15<>"",Spisak_sluzba!C15,"") ->  | E13: =IF(Spisak_sluzba!D15<>"",Spisak_sluzba!D15,"") ->  | F13: =IF(OR(Predrok_april!F13<>"",Predrok_maj!F13<>"",Januar!F13<>"",Februar!F13<>"",April!F13<>"",Juni!F13<>"",Juli!F13,Septembar!F13<>"",Oktobar!F13<>"",Oktobar_2!F13<>""),MAX(Predrok_april!F13,Predrok_maj!F13,Januar!F13,Februar!F13,April!F13,Juni!F13,Juli!F13,Septembar!F13,Oktobar!F13,Oktobar_2!F13),"") ->  | G13: =IF(OR(Predrok_april!G13<>"",Predrok_maj!G13<>"",Januar!G13<>"",Februar!G13<>"",April!G13<>"",Juni!G13<>"",Juli!G13,Septembar!G13<>"",Oktobar!G13<>"",Oktobar_2!G13<>""),MAX(Predrok_april!G13,Predrok_maj!G13,Januar!G13,Februar!G13,April!G13,Juni!G13,Juli!G13,Septembar!G13,Oktobar!G13,Oktobar_2!G13),"") ->  | H13: =IF(OR(Predrok_april!H13<>"",Predrok_maj!H13<>"",Januar!H13<>"",Februar!H13<>"",April!H13<>"",Juni!H13<>"",Juli!H13,Septembar!H13<>"",Oktobar!H13<>"",Oktobar_2!H13<>""),MAX(Predrok_april!H13,Predrok_maj!H13,Januar!H13,Februar!H13,April!H13,Juni!H13,Juli!H13,Septembar!H13,Oktobar!H13,Oktobar_2!H13),"") -> 31 | I13: =IF(OR(Predrok_april!I13<>"",Predrok_maj!I13<>"",Januar!I13<>"",Februar!I13<>"",April!I13<>"",Juni!I13<>"",Juli!I13,Septembar!I13<>"",Oktobar!I13<>"",Oktobar_2!I13<>""),MAX(Predrok_april!I13,Predrok_maj!I13,Januar!I13,Februar!I13,April!I13,Juni!I13,Juli!I13,Septembar!I13,Oktobar!I13,Oktobar_2!I13),"") -> 13 | P13: 14 | Q13: 24 | V13: Јун | AI13: =Januar!R13 ->  | AJ13: =Februar!R13 ->  | AK13: =April!R13 ->  | AL13: =Juni!R13 ->  | AM13: =Juli!R13 ->  | AN13: =Septembar!R13 ->  | AO13: =Oktobar!R13 ->  | AP13: =Oktobar_2!R13 ->  | AR13: =Januar!T13 ->  | AS13: =Februar!T13 ->  | AT13: =April!T13 ->  | AU13: =Juni!T13 -> Јун | AV13: =Juli!T13 ->  | AW13: =Septembar!T13 ->  | AX13: =Oktobar!T13 ->  | AY13: =Oktobar_2!T13 ->  | AZ13: 2017/0037 | BA13: 1
A14: 12 | B14: =IF(Spisak_sluzba!A16<>"",Spisak_sluzba!A16,"") -> 2017/0130 | C14: =IF(Spisak_sluzba!B16<>"",Spisak_sluzba!B16,"") -> Деспотовић Милош | D14: =IF(Spisak_sluzba!C16<>"",Spisak_sluzba!C16,"") ->  | E14: =IF(Spisak_sluzba!D16<>"",Spisak_sluzba!D16,"") ->  | F14: =IF(OR(Predrok_april!F14<>"",Predrok_maj!F14<>"",Januar!F14<>"",Februar!F14<>"",April!F14<>"",Juni!F14<>"",Juli!F14,Septembar!F14<>"",Oktobar!F14<>"",Oktobar_2!F14<>""),MAX(Predrok_april!F14,Predrok_maj!F14,Januar!F14,Februar!F14,April!F14,Juni!F14,Juli!F14,Septembar!F14,Oktobar!F14,Oktobar_2!F14),"") -> 27 | G14: =IF(OR(Predrok_april!G14<>"",Predrok_maj!G14<>"",Januar!G14<>"",Februar!G14<>"",April!G14<>"",Juni!G14<>"",Juli!G14,Septembar!G14<>"",Oktobar!G14<>"",Oktobar_2!G14<>""),MAX(Predrok_april!G14,Predrok_maj!G14,Januar!G14,Februar!G14,April!G14,Juni!G14,Juli!G14,Septembar!G14,Oktobar!G14,Oktobar_2!G14),"") -> 29 | H14: =IF(OR(Predrok_april!H14<>"",Predrok_maj!H14<>"",Januar!H14<>"",Februar!H14<>"",April!H14<>"",Juni!H14<>"",Juli!H14,Septembar!H14<>"",Oktobar!H14<>"",Oktobar_2!H14<>""),MAX(Predrok_april!H14,Predrok_maj!H14,Januar!H14,Februar!H14,April!H14,Juni!H14,Juli!H14,Septembar!H14,Oktobar!H14,Oktobar_2!H14),"") -> 29 | I14: =IF(OR(Predrok_april!I14<>"",Predrok_maj!I14<>"",Januar!I14<>"",Februar!I14<>"",April!I14<>"",Juni!I14<>"",Juli!I14,Septembar!I14<>"",Oktobar!I14<>"",Oktobar_2!I14<>""),MAX(Predrok_april!I14,Predrok_maj!I14,Januar!I14,Februar!I14,April!I14,Juni!I14,Juli!I14,Septembar!I14,Oktobar!I14,Oktobar_2!I14),"") -> 11 | K14: DA | L14: 5 | M14: 5 | N14: 12 | O14: 13 | P14: 13 | Q14: 21 | S14: 15 | T14: 83.0 | U14: 9 | V14: Септембар | W14: 2018-09-01 | X14: 10 | Y14: 2018-06-03 | Z14: 37 | AA14: 2018-06-13 | AB14: 21 | AC14: 2018-09-01 | AD14: 15 | AE14: 83 | AF14: 9 | AG14: 2018-09-01 | AI14: =Januar!R14 ->  | AJ14: =Februar!R14 ->  | AK14: =April!R14 ->  | AL14: =Juni!R14 ->  | AM14: =Juli!R14 -> Јул | AN14: =Septembar!R14 -> Септембар | AO14: =Oktobar!R14 ->  | AP14: =Oktobar_2!R14 ->  | AR14: =Januar!T14 ->  | AS14: =Februar!T14 ->  | AT14: =April!T14 ->  | AU14: =Juni!T14 ->  | AV14: =Juli!T14 -> Јул | AW14: =Septembar!T14 -> Септембар | AX14: =Oktobar!T14 ->  | AY14: =Oktobar_2!T14 ->  | AZ14: 2017/0130
A15: 13 | B15: =IF(Spisak_sluzba!A17<>"",Spisak_sluzba!A17,"") -> 2017/0024 | C15: =IF(Spisak_sluzba!B17<>"",Spisak_sluzba!B17,"") -> Ђукановић Петар | D15: =IF(Spisak_sluzba!C17<>"",Spisak_sluzba!C17,"") ->  | E15: =IF(Spisak_sluzba!D17<>"",Spisak_sluzba!D17,"") ->  | F15: =IF(OR(Predrok_april!F15<>"",Predrok_maj!F15<>"",Januar!F15<>"",Februar!F15<>"",April!F15<>"",Juni!F15<>"",Juli!F15,Septembar!F15<>"",Oktobar!F15<>"",Oktobar_2!F15<>""),MAX(Predrok_april!F15,Predrok_maj!F15,Januar!F15,Februar!F15,April!F15,Juni!F15,Juli!F15,Septembar!F15,Oktobar!F15,Oktobar_2!F15),"") -> 27 | G15: =IF(OR(Predrok_april!G15<>"",Predrok_maj!G15<>"",Januar!G15<>"",Februar!G15<>"",April!G15<>"",Juni!G15<>"",Juli!G15,Septembar!G15<>"",Oktobar!G15<>"",Oktobar_2!G15<>""),MAX(Predrok_april!G15,Predrok_maj!G15,Januar!G15,Februar!G15,April!G15,Juni!G15,Juli!G15,Septembar!G15,Oktobar!G15,Oktobar_2!G15),"") -> 27 | H15: =IF(OR(Predrok_april!H15<>"",Predrok_maj!H15<>"",Januar!H15<>"",Februar!H15<>"",April!H15<>"",Juni!H15<>"",Juli!H15,Septembar!H15<>"",Oktobar!H15<>"",Oktobar_2!H15<>""),MAX(Predrok_april!H15,Predrok_maj!H15,Januar!H15,Februar!H15,April!H15,Juni!H15,Juli!H15,Septembar!H15,Oktobar!H15,Oktobar_2!H15),"") -> 30 | I15: =IF(OR(Predrok_april!I15<>"",Predrok_maj!I15<>"",Januar!I15<>"",Februar!I15<>"",April!I15<>"",Juni!I15<>"",Juli!I15,Septembar!I15<>"",Oktobar!I15<>"",Oktobar_2!I15<>""),MAX(Predrok_april!I15,Predrok_maj!I15,Januar!I15,Februar!I15,April!I15,Juni!I15,Juli!I15,Septembar!I15,Oktobar!I15,Oktobar_2!I15),"") -> 9 | K15: DA | L15: 5 | M15: 5 | N15: 12 | O15: 12 | P15: 13 | Q15: 17 | S15: 20 | T15: 84.0 | U15: 9 | V15: Јун | W15: 2018-06-13 | X15: 10 | Y15: 2018-06-03 | Z15: 37 | AA15: 2018-06-13 | AB15: 17 | AC15: 2018-06-13 | AD15: 20 | AE15: 84 | AF15: 9 | AG15: 2018-06-13 | AI15: =Januar!R15 ->  | AJ15: =Februar!R15 ->  | AK15: =April!R15 ->  | AL15: =Juni!R15 -> Јун | AM15: =Juli!R15 ->  | AN15: =Septembar!R15 ->  | AO15: =Oktobar!R15 ->  | AP15: =Oktobar_2!R15 ->  | AR15: =Januar!T15 ->  | AS15: =Februar!T15 ->  | AT15: =April!T15 ->  | AU15: =Juni!T15 -> Јун | AV15: =Juli!T15 ->  | AW15: =Septembar!T15 ->  | AX15: =Oktobar!T15 ->  | AY15: =Oktobar_2!T15 ->  | AZ15: 2017/0024 | BA15: 1
A16: 14 | B16: =IF(Spisak_sluzba!A18<>"",Spisak_sluzba!A18,"") -> 2017/0156 | C16: =IF(Spisak_sluzba!B18<>"",Spisak_sluzba!B18,"") -> Ђурђевић Филип | D16: =IF(Spisak_sluzba!C18<>"",Spisak_sluzba!C18,"") ->  | E16: =IF(Spisak_sluzba!D18<>"",Spisak_sluzba!D18,"") ->  | F16: =IF(OR(Predrok_april!F16<>"",Predrok_maj!F16<>"",Januar!F16<>"",Februar!F16<>"",April!F16<>"",Juni!F16<>"",Juli!F16,Septembar!F16<>"",Oktobar!F16<>"",Oktobar_2!F16<>""),MAX(Predrok_april!F16,Predrok_maj!F16,Januar!F16,Februar!F16,April!F16,Juni!F16,Juli!F16,Septembar!F16,Oktobar!F16,Oktobar_2!F16),"") -> 24 | G16: =IF(OR(Predrok_april!G16<>"",Predrok_maj!G16<>"",Januar!G16<>"",Februar!G16<>"",April!G16<>"",Juni!G16<>"",Juli!G16,Septembar!G16<>"",Oktobar!G16<>"",Oktobar_2!G16<>""),MAX(Predrok_april!G16,Predrok_maj!G16,Januar!G16,Februar!G16,April!G16,Juni!G16,Juli!G16,Septembar!G16,Oktobar!G16,Oktobar_2!G16),"") ->  | H16: =IF(OR(Predrok_april!H16<>"",Predrok_maj!H16<>"",Januar!H16<>"",Februar!H16<>"",April!H16<>"",Juni!H16<>"",Juli!H16,Septembar!H16<>"",Oktobar!H16<>"",Oktobar_2!H16<>""),MAX(Predrok_april!H16,Predrok_maj!H16,Januar!H16,Februar!H16,April!H16,Juni!H16,Juli!H16,Septembar!H16,Oktobar!H16,Oktobar_2!H16),"") ->  | I16: =IF(OR(Predrok_april!I16<>"",Predrok_maj!I16<>"",Januar!I16<>"",Februar!I16<>"",April!I16<>"",Juni!I16<>"",Juli!I16,Septembar!I16<>"",Oktobar!I16<>"",Oktobar_2!I16<>""),MAX(Predrok_april!I16,Predrok_maj!I16,Januar!I16,Februar!I16,April!I16,Juni!I16,Juli!I16,Septembar!I16,Oktobar!I16,Oktobar_2!I16),"") -> 13 | K16: NE | N16: 11 | Q16: 24 | AI16: =Januar!R16 ->  | AJ16: =Februar!R16 ->  | AK16: =April!R16 ->  | AL16: =Juni!R16 ->  | AM16: =Juli!R16 ->  | AN16: =Septembar!R16 ->  | AO16: =Oktobar!R16 ->  | AP16: =Oktobar_2!R16 ->  | AR16: =Januar!T16 ->  | AS16: =Februar!T16 ->  | AT16: =April!T16 ->  | AU16: =Juni!T16 -> Јун | AV16: =Juli!T16 ->  | AW16: =Septembar!T16 ->  | AX16: =Oktobar!T16 ->  | AY16: =Oktobar_2!T16 ->  | AZ16: 2017/0156 | BA16: 1
A17: 15 | B17: =IF(Spisak_sluzba!A19<>"",Spisak_sluzba!A19,"") -> 2017/0093 | C17: =IF(Spisak_sluzba!B19<>"",Spisak_sluzba!B19,"") -> Здравковић Лука | D17: =IF(Spisak_sluzba!C19<>"",Spisak_sluzba!C19,"") ->  | E17: =IF(Spisak_sluzba!D19<>"",Spisak_sluzba!D19,"") ->  | F17: =IF(OR(Predrok_april!F17<>"",Predrok_maj!F17<>"",Januar!F17<>"",Februar!F17<>"",April!F17<>"",Juni!F17<>"",Juli!F17,Septembar!F17<>"",Oktobar!F17<>"",Oktobar_2!F17<>""),MAX(Predrok_april!F17,Predrok_maj!F17,Januar!F17,Februar!F17,April!F17,Juni!F17,Juli!F17,Septembar!F17,Oktobar!F17,Oktobar_2!F17),"") -> 27 | G17: =IF(OR(Predrok_april!G17<>"",Predrok_maj!G17<>"",Januar!G17<>"",Februar!G17<>"",April!G17<>"",Juni!G17<>"",Juli!G17,Septembar!G17<>"",Oktobar!G17<>"",Oktobar_2!G17<>""),MAX(Predrok_april!G17,Predrok_maj!G17,Januar!G17,Februar!G17,April!G17,Juni!G17,Juli!G17,Septembar!G17,Oktobar!G17,Oktobar_2!G17),"") -> 30 | H17: =IF(OR(Predrok_april!H17<>"",Predrok_maj!H17<>"",Januar!H17<>"",Februar!H17<>"",April!H17<>"",Juni!H17<>"",Juli!H17,Septembar!H17<>"",Oktobar!H17<>"",Oktobar_2!H17<>""),MAX(Predrok_april!H17,Predrok_maj!H17,Januar!H17,Februar!H17,April!H17,Juni!H17,Juli!H17,Septembar!H17,Oktobar!H17,Oktobar_2!H17),"") -> 28 | I17: =IF(OR(Predrok_april!I17<>"",Predrok_maj!I17<>"",Januar!I17<>"",Februar!I17<>"",April!I17<>"",Juni!I17<>"",Juli!I17,Septembar!I17<>"",Oktobar!I17<>"",Oktobar_2!I17<>""),MAX(Predrok_april!I17,Predrok_maj!I17,Januar!I17,Februar!I17,April!I17,Juni!I17,Juli!I17,Septembar!I17,Oktobar!I17,Oktobar_2!I17),"") -> 9 | K17: DA | L17: 5 | M17: 5 | N17: 12 | O17: 13 | P17: 12 | Q17: 17 | S17: 20 | T17: 84.0 | U17: 9 | V17: Јул | W17: 2018-07-10 | X17: 10 | Y17: 2018-06-03 | Z17: 37 | AA17: 2018-06-13 | AB17: 17 | AC17: 2018-07-10 | AD17: 20 | AE17: 84 | AF17: 9 | AG17: 2018-07-10 | AI17: =Januar!R17 ->  | AJ17: =Februar!R17 ->  | AK17: =April!R17 ->  | AL17: =Juni!R17 -> Јун | AM17: =Juli!R17 -> Јул | AN17: =Septembar!R17 ->  | AO17: =Oktobar!R17 ->  | AP17: =Oktobar_2!R17 ->  | AR17: =Januar!T17 ->  | AS17: =Februar!T17 ->  | AT17: =April!T17 ->  | AU17: =Juni!T17 -> Јун | AV17: =Juli!T17 -> Јул | AW17: =Septembar!T17 ->  | AX17: =Oktobar!T17 ->  | AY17: =Oktobar_2!T17 ->  | AZ17: 2017/0093 | BA17: 1
A18: 16 | B18: =IF(Spisak_sluzba!A20<>"",Spisak_sluzba!A20,"") -> 2017/0132 | C18: =IF(Spisak_sluzba!B20<>"",Spisak_sluzba!B20,"") -> Зец Уна | D18: =IF(Spisak_sluzba!C20<>"",Spisak_sluzba!C20,"") ->  | E18: =IF(Spisak_sluzba!D20<>"",Spisak_sluzba!D20,"") ->  | F18: =IF(OR(Predrok_april!F18<>"",Predrok_maj!F18<>"",Januar!F18<>"",Februar!F18<>"",April!F18<>"",Juni!F18<>"",Juli!F18,Septembar!F18<>"",Oktobar!F18<>"",Oktobar_2!F18<>""),MAX(Predrok_april!F18,Predrok_maj!F18,Januar!F18,Februar!F18,April!F18,Juni!F18,Juli!F18,Septembar!F18,Oktobar!F18,Oktobar_2!F18),"") -> 27 | G18: =IF(OR(Predrok_april!G18<>"",Predrok_maj!G18<>"",Januar!G18<>"",Februar!G18<>"",April!G18<>"",Juni!G18<>"",Juli!G18,Septembar!G18<>"",Oktobar!G18<>"",Oktobar_2!G18<>""),MAX(Predrok_april!G18,Predrok_maj!G18,Januar!G18,Februar!G18,April!G18,Juni!G18,Juli!G18,Septembar!G18,Oktobar!G18,Oktobar_2!G18),"") -> 30 | H18: =IF(OR(Predrok_april!H18<>"",Predrok_maj!H18<>"",Januar!H18<>"",Februar!H18<>"",April!H18<>"",Juni!H18<>"",Juli!H18,Septembar!H18<>"",Oktobar!H18<>"",Oktobar_2!H18<>""),MAX(Predrok_april!H18,Predrok_maj!H18,Januar!H18,Februar!H18,April!H18,Juni!H18,Juli!H18,Septembar!H18,Oktobar!H18,Oktobar_2!H18),"") -> 24 | I18: =IF(OR(Predrok_april!I18<>"",Predrok_maj!I18<>"",Januar!I18<>"",Februar!I18<>"",April!I18<>"",Juni!I18<>"",Juli!I18,Septembar!I18<>"",Oktobar!I18<>"",Oktobar_2!I18<>""),MAX(Predrok_april!I18,Predrok_maj!I18,Januar!I18,Februar!I18,April!I18,Juni!I18,Juli!I18,Septembar!I18,Oktobar!I18,Oktobar_2!I18),"") -> 9 | K18: DA | L18: 5 | M18: 5 | N18: 12 | O18: 13 | P18: 11 | Q18: 17 | S18: 15 | T18: 78.0 | U18: 8 | V18: Октобар | W18: 2018-09-12 | X18: 10 | Y18: 2018-06-03 | Z18: 35 | AA18: 2018-06-13 | AB18: 17 | AC18: 2018-09-12 | AD18: 15 | AE18: 77 | AF18: 8 | AG18: 2018-09-12 | AI18: =Januar!R18 ->  | AJ18: =Februar!R18 ->  | AK18: =April!R18 ->  | AL18: =Juni!R18 ->  | AM18: =Juli!R18 -> Јул | AN18: =Septembar!R18 -> Септембар | AO18: =Oktobar!R18 ->  | AP18: =Oktobar_2!R18 ->  | AR18: =Januar!T18 ->  | AS18: =Februar!T18 ->  | AT18: =April!T18 ->  | AU18: =Juni!T18 ->  | AV18: =Juli!T18 -> Јул | AW18: =Septembar!T18 -> Септембар | AX18: =Oktobar!T18 ->  | AY18: =Oktobar_2!T18 ->  | AZ18: 2017/0132
A19: 17 | B19: =IF(Spisak_sluzba!A21<>"",Spisak_sluzba!A21,"") -> 2017/0135 | C19: =IF(Spisak_sluzba!B21<>"",Spisak_sluzba!B21,"") -> Зечевић Невена | D19: =IF(Spisak_sluzba!C21<>"",Spisak_sluzba!C21,"") ->  | E19: =IF(Spisak_sluzba!D21<>"",Spisak_sluzba!D21,"") ->  | F19: =IF(OR(Predrok_april!F19<>"",Predrok_maj!F19<>"",Januar!F19<>"",Februar!F19<>"",April!F19<>"",Juni!F19<>"",Juli!F19,Septembar!F19<>"",Oktobar!F19<>"",Oktobar_2!F19<>""),MAX(Predrok_april!F19,Predrok_maj!F19,Januar!F19,Februar!F19,April!F19,Juni!F19,Juli!F19,Septembar!F19,Oktobar!F19,Oktobar_2!F19),"") -> 32 | G19: =IF(OR(Predrok_april!G19<>"",Predrok_maj!G19<>"",Januar!G19<>"",Februar!G19<>"",April!G19<>"",Juni!G19<>"",Juli!G19,Septembar!G19<>"",Oktobar!G19<>"",Oktobar_2!G19<>""),MAX(Predrok_april!G19,Predrok_maj!G19,Januar!G19,Februar!G19,April!G19,Juni!G19,Juli!G19,Septembar!G19,Oktobar!G19,Oktobar_2!G19),"") -> 30 | H19: =IF(OR(Predrok_april!H19<>"",Predrok_maj!H19<>"",Januar!H19<>"",Februar!H19<>"",April!H19<>"",Juni!H19<>"",Juli!H19,Septembar!H19<>"",Oktobar!H19<>"",Oktobar_2!H19<>""),MAX(Predrok_april!H19,Predrok_maj!H19,Januar!H19,Februar!H19,April!H19,Juni!H19,Juli!H19,Septembar!H19,Oktobar!H19,Oktobar_2!H19),"") -> 27 | I19: =IF(OR(Predrok_april!I19<>"",Predrok_maj!I19<>"",Januar!I19<>"",Februar!I19<>"",April!I19<>"",Juni!I19<>"",Juli!I19,Septembar!I19<>"",Oktobar!I19<>"",Oktobar_2!I19<>""),MAX(Predrok_april!I19,Predrok_maj!I19,Januar!I19,Februar!I19,April!I19,Juni!I19,Juli!I19,Septembar!I19,Oktobar!I19,Oktobar_2!I19),"") -> 11 | K19: DA | L19: 5 | M19: 5 | N19: 14 | O19: 13 | P19: 12 | Q19: 21 | S19: 20 | T19: 90.0 | U19: 9 | V19: Јун | W19: 2018-06-13 | X19: 10 | Y19: 2018-06-03 | Z19: 39 | AA19: 2018-06-13 | AB19: 21 | AC19: 2018-06-13 | AD19: 20 | AE19: 89 | AF19: 9 | AG19: 2018-06-13 | AI19: =Januar!R19 ->  | AJ19: =Februar!R19 ->  | AK19: =April!R19 ->  | AL19: =Juni!R19 -> Јун | AM19: =Juli!R19 -> Јул | AN19: =Septembar!R19 ->  | AO19: =Oktobar!R19 ->  | AP19: =Oktobar_2!R19 ->  | AR19: =Januar!T19 ->  | AS19: =Februar!T19 ->  | AT19: =April!T19 ->  | AU19: =Juni!T19 -> Јун | AV19: =Juli!T19 -> Јул | AW19: =Septembar!T19 ->  | AX19: =Oktobar!T19 ->  | AY19: =Oktobar_2!T19 ->  | AZ19: 2017/0135 | BA19: 1
A20: 18 | B20: =IF(Spisak_sluzba!A22<>"",Spisak_sluzba!A22,"") -> 2017/0119 | C20: =IF(Spisak_sluzba!B22<>"",Spisak_sluzba!B22,"") -> Зорић Душан | D20: =IF(Spisak_sluzba!C22<>"",Spisak_sluzba!C22,"") ->  | E20: =IF(Spisak_sluzba!D22<>"",Spisak_sluzba!D22,"") ->  | F20: =IF(OR(Predrok_april!F20<>"",Predrok_maj!F20<>"",Januar!F20<>"",Februar!F20<>"",April!F20<>"",Juni!F20<>"",Juli!F20,Septembar!F20<>"",Oktobar!F20<>"",Oktobar_2!F20<>""),MAX(Predrok_april!F20,Predrok_maj!F20,Januar!F20,Februar!F20,April!F20,Juni!F20,Juli!F20,Septembar!F20,Oktobar!F20,Oktobar_2!F20),"") -> 26 | G20: =IF(OR(Predrok_april!G20<>"",Predrok_maj!G20<>"",Januar!G20<>"",Februar!G20<>"",April!G20<>"",Juni!G20<>"",Juli!G20,Septembar!G20<>"",Oktobar!G20<>"",Oktobar_2!G20<>""),MAX(Predrok_april!G20,Predrok_maj!G20,Januar!G20,Februar!G20,April!G20,Juni!G20,Juli!G20,Septembar!G20,Oktobar!G20,Oktobar_2!G20),"") -> 29 | H20: =IF(OR(Predrok_april!H20<>"",Predrok_maj!H20<>"",Januar!H20<>"",Februar!H20<>"",April!H20<>"",Juni!H20<>"",Juli!H20,Septembar!H20<>"",Oktobar!H20<>"",Oktobar_2!H20<>""),MAX(Predrok_april!H20,Predrok_maj!H20,Januar!H20,Februar!H20,April!H20,Juni!H20,Juli!H20,Septembar!H20,Oktobar!H20,Oktobar_2!H20),"") -> 24 | I20: =IF(OR(Predrok_april!I20<>"",Predrok_maj!I20<>"",Januar!I20<>"",Februar!I20<>"",April!I20<>"",Juni!I20<>"",Juli!I20,Septembar!I20<>"",Oktobar!I20<>"",Oktobar_2!I20<>""),MAX(Predrok_april!I20,Predrok_maj!I20,Januar!I20,Februar!I20,April!I20,Juni!I20,Juli!I20,Septembar!I20,Oktobar!I20,Oktobar_2!I20),"") -> 12 | K20: DA | L20: 5 | M20: 5 | N20: 11 | O20: 13 | P20: 11 | Q20: 22 | S20: 20 | T20: 87.0 | U20: 9 | V20: Јул | W20: 2018-07-10 | X20: 10 | Y20: 2018-06-03 | Z20: 35 | AA20: 2018-06-13 | AB20: 22 | AC20: 2018-07-10 | AD20: 20 | AE20: 87 | AF20: 9 | AG20: 2018-07-10 | AI20: =Januar!R20 ->  | AJ20: =Februar!R20 ->  | AK20: =April!R20 ->  | AL20: =Juni!R20 -> Јун | AM20: =Juli!R20 -> Јул | AN20: =Septembar!R20 ->  | AO20: =Oktobar!R20 ->  | AP20: =Oktobar_2!R20 ->  | AR20: =Januar!T20 ->  | AS20: =Februar!T20 ->  | AT20: =April!T20 ->  | AU20: =Juni!T20 -> Јун | AV20: =Juli!T20 -> Јул | AW20: =Septembar!T20 ->  | AX20: =Oktobar!T20 ->  | AY20: =Oktobar_2!T20 ->  | AZ20: 2017/0119 | BA20: 1
A21: 19 | B21: =IF(Spisak_sluzba!A23<>"",Spisak_sluzba!A23,"") -> 2017/0059 | C21: =IF(Spisak_sluzba!B23<>"",Spisak_sluzba!B23,"") -> Јакшић Вукан | D21: =IF(Spisak_sluzba!C23<>"",Spisak_sluzba!C23,"") ->  | E21: =IF(Spisak_sluzba!D23<>"",Spisak_sluzba!D23,"") ->  | F21: =IF(OR(Predrok_april!F21<>"",Predrok_maj!F21<>"",Januar!F21<>"",Februar!F21<>"",April!F21<>"",Juni!F21<>"",Juli!F21,Septembar!F21<>"",Oktobar!F21<>"",Oktobar_2!F21<>""),MAX(Predrok_april!F21,Predrok_maj!F21,Januar!F21,Februar!F21,April!F21,Juni!F21,Juli!F21,Septembar!F21,Oktobar!F21,Oktobar_2!F21),"") -> 31 | G21: =IF(OR(Predrok_april!G21<>"",Predrok_maj!G21<>"",Januar!G21<>"",Februar!G21<>"",April!G21<>"",Juni!G21<>"",Juli!G21,Septembar!G21<>"",Oktobar!G21<>"",Oktobar_2!G21<>""),MAX(Predrok_april!G21,Predrok_maj!G21,Januar!G21,Februar!G21,April!G21,Juni!G21,Juli!G21,Septembar!G21,Oktobar!G21,Oktobar_2!G21),"") -> 28 | H21: =IF(OR(Predrok_april!H21<>"",Predrok_maj!H21<>"",Januar!H21<>"",Februar!H21<>"",April!H21<>"",Juni!H21<>"",Juli!H21,Septembar!H21<>"",Oktobar!H21<>"",Oktobar_2!H21<>""),MAX(Predrok_april!H21,Predrok_maj!H21,Januar!H21,Februar!H21,April!H21,Juni!H21,Juli!H21,Septembar!H21,Oktobar!H21,Oktobar_2!H21),"") -> 29 | I21: =IF(OR(Predrok_april!I21<>"",Predrok_maj!I21<>"",Januar!I21<>"",Februar!I21<>"",April!I21<>"",Juni!I21<>"",Juli!I21,Septembar!I21<>"",Oktobar!I21<>"",Oktobar_2!I21<>""),MAX(Predrok_april!I21,Predrok_maj!I21,Januar!I21,Februar!I21,April!I21,Juni!I21,Juli!I21,Septembar!I21,Oktobar!I21,Oktobar_2!I21),"") -> 12 | K21: DA | L21: 5 | M21: 5 | N21: 14 | O21: 12 | P21: 13 | Q21: 22 | S21: 20 | T21: 91.0 | U21: 10 | V21: Јун | W21: 2018-06-13 | X21: 10 | Y21: 2018-06-03 | Z21: 39 | AA21: 2018-06-13 | AB21: 22 | AC21: 2018-06-13 | AD21: 20 | AE21: 91 | AF21: 10 | AG21: 2018-06-13 | AI21: =Januar!R21 ->  | AJ21: =Februar!R21 ->  | AK21: =April!R21 ->  | AL21: =Juni!R21 -> Јун | AM21: =Juli!R21 ->  | AN21: =Septembar!R21 ->  | AO21: =Oktobar!R21 ->  | AP21: =Oktobar_2!R21 ->  | AR21: =Januar!T21 ->  | AS21: =Februar!T21 ->  | AT21: =April!T21 ->  | AU21: =Juni!T21 -> Јун | AV21: =Juli!T21 ->  | AW21: =Septembar!T21 ->  | AX21: =Oktobar!T21 ->  | AY21: =Oktobar_2!T21 ->  | AZ21: 2017/0059 | BA21: 1
A22: 20 | B22: =IF(Spisak_sluzba!A24<>"",Spisak_sluzba!A24,"") -> 2017/0094 | C22: =IF(Spisak_sluzba!B24<>"",Spisak_sluzba!B24,"") -> Јелић Јана | D22: =IF(Spisak_sluzba!C24<>"",Spisak_sluzba!C24,"") ->  | E22: =IF(Spisak_sluzba!D24<>"",Spisak_sluzba!D24,"") ->  | F22: =IF(OR(Predrok_april!F22<>"",Predrok_maj!F22<>"",Januar!F22<>"",Februar!F22<>"",April!F22<>"",Juni!F22<>"",Juli!F22,Septembar!F22<>"",Oktobar!F22<>"",Oktobar_2!F22<>""),MAX(Predrok_april!F22,Predrok_maj!F22,Januar!F22,Februar!F22,April!F22,Juni!F22,Juli!F22,Septembar!F22,Oktobar!F22,Oktobar_2!F22),"") -> 29 | G22: =IF(OR(Predrok_april!G22<>"",Predrok_maj!G22<>"",Januar!G22<>"",Februar!G22<>"",April!G22<>"",Juni!G22<>"",Juli!G22,Septembar!G22<>"",Oktobar!G22<>"",Oktobar_2!G22<>""),MAX(Predrok_april!G22,Predrok_maj!G22,Januar!G22,Februar!G22,April!G22,Juni!G22,Juli!G22,Septembar!G22,Oktobar!G22,Oktobar_2!G22),"") -> 29 | H22: =IF(OR(Predrok_april!H22<>"",Predrok_maj!H22<>"",Januar!H22<>"",Februar!H22<>"",April!H22<>"",Juni!H22<>"",Juli!H22,Septembar!H22<>"",Oktobar!H22<>"",Oktobar_2!H22<>""),MAX(Predrok_april!H22,Predrok_maj!H22,Januar!H22,Februar!H22,April!H22,Juni!H22,Juli!H22,Septembar!H22,Oktobar!H22,Oktobar_2!H22),"") -> 31 | I22: =IF(OR(Predrok_april!I22<>"",Predrok_maj!I22<>"",Januar!I22<>"",Februar!I22<>"",April!I22<>"",Juni!I22<>"",Juli!I22,Septembar!I22<>"",Oktobar!I22<>"",Oktobar_2!I22<>""),MAX(Predrok_april!I22,Predrok_maj!I22,Januar!I22,Februar!I22,April!I22,Juni!I22,Juli!I22,Septembar!I22,Oktobar!I22,Oktobar_2!I22),"") -> 12 | K22: DA | L22: 5 | M22: 5 | N22: 13 | O22: 13 | P22: 14 | Q22: 22 | S22: 20 | T22: 92.0 | U22: 10 | V22: Јун | W22: 2018-06-13 | X22: 10 | Y22: 2018-06-03 | Z22: 39 | AA22: 2018-06-13 | AB22: 22 | AC22: 2018-06-13 | AD22: 20 | AE22: 91 | AF22: 10 | AG22: 2018-06-13 | AI22: =Januar!R22 ->  | AJ22: =Februar!R22 ->  | AK22: =April!R22 ->  | AL22: =Juni!R22 -> Јун | AM22: =Juli!R22 ->  | AN22: =Septembar!R22 ->  | AO22: =Oktobar!R22 ->  | AP22: =Oktobar_2!R22 ->  | AR22: =Januar!T22 ->  | AS22: =Februar!T22 ->  | AT22: =April!T22 ->  | AU22: =Juni!T22 -> Јун | AV22: =Juli!T22 ->  | AW22: =Septembar!T22 ->  | AX22: =Oktobar!T22 ->  | AY22: =Oktobar_2!T22 ->  | AZ22: 2017/0094 | BA22: 1
A23: 21 | B23: =IF(Spisak_sluzba!A25<>"",Spisak_sluzba!A25,"") -> 2017/0061 | C23: =IF(Spisak_sluzba!B25<>"",Spisak_sluzba!B25,"") -> Јовановић Данило | D23: =IF(Spisak_sluzba!C25<>"",Spisak_sluzba!C25,"") ->  | E23: =IF(Spisak_sluzba!D25<>"",Spisak_sluzba!D25,"") ->  | F23: =IF(OR(Predrok_april!F23<>"",Predrok_maj!F23<>"",Januar!F23<>"",Februar!F23<>"",April!F23<>"",Juni!F23<>"",Juli!F23,Septembar!F23<>"",Oktobar!F23<>"",Oktobar_2!F23<>""),MAX(Predrok_april!F23,Predrok_maj!F23,Januar!F23,Februar!F23,April!F23,Juni!F23,Juli!F23,Septembar!F23,Oktobar!F23,Oktobar_2!F23),"") -> 26 | G23: =IF(OR(Predrok_april!G23<>"",Predrok_maj!G23<>"",Januar!G23<>"",Februar!G23<>"",April!G23<>"",Juni!G23<>"",Juli!G23,Septembar!G23<>"",Oktobar!G23<>"",Oktobar_2!G23<>""),MAX(Predrok_april!G23,Predrok_maj!G23,Januar!G23,Februar!G23,April!G23,Juni!G23,Juli!G23,Septembar!G23,Oktobar!G23,Oktobar_2!G23),"") -> 24 | H23: =IF(OR(Predrok_april!H23<>"",Predrok_maj!H23<>"",Januar!H23<>"",Februar!H23<>"",April!H23<>"",Juni!H23<>"",Juli!H23,Septembar!H23<>"",Oktobar!H23<>"",Oktobar_2!H23<>""),MAX(Predrok_april!H23,Predrok_maj!H23,Januar!H23,Februar!H23,April!H23,Juni!H23,Juli!H23,Septembar!H23,Oktobar!H23,Oktobar_2!H23),"") ->  | I23: =IF(OR(Predrok_april!I23<>"",Predrok_maj!I23<>"",Januar!I23<>"",Februar!I23<>"",April!I23<>"",Juni!I23<>"",Juli!I23,Septembar!I23<>"",Oktobar!I23<>"",Oktobar_2!I23<>""),MAX(Predrok_april!I23,Predrok_maj!I23,Januar!I23,Februar!I23,April!I23,Juni!I23,Juli!I23,Septembar!I23,Oktobar!I23,Oktobar_2!I23),"") -> 9 | K23: NE | N23: 11 | O23: 11 | Q23: 17 | AI23: =Januar!R23 ->  | AJ23: =Februar!R23 ->  | AK23: =April!R23 ->  | AL23: =Juni!R23 ->  | AM23: =Juli!R23 ->  | AN23: =Septembar!R23 ->  | AO23: =Oktobar!R23 ->  | AP23: =Oktobar_2!R23 ->  | AR23: =Januar!T23 ->  | AS23: =Februar!T23 ->  | AT23: =April!T23 ->  | AU23: =Juni!T23 -> Јун | AV23: =Juli!T23 -> Јул | AW23: =Septembar!T23 -> Септембар | AX23: =Oktobar!T23 ->  | AY23: =Oktobar_2!T23 ->  | AZ23: 2017/0061 | BA23: 1
A24: 22 | B24: =IF(Spisak_sluzba!A26<>"",Spisak_sluzba!A26,"") -> 2017/0107 | C24: =IF(Spisak_sluzba!B26<>"",Spisak_sluzba!B26,"") -> Јовановић Ђорђе | D24: =IF(Spisak_sluzba!C26<>"",Spisak_sluzba!C26,"") ->  | E24: =IF(Spisak_sluzba!D26<>"",Spisak_sluzba!D26,"") ->  | F24: =IF(OR(Predrok_april!F24<>"",Predrok_maj!F24<>"",Januar!F24<>"",Februar!F24<>"",April!F24<>"",Juni!F24<>"",Juli!F24,Septembar!F24<>"",Oktobar!F24<>"",Oktobar_2!F24<>""),MAX(Predrok_april!F24,Predrok_maj!F24,Januar!F24,Februar!F24,April!F24,Juni!F24,Juli!F24,Septembar!F24,Oktobar!F24,Oktobar_2!F24),"") -> 28 | G24: =IF(OR(Predrok_april!G24<>"",Predrok_maj!G24<>"",Januar!G24<>"",Februar!G24<>"",April!G24<>"",Juni!G24<>"",Juli!G24,Septembar!G24<>"",Oktobar!G24<>"",Oktobar_2!G24<>""),MAX(Predrok_april!G24,Predrok_maj!G24,Januar!G24,Februar!G24,April!G24,Juni!G24,Juli!G24,Septembar!G24,Oktobar!G24,Oktobar_2!G24),"") -> 27 | H24: =IF(OR(Predrok_april!H24<>"",Predrok_maj!H24<>"",Januar!H24<>"",Februar!H24<>"",April!H24<>"",Juni!H24<>"",Juli!H24,Septembar!H24<>"",Oktobar!H24<>"",Oktobar_2!H24<>""),MAX(Predrok_april!H24,Predrok_maj!H24,Januar!H24,Februar!H24,April!H24,Juni!H24,Juli!H24,Septembar!H24,Oktobar!H24,Oktobar_2!H24),"") -> 25 | I24: =IF(OR(Predrok_april!I24<>"",Predrok_maj!I24<>"",Januar!I24<>"",Februar!I24<>"",April!I24<>"",Juni!I24<>"",Juli!I24,Septembar!I24<>"",Oktobar!I24<>"",Oktobar_2!I24<>""),MAX(Predrok_april!I24,Predrok_maj!I24,Januar!I24,Februar!I24,April!I24,Juni!I24,Juli!I24,Septembar!I24,Oktobar!I24,Oktobar_2!I24),"") -> 9 | K24: DA | L24: 5 | M24: 5 | N24: 12 | O24: 12 | P24: 11 | Q24: 17 | S24: 20 | T24: 82.0 | U24: 9 | V24: Јун | W24: 2018-06-13 | X24: 10 | Y24: 2018-06-03 | Z24: 35 | AA24: 2018-06-13 | AB24: 17 | AC24: 2018-06-13 | AD24: 20 | AE24: 82 | AF24: 9 | AG24: 2018-06-13 | AI24: =Januar!R24 ->  | AJ24: =Februar!R24 ->  | AK24: =April!R24 ->  | AL24: =Juni!R24 -> Јун | AM24: =Juli!R24 ->  | AN24: =Septembar!R24 ->  | AO24: =Oktobar!R24 ->  | AP24: =Oktobar_2!R24 ->  | AR24: =Januar!T24 ->  | AS24: =Februar!T24 ->  | AT24: =April!T24 ->  | AU24: =Juni!T24 -> Јун | AV24: =Juli!T24 ->  | AW24: =Septembar!T24 ->  | AX24: =Oktobar!T24 ->  | AY24: =Oktobar_2!T24 ->  | AZ24: 2017/0107 | BA24: 1
A25: 23 | B25: =IF(Spisak_sluzba!A27<>"",Spisak_sluzba!A27,"") -> 2017/0158 | C25: =IF(Spisak_sluzba!B27<>"",Spisak_sluzba!B27,"") -> Јовановић Иван | D25: =IF(Spisak_sluzba!C27<>"",Spisak_sluzba!C27,"") ->  | E25: =IF(Spisak_sluzba!D27<>"",Spisak_sluzba!D27,"") ->  | F25: =IF(OR(Predrok_april!F25<>"",Predrok_maj!F25<>"",Januar!F25<>"",Februar!F25<>"",April!F25<>"",Juni!F25<>"",Juli!F25,Septembar!F25<>"",Oktobar!F25<>"",Oktobar_2!F25<>""),MAX(Predrok_april!F25,Predrok_maj!F25,Januar!F25,Februar!F25,April!F25,Juni!F25,Juli!F25,Septembar!F25,Oktobar!F25,Oktobar_2!F25),"") -> 25 | G25: =IF(OR(Predrok_april!G25<>"",Predrok_maj!G25<>"",Januar!G25<>"",Februar!G25<>"",April!G25<>"",Juni!G25<>"",Juli!G25,Septembar!G25<>"",Oktobar!G25<>"",Oktobar_2!G25<>""),MAX(Predrok_april!G25,Predrok_maj!G25,Januar!G25,Februar!G25,April!G25,Juni!G25,Juli!G25,Septembar!G25,Oktobar!G25,Oktobar_2!G25),"") -> 29 | H25: =IF(OR(Predrok_april!H25<>"",Predrok_maj!H25<>"",Januar!H25<>"",Februar!H25<>"",April!H25<>"",Juni!H25<>"",Juli!H25,Septembar!H25<>"",Oktobar!H25<>"",Oktobar_2!H25<>""),MAX(Predrok_april!H25,Predrok_maj!H25,Januar!H25,Februar!H25,April!H25,Juni!H25,Juli!H25,Septembar!H25,Oktobar!H25,Oktobar_2!H25),"") -> 26 | I25: =IF(OR(Predrok_april!I25<>"",Predrok_maj!I25<>"",Januar!I25<>"",Februar!I25<>"",April!I25<>"",Juni!I25<>"",Juli!I25,Septembar!I25<>"",Oktobar!I25<>"",Oktobar_2!I25<>""),MAX(Predrok_april!I25,Predrok_maj!I25,Januar!I25,Februar!I25,April!I25,Juni!I25,Juli!I25,Septembar!I25,Oktobar!I25,Oktobar_2!I25),"") -> 10 | K25: DA | L25: 5 | M25: 5 | N25: 11 | O25: 13 | P25: 11 | Q25: 19 | S25: 20 | T25: 84.0 | U25: 9 | V25: Јул | W25: 2018-07-10 | X25: 10 | Y25: 2018-06-03 | Z25: 35 | AA25: 2018-06-13 | AB25: 19 | AC25: 2018-07-10 | AD25: 20 | AE25: 84 | AF25: 9 | AG25: 2018-07-10 | AI25: =Januar!R25 ->  | AJ25: =Februar!R25 ->  | AK25: =April!R25 ->  | AL25: =Juni!R25 -> Јун | AM25: =Juli!R25 -> Јул | AN25: =Septembar!R25 ->  | AO25: =Oktobar!R25 ->  | AP25: =Oktobar_2!R25 ->  | AR25: =Januar!T25 ->  | AS25: =Februar!T25 ->  | AT25: =April!T25 ->  | AU25: =Juni!T25 -> Јун | AV25: =Juli!T25 -> Јул | AW25: =Septembar!T25 ->  | AX25: =Oktobar!T25 ->  | AY25: =Oktobar_2!T25 ->  | AZ25: 2017/0158 | BA25: 1
A26: 24 | B26: =IF(Spisak_sluzba!A28<>"",Spisak_sluzba!A28,"") -> 2017/0076 | C26: =IF(Spisak_sluzba!B28<>"",Spisak_sluzba!B28,"") -> Јовановић Ненад | D26: =IF(Spisak_sluzba!C28<>"",Spisak_sluzba!C28,"") ->  | E26: =IF(Spisak_sluzba!D28<>"",Spisak_sluzba!D28,"") ->  | F26: =IF(OR(Predrok_april!F26<>"",Predrok_maj!F26<>"",Januar!F26<>"",Februar!F26<>"",April!F26<>"",Juni!F26<>"",Juli!F26,Septembar!F26<>"",Oktobar!F26<>"",Oktobar_2!F26<>""),MAX(Predrok_april!F26,Predrok_maj!F26,Januar!F26,Februar!F26,April!F26,Juni!F26,Juli!F26,Septembar!F26,Oktobar!F26,Oktobar_2!F26),"") -> 27 | G26: =IF(OR(Predrok_april!G26<>"",Predrok_maj!G26<>"",Januar!G26<>"",Februar!G26<>"",April!G26<>"",Juni!G26<>"",Juli!G26,Septembar!G26<>"",Oktobar!G26<>"",Oktobar_2!G26<>""),MAX(Predrok_april!G26,Predrok_maj!G26,Januar!G26,Februar!G26,April!G26,Juni!G26,Juli!G26,Septembar!G26,Oktobar!G26,Oktobar_2!G26),"") -> 24 | H26: =IF(OR(Predrok_april!H26<>"",Predrok_maj!H26<>"",Januar!H26<>"",Februar!H26<>"",April!H26<>"",Juni!H26<>"",Juli!H26,Septembar!H26<>"",Oktobar!H26<>"",Oktobar_2!H26<>""),MAX(Predrok_april!H26,Predrok_maj!H26,Januar!H26,Februar!H26,April!H26,Juni!H26,Juli!H26,Septembar!H26,Oktobar!H26,Oktobar_2!H26),"") -> 26 | I26: =IF(OR(Predrok_april!I26<>"",Predrok_maj!I26<>"",Januar!I26<>"",Februar!I26<>"",April!I26<>"",Juni!I26<>"",Juli!I26,Septembar!I26<>"",Oktobar!I26<>"",Oktobar_2!I26<>""),MAX(Predrok_april!I26,Predrok_maj!I26,Januar!I26,Februar!I26,April!I26,Juni!I26,Juli!I26,Septembar!I26,Oktobar!I26,Oktobar_2!I26),"") -> 9 | K26: DA | L26: 5 | M26: 5 | N26: 12 | O26: 11 | P26: 11 | Q26: 17 | S26: 15 | T26: 76.0 | U26: 8 | V26: Октобар | W26: 2018-09-12 | X26: 10 | Y26: 2018-06-03 | Z26: 34 | AA26: 2018-06-13 | AB26: 17 | AC26: 2018-09-12 | AD26: 15 | AE26: 75 | AF26: 8 | AG26: 2018-09-12 | AI26: =Januar!R26 ->  | AJ26: =Februar!R26 ->  | AK26: =April!R26 ->  | AL26: =Juni!R26 -> Јун | AM26: =Juli!R26 ->  | AN26: =Septembar!R26 -> Септембар | AO26: =Oktobar!R26 ->  | AP26: =Oktobar_2!R26 ->  | AR26: =Januar!T26 ->  | AS26: =Februar!T26 ->  | AT26: =April!T26 ->  | AU26: =Juni!T26 -> Јун | AV26: =Juli!T26 ->  | AW26: =Septembar!T26 -> Септембар | AX26: =Oktobar!T26 ->  | AY26: =Oktobar_2!T26 ->  | AZ26: 2017/0076 | BA26: 1
A27: 25 | B27: =IF(Spisak_sluzba!A29<>"",Spisak_sluzba!A29,"") -> 2017/0131 | C27: =IF(Spisak_sluzba!B29<>"",Spisak_sluzba!B29,"") -> Јовичић Ина | D27: =IF(Spisak_sluzba!C29<>"",Spisak_sluzba!C29,"") ->  | E27: =IF(Spisak_sluzba!D29<>"",Spisak_sluzba!D29,"") ->  | F27: =IF(OR(Predrok_april!F27<>"",Predrok_maj!F27<>"",Januar!F27<>"",Februar!F27<>"",April!F27<>"",Juni!F27<>"",Juli!F27,Septembar!F27<>"",Oktobar!F27<>"",Oktobar_2!F27<>""),MAX(Predrok_april!F27,Predrok_maj!F27,Januar!F27,Februar!F27,April!F27,Juni!F27,Juli!F27,Septembar!F27,Oktobar!F27,Oktobar_2!F27),"") -> 29 | G27: =IF(OR(Predrok_april!G27<>"",Predrok_maj!G27<>"",Januar!G27<>"",Februar!G27<>"",April!G27<>"",Juni!G27<>"",Juli!G27,Septembar!G27<>"",Oktobar!G27<>"",Oktobar_2!G27<>""),MAX(Predrok_april!G27,Predrok_maj!G27,Januar!G27,Februar!G27,April!G27,Juni!G27,Juli!G27,Septembar!G27,Oktobar!G27,Oktobar_2!G27),"") -> 29 | H27: =IF(OR(Predrok_april!H27<>"",Predrok_maj!H27<>"",Januar!H27<>"",Februar!H27<>"",April!H27<>"",Juni!H27<>"",Juli!H27,Septembar!H27<>"",Oktobar!H27<>"",Oktobar_2!H27<>""),MAX(Predrok_april!H27,Predrok_maj!H27,Januar!H27,Februar!H27,April!H27,Juni!H27,Juli!H27,Septembar!H27,Oktobar!H27,Oktobar_2!H27),"") -> 30 | I27: =IF(OR(Predrok_april!I27<>"",Predrok_maj!I27<>"",Januar!I27<>"",Februar!I27<>"",April!I27<>"",Juni!I27<>"",Juli!I27,Septembar!I27<>"",Oktobar!I27<>"",Oktobar_2!I27<>""),MAX(Predrok_april!I27,Predrok_maj!I27,Januar!I27,Februar!I27,April!I27,Juni!I27,Juli!I27,Septembar!I27,Oktobar!I27,Oktobar_2!I27),"") -> 12 | K27: DA | L27: 5 | M27: 5 | N27: 13 | O27: 13 | P27: 13 | Q27: 22 | S27: 20 | T27: 91.0 | U27: 10 | V27: Јун | W27: 2018-06-13 | X27: 10 | Y27: 2018-06-03 | Z27: 39 | AA27: 2018-06-13 | AB27: 22 | AC27: 2018-06-13 | AD27: 20 | AE27: 91 | AF27: 10 | AG27: 2018-06-13 | AI27: =Januar!R27 ->  | AJ27: =Februar!R27 ->  | AK27: =April!R27 ->  | AL27: =Juni!R27 -> Јун | AM27: =Juli!R27 ->  | AN27: =Septembar!R27 ->  | AO27: =Oktobar!R27 ->  | AP27: =Oktobar_2!R27 ->  | AR27: =Januar!T27 ->  | AS27: =Februar!T27 ->  | AT27: =April!T27 ->  | AU27: =Juni!T27 -> Јун | AV27: =Juli!T27 ->  | AW27: =Septembar!T27 ->  | AX27: =Oktobar!T27 ->  | AY27: =Oktobar_2!T27 ->  | AZ27: 2017/0131 | BA27: 1
A28: 26 | B28: =IF(Spisak_sluzba!A30<>"",Spisak_sluzba!A30,"") -> 2017/0178 | C28: =IF(Spisak_sluzba!B30<>"",Spisak_sluzba!B30,"") -> Калуђеровић Вања | D28: =IF(Spisak_sluzba!C30<>"",Spisak_sluzba!C30,"") ->  | E28: =IF(Spisak_sluzba!D30<>"",Spisak_sluzba!D30,"") ->  | F28: =IF(OR(Predrok_april!F28<>"",Predrok_maj!F28<>"",Januar!F28<>"",Februar!F28<>"",April!F28<>"",Juni!F28<>"",Juli!F28,Septembar!F28<>"",Oktobar!F28<>"",Oktobar_2!F28<>""),MAX(Predrok_april!F28,Predrok_maj!F28,Januar!F28,Februar!F28,April!F28,Juni!F28,Juli!F28,Septembar!F28,Oktobar!F28,Oktobar_2!F28),"") -> 31 | G28: =IF(OR(Predrok_april!G28<>"",Predrok_maj!G28<>"",Januar!G28<>"",Februar!G28<>"",April!G28<>"",Juni!G28<>"",Juli!G28,Septembar!G28<>"",Oktobar!G28<>"",Oktobar_2!G28<>""),MAX(Predrok_april!G28,Predrok_maj!G28,Januar!G28,Februar!G28,April!G28,Juni!G28,Juli!G28,Septembar!G28,Oktobar!G28,Oktobar_2!G28),"") -> 29 | H28: =IF(OR(Predrok_april!H28<>"",Predrok_maj!H28<>"",Januar!H28<>"",Februar!H28<>"",April!H28<>"",Juni!H28<>"",Juli!H28,Septembar!H28<>"",Oktobar!H28<>"",Oktobar_2!H28<>""),MAX(Predrok_april!H28,Predrok_maj!H28,Januar!H28,Februar!H28,April!H28,Juni!H28,Juli!H28,Septembar!H28,Oktobar!H28,Oktobar_2!H28),"") -> 24 | I28: =IF(OR(Predrok_april!I28<>"",Predrok_maj!I28<>"",Januar!I28<>"",Februar!I28<>"",April!I28<>"",Juni!I28<>"",Juli!I28,Septembar!I28<>"",Oktobar!I28<>"",Oktobar_2!I28<>""),MAX(Predrok_april!I28,Predrok_maj!I28,Januar!I28,Februar!I28,April!I28,Juni!I28,Juli!I28,Septembar!I28,Oktobar!I28,Oktobar_2!I28),"") -> 13 | K28: DA | L28: 5 | M28: 5 | N28: 14 | O28: 13 | P28: 11 | Q28: 24 | S28: 15 | T28: 87.0 | U28: 9 | V28: Октобар | W28: 2018-09-12 | X28: 10 | Y28: 2018-06-03 | Z28: 37 | AA28: 2018-06-13 | AB28: 24 | AC28: 2018-09-12 | AD28: 15 | AE28: 86 | AF28: 9 | AG28: 2018-09-12 | AI28: =Januar!R28 ->  | AJ28: =Februar!R28 ->  | AK28: =April!R28 ->  | AL28: =Juni!R28 ->  | AM28: =Juli!R28 ->  | AN28: =Septembar!R28 -> Септембар | AO28: =Oktobar!R28 ->  | AP28: =Oktobar_2!R28 ->  | AR28: =Januar!T28 ->  | AS28: =Februar!T28 ->  | AT28: =April!T28 ->  | AU28: =Juni!T28 ->  | AV28: =Juli!T28 ->  | AW28: =Septembar!T28 -> Септембар | AX28: =Oktobar!T28 ->  | AY28: =Oktobar_2!T28 ->  | AZ28: 2017/0178
A29: 27 | B29: =IF(Spisak_sluzba!A31<>"",Spisak_sluzba!A31,"") -> 2017/0162 | C29: =IF(Spisak_sluzba!B31<>"",Spisak_sluzba!B31,"") -> Карами Мохаммад | D29: =IF(Spisak_sluzba!C31<>"",Spisak_sluzba!C31,"") ->  | E29: =IF(Spisak_sluzba!D31<>"",Spisak_sluzba!D31,"") ->  | F29: =IF(OR(Predrok_april!F29<>"",Predrok_maj!F29<>"",Januar!F29<>"",Februar!F29<>"",April!F29<>"",Juni!F29<>"",Juli!F29,Septembar!F29<>"",Oktobar!F29<>"",Oktobar_2!F29<>""),MAX(Predrok_april!F29,Predrok_maj!F29,Januar!F29,Februar!F29,April!F29,Juni!F29,Juli!F29,Septembar!F29,Oktobar!F29,Oktobar_2!F29),"") -> 28 | G29: =IF(OR(Predrok_april!G29<>"",Predrok_maj!G29<>"",Januar!G29<>"",Februar!G29<>"",April!G29<>"",Juni!G29<>"",Juli!G29,Septembar!G29<>"",Oktobar!G29<>"",Oktobar_2!G29<>""),MAX(Predrok_april!G29,Predrok_maj!G29,Januar!G29,Februar!G29,April!G29,Juni!G29,Juli!G29,Septembar!G29,Oktobar!G29,Oktobar_2!G29),"") -> 26 | H29: =IF(OR(Predrok_april!H29<>"",Predrok_maj!H29<>"",Januar!H29<>"",Februar!H29<>"",April!H29<>"",Juni!H29<>"",Juli!H29,Septembar!H29<>"",Oktobar!H29<>"",Oktobar_2!H29<>""),MAX(Predrok_april!H29,Predrok_maj!H29,Januar!H29,Februar!H29,April!H29,Juni!H29,Juli!H29,Septembar!H29,Oktobar!H29,Oktobar_2!H29),"") -> 26 | I29: =IF(OR(Predrok_april!I29<>"",Predrok_maj!I29<>"",Januar!I29<>"",Februar!I29<>"",April!I29<>"",Juni!I29<>"",Juli!I29,Septembar!I29<>"",Oktobar!I29<>"",Oktobar_2!I29<>""),MAX(Predrok_april!I29,Predrok_maj!I29,Januar!I29,Februar!I29,April!I29,Juni!I29,Juli!I29,Septembar!I29,Oktobar!I29,Oktobar_2!I29),"") -> 10 | K29: DA | L29: 5 | M29: 5 | N29: 12 | O29: 11 | P29: 11 | Q29: 19 | S29: 20 | T29: 84.0 | U29: 9 | V29: Јун | W29: 2018-06-13 | X29: 10 | Y29: 2018-06-03 | Z29: 35 | AA29: 2018-06-13 | AB29: 19 | AC29: 2018-06-13 | AD29: 20 | AE29: 84 | AF29: 9 | AG29: 2018-06-13 | AI29: =Januar!R29 ->  | AJ29: =Februar!R29 ->  | AK29: =April!R29 ->  | AL29: =Juni!R29 -> Јун | AM29: =Juli!R29 ->  | AN29: =Septembar!R29 ->  | AO29: =Oktobar!R29 ->  | AP29: =Oktobar_2!R29 ->  | AR29: =Januar!T29 ->  | AS29: =Februar!T29 ->  | AT29: =April!T29 ->  | AU29: =Juni!T29 -> Јун | AV29: =Juli!T29 ->  | AW29: =Septembar!T29 ->  | AX29: =Oktobar!T29 ->  | AY29: =Oktobar_2!T29 ->  | AZ29: 2017/0162 | BA29: 1
A30: 28 | B30: =IF(Spisak_sluzba!A32<>"",Spisak_sluzba!A32,"") -> 2017/0019 | C30: =IF(Spisak_sluzba!B32<>"",Spisak_sluzba!B32,"") -> Клицов Јелена | D30: =IF(Spisak_sluzba!C32<>"",Spisak_sluzba!C32,"") ->  | E30: =IF(Spisak_sluzba!D32<>"",Spisak_sluzba!D32,"") ->  | F30: =IF(OR(Predrok_april!F30<>"",Predrok_maj!F30<>"",Januar!F30<>"",Februar!F30<>"",April!F30<>"",Juni!F30<>"",Juli!F30,Septembar!F30<>"",Oktobar!F30<>"",Oktobar_2!F30<>""),MAX(Predrok_april!F30,Predrok_maj!F30,Januar!F30,Februar!F30,April!F30,Juni!F30,Juli!F30,Septembar!F30,Oktobar!F30,Oktobar_2!F30),"") -> 30 | G30: =IF(OR(Predrok_april!G30<>"",Predrok_maj!G30<>"",Januar!G30<>"",Februar!G30<>"",April!G30<>"",Juni!G30<>"",Juli!G30,Septembar!G30<>"",Oktobar!G30<>"",Oktobar_2!G30<>""),MAX(Predrok_april!G30,Predrok_maj!G30,Januar!G30,Februar!G30,April!G30,Juni!G30,Juli!G30,Septembar!G30,Oktobar!G30,Oktobar_2!G30),"") -> 32 | H30: =IF(OR(Predrok_april!H30<>"",Predrok_maj!H30<>"",Januar!H30<>"",Februar!H30<>"",April!H30<>"",Juni!H30<>"",Juli!H30,Septembar!H30<>"",Oktobar!H30<>"",Oktobar_2!H30<>""),MAX(Predrok_april!H30,Predrok_maj!H30,Januar!H30,Februar!H30,April!H30,Juni!H30,Juli!H30,Septembar!H30,Oktobar!H30,Oktobar_2!H30),"") -> 24 | I30: =IF(OR(Predrok_april!I30<>"",Predrok_maj!I30<>"",Januar!I30<>"",Februar!I30<>"",April!I30<>"",Juni!I30<>"",Juli!I30,Septembar!I30<>"",Oktobar!I30<>"",Oktobar_2!I30<>""),MAX(Predrok_april!I30,Predrok_maj!I30,Januar!I30,Februar!I30,April!I30,Juni!I30,Juli!I30,Septembar!I30,Oktobar!I30,Oktobar_2!I30),"") -> 11 | K30: DA | L30: 5 | M30: 5 | N30: 13 | O30: 14 | P30: 11 | Q30: 21 | S30: 20 | T30: 89.0 | U30: 9 | V30: Јун | W30: 2018-06-13 | X30: 10 | Y30: 2018-06-03 | Z30: 38 | AA30: 2018-06-13 | AB30: 21 | AC30: 2018-06-13 | AD30: 20 | AE30: 88 | AF30: 9 | AG30: 2018-06-13 | AI30: =Januar!R30 ->  | AJ30: =Februar!R30 ->  | AK30: =April!R30 ->  | AL30: =Juni!R30 -> Јун | AM30: =Juli!R30 ->  | AN30: =Septembar!R30 ->  | AO30: =Oktobar!R30 ->  | AP30: =Oktobar_2!R30 ->  | AR30: =Januar!T30 ->  | AS30: =Februar!T30 ->  | AT30: =April!T30 ->  | AU30: =Juni!T30 -> Јун | AV30: =Juli!T30 ->  | AW30: =Septembar!T30 ->  | AX30: =Oktobar!T30 ->  | AY30: =Oktobar_2!T30 ->  | AZ30: 2017/0019 | BA30: 1
A31: 29 | B31: =IF(Spisak_sluzba!A33<>"",Spisak_sluzba!A33,"") -> 2017/0033 | C31: =IF(Spisak_sluzba!B33<>"",Spisak_sluzba!B33,"") -> Ковачевић Марија | D31: =IF(Spisak_sluzba!C33<>"",Spisak_sluzba!C33,"") ->  | E31: =IF(Spisak_sluzba!D33<>"",Spisak_sluzba!D33,"") ->  | F31: =IF(OR(Predrok_april!F31<>"",Predrok_maj!F31<>"",Januar!F31<>"",Februar!F31<>"",April!F31<>"",Juni!F31<>"",Juli!F31,Septembar!F31<>"",Oktobar!F31<>"",Oktobar_2!F31<>""),MAX(Predrok_april!F31,Predrok_maj!F31,Januar!F31,Februar!F31,April!F31,Juni!F31,Juli!F31,Septembar!F31,Oktobar!F31,Oktobar_2!F31),"") -> 25 | G31: =IF(OR(Predrok_april!G31<>"",Predrok_maj!G31<>"",Januar!G31<>"",Februar!G31<>"",April!G31<>"",Juni!G31<>"",Juli!G31,Septembar!G31<>"",Oktobar!G31<>"",Oktobar_2!G31<>""),MAX(Predrok_april!G31,Predrok_maj!G31,Januar!G31,Februar!G31,April!G31,Juni!G31,Juli!G31,Septembar!G31,Oktobar!G31,Oktobar_2!G31),"") -> 26 | H31: =IF(OR(Predrok_april!H31<>"",Predrok_maj!H31<>"",Januar!H31<>"",Februar!H31<>"",April!H31<>"",Juni!H31<>"",Juli!H31,Septembar!H31<>"",Oktobar!H31<>"",Oktobar_2!H31<>""),MAX(Predrok_april!H31,Predrok_maj!H31,Januar!H31,Februar!H31,April!H31,Juni!H31,Juli!H31,Septembar!H31,Oktobar!H31,Oktobar_2!H31),"") -> 24 | I31: =IF(OR(Predrok_april!I31<>"",Predrok_maj!I31<>"",Januar!I31<>"",Februar!I31<>"",April!I31<>"",Juni!I31<>"",Juli!I31,Septembar!I31<>"",Oktobar!I31<>"",Oktobar_2!I31<>""),MAX(Predrok_april!I31,Predrok_maj!I31,Januar!I31,Februar!I31,April!I31,Juni!I31,Juli!I31,Septembar!I31,Oktobar!I31,Oktobar_2!I31),"") -> 12 | K31: DA | L31: 5 | M31: 5 | N31: 11 | O31: 11 | P31: 11 | Q31: 22 | S31: 20 | T31: 86.0 | U31: 9 | V31: Јун | W31: 2018-06-13 | X31: 10 | Y31: 2018-06-03 | Z31: 33 | AA31: 2018-06-13 | AB31: 22 | AC31: 2018-06-13 | AD31: 20 | AE31: 85 | AF31: 9 | AG31: 2018-06-13 | AI31: =Januar!R31 ->  | AJ31: =Februar!R31 ->  | AK31: =April!R31 ->  | AL31: =Juni!R31 -> Јун | AM31: =Juli!R31 ->  | AN31: =Septembar!R31 ->  | AO31: =Oktobar!R31 ->  | AP31: =Oktobar_2!R31 ->  | AR31: =Januar!T31 ->  | AS31: =Februar!T31 ->  | AT31: =April!T31 ->  | AU31: =Juni!T31 -> Јун | AV31: =Juli!T31 ->  | AW31: =Septembar!T31 ->  | AX31: =Oktobar!T31 ->  | AY31: =Oktobar_2!T31 ->  | AZ31: 2017/0033 | BA31: 1
A32: 30 | B32: =IF(Spisak_sluzba!A34<>"",Spisak_sluzba!A34,"") -> 2017/0057 | C32: =IF(Spisak_sluzba!B34<>"",Spisak_sluzba!B34,"") -> Ковић Николина | D32: =IF(Spisak_sluzba!C34<>"",Spisak_sluzba!C34,"") ->  | E32: =IF(Spisak_sluzba!D34<>"",Spisak_sluzba!D34,"") ->  | F32: =IF(OR(Predrok_april!F32<>"",Predrok_maj!F32<>"",Januar!F32<>"",Februar!F32<>"",April!F32<>"",Juni!F32<>"",Juli!F32,Septembar!F32<>"",Oktobar!F32<>"",Oktobar_2!F32<>""),MAX(Predrok_april!F32,Predrok_maj!F32,Januar!F32,Februar!F32,April!F32,Juni!F32,Juli!F32,Septembar!F32,Oktobar!F32,Oktobar_2!F32),"") -> 31 | G32: =IF(OR(Predrok_april!G32<>"",Predrok_maj!G32<>"",Januar!G32<>"",Februar!G32<>"",April!G32<>"",Juni!G32<>"",Juli!G32,Septembar!G32<>"",Oktobar!G32<>"",Oktobar_2!G32<>""),MAX(Predrok_april!G32,Predrok_maj!G32,Januar!G32,Februar!G32,April!G32,Juni!G32,Juli!G32,Septembar!G32,Oktobar!G32,Oktobar_2!G32),"") -> 30 | H32: =IF(OR(Predrok_april!H32<>"",Predrok_maj!H32<>"",Januar!H32<>"",Februar!H32<>"",April!H32<>"",Juni!H32<>"",Juli!H32,Septembar!H32<>"",Oktobar!H32<>"",Oktobar_2!H32<>""),MAX(Predrok_april!H32,Predrok_maj!H32,Januar!H32,Februar!H32,April!H32,Juni!H32,Juli!H32,Septembar!H32,Oktobar!H32,Oktobar_2!H32),"") -> 27 | I32: =IF(OR(Predrok_april!I32<>"",Predrok_maj!I32<>"",Januar!I32<>"",Februar!I32<>"",April!I32<>"",Juni!I32<>"",Juli!I32,Septembar!I32<>"",Oktobar!I32<>"",Oktobar_2!I32<>""),MAX(Predrok_april!I32,Predrok_maj!I32,Januar!I32,Februar!I32,April!I32,Juni!I32,Juli!I32,Septembar!I32,Oktobar!I32,Oktobar_2!I32),"") -> 12 | K32: DA | L32: 5 | M32: 5 | N32: 14 | O32: 13 | P32: 12 | Q32: 22 | S32: 20 | T32: 91.0 | U32: 10 | V32: Јун | W32: 2018-06-13 | X32: 10 | Y32: 2018-06-03 | Z32: 39 | AA32: 2018-06-13 | AB32: 22 | AC32: 2018-06-13 | AD32: 20 | AE32: 91 | AF32: 10 | AG32: 2018-06-13 | AI32: =Januar!R32 ->  | AJ32: =Februar!R32 ->  | AK32: =April!R32 ->  | AL32: =Juni!R32 -> Јун | AM32: =Juli!R32 ->  | AN32: =Septembar!R32 ->  | AO32: =Oktobar!R32 ->  | AP32: =Oktobar_2!R32 ->  | AR32: =Januar!T32 ->  | AS32: =Februar!T32 ->  | AT32: =April!T32 ->  | AU32: =Juni!T32 -> Јун | AV32: =Juli!T32 ->  | AW32: =Septembar!T32 ->  | AX32: =Oktobar!T32 ->  | AY32: =Oktobar_2!T32 ->  | AZ32: 2017/0057 | BA32: 1
A33: 31 | B33: =IF(Spisak_sluzba!A35<>"",Spisak_sluzba!A35,"") -> 2017/0085 | C33: =IF(Spisak_sluzba!B35<>"",Spisak_sluzba!B35,"") -> Контић Селена | D33: =IF(Spisak_sluzba!C35<>"",Spisak_sluzba!C35,"") ->  | E33: =IF(Spisak_sluzba!D35<>"",Spisak_sluzba!D35,"") ->  | F33: =IF(OR(Predrok_april!F33<>"",Predrok_maj!F33<>"",Januar!F33<>"",Februar!F33<>"",April!F33<>"",Juni!F33<>"",Juli!F33,Septembar!F33<>"",Oktobar!F33<>"",Oktobar_2!F33<>""),MAX(Predrok_april!F33,Predrok_maj!F33,Januar!F33,Februar!F33,April!F33,Juni!F33,Juli!F33,Septembar!F33,Oktobar!F33,Oktobar_2!F33),"") -> 26 | G33: =IF(OR(Predrok_april!G33<>"",Predrok_maj!G33<>"",Januar!G33<>"",Februar!G33<>"",April!G33<>"",Juni!G33<>"",Juli!G33,Septembar!G33<>"",Oktobar!G33<>"",Oktobar_2!G33<>""),MAX(Predrok_april!G33,Predrok_maj!G33,Januar!G33,Februar!G33,April!G33,Juni!G33,Juli!G33,Septembar!G33,Oktobar!G33,Oktobar_2!G33),"") -> 28 | H33: =IF(OR(Predrok_april!H33<>"",Predrok_maj!H33<>"",Januar!H33<>"",Februar!H33<>"",April!H33<>"",Juni!H33<>"",Juli!H33,Septembar!H33<>"",Oktobar!H33<>"",Oktobar_2!H33<>""),MAX(Predrok_april!H33,Predrok_maj!H33,Januar!H33,Februar!H33,April!H33,Juni!H33,Juli!H33,Septembar!H33,Oktobar!H33,Oktobar_2!H33),"") -> 31 | I33: =IF(OR(Predrok_april!I33<>"",Predrok_maj!I33<>"",Januar!I33<>"",Februar!I33<>"",April!I33<>"",Juni!I33<>"",Juli!I33,Septembar!I33<>"",Oktobar!I33<>"",Oktobar_2!I33<>""),MAX(Predrok_april!I33,Predrok_maj!I33,Januar!I33,Februar!I33,April!I33,Juni!I33,Juli!I33,Septembar!I33,Oktobar!I33,Oktobar_2!I33),"") -> 10 | K33: DA | L33: 5 | M33: 5 | N33: 11 | O33: 12 | P33: 14 | Q33: 19 | S33: 20 | T33: 86.0 | U33: 9 | V33: Јун | W33: 2018-06-13 | X33: 10 | Y33: 2018-06-03 | Z33: 37 | AA33: 2018-06-13 | AB33: 19 | AC33: 2018-06-13 | AD33: 20 | AE33: 86 | AF33: 9 | AG33: 2018-06-13 | AI33: =Januar!R33 ->  | AJ33: =Februar!R33 ->  | AK33: =April!R33 ->  | AL33: =Juni!R33 -> Јун | AM33: =Juli!R33 ->  | AN33: =Septembar!R33 ->  | AO33: =Oktobar!R33 ->  | AP33: =Oktobar_2!R33 ->  | AR33: =Januar!T33 ->  | AS33: =Februar!T33 ->  | AT33: =April!T33 ->  | AU33: =Juni!T33 -> Јун | AV33: =Juli!T33 ->  | AW33: =Septembar!T33 ->  | AX33: =Oktobar!T33 ->  | AY33: =Oktobar_2!T33 ->  | AZ33: 2017/0085 | BA33: 1
A34: 32 | B34: =IF(Spisak_sluzba!A36<>"",Spisak_sluzba!A36,"") -> 2017/0010 | C34: =IF(Spisak_sluzba!B36<>"",Spisak_sluzba!B36,"") -> Космовски Душан | D34: =IF(Spisak_sluzba!C36<>"",Spisak_sluzba!C36,"") ->  | E34: =IF(Spisak_sluzba!D36<>"",Spisak_sluzba!D36,"") ->  | F34: =IF(OR(Predrok_april!F34<>"",Predrok_maj!F34<>"",Januar!F34<>"",Februar!F34<>"",April!F34<>"",Juni!F34<>"",Juli!F34,Septembar!F34<>"",Oktobar!F34<>"",Oktobar_2!F34<>""),MAX(Predrok_april!F34,Predrok_maj!F34,Januar!F34,Februar!F34,April!F34,Juni!F34,Juli!F34,Septembar!F34,Oktobar!F34,Oktobar_2!F34),"") -> 26 | G34: =IF(OR(Predrok_april!G34<>"",Predrok_maj!G34<>"",Januar!G34<>"",Februar!G34<>"",April!G34<>"",Juni!G34<>"",Juli!G34,Septembar!G34<>"",Oktobar!G34<>"",Oktobar_2!G34<>""),MAX(Predrok_april!G34,Predrok_maj!G34,Januar!G34,Februar!G34,April!G34,Juni!G34,Juli!G34,Septembar!G34,Oktobar!G34,Oktobar_2!G34),"") -> 24 | H34: =IF(OR(Predrok_april!H34<>"",Predrok_maj!H34<>"",Januar!H34<>"",Februar!H34<>"",April!H34<>"",Juni!H34<>"",Juli!H34,Septembar!H34<>"",Oktobar!H34<>"",Oktobar_2!H34<>""),MAX(Predrok_april!H34,Predrok_maj!H34,Januar!H34,Februar!H34,April!H34,Juni!H34,Juli!H34,Septembar!H34,Oktobar!H34,Oktobar_2!H34),"") -> 25 | I34: =IF(OR(Predrok_april!I34<>"",Predrok_maj!I34<>"",Januar!I34<>"",Februar!I34<>"",April!I34<>"",Juni!I34<>"",Juli!I34,Septembar!I34<>"",Oktobar!I34<>"",Oktobar_2!I34<>""),MAX(Predrok_april!I34,Predrok_maj!I34,Januar!I34,Februar!I34,April!I34,Juni!I34,Juli!I34,Septembar!I34,Oktobar!I34,Oktobar_2!I34),"") -> 10 | K34: DA | L34: 5 | M34: 5 | N34: 11 | O34: 11 | P34: 11 | Q34: 19 | S34: 20 | T34: 82.0 | U34: 9 | V34: Јун | W34: 2018-06-13 | X34: 10 | Y34: 2018-06-03 | Z34: 33 | AA34: 2018-06-13 | AB34: 19 | AC34: 2018-06-13 | AD34: 20 | AE34: 81 | AF34: 9 | AG34: 2018-06-13 | AI34: =Januar!R34 ->  | AJ34: =Februar!R34 ->  | AK34: =April!R34 ->  | AL34: =Juni!R34 -> Јун | AM34: =Juli!R34 ->  | AN34: =Septembar!R34 ->  | AO34: =Oktobar!R34 ->  | AP34: =Oktobar_2!R34 ->  | AR34: =Januar!T34 ->  | AS34: =Februar!T34 ->  | AT34: =April!T34 ->  | AU34: =Juni!T34 -> Јун | AV34: =Juli!T34 ->  | AW34: =Septembar!T34 ->  | AX34: =Oktobar!T34 ->  | AY34: =Oktobar_2!T34 ->  | AZ34: 2017/0010 | BA34: 1
A35: 33 | B35: =IF(Spisak_sluzba!A37<>"",Spisak_sluzba!A37,"") -> 2017/0136 | C35: =IF(Spisak_sluzba!B37<>"",Spisak_sluzba!B37,"") -> Крејовић Анастасија | D35: =IF(Spisak_sluzba!C37<>"",Spisak_sluzba!C37,"") ->  | E35: =IF(Spisak_sluzba!D37<>"",Spisak_sluzba!D37,"") ->  | F35: =IF(OR(Predrok_april!F35<>"",Predrok_maj!F35<>"",Januar!F35<>"",Februar!F35<>"",April!F35<>"",Juni!F35<>"",Juli!F35,Septembar!F35<>"",Oktobar!F35<>"",Oktobar_2!F35<>""),MAX(Predrok_april!F35,Predrok_maj!F35,Januar!F35,Februar!F35,April!F35,Juni!F35,Juli!F35,Septembar!F35,Oktobar!F35,Oktobar_2!F35),"") -> 29 | G35: =IF(OR(Predrok_april!G35<>"",Predrok_maj!G35<>"",Januar!G35<>"",Februar!G35<>"",April!G35<>"",Juni!G35<>"",Juli!G35,Septembar!G35<>"",Oktobar!G35<>"",Oktobar_2!G35<>""),MAX(Predrok_april!G35,Predrok_maj!G35,Januar!G35,Februar!G35,April!G35,Juni!G35,Juli!G35,Septembar!G35,Oktobar!G35,Oktobar_2!G35),"") -> 31 | H35: =IF(OR(Predrok_april!H35<>"",Predrok_maj!H35<>"",Januar!H35<>"",Februar!H35<>"",April!H35<>"",Juni!H35<>"",Juli!H35,Septembar!H35<>"",Oktobar!H35<>"",Oktobar_2!H35<>""),MAX(Predrok_april!H35,Predrok_maj!H35,Januar!H35,Februar!H35,April!H35,Juni!H35,Juli!H35,Septembar!H35,Oktobar!H35,Oktobar_2!H35),"") -> 32 | I35: =IF(OR(Predrok_april!I35<>"",Predrok_maj!I35<>"",Januar!I35<>"",Februar!I35<>"",April!I35<>"",Juni!I35<>"",Juli!I35,Septembar!I35<>"",Oktobar!I35<>"",Oktobar_2!I35<>""),MAX(Predrok_april!I35,Predrok_maj!I35,Januar!I35,Februar!I35,April!I35,Juni!I35,Juli!I35,Septembar!I35,Oktobar!I35,Oktobar_2!I35),"") -> 12 | K35: DA | L35: 5 | M35: 5 | N35: =IF(F35<>"",IF(F35>=24,(F35/32)*14,""),"") -> 13 | O35: =IF(G35<>"",IF(G35>=24,(G35/32)*14,""),"") -> 14 | P35: 14 | Q35: 22 | S35: 20 | T35: 93.0 | U35: =IF(T35<>"",VLOOKUP(T35,$BK$3:$BM$7,3),"") -> 10 | V35: Јун | W35: 2018-06-13 | X35: 10 | Y35: 2018-06-03 | Z35: =IF(X35<>"",SUM(N35,O35,P35),"") -> 40 | AA35: 2018-06-13 | AB35: =IF(X35<>"",Q35+R35,"") -> 22 | AC35: 2018-06-13 | AD35: =IF(AND(U35<>"",V35<>""),S35,"") -> 20 | AE35: 93 | AF35: =IF(AND(U35<>"",V35<>""),U35,"") -> 10 | AG35: 2018-06-13 | AI35: =Januar!R35 ->  | AJ35: =Februar!R35 ->  | AK35: =April!R35 ->  | AL35: =Juni!R35 -> Јун | AM35: =Juli!R35 ->  | AN35: =Septembar!R35 ->  | AO35: =Oktobar!R35 ->  | AP35: =Oktobar_2!R35 ->  | AR35: =Januar!T35 ->  | AS35: =Februar!T35 ->  | AT35: =April!T35 ->  | AU35: =Juni!T35 -> Јун | AV35: =Juli!T35 ->  | AW35: =Septembar!T35 ->  | AX35: =Oktobar!T35 ->  | AY35: =Oktobar_2!T35 ->  | AZ35: 2017/0136 | BA35: =IF(AU35<>"",1,"") -> 1
A36: 34 | B36: =IF(Spisak_sluzba!A38<>"",Spisak_sluzba!A38,"") -> 2015/0111 | C36: =IF(Spisak_sluzba!B38<>"",Spisak_sluzba!B38,"") -> Крстић Стеван | D36: =IF(Spisak_sluzba!C38<>"",Spisak_sluzba!C38,"") ->  | E36: =IF(Spisak_sluzba!D38<>"",Spisak_sluzba!D38,"") ->  | F36: =IF(OR(Predrok_april!F36<>"",Predrok_maj!F36<>"",Januar!F36<>"",Februar!F36<>"",April!F36<>"",Juni!F36<>"",Juli!F36,Septembar!F36<>"",Oktobar!F36<>"",Oktobar_2!F36<>""),MAX(Predrok_april!F36,Predrok_maj!F36,Januar!F36,Februar!F36,April!F36,Juni!F36,Juli!F36,Septembar!F36,Oktobar!F36,Oktobar_2!F36),"") ->  | G36: =IF(OR(Predrok_april!G36<>"",Predrok_maj!G36<>"",Januar!G36<>"",Februar!G36<>"",April!G36<>"",Juni!G36<>"",Juli!G36,Septembar!G36<>"",Oktobar!G36<>"",Oktobar_2!G36<>""),MAX(Predrok_april!G36,Predrok_maj!G36,Januar!G36,Februar!G36,April!G36,Juni!G36,Juli!G36,Septembar!G36,Oktobar!G36,Oktobar_2!G36),"") ->  | H36: =IF(OR(Predrok_april!H36<>"",Predrok_maj!H36<>"",Januar!H36<>"",Februar!H36<>"",April!H36<>"",Juni!H36<>"",Juli!H36,Septembar!H36<>"",Oktobar!H36<>"",Oktobar_2!H36<>""),MAX(Predrok_april!H36,Predrok_maj!H36,Januar!H36,Februar!H36,April!H36,Juni!H36,Juli!H36,Septembar!H36,Oktobar!H36,Oktobar_2!H36),"") ->  | I36: =IF(OR(Predrok_april!I36<>"",Predrok_maj!I36<>"",Januar!I36<>"",Februar!I36<>"",April!I36<>"",Juni!I36<>"",Juli!I36,Septembar!I36<>"",Oktobar!I36<>"",Oktobar_2!I36<>""),MAX(Predrok_april!I36,Predrok_maj!I36,Januar!I36,Februar!I36,April!I36,Juni!I36,Juli!I36,Septembar!I36,Oktobar!I36,Oktobar_2!I36),"") ->  | K36: NE | AI36: =Januar!R36 ->  | AJ36: =Februar!R36 ->  | AK36: =April!R36 ->  | AL36: =Juni!R36 ->  | AM36: =Juli!R36 ->  | AN36: =Septembar!R36 ->  | AO36: =Oktobar!R36 ->  | AP36: =Oktobar_2!R36 ->  | AR36: =Januar!T36 ->  | AS36: =Februar!T36 ->  | AT36: =April!T36 ->  | AU36: =Juni!T36 ->  | AV36: =Juli!T36 ->  | AW36: =Septembar!T36 ->  | AX36: =Oktobar!T36 ->  | AY36: =Oktobar_2!T36 ->  | AZ36: 2015/0111
A37: 35 | B37: =IF(Spisak_sluzba!A39<>"",Spisak_sluzba!A39,"") -> 2017/0040 | C37: =IF(Spisak_sluzba!B39<>"",Spisak_sluzba!B39,"") -> Кубуровић Сава | D37: =IF(Spisak_sluzba!C39<>"",Spisak_sluzba!C39,"") ->  | E37: =IF(Spisak_sluzba!D39<>"",Spisak_sluzba!D39,"") ->  | F37: =IF(OR(Predrok_april!F37<>"",Predrok_maj!F37<>"",Januar!F37<>"",Februar!F37<>"",April!F37<>"",Juni!F37<>"",Juli!F37,Septembar!F37<>"",Oktobar!F37<>"",Oktobar_2!F37<>""),MAX(Predrok_april!F37,Predrok_maj!F37,Januar!F37,Februar!F37,April!F37,Juni!F37,Juli!F37,Septembar!F37,Oktobar!F37,Oktobar_2!F37),"") -> 32 | G37: =IF(OR(Predrok_april!G37<>"",Predrok_maj!G37<>"",Januar!G37<>"",Februar!G37<>"",April!G37<>"",Juni!G37<>"",Juli!G37,Septembar!G37<>"",Oktobar!G37<>"",Oktobar_2!G37<>""),MAX(Predrok_april!G37,Predrok_maj!G37,Januar!G37,Februar!G37,April!G37,Juni!G37,Juli!G37,Septembar!G37,Oktobar!G37,Oktobar_2!G37),"") -> 30 | H37: =IF(OR(Predrok_april!H37<>"",Predrok_maj!H37<>"",Januar!H37<>"",Februar!H37<>"",April!H37<>"",Juni!H37<>"",Juli!H37,Septembar!H37<>"",Oktobar!H37<>"",Oktobar_2!H37<>""),MAX(Predrok_april!H37,Predrok_maj!H37,Januar!H37,Februar!H37,April!H37,Juni!H37,Juli!H37,Septembar!H37,Oktobar!H37,Oktobar_2!H37),"") -> 27 | I37: =IF(OR(Predrok_april!I37<>"",Predrok_maj!I37<>"",Januar!I37<>"",Februar!I37<>"",April!I37<>"",Juni!I37<>"",Juli!I37,Septembar!I37<>"",Oktobar!I37<>"",Oktobar_2!I37<>""),MAX(Predrok_april!I37,Predrok_maj!I37,Januar!I37,Februar!I37,April!I37,Juni!I37,Juli!I37,Septembar!I37,Oktobar!I37,Oktobar_2!I37),"") -> 14 | K37: DA | L37: 5 | M37: 5 | N37: 14 | O37: 13 | P37: 12 | Q37: 26 | S37: 20 | T37: 96.0 | U37: 10 | V37: Јун | W37: 2018-06-13 | X37: 10 | Y37: 2018-06-03 | Z37: 39 | AA37: 2018-06-13 | AB37: 26 | AC37: 2018-06-13 | AD37: 20 | AE37: 95 | AF37: 10 | AG37: 2018-06-13 | AI37: =Januar!R37 ->  | AJ37: =Februar!R37 ->  | AK37: =April!R37 ->  | AL37: =Juni!R37 -> Јун | AM37: =Juli!R37 ->  | AN37: =Septembar!R37 ->  | AO37: =Oktobar!R37 ->  | AP37: =Oktobar_2!R37 ->  | AR37: =Januar!T37 ->  | AS37: =Februar!T37 ->  | AT37: =April!T37 ->  | AU37: =Juni!T37 -> Јун | AV37: =Juli!T37 ->  | AW37: =Septembar!T37 ->  | AX37: =Oktobar!T37 ->  | AY37: =Oktobar_2!T37 ->  | AZ37: 2017/0040 | BA37: 1
A38: 36 | B38: =IF(Spisak_sluzba!A40<>"",Spisak_sluzba!A40,"") -> 2017/0071 | C38: =IF(Spisak_sluzba!B40<>"",Spisak_sluzba!B40,"") -> Максимовић Никола | D38: =IF(Spisak_sluzba!C40<>"",Spisak_sluzba!C40,"") ->  | E38: =IF(Spisak_sluzba!D40<>"",Spisak_sluzba!D40,"") ->  | F38: =IF(OR(Predrok_april!F38<>"",Predrok_maj!F38<>"",Januar!F38<>"",Februar!F38<>"",April!F38<>"",Juni!F38<>"",Juli!F38,Septembar!F38<>"",Oktobar!F38<>"",Oktobar_2!F38<>""),MAX(Predrok_april!F38,Predrok_maj!F38,Januar!F38,Februar!F38,April!F38,Juni!F38,Juli!F38,Septembar!F38,Oktobar!F38,Oktobar_2!F38),"") -> 32 | G38: =IF(OR(Predrok_april!G38<>"",Predrok_maj!G38<>"",Januar!G38<>"",Februar!G38<>"",April!G38<>"",Juni!G38<>"",Juli!G38,Septembar!G38<>"",Oktobar!G38<>"",Oktobar_2!G38<>""),MAX(Predrok_april!G38,Predrok_maj!G38,Januar!G38,Februar!G38,April!G38,Juni!G38,Juli!G38,Septembar!G38,Oktobar!G38,Oktobar_2!G38),"") -> 32 | H38: =IF(OR(Predrok_april!H38<>"",Predrok_maj!H38<>"",Januar!H38<>"",Februar!H38<>"",April!H38<>"",Juni!H38<>"",Juli!H38,Septembar!H38<>"",Oktobar!H38<>"",Oktobar_2!H38<>""),MAX(Predrok_april!H38,Predrok_maj!H38,Januar!H38,Februar!H38,April!H38,Juni!H38,Juli!H38,Septembar!H38,Oktobar!H38,Oktobar_2!H38),"") -> 31 | I38: =IF(OR(Predrok_april!I38<>"",Predrok_maj!I38<>"",Januar!I38<>"",Februar!I38<>"",April!I38<>"",Juni!I38<>"",Juli!I38,Septembar!I38<>"",Oktobar!I38<>"",Oktobar_2!I38<>""),MAX(Predrok_april!I38,Predrok_maj!I38,Januar!I38,Februar!I38,April!I38,Juni!I38,Juli!I38,Septembar!I38,Oktobar!I38,Oktobar_2!I38),"") -> 13 | K38: DA | L38: 5 | M38: 5 | N38: 14 | O38: 14 | P38: 14 | Q38: 24 | S38: 20 | T38: 96.0 | U38: 10 | V38: Јун | W38: 2018-06-13 | X38: 10 | Y38: 2018-06-03 | Z38: 42 | AA38: 2018-06-13 | AB38: 24 | AC38: 2018-06-13 | AD38: 20 | AE38: 96 | AF38: 10 | AG38: 2018-06-13 | AI38: =Januar!R38 ->  | AJ38: =Februar!R38 ->  | AK38: =April!R38 ->  | AL38: =Juni!R38 -> Јун | AM38: =Juli!R38 -> Јул | AN38: =Septembar!R38 ->  | AO38: =Oktobar!R38 ->  | AP38: =Oktobar_2!R38 ->  | AR38: =Januar!T38 ->  | AS38: =Februar!T38 ->  | AT38: =April!T38 ->  | AU38: =Juni!T38 -> Јун | AV38: =Juli!T38 -> Јул | AW38: =Septembar!T38 ->  | AX38: =Oktobar!T38 ->  | AY38: =Oktobar_2!T38 ->  | AZ38: 2017/0071 | BA38: 1
A39: 37 | B39: =IF(Spisak_sluzba!A41<>"",Spisak_sluzba!A41,"") -> 2017/0084 | C39: =IF(Spisak_sluzba!B41<>"",Spisak_sluzba!B41,"") -> Малечкар Кристина | D39: =IF(Spisak_sluzba!C41<>"",Spisak_sluzba!C41,"") ->  | E39: =IF(Spisak_sluzba!D41<>"",Spisak_sluzba!D41,"") ->  | F39: =IF(OR(Predrok_april!F39<>"",Predrok_maj!F39<>"",Januar!F39<>"",Februar!F39<>"",April!F39<>"",Juni!F39<>"",Juli!F39,Septembar!F39<>"",Oktobar!F39<>"",Oktobar_2!F39<>""),MAX(Predrok_april!F39,Predrok_maj!F39,Januar!F39,Februar!F39,April!F39,Juni!F39,Juli!F39,Septembar!F39,Oktobar!F39,Oktobar_2!F39),"") -> 31 | G39: =IF(OR(Predrok_april!G39<>"",Predrok_maj!G39<>"",Januar!G39<>"",Februar!G39<>"",April!G39<>"",Juni!G39<>"",Juli!G39,Septembar!G39<>"",Oktobar!G39<>"",Oktobar_2!G39<>""),MAX(Predrok_april!G39,Predrok_maj!G39,Januar!G39,Februar!G39,April!G39,Juni!G39,Juli!G39,Septembar!G39,Oktobar!G39,Oktobar_2!G39),"") -> 31 | H39: =IF(OR(Predrok_april!H39<>"",Predrok_maj!H39<>"",Januar!H39<>"",Februar!H39<>"",April!H39<>"",Juni!H39<>"",Juli!H39,Septembar!H39<>"",Oktobar!H39<>"",Oktobar_2!H39<>""),MAX(Predrok_april!H39,Predrok_maj!H39,Januar!H39,Februar!H39,April!H39,Juni!H39,Juli!H39,Septembar!H39,Oktobar!H39,Oktobar_2!H39),"") -> 31 | I39: =IF(OR(Predrok_april!I39<>"",Predrok_maj!I39<>"",Januar!I39<>"",Februar!I39<>"",April!I39<>"",Juni!I39<>"",Juli!I39,Septembar!I39<>"",Oktobar!I39<>"",Oktobar_2!I39<>""),MAX(Predrok_april!I39,Predrok_maj!I39,Januar!I39,Februar!I39,April!I39,Juni!I39,Juli!I39,Septembar!I39,Oktobar!I39,Oktobar_2!I39),"") -> 11 | K39: DA | L39: 5 | M39: 5 | N39: 14 | O39: 14 | P39: 14 | Q39: 21 | S39: 20 | T39: 92.0 | U39: 10 | V39: Јун | W39: 2018-06-13 | X39: 10 | Y39: 2018-06-03 | Z39: 41 | AA39: 2018-06-13 | AB39: 21 | AC39: 2018-06-13 | AD39: 20 | AE39: 91 | AF39: 10 | AG39: 2018-06-13 | AI39: =Januar!R39 ->  | AJ39: =Februar!R39 ->  | AK39: =April!R39 ->  | AL39: =Juni!R39 -> Јун | AM39: =Juli!R39 ->  | AN39: =Septembar!R39 ->  | AO39: =Oktobar!R39 ->  | AP39: =Oktobar_2!R39 ->  | AR39: =Januar!T39 ->  | AS39: =Februar!T39 ->  | AT39: =April!T39 ->  | AU39: =Juni!T39 -> Јун | AV39: =Juli!T39 ->  | AW39: =Septembar!T39 ->  | AX39: =Oktobar!T39 ->  | AY39: =Oktobar_2!T39 ->  | AZ39: 2017/0084 | BA39: 1
A40: 38 | B40: =IF(Spisak_sluzba!A42<>"",Spisak_sluzba!A42,"") -> 2017/0025 | C40: =IF(Spisak_sluzba!B42<>"",Spisak_sluzba!B42,"") -> Манић Александра | D40: =IF(Spisak_sluzba!C42<>"",Spisak_sluzba!C42,"") ->  | E40: =IF(Spisak_sluzba!D42<>"",Spisak_sluzba!D42,"") ->  | F40: =IF(OR(Predrok_april!F40<>"",Predrok_maj!F40<>"",Januar!F40<>"",Februar!F40<>"",April!F40<>"",Juni!F40<>"",Juli!F40,Septembar!F40<>"",Oktobar!F40<>"",Oktobar_2!F40<>""),MAX(Predrok_april!F40,Predrok_maj!F40,Januar!F40,Februar!F40,April!F40,Juni!F40,Juli!F40,Septembar!F40,Oktobar!F40,Oktobar_2!F40),"") -> 31 | G40: =IF(OR(Predrok_april!G40<>"",Predrok_maj!G40<>"",Januar!G40<>"",Februar!G40<>"",April!G40<>"",Juni!G40<>"",Juli!G40,Septembar!G40<>"",Oktobar!G40<>"",Oktobar_2!G40<>""),MAX(Predrok_april!G40,Predrok_maj!G40,Januar!G40,Februar!G40,April!G40,Juni!G40,Juli!G40,Septembar!G40,Oktobar!G40,Oktobar_2!G40),"") -> 31 | H40: =IF(OR(Predrok_april!H40<>"",Predrok_maj!H40<>"",Januar!H40<>"",Februar!H40<>"",April!H40<>"",Juni!H40<>"",Juli!H40,Septembar!H40<>"",Oktobar!H40<>"",Oktobar_2!H40<>""),MAX(Predrok_april!H40,Predrok_maj!H40,Januar!H40,Februar!H40,April!H40,Juni!H40,Juli!H40,Septembar!H40,Oktobar!H40,Oktobar_2!H40),"") -> 25 | I40: =IF(OR(Predrok_april!I40<>"",Predrok_maj!I40<>"",Januar!I40<>"",Februar!I40<>"",April!I40<>"",Juni!I40<>"",Juli!I40,Septembar!I40<>"",Oktobar!I40<>"",Oktobar_2!I40<>""),MAX(Predrok_april!I40,Predrok_maj!I40,Januar!I40,Februar!I40,April!I40,Juni!I40,Juli!I40,Septembar!I40,Oktobar!I40,Oktobar_2!I40),"") -> 10 | K40: DA | L40: 5 | M40: 5 | N40: 14 | O40: 14 | P40: 11 | Q40: 19 | S40: 20 | T40: 87.0 | U40: 9 | V40: Јун | W40: 2018-06-13 | X40: 10 | Y40: 2018-06-03 | Z40: 38 | AA40: 2018-06-13 | AB40: 19 | AC40: 2018-06-13 | AD40: 20 | AE40: 87 | AF40: 9 | AG40: 2018-06-13 | AI40: =Januar!R40 ->  | AJ40: =Februar!R40 ->  | AK40: =April!R40 ->  | AL40: =Juni!R40 -> Јун | AM40: =Juli!R40 ->  | AN40: =Septembar!R40 ->  | AO40: =Oktobar!R40 ->  | AP40: =Oktobar_2!R40 ->  | AR40: =Januar!T40 ->  | AS40: =Februar!T40 ->  | AT40: =April!T40 ->  | AU40: =Juni!T40 -> Јун | AV40: =Juli!T40 ->  | AW40: =Septembar!T40 ->  | AX40: =Oktobar!T40 ->  | AY40: =Oktobar_2!T40 ->  | AZ40: 2017/0025 | BA40: 1
A41: 39 | B41: =IF(Spisak_sluzba!A43<>"",Spisak_sluzba!A43,"") -> 2017/0058 | C41: =IF(Spisak_sluzba!B43<>"",Spisak_sluzba!B43,"") -> Мариновић Лазар | D41: =IF(Spisak_sluzba!C43<>"",Spisak_sluzba!C43,"") ->  | E41: =IF(Spisak_sluzba!D43<>"",Spisak_sluzba!D43,"") ->  | F41: =IF(OR(Predrok_april!F41<>"",Predrok_maj!F41<>"",Januar!F41<>"",Februar!F41<>"",April!F41<>"",Juni!F41<>"",Juli!F41,Septembar!F41<>"",Oktobar!F41<>"",Oktobar_2!F41<>""),MAX(Predrok_april!F41,Predrok_maj!F41,Januar!F41,Februar!F41,April!F41,Juni!F41,Juli!F41,Septembar!F41,Oktobar!F41,Oktobar_2!F41),"") -> 30 | G41: =IF(OR(Predrok_april!G41<>"",Predrok_maj!G41<>"",Januar!G41<>"",Februar!G41<>"",April!G41<>"",Juni!G41<>"",Juli!G41,Septembar!G41<>"",Oktobar!G41<>"",Oktobar_2!G41<>""),MAX(Predrok_april!G41,Predrok_maj!G41,Januar!G41,Februar!G41,April!G41,Juni!G41,Juli!G41,Septembar!G41,Oktobar!G41,Oktobar_2!G41),"") -> 28 | H41: =IF(OR(Predrok_april!H41<>"",Predrok_maj!H41<>"",Januar!H41<>"",Februar!H41<>"",April!H41<>"",Juni!H41<>"",Juli!H41,Septembar!H41<>"",Oktobar!H41<>"",Oktobar_2!H41<>""),MAX(Predrok_april!H41,Predrok_maj!H41,Januar!H41,Februar!H41,April!H41,Juni!H41,Juli!H41,Septembar!H41,Oktobar!H41,Oktobar_2!H41),"") -> 30 | I41: =IF(OR(Predrok_april!I41<>"",Predrok_maj!I41<>"",Januar!I41<>"",Februar!I41<>"",April!I41<>"",Juni!I41<>"",Juli!I41,Septembar!I41<>"",Oktobar!I41<>"",Oktobar_2!I41<>""),MAX(Predrok_april!I41,Predrok_maj!I41,Januar!I41,Februar!I41,April!I41,Juni!I41,Juli!I41,Septembar!I41,Oktobar!I41,Oktobar_2!I41),"") -> 10 | K41: DA | L41: 5 | M41: 5 | N41: 13 | O41: 12 | P41: 13 | Q41: 19 | S41: 20 | T41: 88.0 | U41: 9 | V41: Јун | W41: 2018-06-13 | X41: 10 | Y41: 2018-06-03 | Z41: 39 | AA41: 2018-06-13 | AB41: 19 | AC41: 2018-06-13 | AD41: 20 | AE41: 87 | AF41: 9 | AG41: 2018-06-13 | AI41: =Januar!R41 ->  | AJ41: =Februar!R41 ->  | AK41: =April!R41 ->  | AL41: =Juni!R41 -> Јун | AM41: =Juli!R41 ->  | AN41: =Septembar!R41 ->  | AO41: =Oktobar!R41 ->  | AP41: =Oktobar_2!R41 ->  | AR41: =Januar!T41 ->  | AS41: =Februar!T41 ->  | AT41: =April!T41 ->  | AU41: =Juni!T41 -> Јун | AV41: =Juli!T41 ->  | AW41: =Septembar!T41 ->  | AX41: =Oktobar!T41 ->  | AY41: =Oktobar_2!T41 ->  | AZ41: 2017/0058 | BA41: 1
A42: 40 | B42: =IF(Spisak_sluzba!A44<>"",Spisak_sluzba!A44,"") -> 2017/0122 | C42: =IF(Spisak_sluzba!B44<>"",Spisak_sluzba!B44,"") -> Марјановић Борис | D42: =IF(Spisak_sluzba!C44<>"",Spisak_sluzba!C44,"") ->  | E42: =IF(Spisak_sluzba!D44<>"",Spisak_sluzba!D44,"") ->  | F42: =IF(OR(Predrok_april!F42<>"",Predrok_maj!F42<>"",Januar!F42<>"",Februar!F42<>"",April!F42<>"",Juni!F42<>"",Juli!F42,Septembar!F42<>"",Oktobar!F42<>"",Oktobar_2!F42<>""),MAX(Predrok_april!F42,Predrok_maj!F42,Januar!F42,Februar!F42,April!F42,Juni!F42,Juli!F42,Septembar!F42,Oktobar!F42,Oktobar_2!F42),"") -> 32 | G42: =IF(OR(Predrok_april!G42<>"",Predrok_maj!G42<>"",Januar!G42<>"",Februar!G42<>"",April!G42<>"",Juni!G42<>"",Juli!G42,Septembar!G42<>"",Oktobar!G42<>"",Oktobar_2!G42<>""),MAX(Predrok_april!G42,Predrok_maj!G42,Januar!G42,Februar!G42,April!G42,Juni!G42,Juli!G42,Septembar!G42,Oktobar!G42,Oktobar_2!G42),"") -> 32 | H42: =IF(OR(Predrok_april!H42<>"",Predrok_maj!H42<>"",Januar!H42<>"",Februar!H42<>"",April!H42<>"",Juni!H42<>"",Juli!H42,Septembar!H42<>"",Oktobar!H42<>"",Oktobar_2!H42<>""),MAX(Predrok_april!H42,Predrok_maj!H42,Januar!H42,Februar!H42,April!H42,Juni!H42,Juli!H42,Septembar!H42,Oktobar!H42,Oktobar_2!H42),"") -> 28 | I42: =IF(OR(Predrok_april!I42<>"",Predrok_maj!I42<>"",Januar!I42<>"",Februar!I42<>"",April!I42<>"",Juni!I42<>"",Juli!I42,Septembar!I42<>"",Oktobar!I42<>"",Oktobar_2!I42<>""),MAX(Predrok_april!I42,Predrok_maj!I42,Januar!I42,Februar!I42,April!I42,Juni!I42,Juli!I42,Septembar!I42,Oktobar!I42,Oktobar_2!I42),"") -> 12 | K42: DA | L42: 5 | M42: 5 | N42: 14 | O42: 14 | P42: 12 | Q42: 22 | S42: 20 | T42: 93.0 | U42: 10 | V42: Јун | W42: 2018-06-13 | X42: 10 | Y42: 2018-06-03 | Z42: 40 | AA42: 2018-06-13 | AB42: 22 | AC42: 2018-06-13 | AD42: 20 | AE42: 93 | AF42: 10 | AG42: 2018-06-13 | AI42: =Januar!R42 ->  | AJ42: =Februar!R42 ->  | AK42: =April!R42 ->  | AL42: =Juni!R42 -> Јун | AM42: =Juli!R42 ->  | AN42: =Septembar!R42 ->  | AO42: =Oktobar!R42 ->  | AP42: =Oktobar_2!R42 ->  | AR42: =Januar!T42 ->  | AS42: =Februar!T42 ->  | AT42: =April!T42 ->  | AU42: =Juni!T42 -> Јун | AV42: =Juli!T42 ->  | AW42: =Septembar!T42 ->  | AX42: =Oktobar!T42 ->  | AY42: =Oktobar_2!T42 ->  | AZ42: 2017/0122 | BA42: 1
A43: 41 | B43: =IF(Spisak_sluzba!A45<>"",Spisak_sluzba!A45,"") -> 2017/0120 | C43: =IF(Spisak_sluzba!B45<>"",Spisak_sluzba!B45,"") -> Марјановић Марко | D43: =IF(Spisak_sluzba!C45<>"",Spisak_sluzba!C45,"") ->  | E43: =IF(Spisak_sluzba!D45<>"",Spisak_sluzba!D45,"") ->  | F43: =IF(OR(Predrok_april!F43<>"",Predrok_maj!F43<>"",Januar!F43<>"",Februar!F43<>"",April!F43<>"",Juni!F43<>"",Juli!F43,Septembar!F43<>"",Oktobar!F43<>"",Oktobar_2!F43<>""),MAX(Predrok_april!F43,Predrok_maj!F43,Januar!F43,Februar!F43,April!F43,Juni!F43,Juli!F43,Septembar!F43,Oktobar!F43,Oktobar_2!F43),"") -> 26 | G43: =IF(OR(Predrok_april!G43<>"",Predrok_maj!G43<>"",Januar!G43<>"",Februar!G43<>"",April!G43<>"",Juni!G43<>"",Juli!G43,Septembar!G43<>"",Oktobar!G43<>"",Oktobar_2!G43<>""),MAX(Predrok_april!G43,Predrok_maj!G43,Januar!G43,Februar!G43,April!G43,Juni!G43,Juli!G43,Septembar!G43,Oktobar!G43,Oktobar_2!G43),"") -> 28 | H43: =IF(OR(Predrok_april!H43<>"",Predrok_maj!H43<>"",Januar!H43<>"",Februar!H43<>"",April!H43<>"",Juni!H43<>"",Juli!H43,Septembar!H43<>"",Oktobar!H43<>"",Oktobar_2!H43<>""),MAX(Predrok_april!H43,Predrok_maj!H43,Januar!H43,Februar!H43,April!H43,Juni!H43,Juli!H43,Septembar!H43,Oktobar!H43,Oktobar_2!H43),"") -> 27 | I43: =IF(OR(Predrok_april!I43<>"",Predrok_maj!I43<>"",Januar!I43<>"",Februar!I43<>"",April!I43<>"",Juni!I43<>"",Juli!I43,Septembar!I43<>"",Oktobar!I43<>"",Oktobar_2!I43<>""),MAX(Predrok_april!I43,Predrok_maj!I43,Januar!I43,Februar!I43,April!I43,Juni!I43,Juli!I43,Septembar!I43,Oktobar!I43,Oktobar_2!I43),"") -> 11 | K43: DA | L43: 5 | M43: 5 | N43: 11 | O43: 12 | P43: 12 | Q43: 21 | S43: 15 | T43: 81.0 | U43: 9 | V43: Септембар | W43: 2018-09-01 | X43: 10 | Y43: 2018-06-03 | Z43: 35 | AA43: 2018-06-13 | AB43: 21 | AC43: 2018-09-01 | AD43: 15 | AE43: 81 | AF43: 9 | AG43: 2018-09-01 | AI43: =Januar!R43 ->  | AJ43: =Februar!R43 ->  | AK43: =April!R43 ->  | AL43: =Juni!R43 -> Јун | AM43: =Juli!R43 ->  | AN43: =Septembar!R43 -> Септембар | AO43: =Oktobar!R43 ->  | AP43: =Oktobar_2!R43 ->  | AR43: =Januar!T43 ->  | AS43: =Februar!T43 ->  | AT43: =April!T43 ->  | AU43: =Juni!T43 -> Јун | AV43: =Juli!T43 ->  | AW43: =Septembar!T43 -> Септембар | AX43: =Oktobar!T43 ->  | AY43: =Oktobar_2!T43 ->  | AZ43: 2017/0120 | BA43: 1
A44: 42 | B44: =IF(Spisak_sluzba!A46<>"",Spisak_sluzba!A46,"") -> 2017/0016 | C44: =IF(Spisak_sluzba!B46<>"",Spisak_sluzba!B46,"") -> Марковић Вукашин | D44: =IF(Spisak_sluzba!C46<>"",Spisak_sluzba!C46,"") ->  | E44: =IF(Spisak_sluzba!D46<>"",Spisak_sluzba!D46,"") ->  | F44: =IF(OR(Predrok_april!F44<>"",Predrok_maj!F44<>"",Januar!F44<>"",Februar!F44<>"",April!F44<>"",Juni!F44<>"",Juli!F44,Septembar!F44<>"",Oktobar!F44<>"",Oktobar_2!F44<>""),MAX(Predrok_april!F44,Predrok_maj!F44,Januar!F44,Februar!F44,April!F44,Juni!F44,Juli!F44,Septembar!F44,Oktobar!F44,Oktobar_2!F44),"") -> 26 | G44: =IF(OR(Predrok_april!G44<>"",Predrok_maj!G44<>"",Januar!G44<>"",Februar!G44<>"",April!G44<>"",Juni!G44<>"",Juli!G44,Septembar!G44<>"",Oktobar!G44<>"",Oktobar_2!G44<>""),MAX(Predrok_april!G44,Predrok_maj!G44,Januar!G44,Februar!G44,April!G44,Juni!G44,Juli!G44,Septembar!G44,Oktobar!G44,Oktobar_2!G44),"") -> 30 | H44: =IF(OR(Predrok_april!H44<>"",Predrok_maj!H44<>"",Januar!H44<>"",Februar!H44<>"",April!H44<>"",Juni!H44<>"",Juli!H44,Septembar!H44<>"",Oktobar!H44<>"",Oktobar_2!H44<>""),MAX(Predrok_april!H44,Predrok_maj!H44,Januar!H44,Februar!H44,April!H44,Juni!H44,Juli!H44,Septembar!H44,Oktobar!H44,Oktobar_2!H44),"") -> 29 | I44: =IF(OR(Predrok_april!I44<>"",Predrok_maj!I44<>"",Januar!I44<>"",Februar!I44<>"",April!I44<>"",Juni!I44<>"",Juli!I44,Septembar!I44<>"",Oktobar!I44<>"",Oktobar_2!I44<>""),MAX(Predrok_april!I44,Predrok_maj!I44,Januar!I44,Februar!I44,April!I44,Juni!I44,Juli!I44,Septembar!I44,Oktobar!I44,Oktobar_2!I44),"") -> 9 | K44: DA | L44: 5 | M44: 5 | N44: 11 | O44: 13 | P44: 13 | Q44: 17 | S44: 20 | T44: 84.0 | U44: 9 | V44: Јун | W44: 2018-06-13 | X44: 10 | Y44: 2018-06-03 | Z44: 37 | AA44: 2018-06-13 | AB44: 17 | AC44: 2018-06-13 | AD44: 20 | AE44: 84 | AF44: 9 | AG44: 2018-06-13 | AI44: =Januar!R44 ->  | AJ44: =Februar!R44 ->  | AK44: =April!R44 ->  | AL44: =Juni!R44 -> Јун | AM44: =Juli!R44 ->  | AN44: =Septembar!R44 ->  | AO44: =Oktobar!R44 ->  | AP44: =Oktobar_2!R44 ->  | AR44: =Januar!T44 ->  | AS44: =Februar!T44 ->  | AT44: =April!T44 ->  | AU44: =Juni!T44 -> Јун | AV44: =Juli!T44 ->  | AW44: =Septembar!T44 ->  | AX44: =Oktobar!T44 ->  | AY44: =Oktobar_2!T44 ->  | AZ44: 2017/0016 | BA44: 1
A45: 43 | B45: =IF(Spisak_sluzba!A47<>"",Spisak_sluzba!A47,"") -> 2017/0109 | C45: =IF(Spisak_sluzba!B47<>"",Spisak_sluzba!B47,"") -> Матић Љубодраг | D45: =IF(Spisak_sluzba!C47<>"",Spisak_sluzba!C47,"") ->  | E45: =IF(Spisak_sluzba!D47<>"",Spisak_sluzba!D47,"") ->  | F45: =IF(OR(Predrok_april!F45<>"",Predrok_maj!F45<>"",Januar!F45<>"",Februar!F45<>"",April!F45<>"",Juni!F45<>"",Juli!F45,Septembar!F45<>"",Oktobar!F45<>"",Oktobar_2!F45<>""),MAX(Predrok_april!F45,Predrok_maj!F45,Januar!F45,Februar!F45,April!F45,Juni!F45,Juli!F45,Septembar!F45,Oktobar!F45,Oktobar_2!F45),"") -> 31 | G45: =IF(OR(Predrok_april!G45<>"",Predrok_maj!G45<>"",Januar!G45<>"",Februar!G45<>"",April!G45<>"",Juni!G45<>"",Juli!G45,Septembar!G45<>"",Oktobar!G45<>"",Oktobar_2!G45<>""),MAX(Predrok_april!G45,Predrok_maj!G45,Januar!G45,Februar!G45,April!G45,Juni!G45,Juli!G45,Septembar!G45,Oktobar!G45,Oktobar_2!G45),"") -> 31 | H45: =IF(OR(Predrok_april!H45<>"",Predrok_maj!H45<>"",Januar!H45<>"",Februar!H45<>"",April!H45<>"",Juni!H45<>"",Juli!H45,Septembar!H45<>"",Oktobar!H45<>"",Oktobar_2!H45<>""),MAX(Predrok_april!H45,Predrok_maj!H45,Januar!H45,Februar!H45,April!H45,Juni!H45,Juli!H45,Septembar!H45,Oktobar!H45,Oktobar_2!H45),"") -> 30 | I45: =IF(OR(Predrok_april!I45<>"",Predrok_maj!I45<>"",Januar!I45<>"",Februar!I45<>"",April!I45<>"",Juni!I45<>"",Juli!I45,Septembar!I45<>"",Oktobar!I45<>"",Oktobar_2!I45<>""),MAX(Predrok_april!I45,Predrok_maj!I45,Januar!I45,Februar!I45,April!I45,Juni!I45,Juli!I45,Septembar!I45,Oktobar!I45,Oktobar_2!I45),"") -> 12 | K45: DA | L45: 5 | M45: 5 | N45: 14 | O45: 14 | P45: 13 | Q45: 22 | S45: 20 | T45: 93.0 | U45: 10 | V45: Јун | W45: 2018-06-13 | X45: 10 | Y45: 2018-06-03 | Z45: 40 | AA45: 2018-06-13 | AB45: 22 | AC45: 2018-06-13 | AD45: 20 | AE45: 93 | AF45: 10 | AG45: 2018-06-13 | AI45: =Januar!R45 ->  | AJ45: =Februar!R45 ->  | AK45: =April!R45 ->  | AL45: =Juni!R45 -> Јун | AM45: =Juli!R45 ->  | AN45: =Septembar!R45 ->  | AO45: =Oktobar!R45 ->  | AP45: =Oktobar_2!R45 ->  | AR45: =Januar!T45 ->  | AS45: =Februar!T45 ->  | AT45: =April!T45 ->  | AU45: =Juni!T45 -> Јун | AV45: =Juli!T45 ->  | AW45: =Septembar!T45 ->  | AX45: =Oktobar!T45 ->  | AY45: =Oktobar_2!T45 ->  | AZ45: 2017/0109 | BA45: 1
A46: 44 | B46: =IF(Spisak_sluzba!A48<>"",Spisak_sluzba!A48,"") -> 2017/0111 | C46: =IF(Spisak_sluzba!B48<>"",Spisak_sluzba!B48,"") -> Микић Марија | D46: =IF(Spisak_sluzba!C48<>"",Spisak_sluzba!C48,"") ->  | E46: =IF(Spisak_sluzba!D48<>"",Spisak_sluzba!D48,"") ->  | F46: =IF(OR(Predrok_april!F46<>"",Predrok_maj!F46<>"",Januar!F46<>"",Februar!F46<>"",April!F46<>"",Juni!F46<>"",Juli!F46,Septembar!F46<>"",Oktobar!F46<>"",Oktobar_2!F46<>""),MAX(Predrok_april!F46,Predrok_maj!F46,Januar!F46,Februar!F46,April!F46,Juni!F46,Juli!F46,Septembar!F46,Oktobar!F46,Oktobar_2!F46),"") -> 31 | G46: =IF(OR(Predrok_april!G46<>"",Predrok_maj!G46<>"",Januar!G46<>"",Februar!G46<>"",April!G46<>"",Juni!G46<>"",Juli!G46,Septembar!G46<>"",Oktobar!G46<>"",Oktobar_2!G46<>""),MAX(Predrok_april!G46,Predrok_maj!G46,Januar!G46,Februar!G46,April!G46,Juni!G46,Juli!G46,Septembar!G46,Oktobar!G46,Oktobar_2!G46),"") -> 24 | H46: =IF(OR(Predrok_april!H46<>"",Predrok_maj!H46<>"",Januar!H46<>"",Februar!H46<>"",April!H46<>"",Juni!H46<>"",Juli!H46,Septembar!H46<>"",Oktobar!H46<>"",Oktobar_2!H46<>""),MAX(Predrok_april!H46,Predrok_maj!H46,Januar!H46,Februar!H46,April!H46,Juni!H46,Juli!H46,Septembar!H46,Oktobar!H46,Oktobar_2!H46),"") -> 26 | I46: =IF(OR(Predrok_april!I46<>"",Predrok_maj!I46<>"",Januar!I46<>"",Februar!I46<>"",April!I46<>"",Juni!I46<>"",Juli!I46,Septembar!I46<>"",Oktobar!I46<>"",Oktobar_2!I46<>""),MAX(Predrok_april!I46,Predrok_maj!I46,Januar!I46,Februar!I46,April!I46,Juni!I46,Juli!I46,Septembar!I46,Oktobar!I46,Oktobar_2!I46),"") -> 11 | K46: DA | L46: 5 | M46: 5 | N46: 14 | O46: 11 | P46: 11 | Q46: 21 | S46: 20 | T46: 86.0 | U46: 9 | V46: Јун | W46: 2018-06-13 | X46: 10 | Y46: 2018-06-03 | Z46: 35 | AA46: 2018-06-13 | AB46: 21 | AC46: 2018-06-13 | AD46: 20 | AE46: 86 | AF46: 9 | AG46: 2018-06-13 | AI46: =Januar!R46 ->  | AJ46: =Februar!R46 ->  | AK46: =April!R46 ->  | AL46: =Juni!R46 -> Јун | AM46: =Juli!R46 ->  | AN46: =Septembar!R46 ->  | AO46: =Oktobar!R46 ->  | AP46: =Oktobar_2!R46 ->  | AR46: =Januar!T46 ->  | AS46: =Februar!T46 ->  | AT46: =April!T46 ->  | AU46: =Juni!T46 -> Јун | AV46: =Juli!T46 ->  | AW46: =Septembar!T46 ->  | AX46: =Oktobar!T46 ->  | AY46: =Oktobar_2!T46 ->  | AZ46: 2017/0111 | BA46: 1
A47: 45 | B47: =IF(Spisak_sluzba!A49<>"",Spisak_sluzba!A49,"") -> 2017/0065 | C47: =IF(Spisak_sluzba!B49<>"",Spisak_sluzba!B49,"") -> Миливојевић Кристина | D47: =IF(Spisak_sluzba!C49<>"",Spisak_sluzba!C49,"") ->  | E47: =IF(Spisak_sluzba!D49<>"",Spisak_sluzba!D49,"") ->  | F47: =IF(OR(Predrok_april!F47<>"",Predrok_maj!F47<>"",Januar!F47<>"",Februar!F47<>"",April!F47<>"",Juni!F47<>"",Juli!F47,Septembar!F47<>"",Oktobar!F47<>"",Oktobar_2!F47<>""),MAX(Predrok_april!F47,Predrok_maj!F47,Januar!F47,Februar!F47,April!F47,Juni!F47,Juli!F47,Septembar!F47,Oktobar!F47,Oktobar_2!F47),"") -> 29 | G47: =IF(OR(Predrok_april!G47<>"",Predrok_maj!G47<>"",Januar!G47<>"",Februar!G47<>"",April!G47<>"",Juni!G47<>"",Juli!G47,Septembar!G47<>"",Oktobar!G47<>"",Oktobar_2!G47<>""),MAX(Predrok_april!G47,Predrok_maj!G47,Januar!G47,Februar!G47,April!G47,Juni!G47,Juli!G47,Septembar!G47,Oktobar!G47,Oktobar_2!G47),"") -> 29 | H47: =IF(OR(Predrok_april!H47<>"",Predrok_maj!H47<>"",Januar!H47<>"",Februar!H47<>"",April!H47<>"",Juni!H47<>"",Juli!H47,Septembar!H47<>"",Oktobar!H47<>"",Oktobar_2!H47<>""),MAX(Predrok_april!H47,Predrok_maj!H47,Januar!H47,Februar!H47,April!H47,Juni!H47,Juli!H47,Septembar!H47,Oktobar!H47,Oktobar_2!H47),"") -> 29 | I47: =IF(OR(Predrok_april!I47<>"",Predrok_maj!I47<>"",Januar!I47<>"",Februar!I47<>"",April!I47<>"",Juni!I47<>"",Juli!I47,Septembar!I47<>"",Oktobar!I47<>"",Oktobar_2!I47<>""),MAX(Predrok_april!I47,Predrok_maj!I47,Januar!I47,Februar!I47,April!I47,Juni!I47,Juli!I47,Septembar!I47,Oktobar!I47,Oktobar_2!I47),"") -> 14 | K47: DA | L47: 5 | M47: 5 | N47: 13 | O47: 13 | P47: 13 | Q47: 26 | S47: 20 | T47: 95.0 | U47: 10 | V47: Јун | W47: 2018-06-13 | X47: 10 | Y47: 2018-06-03 | Z47: 38 | AA47: 2018-06-13 | AB47: 26 | AC47: 2018-06-13 | AD47: 20 | AE47: 94 | AF47: 10 | AG47: 2018-06-13 | AI47: =Januar!R47 ->  | AJ47: =Februar!R47 ->  | AK47: =April!R47 ->  | AL47: =Juni!R47 -> Јун | AM47: =Juli!R47 -> Јул | AN47: =Septembar!R47 ->  | AO47: =Oktobar!R47 ->  | AP47: =Oktobar_2!R47 ->  | AR47: =Januar!T47 ->  | AS47: =Februar!T47 ->  | AT47: =April!T47 ->  | AU47: =Juni!T47 -> Јун | AV47: =Juli!T47 -> Јул | AW47: =Septembar!T47 ->  | AX47: =Oktobar!T47 ->  | AY47: =Oktobar_2!T47 ->  | AZ47: 2017/0065 | BA47: 1
A48: 46 | B48: =IF(Spisak_sluzba!A50<>"",Spisak_sluzba!A50,"") -> 2017/0102 | C48: =IF(Spisak_sluzba!B50<>"",Spisak_sluzba!B50,"") -> Миливојевић Кристина | D48: =IF(Spisak_sluzba!C50<>"",Spisak_sluzba!C50,"") ->  | E48: =IF(Spisak_sluzba!D50<>"",Spisak_sluzba!D50,"") ->  | F48: =IF(OR(Predrok_april!F48<>"",Predrok_maj!F48<>"",Januar!F48<>"",Februar!F48<>"",April!F48<>"",Juni!F48<>"",Juli!F48,Septembar!F48<>"",Oktobar!F48<>"",Oktobar_2!F48<>""),MAX(Predrok_april!F48,Predrok_maj!F48,Januar!F48,Februar!F48,April!F48,Juni!F48,Juli!F48,Septembar!F48,Oktobar!F48,Oktobar_2!F48),"") -> 27 | G48: =IF(OR(Predrok_april!G48<>"",Predrok_maj!G48<>"",Januar!G48<>"",Februar!G48<>"",April!G48<>"",Juni!G48<>"",Juli!G48,Septembar!G48<>"",Oktobar!G48<>"",Oktobar_2!G48<>""),MAX(Predrok_april!G48,Predrok_maj!G48,Januar!G48,Februar!G48,April!G48,Juni!G48,Juli!G48,Septembar!G48,Oktobar!G48,Oktobar_2!G48),"") -> 24 | H48: =IF(OR(Predrok_april!H48<>"",Predrok_maj!H48<>"",Januar!H48<>"",Februar!H48<>"",April!H48<>"",Juni!H48<>"",Juli!H48,Septembar!H48<>"",Oktobar!H48<>"",Oktobar_2!H48<>""),MAX(Predrok_april!H48,Predrok_maj!H48,Januar!H48,Februar!H48,April!H48,Juni!H48,Juli!H48,Septembar!H48,Oktobar!H48,Oktobar_2!H48),"") -> 30 | I48: =IF(OR(Predrok_april!I48<>"",Predrok_maj!I48<>"",Januar!I48<>"",Februar!I48<>"",April!I48<>"",Juni!I48<>"",Juli!I48,Septembar!I48<>"",Oktobar!I48<>"",Oktobar_2!I48<>""),MAX(Predrok_april!I48,Predrok_maj!I48,Januar!I48,Februar!I48,April!I48,Juni!I48,Juli!I48,Septembar!I48,Oktobar!I48,Oktobar_2!I48),"") -> 11 | K48: DA | L48: 5 | M48: 5 | N48: 12 | O48: 11 | P48: 13 | Q48: 21 | S48: 20 | T48: 86.0 | U48: 9 | V48: Јун | W48: 2018-06-13 | X48: 10 | Y48: 2018-06-03 | Z48: 35 | AA48: 2018-06-13 | AB48: 21 | AC48: 2018-06-13 | AD48: 20 | AE48: 86 | AF48: 9 | AG48: 2018-06-13 | AI48: =Januar!R48 ->  | AJ48: =Februar!R48 ->  | AK48: =April!R48 ->  | AL48: =Juni!R48 -> Јун | AM48: =Juli!R48 ->  | AN48: =Septembar!R48 ->  | AO48: =Oktobar!R48 ->  | AP48: =Oktobar_2!R48 ->  | AR48: =Januar!T48 ->  | AS48: =Februar!T48 ->  | AT48: =April!T48 ->  | AU48: =Juni!T48 -> Јун | AV48: =Juli!T48 ->  | AW48: =Septembar!T48 ->  | AX48: =Oktobar!T48 ->  | AY48: =Oktobar_2!T48 ->  | AZ48: 2017/0102 | BA48: 1
A49: 47 | B49: =IF(Spisak_sluzba!A51<>"",Spisak_sluzba!A51,"") -> 2017/0123 | C49: =IF(Spisak_sluzba!B51<>"",Spisak_sluzba!B51,"") -> Миловановић Ђорђе | D49: =IF(Spisak_sluzba!C51<>"",Spisak_sluzba!C51,"") ->  | E49: =IF(Spisak_sluzba!D51<>"",Spisak_sluzba!D51,"") ->  | F49: =IF(OR(Predrok_april!F49<>"",Predrok_maj!F49<>"",Januar!F49<>"",Februar!F49<>"",April!F49<>"",Juni!F49<>"",Juli!F49,Septembar!F49<>"",Oktobar!F49<>"",Oktobar_2!F49<>""),MAX(Predrok_april!F49,Predrok_maj!F49,Januar!F49,Februar!F49,April!F49,Juni!F49,Juli!F49,Septembar!F49,Oktobar!F49,Oktobar_2!F49),"") -> 28 | G49: =IF(OR(Predrok_april!G49<>"",Predrok_maj!G49<>"",Januar!G49<>"",Februar!G49<>"",April!G49<>"",Juni!G49<>"",Juli!G49,Septembar!G49<>"",Oktobar!G49<>"",Oktobar_2!G49<>""),MAX(Predrok_april!G49,Predrok_maj!G49,Januar!G49,Februar!G49,April!G49,Juni!G49,Juli!G49,Septembar!G49,Oktobar!G49,Oktobar_2!G49),"") -> 29 | H49: =IF(OR(Predrok_april!H49<>"",Predrok_maj!H49<>"",Januar!H49<>"",Februar!H49<>"",April!H49<>"",Juni!H49<>"",Juli!H49,Septembar!H49<>"",Oktobar!H49<>"",Oktobar_2!H49<>""),MAX(Predrok_april!H49,Predrok_maj!H49,Januar!H49,Februar!H49,April!H49,Juni!H49,Juli!H49,Septembar!H49,Oktobar!H49,Oktobar_2!H49),"") -> 31 | I49: =IF(OR(Predrok_april!I49<>"",Predrok_maj!I49<>"",Januar!I49<>"",Februar!I49<>"",April!I49<>"",Juni!I49<>"",Juli!I49,Septembar!I49<>"",Oktobar!I49<>"",Oktobar_2!I49<>""),MAX(Predrok_april!I49,Predrok_maj!I49,Januar!I49,Februar!I49,April!I49,Juni!I49,Juli!I49,Septembar!I49,Oktobar!I49,Oktobar_2!I49),"") -> 9 | K49: DA | L49: 5 | M49: 5 | N49: 12 | O49: 13 | P49: 14 | Q49: 17 | S49: 15 | T49: 81.0 | U49: 9 | V49: Септембар | W49: 2018-09-01 | X49: 10 | Y49: 2018-06-03 | Z49: 39 | AA49: 2018-06-13 | AB49: 17 | AC49: 2018-09-01 | AD49: 15 | AE49: 80 | AF49: 9 | AG49: 2018-09-01 | AI49: =Januar!R49 ->  | AJ49: =Februar!R49 ->  | AK49: =April!R49 ->  | AL49: =Juni!R49 -> Јун | AM49: =Juli!R49 -> Јул | AN49: =Septembar!R49 -> Септембар | AO49: =Oktobar!R49 ->  | AP49: =Oktobar_2!R49 ->  | AR49: =Januar!T49 ->  | AS49: =Februar!T49 ->  | AT49: =April!T49 ->  | AU49: =Juni!T49 -> Јун | AV49: =Juli!T49 -> Јул | AW49: =Septembar!T49 -> Септембар | AX49: =Oktobar!T49 ->  | AY49: =Oktobar_2!T49 ->  | AZ49: 2017/0123 | BA49: 1
A50: 48 | B50: =IF(Spisak_sluzba!A52<>"",Spisak_sluzba!A52,"") -> 2017/0050 | C50: =IF(Spisak_sluzba!B52<>"",Spisak_sluzba!B52,"") -> Миловић Ана | D50: =IF(Spisak_sluzba!C52<>"",Spisak_sluzba!C52,"") ->  | E50: =IF(Spisak_sluzba!D52<>"",Spisak_sluzba!D52,"") ->  | F50: =IF(OR(Predrok_april!F50<>"",Predrok_maj!F50<>"",Januar!F50<>"",Februar!F50<>"",April!F50<>"",Juni!F50<>"",Juli!F50,Septembar!F50<>"",Oktobar!F50<>"",Oktobar_2!F50<>""),MAX(Predrok_april!F50,Predrok_maj!F50,Januar!F50,Februar!F50,April!F50,Juni!F50,Juli!F50,Septembar!F50,Oktobar!F50,Oktobar_2!F50),"") -> 32 | G50: =IF(OR(Predrok_april!G50<>"",Predrok_maj!G50<>"",Januar!G50<>"",Februar!G50<>"",April!G50<>"",Juni!G50<>"",Juli!G50,Septembar!G50<>"",Oktobar!G50<>"",Oktobar_2!G50<>""),MAX(Predrok_april!G50,Predrok_maj!G50,Januar!G50,Februar!G50,April!G50,Juni!G50,Juli!G50,Septembar!G50,Oktobar!G50,Oktobar_2!G50),"") -> 32 | H50: =IF(OR(Predrok_april!H50<>"",Predrok_maj!H50<>"",Januar!H50<>"",Februar!H50<>"",April!H50<>"",Juni!H50<>"",Juli!H50,Septembar!H50<>"",Oktobar!H50<>"",Oktobar_2!H50<>""),MAX(Predrok_april!H50,Predrok_maj!H50,Januar!H50,Februar!H50,April!H50,Juni!H50,Juli!H50,Septembar!H50,Oktobar!H50,Oktobar_2!H50),"") -> 28 | I50: =IF(OR(Predrok_april!I50<>"",Predrok_maj!I50<>"",Januar!I50<>"",Februar!I50<>"",April!I50<>"",Juni!I50<>"",Juli!I50,Septembar!I50<>"",Oktobar!I50<>"",Oktobar_2!I50<>""),MAX(Predrok_april!I50,Predrok_maj!I50,Januar!I50,Februar!I50,April!I50,Juni!I50,Juli!I50,Septembar!I50,Oktobar!I50,Oktobar_2!I50),"") -> 11 | K50: DA | L50: 5 | M50: 5 | N50: 14 | O50: 14 | P50: 12 | Q50: 21 | S50: 20 | T50: 91.0 | U50: 10 | V50: Јун | W50: 2018-06-13 | X50: 10 | Y50: 2018-06-03 | Z50: 40 | AA50: 2018-06-13 | AB50: 21 | AC50: 2018-06-13 | AD50: 20 | AE50: 91 | AF50: 10 | AG50: 2018-06-13 | AI50: =Januar!R50 ->  | AJ50: =Februar!R50 ->  | AK50: =April!R50 ->  | AL50: =Juni!R50 -> Јун | AM50: =Juli!R50 ->  | AN50: =Septembar!R50 ->  | AO50: =Oktobar!R50 ->  | AP50: =Oktobar_2!R50 ->  | AR50: =Januar!T50 ->  | AS50: =Februar!T50 ->  | AT50: =April!T50 ->  | AU50: =Juni!T50 -> Јун | AV50: =Juli!T50 ->  | AW50: =Septembar!T50 ->  | AX50: =Oktobar!T50 ->  | AY50: =Oktobar_2!T50 ->  | AZ50: 2017/0050 | BA50: 1
A51: 49 | B51: =IF(Spisak_sluzba!A53<>"",Spisak_sluzba!A53,"") -> 2017/0031 | C51: =IF(Spisak_sluzba!B53<>"",Spisak_sluzba!B53,"") -> Милојковић Петар | D51: =IF(Spisak_sluzba!C53<>"",Spisak_sluzba!C53,"") ->  | E51: =IF(Spisak_sluzba!D53<>"",Spisak_sluzba!D53,"") ->  | F51: =IF(OR(Predrok_april!F51<>"",Predrok_maj!F51<>"",Januar!F51<>"",Februar!F51<>"",April!F51<>"",Juni!F51<>"",Juli!F51,Septembar!F51<>"",Oktobar!F51<>"",Oktobar_2!F51<>""),MAX(Predrok_april!F51,Predrok_maj!F51,Januar!F51,Februar!F51,April!F51,Juni!F51,Juli!F51,Septembar!F51,Oktobar!F51,Oktobar_2!F51),"") -> 25 | G51: =IF(OR(Predrok_april!G51<>"",Predrok_maj!G51<>"",Januar!G51<>"",Februar!G51<>"",April!G51<>"",Juni!G51<>"",Juli!G51,Septembar!G51<>"",Oktobar!G51<>"",Oktobar_2!G51<>""),MAX(Predrok_april!G51,Predrok_maj!G51,Januar!G51,Februar!G51,April!G51,Juni!G51,Juli!G51,Septembar!G51,Oktobar!G51,Oktobar_2!G51),"") -> 27 | H51: =IF(OR(Predrok_april!H51<>"",Predrok_maj!H51<>"",Januar!H51<>"",Februar!H51<>"",April!H51<>"",Juni!H51<>"",Juli!H51,Septembar!H51<>"",Oktobar!H51<>"",Oktobar_2!H51<>""),MAX(Predrok_april!H51,Predrok_maj!H51,Januar!H51,Februar!H51,April!H51,Juni!H51,Juli!H51,Septembar!H51,Oktobar!H51,Oktobar_2!H51),"") -> 24 | I51: =IF(OR(Predrok_april!I51<>"",Predrok_maj!I51<>"",Januar!I51<>"",Februar!I51<>"",April!I51<>"",Juni!I51<>"",Juli!I51,Septembar!I51<>"",Oktobar!I51<>"",Oktobar_2!I51<>""),MAX(Predrok_april!I51,Predrok_maj!I51,Januar!I51,Februar!I51,April!I51,Juni!I51,Juli!I51,Septembar!I51,Oktobar!I51,Oktobar_2!I51),"") -> 11 | K51: DA | L51: 5 | M51: 5 | N51: 11 | O51: 12 | P51: 11 | Q51: 21 | S51: 20 | T51: 84.0 | U51: 9 | V51: Јун | W51: 2018-06-13 | X51: 10 | Y51: 2018-06-03 | Z51: 33 | AA51: 2018-06-13 | AB51: 21 | AC51: 2018-06-13 | AD51: 20 | AE51: 84 | AF51: 9 | AG51: 2018-06-13 | AI51: =Januar!R51 ->  | AJ51: =Februar!R51 ->  | AK51: =April!R51 ->  | AL51: =Juni!R51 -> Јун | AM51: =Juli!R51 ->  | AN51: =Septembar!R51 ->  | AO51: =Oktobar!R51 ->  | AP51: =Oktobar_2!R51 ->  | AR51: =Januar!T51 ->  | AS51: =Februar!T51 ->  | AT51: =April!T51 ->  | AU51: =Juni!T51 -> Јун | AV51: =Juli!T51 ->  | AW51: =Septembar!T51 ->  | AX51: =Oktobar!T51 ->  | AY51: =Oktobar_2!T51 ->  | AZ51: 2017/0031 | BA51: 1
A52: 50 | B52: =IF(Spisak_sluzba!A54<>"",Spisak_sluzba!A54,"") -> 2017/0013 | C52: =IF(Spisak_sluzba!B54<>"",Spisak_sluzba!B54,"") -> Милосављевић Милан | D52: =IF(Spisak_sluzba!C54<>"",Spisak_sluzba!C54,"") ->  | E52: =IF(Spisak_sluzba!D54<>"",Spisak_sluzba!D54,"") ->  | F52: =IF(OR(Predrok_april!F52<>"",Predrok_maj!F52<>"",Januar!F52<>"",Februar!F52<>"",April!F52<>"",Juni!F52<>"",Juli!F52,Septembar!F52<>"",Oktobar!F52<>"",Oktobar_2!F52<>""),MAX(Predrok_april!F52,Predrok_maj!F52,Januar!F52,Februar!F52,April!F52,Juni!F52,Juli!F52,Septembar!F52,Oktobar!F52,Oktobar_2!F52),"") -> 24 | G52: =IF(OR(Predrok_april!G52<>"",Predrok_maj!G52<>"",Januar!G52<>"",Februar!G52<>"",April!G52<>"",Juni!G52<>"",Juli!G52,Septembar!G52<>"",Oktobar!G52<>"",Oktobar_2!G52<>""),MAX(Predrok_april!G52,Predrok_maj!G52,Januar!G52,Februar!G52,April!G52,Juni!G52,Juli!G52,Septembar!G52,Oktobar!G52,Oktobar_2!G52),"") -> 24 | H52: =IF(OR(Predrok_april!H52<>"",Predrok_maj!H52<>"",Januar!H52<>"",Februar!H52<>"",April!H52<>"",Juni!H52<>"",Juli!H52,Septembar!H52<>"",Oktobar!H52<>"",Oktobar_2!H52<>""),MAX(Predrok_april!H52,Predrok_maj!H52,Januar!H52,Februar!H52,April!H52,Juni!H52,Juli!H52,Septembar!H52,Oktobar!H52,Oktobar_2!H52),"") -> 25 | I52: =IF(OR(Predrok_april!I52<>"",Predrok_maj!I52<>"",Januar!I52<>"",Februar!I52<>"",April!I52<>"",Juni!I52<>"",Juli!I52,Septembar!I52<>"",Oktobar!I52<>"",Oktobar_2!I52<>""),MAX(Predrok_april!I52,Predrok_maj!I52,Januar!I52,Februar!I52,April!I52,Juni!I52,Juli!I52,Septembar!I52,Oktobar!I52,Oktobar_2!I52),"") -> 10 | K52: DA | L52: 5 | M52: 5 | N52: 11 | O52: 11 | P52: 11 | Q52: 19 | S52: 15 | T52: 76.0 | U52: 8 | V52: Септембар | W52: 2018-09-01 | X52: 10 | Y52: 2018-06-03 | Z52: 32 | AA52: 2018-06-13 | AB52: 19 | AC52: 2018-09-01 | AD52: 15 | AE52: 76 | AF52: 8 | AG52: 2018-09-01 | AI52: =Januar!R52 ->  | AJ52: =Februar!R52 ->  | AK52: =April!R52 ->  | AL52: =Juni!R52 -> Јун | AM52: =Juli!R52 -> Јул | AN52: =Septembar!R52 -> Септембар | AO52: =Oktobar!R52 ->  | AP52: =Oktobar_2!R52 ->  | AR52: =Januar!T52 ->  | AS52: =Februar!T52 ->  | AT52: =April!T52 ->  | AU52: =Juni!T52 -> Јун | AV52: =Juli!T52 -> Јул | AW52: =Septembar!T52 -> Септембар | AX52: =Oktobar!T52 ->  | AY52: =Oktobar_2!T52 ->  | AZ52: 2017/0013 | BA52: 1
A53: 51 | B53: =IF(Spisak_sluzba!A55<>"",Spisak_sluzba!A55,"") -> 2017/0003 | C53: =IF(Spisak_sluzba!B55<>"",Spisak_sluzba!B55,"") -> Милошевић Ђорђе | D53: =IF(Spisak_sluzba!C55<>"",Spisak_sluzba!C55,"") ->  | E53: =IF(Spisak_sluzba!D55<>"",Spisak_sluzba!D55,"") ->  | F53: =IF(OR(Predrok_april!F53<>"",Predrok_maj!F53<>"",Januar!F53<>"",Februar!F53<>"",April!F53<>"",Juni!F53<>"",Juli!F53,Septembar!F53<>"",Oktobar!F53<>"",Oktobar_2!F53<>""),MAX(Predrok_april!F53,Predrok_maj!F53,Januar!F53,Februar!F53,April!F53,Juni!F53,Juli!F53,Septembar!F53,Oktobar!F53,Oktobar_2!F53),"") -> 28 | G53: =IF(OR(Predrok_april!G53<>"",Predrok_maj!G53<>"",Januar!G53<>"",Februar!G53<>"",April!G53<>"",Juni!G53<>"",Juli!G53,Septembar!G53<>"",Oktobar!G53<>"",Oktobar_2!G53<>""),MAX(Predrok_april!G53,Predrok_maj!G53,Januar!G53,Februar!G53,April!G53,Juni!G53,Juli!G53,Septembar!G53,Oktobar!G53,Oktobar_2!G53),"") -> 30 | H53: =IF(OR(Predrok_april!H53<>"",Predrok_maj!H53<>"",Januar!H53<>"",Februar!H53<>"",April!H53<>"",Juni!H53<>"",Juli!H53,Septembar!H53<>"",Oktobar!H53<>"",Oktobar_2!H53<>""),MAX(Predrok_april!H53,Predrok_maj!H53,Januar!H53,Februar!H53,April!H53,Juni!H53,Juli!H53,Septembar!H53,Oktobar!H53,Oktobar_2!H53),"") -> 27 | I53: =IF(OR(Predrok_april!I53<>"",Predrok_maj!I53<>"",Januar!I53<>"",Februar!I53<>"",April!I53<>"",Juni!I53<>"",Juli!I53,Septembar!I53<>"",Oktobar!I53<>"",Oktobar_2!I53<>""),MAX(Predrok_april!I53,Predrok_maj!I53,Januar!I53,Februar!I53,April!I53,Juni!I53,Juli!I53,Septembar!I53,Oktobar!I53,Oktobar_2!I53),"") -> 13 | K53: DA | L53: 5 | M53: 5 | N53: 12 | O53: 13 | P53: 12 | Q53: 24 | S53: 20 | T53: 92.0 | U53: 10 | V53: Јун | W53: 2018-06-13 | X53: 10 | Y53: 2018-06-03 | Z53: 37 | AA53: 2018-06-13 | AB53: 24 | AC53: 2018-06-13 | AD53: 20 | AE53: 91 | AF53: 10 | AG53: 2018-06-13 | AI53: =Januar!R53 ->  | AJ53: =Februar!R53 ->  | AK53: =April!R53 ->  | AL53: =Juni!R53 -> Јун | AM53: =Juli!R53 ->  | AN53: =Septembar!R53 ->  | AO53: =Oktobar!R53 ->  | AP53: =Oktobar_2!R53 ->  | AR53: =Januar!T53 ->  | AS53: =Februar!T53 ->  | AT53: =April!T53 ->  | AU53: =Juni!T53 -> Јун | AV53: =Juli!T53 ->  | AW53: =Septembar!T53 ->  | AX53: =Oktobar!T53 ->  | AY53: =Oktobar_2!T53 ->  | AZ53: 2017/0003 | BA53: 1
A54: 52 | B54: =IF(Spisak_sluzba!A56<>"",Spisak_sluzba!A56,"") -> 2017/0081 | C54: =IF(Spisak_sluzba!B56<>"",Spisak_sluzba!B56,"") -> Михаиловић Даша | D54: =IF(Spisak_sluzba!C56<>"",Spisak_sluzba!C56,"") ->  | E54: =IF(Spisak_sluzba!D56<>"",Spisak_sluzba!D56,"") ->  | F54: =IF(OR(Predrok_april!F54<>"",Predrok_maj!F54<>"",Januar!F54<>"",Februar!F54<>"",April!F54<>"",Juni!F54<>"",Juli!F54,Septembar!F54<>"",Oktobar!F54<>"",Oktobar_2!F54<>""),MAX(Predrok_april!F54,Predrok_maj!F54,Januar!F54,Februar!F54,April!F54,Juni!F54,Juli!F54,Septembar!F54,Oktobar!F54,Oktobar_2!F54),"") -> 31 | G54: =IF(OR(Predrok_april!G54<>"",Predrok_maj!G54<>"",Januar!G54<>"",Februar!G54<>"",April!G54<>"",Juni!G54<>"",Juli!G54,Septembar!G54<>"",Oktobar!G54<>"",Oktobar_2!G54<>""),MAX(Predrok_april!G54,Predrok_maj!G54,Januar!G54,Februar!G54,April!G54,Juni!G54,Juli!G54,Septembar!G54,Oktobar!G54,Oktobar_2!G54),"") -> 31 | H54: =IF(OR(Predrok_april!H54<>"",Predrok_maj!H54<>"",Januar!H54<>"",Februar!H54<>"",April!H54<>"",Juni!H54<>"",Juli!H54,Septembar!H54<>"",Oktobar!H54<>"",Oktobar_2!H54<>""),MAX(Predrok_april!H54,Predrok_maj!H54,Januar!H54,Februar!H54,April!H54,Juni!H54,Juli!H54,Septembar!H54,Oktobar!H54,Oktobar_2!H54),"") -> 30 | I54: =IF(OR(Predrok_april!I54<>"",Predrok_maj!I54<>"",Januar!I54<>"",Februar!I54<>"",April!I54<>"",Juni!I54<>"",Juli!I54,Septembar!I54<>"",Oktobar!I54<>"",Oktobar_2!I54<>""),MAX(Predrok_april!I54,Predrok_maj!I54,Januar!I54,Februar!I54,April!I54,Juni!I54,Juli!I54,Septembar!I54,Oktobar!I54,Oktobar_2!I54),"") -> 12 | K54: DA | L54: 5 | M54: 5 | N54: 14 | O54: 14 | P54: 13 | Q54: 22 | S54: 20 | T54: 93.0 | U54: 10 | V54: Јун | W54: 2018-06-13 | X54: 10 | Y54: 2018-06-03 | Z54: 40 | AA54: 2018-06-13 | AB54: 22 | AC54: 2018-06-13 | AD54: 20 | AE54: 93 | AF54: 10 | AG54: 2018-06-13 | AI54: =Januar!R54 ->  | AJ54: =Februar!R54 ->  | AK54: =April!R54 ->  | AL54: =Juni!R54 -> Јун | AM54: =Juli!R54 ->  | AN54: =Septembar!R54 ->  | AO54: =Oktobar!R54 ->  | AP54: =Oktobar_2!R54 ->  | AR54: =Januar!T54 ->  | AS54: =Februar!T54 ->  | AT54: =April!T54 ->  | AU54: =Juni!T54 -> Јун | AV54: =Juli!T54 ->  | AW54: =Septembar!T54 ->  | AX54: =Oktobar!T54 ->  | AY54: =Oktobar_2!T54 ->  | AZ54: 2017/0081 | BA54: 1
A55: 53 | B55: =IF(Spisak_sluzba!A57<>"",Spisak_sluzba!A57,"") -> 2017/0148 | C55: =IF(Spisak_sluzba!B57<>"",Spisak_sluzba!B57,"") -> Најдановић Младен | D55: =IF(Spisak_sluzba!C57<>"",Spisak_sluzba!C57,"") ->  | E55: =IF(Spisak_sluzba!D57<>"",Spisak_sluzba!D57,"") ->  | F55: =IF(OR(Predrok_april!F55<>"",Predrok_maj!F55<>"",Januar!F55<>"",Februar!F55<>"",April!F55<>"",Juni!F55<>"",Juli!F55,Septembar!F55<>"",Oktobar!F55<>"",Oktobar_2!F55<>""),MAX(Predrok_april!F55,Predrok_maj!F55,Januar!F55,Februar!F55,April!F55,Juni!F55,Juli!F55,Septembar!F55,Oktobar!F55,Oktobar_2!F55),"") -> 27 | G55: =IF(OR(Predrok_april!G55<>"",Predrok_maj!G55<>"",Januar!G55<>"",Februar!G55<>"",April!G55<>"",Juni!G55<>"",Juli!G55,Septembar!G55<>"",Oktobar!G55<>"",Oktobar_2!G55<>""),MAX(Predrok_april!G55,Predrok_maj!G55,Januar!G55,Februar!G55,April!G55,Juni!G55,Juli!G55,Septembar!G55,Oktobar!G55,Oktobar_2!G55),"") -> 31 | H55: =IF(OR(Predrok_april!H55<>"",Predrok_maj!H55<>"",Januar!H55<>"",Februar!H55<>"",April!H55<>"",Juni!H55<>"",Juli!H55,Septembar!H55<>"",Oktobar!H55<>"",Oktobar_2!H55<>""),MAX(Predrok_april!H55,Predrok_maj!H55,Januar!H55,Februar!H55,April!H55,Juni!H55,Juli!H55,Septembar!H55,Oktobar!H55,Oktobar_2!H55),"") -> 28 | I55: =IF(OR(Predrok_april!I55<>"",Predrok_maj!I55<>"",Januar!I55<>"",Februar!I55<>"",April!I55<>"",Juni!I55<>"",Juli!I55,Septembar!I55<>"",Oktobar!I55<>"",Oktobar_2!I55<>""),MAX(Predrok_april!I55,Predrok_maj!I55,Januar!I55,Februar!I55,April!I55,Juni!I55,Juli!I55,Septembar!I55,Oktobar!I55,Oktobar_2!I55),"") -> 9 | K55: DA | L55: 5 | M55: 5 | N55: 12 | O55: 14 | P55: 12 | Q55: 17 | S55: 20 | T55: 85.0 | U55: 9 | V55: Јун | W55: 2018-06-13 | X55: 10 | Y55: 2018-06-03 | Z55: 38 | AA55: 2018-06-13 | AB55: 17 | AC55: 2018-06-13 | AD55: 20 | AE55: 84 | AF55: 9 | AG55: 2018-06-13 | AI55: =Januar!R55 ->  | AJ55: =Februar!R55 ->  | AK55: =April!R55 ->  | AL55: =Juni!R55 -> Јун | AM55: =Juli!R55 ->  | AN55: =Septembar!R55 ->  | AO55: =Oktobar!R55 ->  | AP55: =Oktobar_2!R55 ->  | AR55: =Januar!T55 ->  | AS55: =Februar!T55 ->  | AT55: =April!T55 ->  | AU55: =Juni!T55 -> Јун | AV55: =Juli!T55 ->  | AW55: =Septembar!T55 ->  | AX55: =Oktobar!T55 ->  | AY55: =Oktobar_2!T55 ->  | AZ55: 2017/0148 | BA55: 1
A56: 54 | B56: =IF(Spisak_sluzba!A58<>"",Spisak_sluzba!A58,"") -> 2017/0015 | C56: =IF(Spisak_sluzba!B58<>"",Spisak_sluzba!B58,"") -> Нешковић Марко | D56: =IF(Spisak_sluzba!C58<>"",Spisak_sluzba!C58,"") ->  | E56: =IF(Spisak_sluzba!D58<>"",Spisak_sluzba!D58,"") ->  | F56: =IF(OR(Predrok_april!F56<>"",Predrok_maj!F56<>"",Januar!F56<>"",Februar!F56<>"",April!F56<>"",Juni!F56<>"",Juli!F56,Septembar!F56<>"",Oktobar!F56<>"",Oktobar_2!F56<>""),MAX(Predrok_april!F56,Predrok_maj!F56,Januar!F56,Februar!F56,April!F56,Juni!F56,Juli!F56,Septembar!F56,Oktobar!F56,Oktobar_2!F56),"") -> 28 | G56: =IF(OR(Predrok_april!G56<>"",Predrok_maj!G56<>"",Januar!G56<>"",Februar!G56<>"",April!G56<>"",Juni!G56<>"",Juli!G56,Septembar!G56<>"",Oktobar!G56<>"",Oktobar_2!G56<>""),MAX(Predrok_april!G56,Predrok_maj!G56,Januar!G56,Februar!G56,April!G56,Juni!G56,Juli!G56,Septembar!G56,Oktobar!G56,Oktobar_2!G56),"") -> 30 | H56: =IF(OR(Predrok_april!H56<>"",Predrok_maj!H56<>"",Januar!H56<>"",Februar!H56<>"",April!H56<>"",Juni!H56<>"",Juli!H56,Septembar!H56<>"",Oktobar!H56<>"",Oktobar_2!H56<>""),MAX(Predrok_april!H56,Predrok_maj!H56,Januar!H56,Februar!H56,April!H56,Juni!H56,Juli!H56,Septembar!H56,Oktobar!H56,Oktobar_2!H56),"") -> 29 | I56: =IF(OR(Predrok_april!I56<>"",Predrok_maj!I56<>"",Januar!I56<>"",Februar!I56<>"",April!I56<>"",Juni!I56<>"",Juli!I56,Septembar!I56<>"",Oktobar!I56<>"",Oktobar_2!I56<>""),MAX(Predrok_april!I56,Predrok_maj!I56,Januar!I56,Februar!I56,April!I56,Juni!I56,Juli!I56,Septembar!I56,Oktobar!I56,Oktobar_2!I56),"") -> 11 | K56: DA | L56: 5 | M56: 5 | N56: 12 | O56: 13 | P56: 13 | Q56: 21 | S56: 20 | T56: 89.0 | U56: 9 | V56: Јун | W56: 2018-06-13 | X56: 10 | Y56: 2018-06-03 | Z56: 38 | AA56: 2018-06-13 | AB56: 21 | AC56: 2018-06-13 | AD56: 20 | AE56: 89 | AF56: 9 | AG56: 2018-06-13 | AI56: =Januar!R56 ->  | AJ56: =Februar!R56 ->  | AK56: =April!R56 ->  | AL56: =Juni!R56 -> Јун | AM56: =Juli!R56 -> Јул | AN56: =Septembar!R56 ->  | AO56: =Oktobar!R56 ->  | AP56: =Oktobar_2!R56 ->  | AR56: =Januar!T56 ->  | AS56: =Februar!T56 ->  | AT56: =April!T56 ->  | AU56: =Juni!T56 -> Јун | AV56: =Juli!T56 -> Јул | AW56: =Septembar!T56 ->  | AX56: =Oktobar!T56 ->  | AY56: =Oktobar_2!T56 ->  | AZ56: 2017/0015 | BA56: 1
A57: 55 | B57: =IF(Spisak_sluzba!A59<>"",Spisak_sluzba!A59,"") -> 2017/0118 | C57: =IF(Spisak_sluzba!B59<>"",Spisak_sluzba!B59,"") -> Никодијевић Петар | D57: =IF(Spisak_sluzba!C59<>"",Spisak_sluzba!C59,"") ->  | E57: =IF(Spisak_sluzba!D59<>"",Spisak_sluzba!D59,"") ->  | F57: =IF(OR(Predrok_april!F57<>"",Predrok_maj!F57<>"",Januar!F57<>"",Februar!F57<>"",April!F57<>"",Juni!F57<>"",Juli!F57,Septembar!F57<>"",Oktobar!F57<>"",Oktobar_2!F57<>""),MAX(Predrok_april!F57,Predrok_maj!F57,Januar!F57,Februar!F57,April!F57,Juni!F57,Juli!F57,Septembar!F57,Oktobar!F57,Oktobar_2!F57),"") -> 29 | G57: =IF(OR(Predrok_april!G57<>"",Predrok_maj!G57<>"",Januar!G57<>"",Februar!G57<>"",April!G57<>"",Juni!G57<>"",Juli!G57,Septembar!G57<>"",Oktobar!G57<>"",Oktobar_2!G57<>""),MAX(Predrok_april!G57,Predrok_maj!G57,Januar!G57,Februar!G57,April!G57,Juni!G57,Juli!G57,Septembar!G57,Oktobar!G57,Oktobar_2!G57),"") -> 31 | H57: =IF(OR(Predrok_april!H57<>"",Predrok_maj!H57<>"",Januar!H57<>"",Februar!H57<>"",April!H57<>"",Juni!H57<>"",Juli!H57,Septembar!H57<>"",Oktobar!H57<>"",Oktobar_2!H57<>""),MAX(Predrok_april!H57,Predrok_maj!H57,Januar!H57,Februar!H57,April!H57,Juni!H57,Juli!H57,Septembar!H57,Oktobar!H57,Oktobar_2!H57),"") -> 29 | I57: =IF(OR(Predrok_april!I57<>"",Predrok_maj!I57<>"",Januar!I57<>"",Februar!I57<>"",April!I57<>"",Juni!I57<>"",Juli!I57,Septembar!I57<>"",Oktobar!I57<>"",Oktobar_2!I57<>""),MAX(Predrok_april!I57,Predrok_maj!I57,Januar!I57,Februar!I57,April!I57,Juni!I57,Juli!I57,Septembar!I57,Oktobar!I57,Oktobar_2!I57),"") -> 14 | K57: DA | L57: 5 | M57: 5 | N57: 13 | O57: 14 | P57: 13 | Q57: 26 | S57: 20 | T57: 96.0 | U57: 10 | V57: Јун | W57: 2018-06-13 | X57: 10 | Y57: 2018-06-03 | Z57: 39 | AA57: 2018-06-13 | AB57: 26 | AC57: 2018-06-13 | AD57: 20 | AE57: 95 | AF57: 10 | AG57: 2018-06-13 | AI57: =Januar!R57 ->  | AJ57: =Februar!R57 ->  | AK57: =April!R57 ->  | AL57: =Juni!R57 -> Јун | AM57: =Juli!R57 ->  | AN57: =Septembar!R57 ->  | AO57: =Oktobar!R57 ->  | AP57: =Oktobar_2!R57 ->  | AR57: =Januar!T57 ->  | AS57: =Februar!T57 ->  | AT57: =April!T57 ->  | AU57: =Juni!T57 -> Јун | AV57: =Juli!T57 ->  | AW57: =Septembar!T57 ->  | AX57: =Oktobar!T57 ->  | AY57: =Oktobar_2!T57 ->  | AZ57: 2017/0118 | BA57: 1
A58: 56 | B58: =IF(Spisak_sluzba!A60<>"",Spisak_sluzba!A60,"") -> 2017/0063 | C58: =IF(Spisak_sluzba!B60<>"",Spisak_sluzba!B60,"") -> Нинковић Тамара | D58: =IF(Spisak_sluzba!C60<>"",Spisak_sluzba!C60,"") ->  | E58: =IF(Spisak_sluzba!D60<>"",Spisak_sluzba!D60,"") ->  | F58: =IF(OR(Predrok_april!F58<>"",Predrok_maj!F58<>"",Januar!F58<>"",Februar!F58<>"",April!F58<>"",Juni!F58<>"",Juli!F58,Septembar!F58<>"",Oktobar!F58<>"",Oktobar_2!F58<>""),MAX(Predrok_april!F58,Predrok_maj!F58,Januar!F58,Februar!F58,April!F58,Juni!F58,Juli!F58,Septembar!F58,Oktobar!F58,Oktobar_2!F58),"") -> 29 | G58: =IF(OR(Predrok_april!G58<>"",Predrok_maj!G58<>"",Januar!G58<>"",Februar!G58<>"",April!G58<>"",Juni!G58<>"",Juli!G58,Septembar!G58<>"",Oktobar!G58<>"",Oktobar_2!G58<>""),MAX(Predrok_april!G58,Predrok_maj!G58,Januar!G58,Februar!G58,April!G58,Juni!G58,Juli!G58,Septembar!G58,Oktobar!G58,Oktobar_2!G58),"") -> 24 | H58: =IF(OR(Predrok_april!H58<>"",Predrok_maj!H58<>"",Januar!H58<>"",Februar!H58<>"",April!H58<>"",Juni!H58<>"",Juli!H58,Septembar!H58<>"",Oktobar!H58<>"",Oktobar_2!H58<>""),MAX(Predrok_april!H58,Predrok_maj!H58,Januar!H58,Februar!H58,April!H58,Juni!H58,Juli!H58,Septembar!H58,Oktobar!H58,Oktobar_2!H58),"") -> 24 | I58: =IF(OR(Predrok_april!I58<>"",Predrok_maj!I58<>"",Januar!I58<>"",Februar!I58<>"",April!I58<>"",Juni!I58<>"",Juli!I58,Septembar!I58<>"",Oktobar!I58<>"",Oktobar_2!I58<>""),MAX(Predrok_april!I58,Predrok_maj!I58,Januar!I58,Februar!I58,April!I58,Juni!I58,Juli!I58,Septembar!I58,Oktobar!I58,Oktobar_2!I58),"") -> 9 | K58: DA | L58: 5 | M58: 5 | N58: 13 | O58: 11 | P58: 11 | Q58: 17 | S58: 20 | T58: 81.0 | U58: 9 | V58: Јун | W58: 2018-06-13 | X58: 10 | Y58: 2018-06-03 | Z58: 34 | AA58: 2018-06-13 | AB58: 17 | AC58: 2018-06-13 | AD58: 20 | AE58: 80 | AF58: 9 | AG58: 2018-06-13 | AI58: =Januar!R58 ->  | AJ58: =Februar!R58 ->  | AK58: =April!R58 ->  | AL58: =Juni!R58 -> Јун | AM58: =Juli!R58 ->  | AN58: =Septembar!R58 ->  | AO58: =Oktobar!R58 ->  | AP58: =Oktobar_2!R58 ->  | AR58: =Januar!T58 ->  | AS58: =Februar!T58 ->  | AT58: =April!T58 ->  | AU58: =Juni!T58 -> Јун | AV58: =Juli!T58 ->  | AW58: =Septembar!T58 ->  | AX58: =Oktobar!T58 ->  | AY58: =Oktobar_2!T58 ->  | AZ58: 2017/0063 | BA58: 1
A59: 57 | B59: =IF(Spisak_sluzba!A61<>"",Spisak_sluzba!A61,"") -> 2017/0066 | C59: =IF(Spisak_sluzba!B61<>"",Spisak_sluzba!B61,"") -> Обрадовић Александра | D59: =IF(Spisak_sluzba!C61<>"",Spisak_sluzba!C61,"") ->  | E59: =IF(Spisak_sluzba!D61<>"",Spisak_sluzba!D61,"") ->  | F59: =IF(OR(Predrok_april!F59<>"",Predrok_maj!F59<>"",Januar!F59<>"",Februar!F59<>"",April!F59<>"",Juni!F59<>"",Juli!F59,Septembar!F59<>"",Oktobar!F59<>"",Oktobar_2!F59<>""),MAX(Predrok_april!F59,Predrok_maj!F59,Januar!F59,Februar!F59,April!F59,Juni!F59,Juli!F59,Septembar!F59,Oktobar!F59,Oktobar_2!F59),"") -> 31 | G59: =IF(OR(Predrok_april!G59<>"",Predrok_maj!G59<>"",Januar!G59<>"",Februar!G59<>"",April!G59<>"",Juni!G59<>"",Juli!G59,Septembar!G59<>"",Oktobar!G59<>"",Oktobar_2!G59<>""),MAX(Predrok_april!G59,Predrok_maj!G59,Januar!G59,Februar!G59,April!G59,Juni!G59,Juli!G59,Septembar!G59,Oktobar!G59,Oktobar_2!G59),"") -> 29 | H59: =IF(OR(Predrok_april!H59<>"",Predrok_maj!H59<>"",Januar!H59<>"",Februar!H59<>"",April!H59<>"",Juni!H59<>"",Juli!H59,Septembar!H59<>"",Oktobar!H59<>"",Oktobar_2!H59<>""),MAX(Predrok_april!H59,Predrok_maj!H59,Januar!H59,Februar!H59,April!H59,Juni!H59,Juli!H59,Septembar!H59,Oktobar!H59,Oktobar_2!H59),"") -> 26 | I59: =IF(OR(Predrok_april!I59<>"",Predrok_maj!I59<>"",Januar!I59<>"",Februar!I59<>"",April!I59<>"",Juni!I59<>"",Juli!I59,Septembar!I59<>"",Oktobar!I59<>"",Oktobar_2!I59<>""),MAX(Predrok_april!I59,Predrok_maj!I59,Januar!I59,Februar!I59,April!I59,Juni!I59,Juli!I59,Septembar!I59,Oktobar!I59,Oktobar_2!I59),"") -> 12 | K59: DA | L59: 5 | M59: 5 | N59: 14 | O59: 13 | P59: 11 | Q59: 22 | S59: 20 | T59: 91.0 | U59: 10 | V59: Јун | W59: 2018-06-13 | X59: 10 | Y59: 2018-06-03 | Z59: 38 | AA59: 2018-06-13 | AB59: 22 | AC59: 2018-06-13 | AD59: 20 | AE59: 90 | AF59: 10 | AG59: 2018-06-13 | AI59: =Januar!R59 ->  | AJ59: =Februar!R59 ->  | AK59: =April!R59 ->  | AL59: =Juni!R59 -> Јун | AM59: =Juli!R59 ->  | AN59: =Septembar!R59 ->  | AO59: =Oktobar!R59 ->  | AP59: =Oktobar_2!R59 ->  | AR59: =Januar!T59 ->  | AS59: =Februar!T59 ->  | AT59: =April!T59 ->  | AU59: =Juni!T59 -> Јун | AV59: =Juli!T59 ->  | AW59: =Septembar!T59 ->  | AX59: =Oktobar!T59 ->  | AY59: =Oktobar_2!T59 ->  | AZ59: 2017/0066 | BA59: 1
A60: 58 | B60: =IF(Spisak_sluzba!A62<>"",Spisak_sluzba!A62,"") -> 2017/0021 | C60: =IF(Spisak_sluzba!B62<>"",Spisak_sluzba!B62,"") -> Обреновић Милош | D60: =IF(Spisak_sluzba!C62<>"",Spisak_sluzba!C62,"") ->  | E60: =IF(Spisak_sluzba!D62<>"",Spisak_sluzba!D62,"") ->  | F60: =IF(OR(Predrok_april!F60<>"",Predrok_maj!F60<>"",Januar!F60<>"",Februar!F60<>"",April!F60<>"",Juni!F60<>"",Juli!F60,Septembar!F60<>"",Oktobar!F60<>"",Oktobar_2!F60<>""),MAX(Predrok_april!F60,Predrok_maj!F60,Januar!F60,Februar!F60,April!F60,Juni!F60,Juli!F60,Septembar!F60,Oktobar!F60,Oktobar_2!F60),"") -> 27 | G60: =IF(OR(Predrok_april!G60<>"",Predrok_maj!G60<>"",Januar!G60<>"",Februar!G60<>"",April!G60<>"",Juni!G60<>"",Juli!G60,Septembar!G60<>"",Oktobar!G60<>"",Oktobar_2!G60<>""),MAX(Predrok_april!G60,Predrok_maj!G60,Januar!G60,Februar!G60,April!G60,Juni!G60,Juli!G60,Septembar!G60,Oktobar!G60,Oktobar_2!G60),"") -> 28 | H60: =IF(OR(Predrok_april!H60<>"",Predrok_maj!H60<>"",Januar!H60<>"",Februar!H60<>"",April!H60<>"",Juni!H60<>"",Juli!H60,Septembar!H60<>"",Oktobar!H60<>"",Oktobar_2!H60<>""),MAX(Predrok_april!H60,Predrok_maj!H60,Januar!H60,Februar!H60,April!H60,Juni!H60,Juli!H60,Septembar!H60,Oktobar!H60,Oktobar_2!H60),"") -> 25 | I60: =IF(OR(Predrok_april!I60<>"",Predrok_maj!I60<>"",Januar!I60<>"",Februar!I60<>"",April!I60<>"",Juni!I60<>"",Juli!I60,Septembar!I60<>"",Oktobar!I60<>"",Oktobar_2!I60<>""),MAX(Predrok_april!I60,Predrok_maj!I60,Januar!I60,Februar!I60,April!I60,Juni!I60,Juli!I60,Septembar!I60,Oktobar!I60,Oktobar_2!I60),"") -> 13 | K60: DA | L60: 5 | M60: 5 | N60: 12 | O60: 12 | P60: 11 | Q60: 24 | S60: 15 | T60: 85.0 | U60: 9 | V60: Октобар | W60: 2018-09-12 | X60: 10 | Y60: 2018-06-03 | Z60: 35 | AA60: 2018-06-13 | AB60: 24 | AC60: 2018-09-12 | AD60: 15 | AE60: 84 | AF60: 9 | AG60: 2018-09-12 | AI60: =Januar!R60 ->  | AJ60: =Februar!R60 ->  | AK60: =April!R60 ->  | AL60: =Juni!R60 -> Јун | AM60: =Juli!R60 -> Јул | AN60: =Septembar!R60 -> Септембар | AO60: =Oktobar!R60 ->  | AP60: =Oktobar_2!R60 ->  | AR60: =Januar!T60 ->  | AS60: =Februar!T60 ->  | AT60: =April!T60 ->  | AU60: =Juni!T60 -> Јун | AV60: =Juli!T60 -> Јул | AW60: =Septembar!T60 -> Септембар | AX60: =Oktobar!T60 ->  | AY60: =Oktobar_2!T60 ->  | AZ60: 2017/0021 | BA60: 1
A61: 59 | B61: =IF(Spisak_sluzba!A63<>"",Spisak_sluzba!A63,"") -> 2017/0133 | C61: =IF(Spisak_sluzba!B63<>"",Spisak_sluzba!B63,"") -> Павићевић Стефан | D61: =IF(Spisak_sluzba!C63<>"",Spisak_sluzba!C63,"") ->  | E61: =IF(Spisak_sluzba!D63<>"",Spisak_sluzba!D63,"") ->  | F61: =IF(OR(Predrok_april!F61<>"",Predrok_maj!F61<>"",Januar!F61<>"",Februar!F61<>"",April!F61<>"",Juni!F61<>"",Juli!F61,Septembar!F61<>"",Oktobar!F61<>"",Oktobar_2!F61<>""),MAX(Predrok_april!F61,Predrok_maj!F61,Januar!F61,Februar!F61,April!F61,Juni!F61,Juli!F61,Septembar!F61,Oktobar!F61,Oktobar_2!F61),"") -> 27 | G61: =IF(OR(Predrok_april!G61<>"",Predrok_maj!G61<>"",Januar!G61<>"",Februar!G61<>"",April!G61<>"",Juni!G61<>"",Juli!G61,Septembar!G61<>"",Oktobar!G61<>"",Oktobar_2!G61<>""),MAX(Predrok_april!G61,Predrok_maj!G61,Januar!G61,Februar!G61,April!G61,Juni!G61,Juli!G61,Septembar!G61,Oktobar!G61,Oktobar_2!G61),"") -> 27 | H61: =IF(OR(Predrok_april!H61<>"",Predrok_maj!H61<>"",Januar!H61<>"",Februar!H61<>"",April!H61<>"",Juni!H61<>"",Juli!H61,Septembar!H61<>"",Oktobar!H61<>"",Oktobar_2!H61<>""),MAX(Predrok_april!H61,Predrok_maj!H61,Januar!H61,Februar!H61,April!H61,Juni!H61,Juli!H61,Septembar!H61,Oktobar!H61,Oktobar_2!H61),"") -> 25 | I61: =IF(OR(Predrok_april!I61<>"",Predrok_maj!I61<>"",Januar!I61<>"",Februar!I61<>"",April!I61<>"",Juni!I61<>"",Juli!I61,Septembar!I61<>"",Oktobar!I61<>"",Oktobar_2!I61<>""),MAX(Predrok_april!I61,Predrok_maj!I61,Januar!I61,Februar!I61,April!I61,Juni!I61,Juli!I61,Septembar!I61,Oktobar!I61,Oktobar_2!I61),"") -> 13 | K61: DA | L61: 5 | M61: 5 | N61: 12 | O61: 12 | P61: 11 | Q61: 24 | S61: 20 | T61: 89.0 | U61: 9 | V61: Јун | W61: 2018-06-13 | X61: 10 | Y61: 2018-06-03 | Z61: 35 | AA61: 2018-06-13 | AB61: 24 | AC61: 2018-06-13 | AD61: 20 | AE61: 89 | AF61: 9 | AG61: 2018-06-13 | AI61: =Januar!R61 ->  | AJ61: =Februar!R61 ->  | AK61: =April!R61 ->  | AL61: =Juni!R61 -> Јун | AM61: =Juli!R61 ->  | AN61: =Septembar!R61 ->  | AO61: =Oktobar!R61 ->  | AP61: =Oktobar_2!R61 ->  | AR61: =Januar!T61 ->  | AS61: =Februar!T61 ->  | AT61: =April!T61 ->  | AU61: =Juni!T61 -> Јун | AV61: =Juli!T61 ->  | AW61: =Septembar!T61 ->  | AX61: =Oktobar!T61 ->  | AY61: =Oktobar_2!T61 ->  | AZ61: 2017/0133 | BA61: 1
A62: 60 | B62: =IF(Spisak_sluzba!A64<>"",Spisak_sluzba!A64,"") -> 2017/0044 | C62: =IF(Spisak_sluzba!B64<>"",Spisak_sluzba!B64,"") -> Павлов Петар | D62: =IF(Spisak_sluzba!C64<>"",Spisak_sluzba!C64,"") ->  | E62: =IF(Spisak_sluzba!D64<>"",Spisak_sluzba!D64,"") ->  | F62: =IF(OR(Predrok_april!F62<>"",Predrok_maj!F62<>"",Januar!F62<>"",Februar!F62<>"",April!F62<>"",Juni!F62<>"",Juli!F62,Septembar!F62<>"",Oktobar!F62<>"",Oktobar_2!F62<>""),MAX(Predrok_april!F62,Predrok_maj!F62,Januar!F62,Februar!F62,April!F62,Juni!F62,Juli!F62,Septembar!F62,Oktobar!F62,Oktobar_2!F62),"") ->  | G62: =IF(OR(Predrok_april!G62<>"",Predrok_maj!G62<>"",Januar!G62<>"",Februar!G62<>"",April!G62<>"",Juni!G62<>"",Juli!G62,Septembar!G62<>"",Oktobar!G62<>"",Oktobar_2!G62<>""),MAX(Predrok_april!G62,Predrok_maj!G62,Januar!G62,Februar!G62,April!G62,Juni!G62,Juli!G62,Septembar!G62,Oktobar!G62,Oktobar_2!G62),"") ->  | H62: =IF(OR(Predrok_april!H62<>"",Predrok_maj!H62<>"",Januar!H62<>"",Februar!H62<>"",April!H62<>"",Juni!H62<>"",Juli!H62,Septembar!H62<>"",Oktobar!H62<>"",Oktobar_2!H62<>""),MAX(Predrok_april!H62,Predrok_maj!H62,Januar!H62,Februar!H62,April!H62,Juni!H62,Juli!H62,Septembar!H62,Oktobar!H62,Oktobar_2!H62),"") ->  | I62: =IF(OR(Predrok_april!I62<>"",Predrok_maj!I62<>"",Januar!I62<>"",Februar!I62<>"",April!I62<>"",Juni!I62<>"",Juli!I62,Septembar!I62<>"",Oktobar!I62<>"",Oktobar_2!I62<>""),MAX(Predrok_april!I62,Predrok_maj!I62,Januar!I62,Februar!I62,April!I62,Juni!I62,Juli!I62,Septembar!I62,Oktobar!I62,Oktobar_2!I62),"") ->  | K62: NE | AI62: =Januar!R62 ->  | AJ62: =Februar!R62 ->  | AK62: =April!R62 ->  | AL62: =Juni!R62 ->  | AM62: =Juli!R62 ->  | AN62: =Septembar!R62 ->  | AO62: =Oktobar!R62 ->  | AP62: =Oktobar_2!R62 ->  | AR62: =Januar!T62 ->  | AS62: =Februar!T62 ->  | AT62: =April!T62 ->  | AU62: =Juni!T62 -> Јун | AV62: =Juli!T62 -> Јул | AW62: =Septembar!T62 ->  | AX62: =Oktobar!T62 ->  | AY62: =Oktobar_2!T62 ->  | AZ62: 2017/0044 | BA62: 1
A63: 61 | B63: =IF(Spisak_sluzba!A65<>"",Spisak_sluzba!A65,"") -> 2017/0097 | C63: =IF(Spisak_sluzba!B65<>"",Spisak_sluzba!B65,"") -> Павловић Никола | D63: =IF(Spisak_sluzba!C65<>"",Spisak_sluzba!C65,"") ->  | E63: =IF(Spisak_sluzba!D65<>"",Spisak_sluzba!D65,"") ->  | F63: =IF(OR(Predrok_april!F63<>"",Predrok_maj!F63<>"",Januar!F63<>"",Februar!F63<>"",April!F63<>"",Juni!F63<>"",Juli!F63,Septembar!F63<>"",Oktobar!F63<>"",Oktobar_2!F63<>""),MAX(Predrok_april!F63,Predrok_maj!F63,Januar!F63,Februar!F63,April!F63,Juni!F63,Juli!F63,Septembar!F63,Oktobar!F63,Oktobar_2!F63),"") -> 31 | G63: =IF(OR(Predrok_april!G63<>"",Predrok_maj!G63<>"",Januar!G63<>"",Februar!G63<>"",April!G63<>"",Juni!G63<>"",Juli!G63,Septembar!G63<>"",Oktobar!G63<>"",Oktobar_2!G63<>""),MAX(Predrok_april!G63,Predrok_maj!G63,Januar!G63,Februar!G63,April!G63,Juni!G63,Juli!G63,Septembar!G63,Oktobar!G63,Oktobar_2!G63),"") -> 28 | H63: =IF(OR(Predrok_april!H63<>"",Predrok_maj!H63<>"",Januar!H63<>"",Februar!H63<>"",April!H63<>"",Juni!H63<>"",Juli!H63,Septembar!H63<>"",Oktobar!H63<>"",Oktobar_2!H63<>""),MAX(Predrok_april!H63,Predrok_maj!H63,Januar!H63,Februar!H63,April!H63,Juni!H63,Juli!H63,Septembar!H63,Oktobar!H63,Oktobar_2!H63),"") -> 29 | I63: =IF(OR(Predrok_april!I63<>"",Predrok_maj!I63<>"",Januar!I63<>"",Februar!I63<>"",April!I63<>"",Juni!I63<>"",Juli!I63,Septembar!I63<>"",Oktobar!I63<>"",Oktobar_2!I63<>""),MAX(Predrok_april!I63,Predrok_maj!I63,Januar!I63,Februar!I63,April!I63,Juni!I63,Juli!I63,Septembar!I63,Oktobar!I63,Oktobar_2!I63),"") -> 13 | K63: DA | L63: 5 | M63: 5 | N63: 14 | O63: 12 | P63: 13 | Q63: 24 | S63: 20 | T63: 93.0 | U63: 10 | V63: Јун | W63: 2018-06-13 | X63: 10 | Y63: 2018-06-03 | Z63: 39 | AA63: 2018-06-13 | AB63: 24 | AC63: 2018-06-13 | AD63: 20 | AE63: 93 | AF63: 10 | AG63: 2018-06-13 | AI63: =Januar!R63 ->  | AJ63: =Februar!R63 ->  | AK63: =April!R63 ->  | AL63: =Juni!R63 -> Јун | AM63: =Juli!R63 ->  | AN63: =Septembar!R63 ->  | AO63: =Oktobar!R63 ->  | AP63: =Oktobar_2!R63 ->  | AR63: =Januar!T63 ->  | AS63: =Februar!T63 ->  | AT63: =April!T63 ->  | AU63: =Juni!T63 -> Јун | AV63: =Juli!T63 ->  | AW63: =Septembar!T63 ->  | AX63: =Oktobar!T63 ->  | AY63: =Oktobar_2!T63 ->  | AZ63: 2017/0097 | BA63: 1
A64: 62 | B64: =IF(Spisak_sluzba!A66<>"",Spisak_sluzba!A66,"") -> 2017/0134 | C64: =IF(Spisak_sluzba!B66<>"",Spisak_sluzba!B66,"") -> Пантелић Теодора | D64: =IF(Spisak_sluzba!C66<>"",Spisak_sluzba!C66,"") ->  | E64: =IF(Spisak_sluzba!D66<>"",Spisak_sluzba!D66,"") ->  | F64: =IF(OR(Predrok_april!F64<>"",Predrok_maj!F64<>"",Januar!F64<>"",Februar!F64<>"",April!F64<>"",Juni!F64<>"",Juli!F64,Septembar!F64<>"",Oktobar!F64<>"",Oktobar_2!F64<>""),MAX(Predrok_april!F64,Predrok_maj!F64,Januar!F64,Februar!F64,April!F64,Juni!F64,Juli!F64,Septembar!F64,Oktobar!F64,Oktobar_2!F64),"") -> 26 | G64: =IF(OR(Predrok_april!G64<>"",Predrok_maj!G64<>"",Januar!G64<>"",Februar!G64<>"",April!G64<>"",Juni!G64<>"",Juli!G64,Septembar!G64<>"",Oktobar!G64<>"",Oktobar_2!G64<>""),MAX(Predrok_april!G64,Predrok_maj!G64,Januar!G64,Februar!G64,April!G64,Juni!G64,Juli!G64,Septembar!G64,Oktobar!G64,Oktobar_2!G64),"") -> 29 | H64: =IF(OR(Predrok_april!H64<>"",Predrok_maj!H64<>"",Januar!H64<>"",Februar!H64<>"",April!H64<>"",Juni!H64<>"",Juli!H64,Septembar!H64<>"",Oktobar!H64<>"",Oktobar_2!H64<>""),MAX(Predrok_april!H64,Predrok_maj!H64,Januar!H64,Februar!H64,April!H64,Juni!H64,Juli!H64,Septembar!H64,Oktobar!H64,Oktobar_2!H64),"") -> 28 | I64: =IF(OR(Predrok_april!I64<>"",Predrok_maj!I64<>"",Januar!I64<>"",Februar!I64<>"",April!I64<>"",Juni!I64<>"",Juli!I64,Septembar!I64<>"",Oktobar!I64<>"",Oktobar_2!I64<>""),MAX(Predrok_april!I64,Predrok_maj!I64,Januar!I64,Februar!I64,April!I64,Juni!I64,Juli!I64,Septembar!I64,Oktobar!I64,Oktobar_2!I64),"") -> 9 | K64: DA | L64: 5 | M64: 5 | N64: 11 | O64: 13 | P64: 12 | Q64: 17 | S64: 15 | T64: 79.0 | U64: 8 | V64: Септембар | W64: 2018-09-01 | X64: 10 | Y64: 2018-06-03 | Z64: 36 | AA64: 2018-06-13 | AB64: 17 | AC64: 2018-09-01 | AD64: 15 | AE64: 78 | AF64: 8 | AG64: 2018-09-01 | AI64: =Januar!R64 ->  | AJ64: =Februar!R64 ->  | AK64: =April!R64 ->  | AL64: =Juni!R64 -> Јун | AM64: =Juli!R64 -> Јул | AN64: =Septembar!R64 -> Септембар | AO64: =Oktobar!R64 ->  | AP64: =Oktobar_2!R64 ->  | AR64: =Januar!T64 ->  | AS64: =Februar!T64 ->  | AT64: =April!T64 ->  | AU64: =Juni!T64 -> Јун | AV64: =Juli!T64 -> Јул | AW64: =Septembar!T64 -> Септембар | AX64: =Oktobar!T64 ->  | AY64: =Oktobar_2!T64 ->  | AZ64: 2017/0134 | BA64: 1
A65: 63 | B65: =IF(Spisak_sluzba!A67<>"",Spisak_sluzba!A67,"") -> 2017/0067 | C65: =IF(Spisak_sluzba!B67<>"",Spisak_sluzba!B67,"") -> Петковић Татјана | D65: =IF(Spisak_sluzba!C67<>"",Spisak_sluzba!C67,"") ->  | E65: =IF(Spisak_sluzba!D67<>"",Spisak_sluzba!D67,"") ->  | F65: =IF(OR(Predrok_april!F65<>"",Predrok_maj!F65<>"",Januar!F65<>"",Februar!F65<>"",April!F65<>"",Juni!F65<>"",Juli!F65,Septembar!F65<>"",Oktobar!F65<>"",Oktobar_2!F65<>""),MAX(Predrok_april!F65,Predrok_maj!F65,Januar!F65,Februar!F65,April!F65,Juni!F65,Juli!F65,Septembar!F65,Oktobar!F65,Oktobar_2!F65),"") -> 24 | G65: =IF(OR(Predrok_april!G65<>"",Predrok_maj!G65<>"",Januar!G65<>"",Februar!G65<>"",April!G65<>"",Juni!G65<>"",Juli!G65,Septembar!G65<>"",Oktobar!G65<>"",Oktobar_2!G65<>""),MAX(Predrok_april!G65,Predrok_maj!G65,Januar!G65,Februar!G65,April!G65,Juni!G65,Juli!G65,Septembar!G65,Oktobar!G65,Oktobar_2!G65),"") -> 24 | H65: =IF(OR(Predrok_april!H65<>"",Predrok_maj!H65<>"",Januar!H65<>"",Februar!H65<>"",April!H65<>"",Juni!H65<>"",Juli!H65,Septembar!H65<>"",Oktobar!H65<>"",Oktobar_2!H65<>""),MAX(Predrok_april!H65,Predrok_maj!H65,Januar!H65,Februar!H65,April!H65,Juni!H65,Juli!H65,Septembar!H65,Oktobar!H65,Oktobar_2!H65),"") -> 24 | I65: =IF(OR(Predrok_april!I65<>"",Predrok_maj!I65<>"",Januar!I65<>"",Februar!I65<>"",April!I65<>"",Juni!I65<>"",Juli!I65,Septembar!I65<>"",Oktobar!I65<>"",Oktobar_2!I65<>""),MAX(Predrok_april!I65,Predrok_maj!I65,Januar!I65,Februar!I65,April!I65,Juni!I65,Juli!I65,Septembar!I65,Oktobar!I65,Oktobar_2!I65),"") -> 10 | K65: DA | L65: 5 | M65: 5 | N65: 11 | O65: 11 | P65: 11 | Q65: 19 | S65: 15 | T65: 76.0 | U65: 8 | V65: Октобар | W65: 2018-09-12 | X65: 10 | Y65: 2018-06-03 | Z65: 32 | AA65: 2018-06-13 | AB65: 19 | AC65: 2018-09-12 | AD65: 15 | AE65: 75 | AF65: 8 | AG65: 2018-09-12 | AI65: =Januar!R65 ->  | AJ65: =Februar!R65 ->  | AK65: =April!R65 ->  | AL65: =Juni!R65 -> Јун | AM65: =Juli!R65 -> Јул | AN65: =Septembar!R65 -> Септембар | AO65: =Oktobar!R65 ->  | AP65: =Oktobar_2!R65 ->  | AR65: =Januar!T65 ->  | AS65: =Februar!T65 ->  | AT65: =April!T65 ->  | AU65: =Juni!T65 -> Јун | AV65: =Juli!T65 -> Јул | AW65: =Septembar!T65 -> Септембар | AX65: =Oktobar!T65 ->  | AY65: =Oktobar_2!T65 ->  | AZ65: 2017/0067 | BA65: 1
A66: 64 | B66: =IF(Spisak_sluzba!A68<>"",Spisak_sluzba!A68,"") -> 2017/0146 | C66: =IF(Spisak_sluzba!B68<>"",Spisak_sluzba!B68,"") -> Петровић Филип | D66: =IF(Spisak_sluzba!C68<>"",Spisak_sluzba!C68,"") ->  | E66: =IF(Spisak_sluzba!D68<>"",Spisak_sluzba!D68,"") ->  | F66: =IF(OR(Predrok_april!F66<>"",Predrok_maj!F66<>"",Januar!F66<>"",Februar!F66<>"",April!F66<>"",Juni!F66<>"",Juli!F66,Septembar!F66<>"",Oktobar!F66<>"",Oktobar_2!F66<>""),MAX(Predrok_april!F66,Predrok_maj!F66,Januar!F66,Februar!F66,April!F66,Juni!F66,Juli!F66,Septembar!F66,Oktobar!F66,Oktobar_2!F66),"") -> 29 | G66: =IF(OR(Predrok_april!G66<>"",Predrok_maj!G66<>"",Januar!G66<>"",Februar!G66<>"",April!G66<>"",Juni!G66<>"",Juli!G66,Septembar!G66<>"",Oktobar!G66<>"",Oktobar_2!G66<>""),MAX(Predrok_april!G66,Predrok_maj!G66,Januar!G66,Februar!G66,April!G66,Juni!G66,Juli!G66,Septembar!G66,Oktobar!G66,Oktobar_2!G66),"") -> 28 | H66: =IF(OR(Predrok_april!H66<>"",Predrok_maj!H66<>"",Januar!H66<>"",Februar!H66<>"",April!H66<>"",Juni!H66<>"",Juli!H66,Septembar!H66<>"",Oktobar!H66<>"",Oktobar_2!H66<>""),MAX(Predrok_april!H66,Predrok_maj!H66,Januar!H66,Februar!H66,April!H66,Juni!H66,Juli!H66,Septembar!H66,Oktobar!H66,Oktobar_2!H66),"") -> 28 | I66: =IF(OR(Predrok_april!I66<>"",Predrok_maj!I66<>"",Januar!I66<>"",Februar!I66<>"",April!I66<>"",Juni!I66<>"",Juli!I66,Septembar!I66<>"",Oktobar!I66<>"",Oktobar_2!I66<>""),MAX(Predrok_april!I66,Predrok_maj!I66,Januar!I66,Februar!I66,April!I66,Juni!I66,Juli!I66,Septembar!I66,Oktobar!I66,Oktobar_2!I66),"") -> 9 | K66: DA | L66: 5 | M66: 5 | N66: 13 | O66: 12 | P66: 12 | Q66: 17 | S66: 20 | T66: 84.0 | U66: 9 | V66: Јун | W66: 2018-06-13 | X66: 10 | Y66: 2018-06-03 | Z66: 37 | AA66: 2018-06-13 | AB66: 17 | AC66: 2018-06-13 | AD66: 20 | AE66: 84 | AF66: 9 | AG66: 2018-06-13 | AI66: =Januar!R66 ->  | AJ66: =Februar!R66 ->  | AK66: =April!R66 ->  | AL66: =Juni!R66 -> Јун | AM66: =Juli!R66 ->  | AN66: =Septembar!R66 ->  | AO66: =Oktobar!R66 ->  | AP66: =Oktobar_2!R66 ->  | AR66: =Januar!T66 ->  | AS66: =Februar!T66 ->  | AT66: =April!T66 ->  | AU66: =Juni!T66 -> Јун | AV66: =Juli!T66 ->  | AW66: =Septembar!T66 ->  | AX66: =Oktobar!T66 ->  | AY66: =Oktobar_2!T66 ->  | AZ66: 2017/0146 | BA66: 1
A67: 65 | B67: =IF(Spisak_sluzba!A69<>"",Spisak_sluzba!A69,"") -> 2017/0128 | C67: =IF(Spisak_sluzba!B69<>"",Spisak_sluzba!B69,"") -> Пјевовић Ања | D67: =IF(Spisak_sluzba!C69<>"",Spisak_sluzba!C69,"") ->  | E67: =IF(Spisak_sluzba!D69<>"",Spisak_sluzba!D69,"") ->  | F67: =IF(OR(Predrok_april!F67<>"",Predrok_maj!F67<>"",Januar!F67<>"",Februar!F67<>"",April!F67<>"",Juni!F67<>"",Juli!F67,Septembar!F67<>"",Oktobar!F67<>"",Oktobar_2!F67<>""),MAX(Predrok_april!F67,Predrok_maj!F67,Januar!F67,Februar!F67,April!F67,Juni!F67,Juli!F67,Septembar!F67,Oktobar!F67,Oktobar_2!F67),"") -> 26 | G67: =IF(OR(Predrok_april!G67<>"",Predrok_maj!G67<>"",Januar!G67<>"",Februar!G67<>"",April!G67<>"",Juni!G67<>"",Juli!G67,Septembar!G67<>"",Oktobar!G67<>"",Oktobar_2!G67<>""),MAX(Predrok_april!G67,Predrok_maj!G67,Januar!G67,Februar!G67,April!G67,Juni!G67,Juli!G67,Septembar!G67,Oktobar!G67,Oktobar_2!G67),"") -> 29 | H67: =IF(OR(Predrok_april!H67<>"",Predrok_maj!H67<>"",Januar!H67<>"",Februar!H67<>"",April!H67<>"",Juni!H67<>"",Juli!H67,Septembar!H67<>"",Oktobar!H67<>"",Oktobar_2!H67<>""),MAX(Predrok_april!H67,Predrok_maj!H67,Januar!H67,Februar!H67,April!H67,Juni!H67,Juli!H67,Septembar!H67,Oktobar!H67,Oktobar_2!H67),"") -> 24 | I67: =IF(OR(Predrok_april!I67<>"",Predrok_maj!I67<>"",Januar!I67<>"",Februar!I67<>"",April!I67<>"",Juni!I67<>"",Juli!I67,Septembar!I67<>"",Oktobar!I67<>"",Oktobar_2!I67<>""),MAX(Predrok_april!I67,Predrok_maj!I67,Januar!I67,Februar!I67,April!I67,Juni!I67,Juli!I67,Septembar!I67,Oktobar!I67,Oktobar_2!I67),"") -> 10 | K67: =IF(B67<>"",IF(AND(F67<>"",G67<>"",H67<>"",I67<>""),"DA","NE"),"") -> DA | L67: =IF(S67<>"",5,"") -> 5 | M67: =IF(S67<>"",5,"") -> 5 | N67: =IF(F67<>"",IF(F67>=24,(F67/32)*14,""),"") -> 11 | O67: =IF(G67<>"",IF(G67>=24,(G67/32)*14,""),"") -> 13 | P67: =IF(H67<>"",IF(H67>=11,(H67/32)*14,""),"") -> 11 | Q67: =IF(I67<>"",IF(I67>=9,(I67/15)*28,""),"") -> 19 | S67: =IF(V67<>"",IF(AND(N67<>"",O67<>"",P67<>"",Q67<>""),IF(OR(V67="Јун",V67="Јул"),20,IF(OR(V67="Септембар",V67="Октобар"),15,10)),""),"") -> 15 | T67: =IF(AND(L67<>"",M67<>"",S67<>"",N67<>"",O67<>"",Q67<>"",P67<>""),ROUNDUP(SUM(L67,M67,S67,N67,O67,Q67,P67,R67),0),"") -> 79.0 | U67: =IF(T67<>"",VLOOKUP(T67,$BK$3:$BM$7,3),"") -> 8 | V67: Октобар | W67: 2018-09-12 | X67: =IF(AND(U67<>"",V67<>""),M67+L67,"") -> 10 | Y67: =IF(X67<>"",VLOOKUP(V67,$BP$2:$BU$10,2,FALSE),"") -> 2018-06-03 | Z67: =IF(X67<>"",SUM(N67,O67,P67),"") -> 35 | AA67: =IF(X67<>"",VLOOKUP(V67,$BP$2:$BU$10,4,FALSE),"") -> 2018-06-13 | AB67: =IF(X67<>"",Q67+R67,"") -> 19 | AC67: =IF(X67<>"",VLOOKUP(V67,$BP$2:$BU$10,5,FALSE),"") -> 2018-09-12 | AD67: =IF(AND(U67<>"",V67<>""),S67,"") -> 15 | AE67: =IF(X67<>"",SUM(X67,AD67,Z67,AB67),"") -> 78 | AF67: =IF(AND(U67<>"",V67<>""),U67,"") -> 8 | AG67: =IF(X67<>"",VLOOKUP(V67,$BP$2:$BU$10,6,FALSE),"") -> 2018-09-12 | AI67: =Januar!R67 ->  | AJ67: =Februar!R67 ->  | AK67: =April!R67 ->  | AL67: =Juni!R67 -> Јун | AM67: =Juli!R67 -> Јул | AN67: =Septembar!R67 -> Септембар | AO67: =Oktobar!R67 ->  | AP67: =Oktobar_2!R67 ->  | AR67: =Januar!T67 ->  | AS67: =Februar!T67 ->  | AT67: =April!T67 ->  | AU67: =Juni!T67 -> Јун | AV67: =Juli!T67 -> Јул | AW67: =Septembar!T67 -> Септембар | AX67: =Oktobar!T67 ->  | AY67: =Oktobar_2!T67 ->  | AZ67: 2017/0128 | BA67: 1
A68: 66 | B68: =IF(Spisak_sluzba!A70<>"",Spisak_sluzba!A70,"") -> 2017/0042 | C68: =IF(Spisak_sluzba!B70<>"",Spisak_sluzba!B70,"") -> Покимица Александар | D68: =IF(Spisak_sluzba!C70<>"",Spisak_sluzba!C70,"") ->  | E68: =IF(Spisak_sluzba!D70<>"",Spisak_sluzba!D70,"") ->  | F68: =IF(OR(Predrok_april!F68<>"",Predrok_maj!F68<>"",Januar!F68<>"",Februar!F68<>"",April!F68<>"",Juni!F68<>"",Juli!F68,Septembar!F68<>"",Oktobar!F68<>"",Oktobar_2!F68<>""),MAX(Predrok_april!F68,Predrok_maj!F68,Januar!F68,Februar!F68,April!F68,Juni!F68,Juli!F68,Septembar!F68,Oktobar!F68,Oktobar_2!F68),"") -> 32 | G68: =IF(OR(Predrok_april!G68<>"",Predrok_maj!G68<>"",Januar!G68<>"",Februar!G68<>"",April!G68<>"",Juni!G68<>"",Juli!G68,Septembar!G68<>"",Oktobar!G68<>"",Oktobar_2!G68<>""),MAX(Predrok_april!G68,Predrok_maj!G68,Januar!G68,Februar!G68,April!G68,Juni!G68,Juli!G68,Septembar!G68,Oktobar!G68,Oktobar_2!G68),"") -> 32 | H68: =IF(OR(Predrok_april!H68<>"",Predrok_maj!H68<>"",Januar!H68<>"",Februar!H68<>"",April!H68<>"",Juni!H68<>"",Juli!H68,Septembar!H68<>"",Oktobar!H68<>"",Oktobar_2!H68<>""),MAX(Predrok_april!H68,Predrok_maj!H68,Januar!H68,Februar!H68,April!H68,Juni!H68,Juli!H68,Septembar!H68,Oktobar!H68,Oktobar_2!H68),"") -> 31 | I68: =IF(OR(Predrok_april!I68<>"",Predrok_maj!I68<>"",Januar!I68<>"",Februar!I68<>"",April!I68<>"",Juni!I68<>"",Juli!I68,Septembar!I68<>"",Oktobar!I68<>"",Oktobar_2!I68<>""),MAX(Predrok_april!I68,Predrok_maj!I68,Januar!I68,Februar!I68,April!I68,Juni!I68,Juli!I68,Septembar!I68,Oktobar!I68,Oktobar_2!I68),"") -> 12 | K68: DA | L68: 5 | M68: 5 | N68: 14 | O68: 14 | P68: 14 | Q68: 22 | S68: 20 | T68: 94.0 | U68: 10 | V68: Јул | W68: =IF(X68<>"",VLOOKUP(V68,$BP$3:$BU$10,6,FALSE),"") -> 2018-07-10 | X68: 10 | Y68: 2018-06-03 | Z68: 42 | AA68: 2018-06-13 | AB68: 22 | AC68: 2018-07-10 | AD68: 20 | AE68: 94 | AF68: 10 | AG68: 2018-07-10 | AI68: =Januar!R68 ->  | AJ68: =Februar!R68 ->  | AK68: =April!R68 ->  | AL68: =Juni!R68 -> Јун | AM68: =Juli!R68 -> Јул | AN68: =Septembar!R68 ->  | AO68: =Oktobar!R68 ->  | AP68: =Oktobar_2!R68 ->  | AR68: =Januar!T68 ->  | AS68: =Februar!T68 ->  | AT68: =April!T68 ->  | AU68: =Juni!T68 -> Јун | AV68: =Juli!T68 -> Јул | AW68: =Septembar!T68 ->  | AX68: =Oktobar!T68 ->  | AY68: =Oktobar_2!T68 ->  | AZ68: =IF(B68<>"",B68,"") -> 2017/0042 | BA68: =IF(AU68<>"",1,"") -> 1
A69: 67 | B69: =IF(Spisak_sluzba!A71<>"",Spisak_sluzba!A71,"") -> 2017/0139 | C69: =IF(Spisak_sluzba!B71<>"",Spisak_sluzba!B71,"") -> Поповић Лара | D69: =IF(Spisak_sluzba!C71<>"",Spisak_sluzba!C71,"") ->  | E69: =IF(Spisak_sluzba!D71<>"",Spisak_sluzba!D71,"") ->  | F69: =IF(OR(Predrok_april!F69<>"",Predrok_maj!F69<>"",Januar!F69<>"",Februar!F69<>"",April!F69<>"",Juni!F69<>"",Juli!F69,Septembar!F69<>"",Oktobar!F69<>"",Oktobar_2!F69<>""),MAX(Predrok_april!F69,Predrok_maj!F69,Januar!F69,Februar!F69,April!F69,Juni!F69,Juli!F69,Septembar!F69,Oktobar!F69,Oktobar_2!F69),"") -> 27 | G69: =IF(OR(Predrok_april!G69<>"",Predrok_maj!G69<>"",Januar!G69<>"",Februar!G69<>"",April!G69<>"",Juni!G69<>"",Juli!G69,Septembar!G69<>"",Oktobar!G69<>"",Oktobar_2!G69<>""),MAX(Predrok_april!G69,Predrok_maj!G69,Januar!G69,Februar!G69,April!G69,Juni!G69,Juli!G69,Septembar!G69,Oktobar!G69,Oktobar_2!G69),"") -> 26 | H69: =IF(OR(Predrok_april!H69<>"",Predrok_maj!H69<>"",Januar!H69<>"",Februar!H69<>"",April!H69<>"",Juni!H69<>"",Juli!H69,Septembar!H69<>"",Oktobar!H69<>"",Oktobar_2!H69<>""),MAX(Predrok_april!H69,Predrok_maj!H69,Januar!H69,Februar!H69,April!H69,Juni!H69,Juli!H69,Septembar!H69,Oktobar!H69,Oktobar_2!H69),"") -> 32 | I69: =IF(OR(Predrok_april!I69<>"",Predrok_maj!I69<>"",Januar!I69<>"",Februar!I69<>"",April!I69<>"",Juni!I69<>"",Juli!I69,Septembar!I69<>"",Oktobar!I69<>"",Oktobar_2!I69<>""),MAX(Predrok_april!I69,Predrok_maj!I69,Januar!I69,Februar!I69,April!I69,Juni!I69,Juli!I69,Septembar!I69,Oktobar!I69,Oktobar_2!I69),"") -> 11 | K69: DA | L69: 5 | M69: 5 | N69: 12 | O69: 11 | P69: 14 | Q69: 21 | S69: 20 | T69: 88.0 | U69: 9 | V69: Јун | W69: 2018-06-13 | X69: 10 | Y69: 2018-06-03 | Z69: 37 | AA69: 2018-06-13 | AB69: 21 | AC69: 2018-06-13 | AD69: 20 | AE69: 88 | AF69: 9 | AG69: 2018-06-13 | AI69: =Januar!R69 ->  | AJ69: =Februar!R69 ->  | AK69: =April!R69 ->  | AL69: =Juni!R69 -> Јун | AM69: =Juli!R69 ->  | AN69: =Septembar!R69 ->  | AO69: =Oktobar!R69 ->  | AP69: =Oktobar_2!R69 ->  | AR69: =Januar!T69 ->  | AS69: =Februar!T69 ->  | AT69: =April!T69 ->  | AU69: =Juni!T69 -> Јун | AV69: =Juli!T69 ->  | AW69: =Septembar!T69 ->  | AX69: =Oktobar!T69 ->  | AY69: =Oktobar_2!T69 ->  | AZ69: 2017/0139 | BA69: 1
A70: 68 | B70: =IF(Spisak_sluzba!A72<>"",Spisak_sluzba!A72,"") -> 2017/0038 | C70: =IF(Spisak_sluzba!B72<>"",Spisak_sluzba!B72,"") -> Прибаковић Катарина | D70: =IF(Spisak_sluzba!C72<>"",Spisak_sluzba!C72,"") ->  | E70: =IF(Spisak_sluzba!D72<>"",Spisak_sluzba!D72,"") ->  | F70: =IF(OR(Predrok_april!F70<>"",Predrok_maj!F70<>"",Januar!F70<>"",Februar!F70<>"",April!F70<>"",Juni!F70<>"",Juli!F70,Septembar!F70<>"",Oktobar!F70<>"",Oktobar_2!F70<>""),MAX(Predrok_april!F70,Predrok_maj!F70,Januar!F70,Februar!F70,April!F70,Juni!F70,Juli!F70,Septembar!F70,Oktobar!F70,Oktobar_2!F70),"") -> 30 | G70: =IF(OR(Predrok_april!G70<>"",Predrok_maj!G70<>"",Januar!G70<>"",Februar!G70<>"",April!G70<>"",Juni!G70<>"",Juli!G70,Septembar!G70<>"",Oktobar!G70<>"",Oktobar_2!G70<>""),MAX(Predrok_april!G70,Predrok_maj!G70,Januar!G70,Februar!G70,April!G70,Juni!G70,Juli!G70,Septembar!G70,Oktobar!G70,Oktobar_2!G70),"") -> 32 | H70: =IF(OR(Predrok_april!H70<>"",Predrok_maj!H70<>"",Januar!H70<>"",Februar!H70<>"",April!H70<>"",Juni!H70<>"",Juli!H70,Septembar!H70<>"",Oktobar!H70<>"",Oktobar_2!H70<>""),MAX(Predrok_april!H70,Predrok_maj!H70,Januar!H70,Februar!H70,April!H70,Juni!H70,Juli!H70,Septembar!H70,Oktobar!H70,Oktobar_2!H70),"") -> 26 | I70: =IF(OR(Predrok_april!I70<>"",Predrok_maj!I70<>"",Januar!I70<>"",Februar!I70<>"",April!I70<>"",Juni!I70<>"",Juli!I70,Septembar!I70<>"",Oktobar!I70<>"",Oktobar_2!I70<>""),MAX(Predrok_april!I70,Predrok_maj!I70,Januar!I70,Februar!I70,April!I70,Juni!I70,Juli!I70,Septembar!I70,Oktobar!I70,Oktobar_2!I70),"") -> 12 | K70: DA | L70: 5 | M70: 5 | N70: 13 | O70: 14 | P70: 11 | Q70: 22 | S70: 20 | T70: 91.0 | U70: 10 | V70: Јун | W70: 2018-06-13 | X70: 10 | Y70: 2018-06-03 | Z70: 39 | AA70: 2018-06-13 | AB70: 22 | AC70: 2018-06-13 | AD70: 20 | AE70: 91 | AF70: 10 | AG70: 2018-06-13 | AI70: =Januar!R70 ->  | AJ70: =Februar!R70 ->  | AK70: =April!R70 ->  | AL70: =Juni!R70 -> Јун | AM70: =Juli!R70 ->  | AN70: =Septembar!R70 ->  | AO70: =Oktobar!R70 ->  | AP70: =Oktobar_2!R70 ->  | AR70: =Januar!T70 ->  | AS70: =Februar!T70 ->  | AT70: =April!T70 ->  | AU70: =Juni!T70 -> Јун | AV70: =Juli!T70 ->  | AW70: =Septembar!T70 ->  | AX70: =Oktobar!T70 ->  | AY70: =Oktobar_2!T70 ->  | AZ70: 2017/0038 | BA70: 1
A71: 69 | B71: =IF(Spisak_sluzba!A73<>"",Spisak_sluzba!A73,"") -> 2017/0104 | C71: =IF(Spisak_sluzba!B73<>"",Spisak_sluzba!B73,"") -> Пузовић Огњен | D71: =IF(Spisak_sluzba!C73<>"",Spisak_sluzba!C73,"") ->  | E71: =IF(Spisak_sluzba!D73<>"",Spisak_sluzba!D73,"") ->  | F71: =IF(OR(Predrok_april!F71<>"",Predrok_maj!F71<>"",Januar!F71<>"",Februar!F71<>"",April!F71<>"",Juni!F71<>"",Juli!F71,Septembar!F71<>"",Oktobar!F71<>"",Oktobar_2!F71<>""),MAX(Predrok_april!F71,Predrok_maj!F71,Januar!F71,Februar!F71,April!F71,Juni!F71,Juli!F71,Septembar!F71,Oktobar!F71,Oktobar_2!F71),"") ->  | G71: =IF(OR(Predrok_april!G71<>"",Predrok_maj!G71<>"",Januar!G71<>"",Februar!G71<>"",April!G71<>"",Juni!G71<>"",Juli!G71,Septembar!G71<>"",Oktobar!G71<>"",Oktobar_2!G71<>""),MAX(Predrok_april!G71,Predrok_maj!G71,Januar!G71,Februar!G71,April!G71,Juni!G71,Juli!G71,Septembar!G71,Oktobar!G71,Oktobar_2!G71),"") ->  | H71: =IF(OR(Predrok_april!H71<>"",Predrok_maj!H71<>"",Januar!H71<>"",Februar!H71<>"",April!H71<>"",Juni!H71<>"",Juli!H71,Septembar!H71<>"",Oktobar!H71<>"",Oktobar_2!H71<>""),MAX(Predrok_april!H71,Predrok_maj!H71,Januar!H71,Februar!H71,April!H71,Juni!H71,Juli!H71,Septembar!H71,Oktobar!H71,Oktobar_2!H71),"") ->  | I71: =IF(OR(Predrok_april!I71<>"",Predrok_maj!I71<>"",Januar!I71<>"",Februar!I71<>"",April!I71<>"",Juni!I71<>"",Juli!I71,Septembar!I71<>"",Oktobar!I71<>"",Oktobar_2!I71<>""),MAX(Predrok_april!I71,Predrok_maj!I71,Januar!I71,Februar!I71,April!I71,Juni!I71,Juli!I71,Septembar!I71,Oktobar!I71,Oktobar_2!I71),"") -> 10 | K71: NE | Q71: 19 | AI71: =Januar!R71 ->  | AJ71: =Februar!R71 ->  | AK71: =April!R71 ->  | AL71: =Juni!R71 ->  | AM71: =Juli!R71 ->  | AN71: =Septembar!R71 ->  | AO71: =Oktobar!R71 ->  | AP71: =Oktobar_2!R71 ->  | AR71: =Januar!T71 ->  | AS71: =Februar!T71 ->  | AT71: =April!T71 ->  | AU71: =Juni!T71 -> Јун | AV71: =Juli!T71 ->  | AW71: =Septembar!T71 -> Септембар | AX71: =Oktobar!T71 ->  | AY71: =Oktobar_2!T71 ->  | AZ71: 2017/0104 | BA71: 1
A72: 70 | B72: =IF(Spisak_sluzba!A74<>"",Spisak_sluzba!A74,"") -> 2017/0153 | C72: =IF(Spisak_sluzba!B74<>"",Spisak_sluzba!B74,"") -> Радуловић Лука | D72: =IF(Spisak_sluzba!C74<>"",Spisak_sluzba!C74,"") ->  | E72: =IF(Spisak_sluzba!D74<>"",Spisak_sluzba!D74,"") ->  | F72: =IF(OR(Predrok_april!F72<>"",Predrok_maj!F72<>"",Januar!F72<>"",Februar!F72<>"",April!F72<>"",Juni!F72<>"",Juli!F72,Septembar!F72<>"",Oktobar!F72<>"",Oktobar_2!F72<>""),MAX(Predrok_april!F72,Predrok_maj!F72,Januar!F72,Februar!F72,April!F72,Juni!F72,Juli!F72,Septembar!F72,Oktobar!F72,Oktobar_2!F72),"") ->  | G72: =IF(OR(Predrok_april!G72<>"",Predrok_maj!G72<>"",Januar!G72<>"",Februar!G72<>"",April!G72<>"",Juni!G72<>"",Juli!G72,Septembar!G72<>"",Oktobar!G72<>"",Oktobar_2!G72<>""),MAX(Predrok_april!G72,Predrok_maj!G72,Januar!G72,Februar!G72,April!G72,Juni!G72,Juli!G72,Septembar!G72,Oktobar!G72,Oktobar_2!G72),"") ->  | H72: =IF(OR(Predrok_april!H72<>"",Predrok_maj!H72<>"",Januar!H72<>"",Februar!H72<>"",April!H72<>"",Juni!H72<>"",Juli!H72,Septembar!H72<>"",Oktobar!H72<>"",Oktobar_2!H72<>""),MAX(Predrok_april!H72,Predrok_maj!H72,Januar!H72,Februar!H72,April!H72,Juni!H72,Juli!H72,Septembar!H72,Oktobar!H72,Oktobar_2!H72),"") ->  | I72: =IF(OR(Predrok_april!I72<>"",Predrok_maj!I72<>"",Januar!I72<>"",Februar!I72<>"",April!I72<>"",Juni!I72<>"",Juli!I72,Septembar!I72<>"",Oktobar!I72<>"",Oktobar_2!I72<>""),MAX(Predrok_april!I72,Predrok_maj!I72,Januar!I72,Februar!I72,April!I72,Juni!I72,Juli!I72,Septembar!I72,Oktobar!I72,Oktobar_2!I72),"") ->  | K72: NE | AI72: =Januar!R72 ->  | AJ72: =Februar!R72 ->  | AK72: =April!R72 ->  | AL72: =Juni!R72 ->  | AM72: =Juli!R72 ->  | AN72: =Septembar!R72 ->  | AO72: =Oktobar!R72 ->  | AP72: =Oktobar_2!R72 ->  | AR72: =Januar!T72 ->  | AS72: =Februar!T72 ->  | AT72: =April!T72 ->  | AU72: =Juni!T72 -> Јун | AV72: =Juli!T72 ->  | AW72: =Septembar!T72 ->  | AX72: =Oktobar!T72 ->  | AY72: =Oktobar_2!T72 ->  | AZ72: 2017/0153 | BA72: 1
A73: 71 | B73: =IF(Spisak_sluzba!A75<>"",Spisak_sluzba!A75,"") -> 2017/0005 | C73: =IF(Spisak_sluzba!B75<>"",Spisak_sluzba!B75,"") -> Рајковић Јован | D73: =IF(Spisak_sluzba!C75<>"",Spisak_sluzba!C75,"") ->  | E73: =IF(Spisak_sluzba!D75<>"",Spisak_sluzba!D75,"") ->  | F73: =IF(OR(Predrok_april!F73<>"",Predrok_maj!F73<>"",Januar!F73<>"",Februar!F73<>"",April!F73<>"",Juni!F73<>"",Juli!F73,Septembar!F73<>"",Oktobar!F73<>"",Oktobar_2!F73<>""),MAX(Predrok_april!F73,Predrok_maj!F73,Januar!F73,Februar!F73,April!F73,Juni!F73,Juli!F73,Septembar!F73,Oktobar!F73,Oktobar_2!F73),"") -> 30 | G73: =IF(OR(Predrok_april!G73<>"",Predrok_maj!G73<>"",Januar!G73<>"",Februar!G73<>"",April!G73<>"",Juni!G73<>"",Juli!G73,Septembar!G73<>"",Oktobar!G73<>"",Oktobar_2!G73<>""),MAX(Predrok_april!G73,Predrok_maj!G73,Januar!G73,Februar!G73,April!G73,Juni!G73,Juli!G73,Septembar!G73,Oktobar!G73,Oktobar_2!G73),"") -> 28 | H73: =IF(OR(Predrok_april!H73<>"",Predrok_maj!H73<>"",Januar!H73<>"",Februar!H73<>"",April!H73<>"",Juni!H73<>"",Juli!H73,Septembar!H73<>"",Oktobar!H73<>"",Oktobar_2!H73<>""),MAX(Predrok_april!H73,Predrok_maj!H73,Januar!H73,Februar!H73,April!H73,Juni!H73,Juli!H73,Septembar!H73,Oktobar!H73,Oktobar_2!H73),"") -> 28 | I73: =IF(OR(Predrok_april!I73<>"",Predrok_maj!I73<>"",Januar!I73<>"",Februar!I73<>"",April!I73<>"",Juni!I73<>"",Juli!I73,Septembar!I73<>"",Oktobar!I73<>"",Oktobar_2!I73<>""),MAX(Predrok_april!I73,Predrok_maj!I73,Januar!I73,Februar!I73,April!I73,Juni!I73,Juli!I73,Septembar!I73,Oktobar!I73,Oktobar_2!I73),"") -> 13 | K73: DA | L73: 5 | M73: 5 | N73: 13 | O73: 12 | P73: 12 | Q73: 24 | S73: 20 | T73: 92.0 | U73: 10 | V73: Јун | W73: 2018-06-13 | X73: 10 | Y73: 2018-06-03 | Z73: 38 | AA73: 2018-06-13 | AB73: 24 | AC73: 2018-06-13 | AD73: 20 | AE73: 92 | AF73: 10 | AG73: 2018-06-13 | AI73: =Januar!R73 ->  | AJ73: =Februar!R73 ->  | AK73: =April!R73 ->  | AL73: =Juni!R73 -> Јун | AM73: =Juli!R73 ->  | AN73: =Septembar!R73 ->  | AO73: =Oktobar!R73 ->  | AP73: =Oktobar_2!R73 ->  | AR73: =Januar!T73 ->  | AS73: =Februar!T73 ->  | AT73: =April!T73 ->  | AU73: =Juni!T73 -> Јун | AV73: =Juli!T73 ->  | AW73: =Septembar!T73 ->  | AX73: =Oktobar!T73 ->  | AY73: =Oktobar_2!T73 ->  | AZ73: 2017/0005 | BA73: 1
A74: 72 | B74: =IF(Spisak_sluzba!A76<>"",Spisak_sluzba!A76,"") -> 2017/0114 | C74: =IF(Spisak_sluzba!B76<>"",Spisak_sluzba!B76,"") -> Ристић Владимир | D74: =IF(Spisak_sluzba!C76<>"",Spisak_sluzba!C76,"") ->  | E74: =IF(Spisak_sluzba!D76<>"",Spisak_sluzba!D76,"") ->  | F74: =IF(OR(Predrok_april!F74<>"",Predrok_maj!F74<>"",Januar!F74<>"",Februar!F74<>"",April!F74<>"",Juni!F74<>"",Juli!F74,Septembar!F74<>"",Oktobar!F74<>"",Oktobar_2!F74<>""),MAX(Predrok_april!F74,Predrok_maj!F74,Januar!F74,Februar!F74,April!F74,Juni!F74,Juli!F74,Septembar!F74,Oktobar!F74,Oktobar_2!F74),"") -> 30 | G74: =IF(OR(Predrok_april!G74<>"",Predrok_maj!G74<>"",Januar!G74<>"",Februar!G74<>"",April!G74<>"",Juni!G74<>"",Juli!G74,Septembar!G74<>"",Oktobar!G74<>"",Oktobar_2!G74<>""),MAX(Predrok_april!G74,Predrok_maj!G74,Januar!G74,Februar!G74,April!G74,Juni!G74,Juli!G74,Septembar!G74,Oktobar!G74,Oktobar_2!G74),"") -> 31 | H74: =IF(OR(Predrok_april!H74<>"",Predrok_maj!H74<>"",Januar!H74<>"",Februar!H74<>"",April!H74<>"",Juni!H74<>"",Juli!H74,Septembar!H74<>"",Oktobar!H74<>"",Oktobar_2!H74<>""),MAX(Predrok_april!H74,Predrok_maj!H74,Januar!H74,Februar!H74,April!H74,Juni!H74,Juli!H74,Septembar!H74,Oktobar!H74,Oktobar_2!H74),"") -> 29 | I74: =IF(OR(Predrok_april!I74<>"",Predrok_maj!I74<>"",Januar!I74<>"",Februar!I74<>"",April!I74<>"",Juni!I74<>"",Juli!I74,Septembar!I74<>"",Oktobar!I74<>"",Oktobar_2!I74<>""),MAX(Predrok_april!I74,Predrok_maj!I74,Januar!I74,Februar!I74,April!I74,Juni!I74,Juli!I74,Septembar!I74,Oktobar!I74,Oktobar_2!I74),"") -> 13 | K74: DA | L74: 5 | M74: 5 | N74: 13 | O74: 14 | P74: 13 | Q74: 24 | S74: 20 | T74: 94.0 | U74: 10 | V74: Јун | W74: 2018-06-13 | X74: 10 | Y74: 2018-06-03 | Z74: 39 | AA74: 2018-06-13 | AB74: 24 | AC74: 2018-06-13 | AD74: 20 | AE74: 94 | AF74: 10 | AG74: 2018-06-13 | AI74: =Januar!R74 ->  | AJ74: =Februar!R74 ->  | AK74: =April!R74 ->  | AL74: =Juni!R74 -> Јун | AM74: =Juli!R74 ->  | AN74: =Septembar!R74 ->  | AO74: =Oktobar!R74 ->  | AP74: =Oktobar_2!R74 ->  | AR74: =Januar!T74 ->  | AS74: =Februar!T74 ->  | AT74: =April!T74 ->  | AU74: =Juni!T74 -> Јун | AV74: =Juli!T74 ->  | AW74: =Septembar!T74 ->  | AX74: =Oktobar!T74 ->  | AY74: =Oktobar_2!T74 ->  | AZ74: 2017/0114 | BA74: 1
A75: 73 | B75: =IF(Spisak_sluzba!A77<>"",Spisak_sluzba!A77,"") -> 2017/0048 | C75: =IF(Spisak_sluzba!B77<>"",Spisak_sluzba!B77,"") -> Ристић Растко | D75: =IF(Spisak_sluzba!C77<>"",Spisak_sluzba!C77,"") ->  | E75: =IF(Spisak_sluzba!D77<>"",Spisak_sluzba!D77,"") ->  | F75: =IF(OR(Predrok_april!F75<>"",Predrok_maj!F75<>"",Januar!F75<>"",Februar!F75<>"",April!F75<>"",Juni!F75<>"",Juli!F75,Septembar!F75<>"",Oktobar!F75<>"",Oktobar_2!F75<>""),MAX(Predrok_april!F75,Predrok_maj!F75,Januar!F75,Februar!F75,April!F75,Juni!F75,Juli!F75,Septembar!F75,Oktobar!F75,Oktobar_2!F75),"") -> 30 | G75: =IF(OR(Predrok_april!G75<>"",Predrok_maj!G75<>"",Januar!G75<>"",Februar!G75<>"",April!G75<>"",Juni!G75<>"",Juli!G75,Septembar!G75<>"",Oktobar!G75<>"",Oktobar_2!G75<>""),MAX(Predrok_april!G75,Predrok_maj!G75,Januar!G75,Februar!G75,April!G75,Juni!G75,Juli!G75,Septembar!G75,Oktobar!G75,Oktobar_2!G75),"") -> 31 | H75: =IF(OR(Predrok_april!H75<>"",Predrok_maj!H75<>"",Januar!H75<>"",Februar!H75<>"",April!H75<>"",Juni!H75<>"",Juli!H75,Septembar!H75<>"",Oktobar!H75<>"",Oktobar_2!H75<>""),MAX(Predrok_april!H75,Predrok_maj!H75,Januar!H75,Februar!H75,April!H75,Juni!H75,Juli!H75,Septembar!H75,Oktobar!H75,Oktobar_2!H75),"") -> 32 | I75: =IF(OR(Predrok_april!I75<>"",Predrok_maj!I75<>"",Januar!I75<>"",Februar!I75<>"",April!I75<>"",Juni!I75<>"",Juli!I75,Septembar!I75<>"",Oktobar!I75<>"",Oktobar_2!I75<>""),MAX(Predrok_april!I75,Predrok_maj!I75,Januar!I75,Februar!I75,April!I75,Juni!I75,Juli!I75,Septembar!I75,Oktobar!I75,Oktobar_2!I75),"") -> 14 | K75: DA | L75: 5 | M75: 5 | N75: 13 | O75: 14 | P75: 14 | Q75: 26 | S75: 20 | T75: 97.0 | U75: 10 | V75: Јун | W75: 2018-06-13 | X75: 10 | Y75: 2018-06-03 | Z75: 41 | AA75: 2018-06-13 | AB75: 26 | AC75: 2018-06-13 | AD75: 20 | AE75: 97 | AF75: 10 | AG75: 2018-06-13 | AI75: =Januar!R75 ->  | AJ75: =Februar!R75 ->  | AK75: =April!R75 ->  | AL75: =Juni!R75 -> Јун | AM75: =Juli!R75 ->  | AN75: =Septembar!R75 ->  | AO75: =Oktobar!R75 ->  | AP75: =Oktobar_2!R75 ->  | AR75: =Januar!T75 ->  | AS75: =Februar!T75 ->  | AT75: =April!T75 ->  | AU75: =Juni!T75 -> Јун | AV75: =Juli!T75 ->  | AW75: =Septembar!T75 ->  | AX75: =Oktobar!T75 ->  | AY75: =Oktobar_2!T75 ->  | AZ75: 2017/0048 | BA75: 1
A76: 74 | B76: =IF(Spisak_sluzba!A78<>"",Spisak_sluzba!A78,"") -> 2017/0018 | C76: =IF(Spisak_sluzba!B78<>"",Spisak_sluzba!B78,"") -> Ружић Ђорђе | D76: =IF(Spisak_sluzba!C78<>"",Spisak_sluzba!C78,"") ->  | E76: =IF(Spisak_sluzba!D78<>"",Spisak_sluzba!D78,"") ->  | F76: =IF(OR(Predrok_april!F76<>"",Predrok_maj!F76<>"",Januar!F76<>"",Februar!F76<>"",April!F76<>"",Juni!F76<>"",Juli!F76,Septembar!F76<>"",Oktobar!F76<>"",Oktobar_2!F76<>""),MAX(Predrok_april!F76,Predrok_maj!F76,Januar!F76,Februar!F76,April!F76,Juni!F76,Juli!F76,Septembar!F76,Oktobar!F76,Oktobar_2!F76),"") -> 26 | G76: =IF(OR(Predrok_april!G76<>"",Predrok_maj!G76<>"",Januar!G76<>"",Februar!G76<>"",April!G76<>"",Juni!G76<>"",Juli!G76,Septembar!G76<>"",Oktobar!G76<>"",Oktobar_2!G76<>""),MAX(Predrok_april!G76,Predrok_maj!G76,Januar!G76,Februar!G76,April!G76,Juni!G76,Juli!G76,Septembar!G76,Oktobar!G76,Oktobar_2!G76),"") -> 24 | H76: =IF(OR(Predrok_april!H76<>"",Predrok_maj!H76<>"",Januar!H76<>"",Februar!H76<>"",April!H76<>"",Juni!H76<>"",Juli!H76,Septembar!H76<>"",Oktobar!H76<>"",Oktobar_2!H76<>""),MAX(Predrok_april!H76,Predrok_maj!H76,Januar!H76,Februar!H76,April!H76,Juni!H76,Juli!H76,Septembar!H76,Oktobar!H76,Oktobar_2!H76),"") -> 29 | I76: =IF(OR(Predrok_april!I76<>"",Predrok_maj!I76<>"",Januar!I76<>"",Februar!I76<>"",April!I76<>"",Juni!I76<>"",Juli!I76,Septembar!I76<>"",Oktobar!I76<>"",Oktobar_2!I76<>""),MAX(Predrok_april!I76,Predrok_maj!I76,Januar!I76,Februar!I76,April!I76,Juni!I76,Juli!I76,Septembar!I76,Oktobar!I76,Oktobar_2!I76),"") -> 15 | K76: DA | L76: 5 | M76: 5 | N76: 11 | O76: 11 | P76: 13 | Q76: 28 | S76: 20 | T76: 93.0 | U76: 10 | V76: Јун | W76: 2018-06-13 | X76: 10 | Y76: 2018-06-03 | Z76: 35 | AA76: 2018-06-13 | AB76: 28 | AC76: 2018-06-13 | AD76: 20 | AE76: 93 | AF76: 10 | AG76: 2018-06-13 | AI76: =Januar!R76 ->  | AJ76: =Februar!R76 ->  | AK76: =April!R76 ->  | AL76: =Juni!R76 -> Јун | AM76: =Juli!R76 ->  | AN76: =Septembar!R76 ->  | AO76: =Oktobar!R76 ->  | AP76: =Oktobar_2!R76 ->  | AR76: =Januar!T76 ->  | AS76: =Februar!T76 ->  | AT76: =April!T76 ->  | AU76: =Juni!T76 -> Јун | AV76: =Juli!T76 ->  | AW76: =Septembar!T76 ->  | AX76: =Oktobar!T76 ->  | AY76: =Oktobar_2!T76 ->  | AZ76: 2017/0018 | BA76: 1
A77: 75 | B77: =IF(Spisak_sluzba!A79<>"",Spisak_sluzba!A79,"") -> 2017/0110 | C77: =IF(Spisak_sluzba!B79<>"",Spisak_sluzba!B79,"") -> Сантибанез Божић Андрија | D77: =IF(Spisak_sluzba!C79<>"",Spisak_sluzba!C79,"") ->  | E77: =IF(Spisak_sluzba!D79<>"",Spisak_sluzba!D79,"") ->  | F77: =IF(OR(Predrok_april!F77<>"",Predrok_maj!F77<>"",Januar!F77<>"",Februar!F77<>"",April!F77<>"",Juni!F77<>"",Juli!F77,Septembar!F77<>"",Oktobar!F77<>"",Oktobar_2!F77<>""),MAX(Predrok_april!F77,Predrok_maj!F77,Januar!F77,Februar!F77,April!F77,Juni!F77,Juli!F77,Septembar!F77,Oktobar!F77,Oktobar_2!F77),"") -> 29 | G77: =IF(OR(Predrok_april!G77<>"",Predrok_maj!G77<>"",Januar!G77<>"",Februar!G77<>"",April!G77<>"",Juni!G77<>"",Juli!G77,Septembar!G77<>"",Oktobar!G77<>"",Oktobar_2!G77<>""),MAX(Predrok_april!G77,Predrok_maj!G77,Januar!G77,Februar!G77,April!G77,Juni!G77,Juli!G77,Septembar!G77,Oktobar!G77,Oktobar_2!G77),"") -> 32 | H77: =IF(OR(Predrok_april!H77<>"",Predrok_maj!H77<>"",Januar!H77<>"",Februar!H77<>"",April!H77<>"",Juni!H77<>"",Juli!H77,Septembar!H77<>"",Oktobar!H77<>"",Oktobar_2!H77<>""),MAX(Predrok_april!H77,Predrok_maj!H77,Januar!H77,Februar!H77,April!H77,Juni!H77,Juli!H77,Septembar!H77,Oktobar!H77,Oktobar_2!H77),"") -> 27 | I77: =IF(OR(Predrok_april!I77<>"",Predrok_maj!I77<>"",Januar!I77<>"",Februar!I77<>"",April!I77<>"",Juni!I77<>"",Juli!I77,Septembar!I77<>"",Oktobar!I77<>"",Oktobar_2!I77<>""),MAX(Predrok_april!I77,Predrok_maj!I77,Januar!I77,Februar!I77,April!I77,Juni!I77,Juli!I77,Septembar!I77,Oktobar!I77,Oktobar_2!I77),"") -> 15 | K77: DA | L77: 5 | M77: 5 | N77: 13 | O77: 14 | P77: 12 | Q77: 28 | S77: 20 | T77: 97.0 | U77: 10 | V77: Јун | W77: 2018-06-13 | X77: 10 | Y77: 2018-06-03 | Z77: 39 | AA77: 2018-06-13 | AB77: 28 | AC77: 2018-06-13 | AD77: 20 | AE77: 97 | AF77: 10 | AG77: 2018-06-13 | AI77: =Januar!R77 ->  | AJ77: =Februar!R77 ->  | AK77: =April!R77 ->  | AL77: =Juni!R77 -> Јун | AM77: =Juli!R77 ->  | AN77: =Septembar!R77 ->  | AO77: =Oktobar!R77 ->  | AP77: =Oktobar_2!R77 ->  | AR77: =Januar!T77 ->  | AS77: =Februar!T77 ->  | AT77: =April!T77 ->  | AU77: =Juni!T77 -> Јун | AV77: =Juli!T77 ->  | AW77: =Septembar!T77 ->  | AX77: =Oktobar!T77 ->  | AY77: =Oktobar_2!T77 ->  | AZ77: 2017/0110 | BA77: 1
A78: 76 | B78: =IF(Spisak_sluzba!A80<>"",Spisak_sluzba!A80,"") -> 2017/0053 | C78: =IF(Spisak_sluzba!B80<>"",Spisak_sluzba!B80,"") -> Симић Тамара | D78: =IF(Spisak_sluzba!C80<>"",Spisak_sluzba!C80,"") ->  | E78: =IF(Spisak_sluzba!D80<>"",Spisak_sluzba!D80,"") ->  | F78: =IF(OR(Predrok_april!F78<>"",Predrok_maj!F78<>"",Januar!F78<>"",Februar!F78<>"",April!F78<>"",Juni!F78<>"",Juli!F78,Septembar!F78<>"",Oktobar!F78<>"",Oktobar_2!F78<>""),MAX(Predrok_april!F78,Predrok_maj!F78,Januar!F78,Februar!F78,April!F78,Juni!F78,Juli!F78,Septembar!F78,Oktobar!F78,Oktobar_2!F78),"") -> 32 | G78: =IF(OR(Predrok_april!G78<>"",Predrok_maj!G78<>"",Januar!G78<>"",Februar!G78<>"",April!G78<>"",Juni!G78<>"",Juli!G78,Septembar!G78<>"",Oktobar!G78<>"",Oktobar_2!G78<>""),MAX(Predrok_april!G78,Predrok_maj!G78,Januar!G78,Februar!G78,April!G78,Juni!G78,Juli!G78,Septembar!G78,Oktobar!G78,Oktobar_2!G78),"") -> 32 | H78: =IF(OR(Predrok_april!H78<>"",Predrok_maj!H78<>"",Januar!H78<>"",Februar!H78<>"",April!H78<>"",Juni!H78<>"",Juli!H78,Septembar!H78<>"",Oktobar!H78<>"",Oktobar_2!H78<>""),MAX(Predrok_april!H78,Predrok_maj!H78,Januar!H78,Februar!H78,April!H78,Juni!H78,Juli!H78,Septembar!H78,Oktobar!H78,Oktobar_2!H78),"") -> 32 | I78: =IF(OR(Predrok_april!I78<>"",Predrok_maj!I78<>"",Januar!I78<>"",Februar!I78<>"",April!I78<>"",Juni!I78<>"",Juli!I78,Septembar!I78<>"",Oktobar!I78<>"",Oktobar_2!I78<>""),MAX(Predrok_april!I78,Predrok_maj!I78,Januar!I78,Februar!I78,April!I78,Juni!I78,Juli!I78,Septembar!I78,Oktobar!I78,Oktobar_2!I78),"") -> 13 | K78: DA | L78: 5 | M78: 5 | N78: 14 | O78: 14 | P78: 14 | Q78: 24 | S78: 20 | T78: 97.0 | U78: 10 | V78: Јун | W78: 2018-06-13 | X78: 10 | Y78: 2018-06-03 | Z78: 42 | AA78: 2018-06-13 | AB78: 24 | AC78: 2018-06-13 | AD78: 20 | AE78: 96 | AF78: 10 | AG78: 2018-06-13 | AI78: =Januar!R78 ->  | AJ78: =Februar!R78 ->  | AK78: =April!R78 ->  | AL78: =Juni!R78 -> Јун | AM78: =Juli!R78 ->  | AN78: =Septembar!R78 ->  | AO78: =Oktobar!R78 ->  | AP78: =Oktobar_2!R78 ->  | AR78: =Januar!T78 ->  | AS78: =Februar!T78 ->  | AT78: =April!T78 ->  | AU78: =Juni!T78 -> Јун | AV78: =Juli!T78 ->  | AW78: =Septembar!T78 ->  | AX78: =Oktobar!T78 ->  | AY78: =Oktobar_2!T78 ->  | AZ78: 2017/0053 | BA78: 1
A79: 77 | B79: =IF(Spisak_sluzba!A81<>"",Spisak_sluzba!A81,"") -> 2017/0082 | C79: =IF(Spisak_sluzba!B81<>"",Spisak_sluzba!B81,"") -> Симоновић Драгомир | D79: =IF(Spisak_sluzba!C81<>"",Spisak_sluzba!C81,"") ->  | E79: =IF(Spisak_sluzba!D81<>"",Spisak_sluzba!D81,"") ->  | F79: =IF(OR(Predrok_april!F79<>"",Predrok_maj!F79<>"",Januar!F79<>"",Februar!F79<>"",April!F79<>"",Juni!F79<>"",Juli!F79,Septembar!F79<>"",Oktobar!F79<>"",Oktobar_2!F79<>""),MAX(Predrok_april!F79,Predrok_maj!F79,Januar!F79,Februar!F79,April!F79,Juni!F79,Juli!F79,Septembar!F79,Oktobar!F79,Oktobar_2!F79),"") -> 24 | G79: =IF(OR(Predrok_april!G79<>"",Predrok_maj!G79<>"",Januar!G79<>"",Februar!G79<>"",April!G79<>"",Juni!G79<>"",Juli!G79,Septembar!G79<>"",Oktobar!G79<>"",Oktobar_2!G79<>""),MAX(Predrok_april!G79,Predrok_maj!G79,Januar!G79,Februar!G79,April!G79,Juni!G79,Juli!G79,Septembar!G79,Oktobar!G79,Oktobar_2!G79),"") ->  | H79: =IF(OR(Predrok_april!H79<>"",Predrok_maj!H79<>"",Januar!H79<>"",Februar!H79<>"",April!H79<>"",Juni!H79<>"",Juli!H79,Septembar!H79<>"",Oktobar!H79<>"",Oktobar_2!H79<>""),MAX(Predrok_april!H79,Predrok_maj!H79,Januar!H79,Februar!H79,April!H79,Juni!H79,Juli!H79,Septembar!H79,Oktobar!H79,Oktobar_2!H79),"") -> 27 | I79: =IF(OR(Predrok_april!I79<>"",Predrok_maj!I79<>"",Januar!I79<>"",Februar!I79<>"",April!I79<>"",Juni!I79<>"",Juli!I79,Septembar!I79<>"",Oktobar!I79<>"",Oktobar_2!I79<>""),MAX(Predrok_april!I79,Predrok_maj!I79,Januar!I79,Februar!I79,April!I79,Juni!I79,Juli!I79,Septembar!I79,Oktobar!I79,Oktobar_2!I79),"") -> 9 | K79: NE | N79: 11 | P79: 12 | Q79: 17 | AI79: =Januar!R79 ->  | AJ79: =Februar!R79 ->  | AK79: =April!R79 ->  | AL79: =Juni!R79 ->  | AM79: =Juli!R79 ->  | AN79: =Septembar!R79 ->  | AO79: =Oktobar!R79 ->  | AP79: =Oktobar_2!R79 ->  | AR79: =Januar!T79 ->  | AS79: =Februar!T79 ->  | AT79: =April!T79 ->  | AU79: =Juni!T79 -> Јун | AV79: =Juli!T79 ->  | AW79: =Septembar!T79 ->  | AX79: =Oktobar!T79 ->  | AY79: =Oktobar_2!T79 ->  | AZ79: 2017/0082 | BA79: 1
A80: 78 | B80: =IF(Spisak_sluzba!A82<>"",Spisak_sluzba!A82,"") -> 2017/0116 | C80: =IF(Spisak_sluzba!B82<>"",Spisak_sluzba!B82,"") -> Средојевић Немања | D80: =IF(Spisak_sluzba!C82<>"",Spisak_sluzba!C82,"") ->  | E80: =IF(Spisak_sluzba!D82<>"",Spisak_sluzba!D82,"") ->  | F80: =IF(OR(Predrok_april!F80<>"",Predrok_maj!F80<>"",Januar!F80<>"",Februar!F80<>"",April!F80<>"",Juni!F80<>"",Juli!F80,Septembar!F80<>"",Oktobar!F80<>"",Oktobar_2!F80<>""),MAX(Predrok_april!F80,Predrok_maj!F80,Januar!F80,Februar!F80,April!F80,Juni!F80,Juli!F80,Septembar!F80,Oktobar!F80,Oktobar_2!F80),"") -> 24 | G80: =IF(OR(Predrok_april!G80<>"",Predrok_maj!G80<>"",Januar!G80<>"",Februar!G80<>"",April!G80<>"",Juni!G80<>"",Juli!G80,Septembar!G80<>"",Oktobar!G80<>"",Oktobar_2!G80<>""),MAX(Predrok_april!G80,Predrok_maj!G80,Januar!G80,Februar!G80,April!G80,Juni!G80,Juli!G80,Septembar!G80,Oktobar!G80,Oktobar_2!G80),"") -> 25 | H80: =IF(OR(Predrok_april!H80<>"",Predrok_maj!H80<>"",Januar!H80<>"",Februar!H80<>"",April!H80<>"",Juni!H80<>"",Juli!H80,Septembar!H80<>"",Oktobar!H80<>"",Oktobar_2!H80<>""),MAX(Predrok_april!H80,Predrok_maj!H80,Januar!H80,Februar!H80,April!H80,Juni!H80,Juli!H80,Septembar!H80,Oktobar!H80,Oktobar_2!H80),"") -> 28 | I80: =IF(OR(Predrok_april!I80<>"",Predrok_maj!I80<>"",Januar!I80<>"",Februar!I80<>"",April!I80<>"",Juni!I80<>"",Juli!I80,Septembar!I80<>"",Oktobar!I80<>"",Oktobar_2!I80<>""),MAX(Predrok_april!I80,Predrok_maj!I80,Januar!I80,Februar!I80,April!I80,Juni!I80,Juli!I80,Septembar!I80,Oktobar!I80,Oktobar_2!I80),"") -> 9 | K80: DA | L80: 5 | M80: 5 | N80: 11 | O80: 11 | P80: 12 | Q80: 17 | S80: 15 | T80: 76.0 | U80: 8 | V80: Септембар | W80: 2018-09-01 | X80: 10 | Y80: 2018-06-03 | Z80: 34 | AA80: 2018-06-13 | AB80: 17 | AC80: 2018-09-01 | AD80: 15 | AE80: 75 | AF80: 8 | AG80: 2018-09-01 | AI80: =Januar!R80 ->  | AJ80: =Februar!R80 ->  | AK80: =April!R80 ->  | AL80: =Juni!R80 -> Јун | AM80: =Juli!R80 -> Јул | AN80: =Septembar!R80 -> Септембар | AO80: =Oktobar!R80 ->  | AP80: =Oktobar_2!R80 ->  | AR80: =Januar!T80 ->  | AS80: =Februar!T80 ->  | AT80: =April!T80 ->  | AU80: =Juni!T80 -> Јун | AV80: =Juli!T80 -> Јул | AW80: =Septembar!T80 -> Септембар | AX80: =Oktobar!T80 ->  | AY80: =Oktobar_2!T80 ->  | AZ80: 2017/0116 | BA80: 1
A81: 79 | B81: =IF(Spisak_sluzba!A83<>"",Spisak_sluzba!A83,"") -> 2017/0129 | C81: =IF(Spisak_sluzba!B83<>"",Spisak_sluzba!B83,"") -> Сретеновић Давид | D81: =IF(Spisak_sluzba!C83<>"",Spisak_sluzba!C83,"") ->  | E81: =IF(Spisak_sluzba!D83<>"",Spisak_sluzba!D83,"") ->  | F81: =IF(OR(Predrok_april!F81<>"",Predrok_maj!F81<>"",Januar!F81<>"",Februar!F81<>"",April!F81<>"",Juni!F81<>"",Juli!F81,Septembar!F81<>"",Oktobar!F81<>"",Oktobar_2!F81<>""),MAX(Predrok_april!F81,Predrok_maj!F81,Januar!F81,Februar!F81,April!F81,Juni!F81,Juli!F81,Septembar!F81,Oktobar!F81,Oktobar_2!F81),"") -> 29 | G81: =IF(OR(Predrok_april!G81<>"",Predrok_maj!G81<>"",Januar!G81<>"",Februar!G81<>"",April!G81<>"",Juni!G81<>"",Juli!G81,Septembar!G81<>"",Oktobar!G81<>"",Oktobar_2!G81<>""),MAX(Predrok_april!G81,Predrok_maj!G81,Januar!G81,Februar!G81,April!G81,Juni!G81,Juli!G81,Septembar!G81,Oktobar!G81,Oktobar_2!G81),"") -> 28 | H81: =IF(OR(Predrok_april!H81<>"",Predrok_maj!H81<>"",Januar!H81<>"",Februar!H81<>"",April!H81<>"",Juni!H81<>"",Juli!H81,Septembar!H81<>"",Oktobar!H81<>"",Oktobar_2!H81<>""),MAX(Predrok_april!H81,Predrok_maj!H81,Januar!H81,Februar!H81,April!H81,Juni!H81,Juli!H81,Septembar!H81,Oktobar!H81,Oktobar_2!H81),"") -> 31 | I81: =IF(OR(Predrok_april!I81<>"",Predrok_maj!I81<>"",Januar!I81<>"",Februar!I81<>"",April!I81<>"",Juni!I81<>"",Juli!I81,Septembar!I81<>"",Oktobar!I81<>"",Oktobar_2!I81<>""),MAX(Predrok_april!I81,Predrok_maj!I81,Januar!I81,Februar!I81,April!I81,Juni!I81,Juli!I81,Septembar!I81,Oktobar!I81,Oktobar_2!I81),"") -> 10 | K81: DA | L81: 5 | M81: 5 | N81: 13 | O81: 12 | P81: 14 | Q81: 19 | S81: 20 | T81: 88.0 | U81: 9 | V81: Јун | W81: 2018-06-13 | X81: 10 | Y81: 2018-06-03 | Z81: 39 | AA81: 2018-06-13 | AB81: 19 | AC81: 2018-06-13 | AD81: 20 | AE81: 87 | AF81: 9 | AG81: 2018-06-13 | AI81: =Januar!R81 ->  | AJ81: =Februar!R81 ->  | AK81: =April!R81 ->  | AL81: =Juni!R81 -> Јун | AM81: =Juli!R81 ->  | AN81: =Septembar!R81 ->  | AO81: =Oktobar!R81 ->  | AP81: =Oktobar_2!R81 ->  | AR81: =Januar!T81 ->  | AS81: =Februar!T81 ->  | AT81: =April!T81 ->  | AU81: =Juni!T81 -> Јун | AV81: =Juli!T81 ->  | AW81: =Septembar!T81 ->  | AX81: =Oktobar!T81 ->  | AY81: =Oktobar_2!T81 ->  | AZ81: 2017/0129 | BA81: 1
A82: 80 | B82: =IF(Spisak_sluzba!A84<>"",Spisak_sluzba!A84,"") -> 2017/0078 | C82: =IF(Spisak_sluzba!B84<>"",Spisak_sluzba!B84,"") -> Станишић Огњен | D82: =IF(Spisak_sluzba!C84<>"",Spisak_sluzba!C84,"") ->  | E82: =IF(Spisak_sluzba!D84<>"",Spisak_sluzba!D84,"") ->  | F82: =IF(OR(Predrok_april!F82<>"",Predrok_maj!F82<>"",Januar!F82<>"",Februar!F82<>"",April!F82<>"",Juni!F82<>"",Juli!F82,Septembar!F82<>"",Oktobar!F82<>"",Oktobar_2!F82<>""),MAX(Predrok_april!F82,Predrok_maj!F82,Januar!F82,Februar!F82,April!F82,Juni!F82,Juli!F82,Septembar!F82,Oktobar!F82,Oktobar_2!F82),"") -> 25 | G82: =IF(OR(Predrok_april!G82<>"",Predrok_maj!G82<>"",Januar!G82<>"",Februar!G82<>"",April!G82<>"",Juni!G82<>"",Juli!G82,Septembar!G82<>"",Oktobar!G82<>"",Oktobar_2!G82<>""),MAX(Predrok_april!G82,Predrok_maj!G82,Januar!G82,Februar!G82,April!G82,Juni!G82,Juli!G82,Septembar!G82,Oktobar!G82,Oktobar_2!G82),"") -> 30 | H82: =IF(OR(Predrok_april!H82<>"",Predrok_maj!H82<>"",Januar!H82<>"",Februar!H82<>"",April!H82<>"",Juni!H82<>"",Juli!H82,Septembar!H82<>"",Oktobar!H82<>"",Oktobar_2!H82<>""),MAX(Predrok_april!H82,Predrok_maj!H82,Januar!H82,Februar!H82,April!H82,Juni!H82,Juli!H82,Septembar!H82,Oktobar!H82,Oktobar_2!H82),"") -> 27 | I82: =IF(OR(Predrok_april!I82<>"",Predrok_maj!I82<>"",Januar!I82<>"",Februar!I82<>"",April!I82<>"",Juni!I82<>"",Juli!I82,Septembar!I82<>"",Oktobar!I82<>"",Oktobar_2!I82<>""),MAX(Predrok_april!I82,Predrok_maj!I82,Januar!I82,Februar!I82,April!I82,Juni!I82,Juli!I82,Septembar!I82,Oktobar!I82,Oktobar_2!I82),"") -> 13 | K82: DA | L82: 5 | M82: 5 | N82: 11 | O82: 13 | P82: 12 | Q82: 24 | S82: 20 | T82: 91.0 | U82: 10 | V82: Јун | W82: 2018-06-13 | X82: 10 | Y82: 2018-06-03 | Z82: 36 | AA82: 2018-06-13 | AB82: 24 | AC82: 2018-06-13 | AD82: 20 | AE82: 90 | AF82: 10 | AG82: 2018-06-13 | AI82: =Januar!R82 ->  | AJ82: =Februar!R82 ->  | AK82: =April!R82 ->  | AL82: =Juni!R82 -> Јун | AM82: =Juli!R82 ->  | AN82: =Septembar!R82 ->  | AO82: =Oktobar!R82 ->  | AP82: =Oktobar_2!R82 ->  | AR82: =Januar!T82 ->  | AS82: =Februar!T82 ->  | AT82: =April!T82 ->  | AU82: =Juni!T82 -> Јун | AV82: =Juli!T82 ->  | AW82: =Septembar!T82 ->  | AX82: =Oktobar!T82 ->  | AY82: =Oktobar_2!T82 ->  | AZ82: 2017/0078 | BA82: 1
A83: 81 | B83: =IF(Spisak_sluzba!A85<>"",Spisak_sluzba!A85,"") -> 2017/0140 | C83: =IF(Spisak_sluzba!B85<>"",Spisak_sluzba!B85,"") -> Станковић Стефан | D83: =IF(Spisak_sluzba!C85<>"",Spisak_sluzba!C85,"") ->  | E83: =IF(Spisak_sluzba!D85<>"",Spisak_sluzba!D85,"") ->  | F83: =IF(OR(Predrok_april!F83<>"",Predrok_maj!F83<>"",Januar!F83<>"",Februar!F83<>"",April!F83<>"",Juni!F83<>"",Juli!F83,Septembar!F83<>"",Oktobar!F83<>"",Oktobar_2!F83<>""),MAX(Predrok_april!F83,Predrok_maj!F83,Januar!F83,Februar!F83,April!F83,Juni!F83,Juli!F83,Septembar!F83,Oktobar!F83,Oktobar_2!F83),"") -> 24 | G83: =IF(OR(Predrok_april!G83<>"",Predrok_maj!G83<>"",Januar!G83<>"",Februar!G83<>"",April!G83<>"",Juni!G83<>"",Juli!G83,Septembar!G83<>"",Oktobar!G83<>"",Oktobar_2!G83<>""),MAX(Predrok_april!G83,Predrok_maj!G83,Januar!G83,Februar!G83,April!G83,Juni!G83,Juli!G83,Septembar!G83,Oktobar!G83,Oktobar_2!G83),"") -> 29 | H83: =IF(OR(Predrok_april!H83<>"",Predrok_maj!H83<>"",Januar!H83<>"",Februar!H83<>"",April!H83<>"",Juni!H83<>"",Juli!H83,Septembar!H83<>"",Oktobar!H83<>"",Oktobar_2!H83<>""),MAX(Predrok_april!H83,Predrok_maj!H83,Januar!H83,Februar!H83,April!H83,Juni!H83,Juli!H83,Septembar!H83,Oktobar!H83,Oktobar_2!H83),"") -> 25 | I83: =IF(OR(Predrok_april!I83<>"",Predrok_maj!I83<>"",Januar!I83<>"",Februar!I83<>"",April!I83<>"",Juni!I83<>"",Juli!I83,Septembar!I83<>"",Oktobar!I83<>"",Oktobar_2!I83<>""),MAX(Predrok_april!I83,Predrok_maj!I83,Januar!I83,Februar!I83,April!I83,Juni!I83,Juli!I83,Septembar!I83,Oktobar!I83,Oktobar_2!I83),"") -> 9 | K83: DA | L83: 5 | M83: 5 | N83: 11 | O83: 13 | P83: 11 | Q83: 17 | S83: 20 | T83: 81.0 | U83: 9 | V83: Јун | W83: 2018-06-13 | X83: 10 | Y83: 2018-06-03 | Z83: 34 | AA83: 2018-06-13 | AB83: 17 | AC83: 2018-06-13 | AD83: 20 | AE83: 81 | AF83: 9 | AG83: 2018-06-13 | AI83: =Januar!R83 ->  | AJ83: =Februar!R83 ->  | AK83: =April!R83 ->  | AL83: =Juni!R83 -> Јун | AM83: =Juli!R83 ->  | AN83: =Septembar!R83 ->  | AO83: =Oktobar!R83 ->  | AP83: =Oktobar_2!R83 ->  | AR83: =Januar!T83 ->  | AS83: =Februar!T83 ->  | AT83: =April!T83 ->  | AU83: =Juni!T83 -> Јун | AV83: =Juli!T83 ->  | AW83: =Septembar!T83 ->  | AX83: =Oktobar!T83 ->  | AY83: =Oktobar_2!T83 ->  | AZ83: 2017/0140 | BA83: 1
A84: 82 | B84: =IF(Spisak_sluzba!A86<>"",Spisak_sluzba!A86,"") -> 2017/0060 | C84: =IF(Spisak_sluzba!B86<>"",Spisak_sluzba!B86,"") -> Станојковић Малина | D84: =IF(Spisak_sluzba!C86<>"",Spisak_sluzba!C86,"") ->  | E84: =IF(Spisak_sluzba!D86<>"",Spisak_sluzba!D86,"") ->  | F84: =IF(OR(Predrok_april!F84<>"",Predrok_maj!F84<>"",Januar!F84<>"",Februar!F84<>"",April!F84<>"",Juni!F84<>"",Juli!F84,Septembar!F84<>"",Oktobar!F84<>"",Oktobar_2!F84<>""),MAX(Predrok_april!F84,Predrok_maj!F84,Januar!F84,Februar!F84,April!F84,Juni!F84,Juli!F84,Septembar!F84,Oktobar!F84,Oktobar_2!F84),"") -> 25 | G84: =IF(OR(Predrok_april!G84<>"",Predrok_maj!G84<>"",Januar!G84<>"",Februar!G84<>"",April!G84<>"",Juni!G84<>"",Juli!G84,Septembar!G84<>"",Oktobar!G84<>"",Oktobar_2!G84<>""),MAX(Predrok_april!G84,Predrok_maj!G84,Januar!G84,Februar!G84,April!G84,Juni!G84,Juli!G84,Septembar!G84,Oktobar!G84,Oktobar_2!G84),"") -> 25 | H84: =IF(OR(Predrok_april!H84<>"",Predrok_maj!H84<>"",Januar!H84<>"",Februar!H84<>"",April!H84<>"",Juni!H84<>"",Juli!H84,Septembar!H84<>"",Oktobar!H84<>"",Oktobar_2!H84<>""),MAX(Predrok_april!H84,Predrok_maj!H84,Januar!H84,Februar!H84,April!H84,Juni!H84,Juli!H84,Septembar!H84,Oktobar!H84,Oktobar_2!H84),"") -> 24 | I84: =IF(OR(Predrok_april!I84<>"",Predrok_maj!I84<>"",Januar!I84<>"",Februar!I84<>"",April!I84<>"",Juni!I84<>"",Juli!I84,Septembar!I84<>"",Oktobar!I84<>"",Oktobar_2!I84<>""),MAX(Predrok_april!I84,Predrok_maj!I84,Januar!I84,Februar!I84,April!I84,Juni!I84,Juli!I84,Septembar!I84,Oktobar!I84,Oktobar_2!I84),"") -> 12 | K84: DA | L84: 5 | M84: 5 | N84: 11 | O84: 11 | P84: 11 | Q84: 22 | S84: 20 | T84: 85.0 | U84: 9 | V84: Јул | W84: 2018-07-10 | X84: 10 | Y84: 2018-06-03 | Z84: 32 | AA84: 2018-06-13 | AB84: 22 | AC84: 2018-07-10 | AD84: 20 | AE84: 85 | AF84: 9 | AG84: 2018-07-10 | AI84: =Januar!R84 ->  | AJ84: =Februar!R84 ->  | AK84: =April!R84 ->  | AL84: =Juni!R84 -> Јун | AM84: =Juli!R84 -> Јул | AN84: =Septembar!R84 ->  | AO84: =Oktobar!R84 ->  | AP84: =Oktobar_2!R84 ->  | AR84: =Januar!T84 ->  | AS84: =Februar!T84 ->  | AT84: =April!T84 ->  | AU84: =Juni!T84 -> Јун | AV84: =Juli!T84 -> Јул | AW84: =Septembar!T84 ->  | AX84: =Oktobar!T84 ->  | AY84: =Oktobar_2!T84 ->  | AZ84: 2017/0060 | BA84: 1
A85: 83 | B85: =IF(Spisak_sluzba!A87<>"",Spisak_sluzba!A87,"") -> 2017/0105 | C85: =IF(Spisak_sluzba!B87<>"",Spisak_sluzba!B87,"") -> Стевановић Филип | D85: =IF(Spisak_sluzba!C87<>"",Spisak_sluzba!C87,"") ->  | E85: =IF(Spisak_sluzba!D87<>"",Spisak_sluzba!D87,"") ->  | F85: =IF(OR(Predrok_april!F85<>"",Predrok_maj!F85<>"",Januar!F85<>"",Februar!F85<>"",April!F85<>"",Juni!F85<>"",Juli!F85,Septembar!F85<>"",Oktobar!F85<>"",Oktobar_2!F85<>""),MAX(Predrok_april!F85,Predrok_maj!F85,Januar!F85,Februar!F85,April!F85,Juni!F85,Juli!F85,Septembar!F85,Oktobar!F85,Oktobar_2!F85),"") ->  | G85: =IF(OR(Predrok_april!G85<>"",Predrok_maj!G85<>"",Januar!G85<>"",Februar!G85<>"",April!G85<>"",Juni!G85<>"",Juli!G85,Septembar!G85<>"",Oktobar!G85<>"",Oktobar_2!G85<>""),MAX(Predrok_april!G85,Predrok_maj!G85,Januar!G85,Februar!G85,April!G85,Juni!G85,Juli!G85,Septembar!G85,Oktobar!G85,Oktobar_2!G85),"") ->  | H85: =IF(OR(Predrok_april!H85<>"",Predrok_maj!H85<>"",Januar!H85<>"",Februar!H85<>"",April!H85<>"",Juni!H85<>"",Juli!H85,Septembar!H85<>"",Oktobar!H85<>"",Oktobar_2!H85<>""),MAX(Predrok_april!H85,Predrok_maj!H85,Januar!H85,Februar!H85,April!H85,Juni!H85,Juli!H85,Septembar!H85,Oktobar!H85,Oktobar_2!H85),"") ->  | I85: =IF(OR(Predrok_april!I85<>"",Predrok_maj!I85<>"",Januar!I85<>"",Februar!I85<>"",April!I85<>"",Juni!I85<>"",Juli!I85,Septembar!I85<>"",Oktobar!I85<>"",Oktobar_2!I85<>""),MAX(Predrok_april!I85,Predrok_maj!I85,Januar!I85,Februar!I85,April!I85,Juni!I85,Juli!I85,Septembar!I85,Oktobar!I85,Oktobar_2!I85),"") ->  | K85: NE | AI85: =Januar!R85 ->  | AJ85: =Februar!R85 ->  | AK85: =April!R85 ->  | AL85: =Juni!R85 ->  | AM85: =Juli!R85 ->  | AN85: =Septembar!R85 ->  | AO85: =Oktobar!R85 ->  | AP85: =Oktobar_2!R85 ->  | AR85: =Januar!T85 ->  | AS85: =Februar!T85 ->  | AT85: =April!T85 ->  | AU85: =Juni!T85 ->  | AV85: =Juli!T85 ->  | AW85: =Septembar!T85 ->  | AX85: =Oktobar!T85 ->  | AY85: =Oktobar_2!T85 ->  | AZ85: 2017/0105
A86: 84 | B86: =IF(Spisak_sluzba!A88<>"",Spisak_sluzba!A88,"") -> 2017/0029 | C86: =IF(Spisak_sluzba!B88<>"",Spisak_sluzba!B88,"") -> Стојановић Александар | D86: =IF(Spisak_sluzba!C88<>"",Spisak_sluzba!C88,"") ->  | E86: =IF(Spisak_sluzba!D88<>"",Spisak_sluzba!D88,"") ->  | F86: =IF(OR(Predrok_april!F86<>"",Predrok_maj!F86<>"",Januar!F86<>"",Februar!F86<>"",April!F86<>"",Juni!F86<>"",Juli!F86,Septembar!F86<>"",Oktobar!F86<>"",Oktobar_2!F86<>""),MAX(Predrok_april!F86,Predrok_maj!F86,Januar!F86,Februar!F86,April!F86,Juni!F86,Juli!F86,Septembar!F86,Oktobar!F86,Oktobar_2!F86),"") -> 25 | G86: =IF(OR(Predrok_april!G86<>"",Predrok_maj!G86<>"",Januar!G86<>"",Februar!G86<>"",April!G86<>"",Juni!G86<>"",Juli!G86,Septembar!G86<>"",Oktobar!G86<>"",Oktobar_2!G86<>""),MAX(Predrok_april!G86,Predrok_maj!G86,Januar!G86,Februar!G86,April!G86,Juni!G86,Juli!G86,Septembar!G86,Oktobar!G86,Oktobar_2!G86),"") -> 30 | H86: =IF(OR(Predrok_april!H86<>"",Predrok_maj!H86<>"",Januar!H86<>"",Februar!H86<>"",April!H86<>"",Juni!H86<>"",Juli!H86,Septembar!H86<>"",Oktobar!H86<>"",Oktobar_2!H86<>""),MAX(Predrok_april!H86,Predrok_maj!H86,Januar!H86,Februar!H86,April!H86,Juni!H86,Juli!H86,Septembar!H86,Oktobar!H86,Oktobar_2!H86),"") -> 24 | I86: =IF(OR(Predrok_april!I86<>"",Predrok_maj!I86<>"",Januar!I86<>"",Februar!I86<>"",April!I86<>"",Juni!I86<>"",Juli!I86,Septembar!I86<>"",Oktobar!I86<>"",Oktobar_2!I86<>""),MAX(Predrok_april!I86,Predrok_maj!I86,Januar!I86,Februar!I86,April!I86,Juni!I86,Juli!I86,Septembar!I86,Oktobar!I86,Oktobar_2!I86),"") -> 9 | K86: DA | L86: 5 | M86: 5 | N86: 11 | O86: 13 | P86: 11 | Q86: 17 | S86: 20 | T86: 82.0 | U86: 9 | V86: Јун | W86: 2018-06-13 | X86: 10 | Y86: 2018-06-03 | Z86: 35 | AA86: 2018-06-13 | AB86: 17 | AC86: 2018-06-13 | AD86: 20 | AE86: 81 | AF86: 9 | AG86: 2018-06-13 | AI86: =Januar!R86 ->  | AJ86: =Februar!R86 ->  | AK86: =April!R86 ->  | AL86: =Juni!R86 -> Јун | AM86: =Juli!R86 ->  | AN86: =Septembar!R86 ->  | AO86: =Oktobar!R86 ->  | AP86: =Oktobar_2!R86 ->  | AR86: =Januar!T86 ->  | AS86: =Februar!T86 ->  | AT86: =April!T86 ->  | AU86: =Juni!T86 -> Јун | AV86: =Juli!T86 ->  | AW86: =Septembar!T86 ->  | AX86: =Oktobar!T86 ->  | AY86: =Oktobar_2!T86 ->  | AZ86: 2017/0029 | BA86: 1
A87: 85 | B87: =IF(Spisak_sluzba!A89<>"",Spisak_sluzba!A89,"") -> 2017/0017 | C87: =IF(Spisak_sluzba!B89<>"",Spisak_sluzba!B89,"") -> Стојановић Јана | D87: =IF(Spisak_sluzba!C89<>"",Spisak_sluzba!C89,"") ->  | E87: =IF(Spisak_sluzba!D89<>"",Spisak_sluzba!D89,"") ->  | F87: =IF(OR(Predrok_april!F87<>"",Predrok_maj!F87<>"",Januar!F87<>"",Februar!F87<>"",April!F87<>"",Juni!F87<>"",Juli!F87,Septembar!F87<>"",Oktobar!F87<>"",Oktobar_2!F87<>""),MAX(Predrok_april!F87,Predrok_maj!F87,Januar!F87,Februar!F87,April!F87,Juni!F87,Juli!F87,Septembar!F87,Oktobar!F87,Oktobar_2!F87),"") -> 29 | G87: =IF(OR(Predrok_april!G87<>"",Predrok_maj!G87<>"",Januar!G87<>"",Februar!G87<>"",April!G87<>"",Juni!G87<>"",Juli!G87,Septembar!G87<>"",Oktobar!G87<>"",Oktobar_2!G87<>""),MAX(Predrok_april!G87,Predrok_maj!G87,Januar!G87,Februar!G87,April!G87,Juni!G87,Juli!G87,Septembar!G87,Oktobar!G87,Oktobar_2!G87),"") -> 27 | H87: =IF(OR(Predrok_april!H87<>"",Predrok_maj!H87<>"",Januar!H87<>"",Februar!H87<>"",April!H87<>"",Juni!H87<>"",Juli!H87,Septembar!H87<>"",Oktobar!H87<>"",Oktobar_2!H87<>""),MAX(Predrok_april!H87,Predrok_maj!H87,Januar!H87,Februar!H87,April!H87,Juni!H87,Juli!H87,Septembar!H87,Oktobar!H87,Oktobar_2!H87),"") -> 29 | I87: =IF(OR(Predrok_april!I87<>"",Predrok_maj!I87<>"",Januar!I87<>"",Februar!I87<>"",April!I87<>"",Juni!I87<>"",Juli!I87,Septembar!I87<>"",Oktobar!I87<>"",Oktobar_2!I87<>""),MAX(Predrok_april!I87,Predrok_maj!I87,Januar!I87,Februar!I87,April!I87,Juni!I87,Juli!I87,Septembar!I87,Oktobar!I87,Oktobar_2!I87),"") -> 10 | K87: DA | L87: 5 | M87: 5 | N87: 13 | O87: 12 | P87: 13 | Q87: 19 | S87: 20 | T87: 86.0 | U87: 9 | V87: Јун | W87: 2018-06-13 | X87: 10 | Y87: 2018-06-03 | Z87: 37 | AA87: 2018-06-13 | AB87: 19 | AC87: 2018-06-13 | AD87: 20 | AE87: 86 | AF87: 9 | AG87: 2018-06-13 | AI87: =Januar!R87 ->  | AJ87: =Februar!R87 ->  | AK87: =April!R87 ->  | AL87: =Juni!R87 -> Јун | AM87: =Juli!R87 ->  | AN87: =Septembar!R87 ->  | AO87: =Oktobar!R87 ->  | AP87: =Oktobar_2!R87 ->  | AR87: =Januar!T87 ->  | AS87: =Februar!T87 ->  | AT87: =April!T87 ->  | AU87: =Juni!T87 -> Јун | AV87: =Juli!T87 ->  | AW87: =Septembar!T87 ->  | AX87: =Oktobar!T87 ->  | AY87: =Oktobar_2!T87 ->  | AZ87: 2017/0017 | BA87: 1
A88: 86 | B88: =IF(Spisak_sluzba!A90<>"",Spisak_sluzba!A90,"") -> 2017/0074 | C88: =IF(Spisak_sluzba!B90<>"",Spisak_sluzba!B90,"") -> Стојановић Срђан | D88: =IF(Spisak_sluzba!C90<>"",Spisak_sluzba!C90,"") ->  | E88: =IF(Spisak_sluzba!D90<>"",Spisak_sluzba!D90,"") ->  | F88: =IF(OR(Predrok_april!F88<>"",Predrok_maj!F88<>"",Januar!F88<>"",Februar!F88<>"",April!F88<>"",Juni!F88<>"",Juli!F88,Septembar!F88<>"",Oktobar!F88<>"",Oktobar_2!F88<>""),MAX(Predrok_april!F88,Predrok_maj!F88,Januar!F88,Februar!F88,April!F88,Juni!F88,Juli!F88,Septembar!F88,Oktobar!F88,Oktobar_2!F88),"") -> 30 | G88: =IF(OR(Predrok_april!G88<>"",Predrok_maj!G88<>"",Januar!G88<>"",Februar!G88<>"",April!G88<>"",Juni!G88<>"",Juli!G88,Septembar!G88<>"",Oktobar!G88<>"",Oktobar_2!G88<>""),MAX(Predrok_april!G88,Predrok_maj!G88,Januar!G88,Februar!G88,April!G88,Juni!G88,Juli!G88,Septembar!G88,Oktobar!G88,Oktobar_2!G88),"") -> 26 | H88: =IF(OR(Predrok_april!H88<>"",Predrok_maj!H88<>"",Januar!H88<>"",Februar!H88<>"",April!H88<>"",Juni!H88<>"",Juli!H88,Septembar!H88<>"",Oktobar!H88<>"",Oktobar_2!H88<>""),MAX(Predrok_april!H88,Predrok_maj!H88,Januar!H88,Februar!H88,April!H88,Juni!H88,Juli!H88,Septembar!H88,Oktobar!H88,Oktobar_2!H88),"") -> 24 | I88: =IF(OR(Predrok_april!I88<>"",Predrok_maj!I88<>"",Januar!I88<>"",Februar!I88<>"",April!I88<>"",Juni!I88<>"",Juli!I88,Septembar!I88<>"",Oktobar!I88<>"",Oktobar_2!I88<>""),MAX(Predrok_april!I88,Predrok_maj!I88,Januar!I88,Februar!I88,April!I88,Juni!I88,Juli!I88,Septembar!I88,Oktobar!I88,Oktobar_2!I88),"") -> 11 | K88: DA | L88: 5 | M88: 5 | N88: 13 | O88: 11 | P88: 11 | Q88: 21 | S88: 15 | T88: 81.0 | U88: 9 | V88: Октобар | W88: 2018-09-12 | X88: 10 | Y88: 2018-06-03 | Z88: 35 | AA88: 2018-06-13 | AB88: 21 | AC88: 2018-09-12 | AD88: 15 | AE88: 81 | AF88: 9 | AG88: 2018-09-12 | AI88: =Januar!R88 ->  | AJ88: =Februar!R88 ->  | AK88: =April!R88 ->  | AL88: =Juni!R88 -> Јун | AM88: =Juli!R88 -> Јул | AN88: =Septembar!R88 -> Септембар | AO88: =Oktobar!R88 ->  | AP88: =Oktobar_2!R88 ->  | AR88: =Januar!T88 ->  | AS88: =Februar!T88 ->  | AT88: =April!T88 ->  | AU88: =Juni!T88 -> Јун | AV88: =Juli!T88 -> Јул | AW88: =Septembar!T88 -> Септембар | AX88: =Oktobar!T88 ->  | AY88: =Oktobar_2!T88 ->  | AZ88: 2017/0074 | BA88: 1
A89: 87 | B89: =IF(Spisak_sluzba!A91<>"",Spisak_sluzba!A91,"") -> 2017/0002 | C89: =IF(Spisak_sluzba!B91<>"",Spisak_sluzba!B91,"") -> Стојков Урош | D89: =IF(Spisak_sluzba!C91<>"",Spisak_sluzba!C91,"") ->  | E89: =IF(Spisak_sluzba!D91<>"",Spisak_sluzba!D91,"") ->  | F89: =IF(OR(Predrok_april!F89<>"",Predrok_maj!F89<>"",Januar!F89<>"",Februar!F89<>"",April!F89<>"",Juni!F89<>"",Juli!F89,Septembar!F89<>"",Oktobar!F89<>"",Oktobar_2!F89<>""),MAX(Predrok_april!F89,Predrok_maj!F89,Januar!F89,Februar!F89,April!F89,Juni!F89,Juli!F89,Septembar!F89,Oktobar!F89,Oktobar_2!F89),"") -> 25 | G89: =IF(OR(Predrok_april!G89<>"",Predrok_maj!G89<>"",Januar!G89<>"",Februar!G89<>"",April!G89<>"",Juni!G89<>"",Juli!G89,Septembar!G89<>"",Oktobar!G89<>"",Oktobar_2!G89<>""),MAX(Predrok_april!G89,Predrok_maj!G89,Januar!G89,Februar!G89,April!G89,Juni!G89,Juli!G89,Septembar!G89,Oktobar!G89,Oktobar_2!G89),"") -> 27 | H89: =IF(OR(Predrok_april!H89<>"",Predrok_maj!H89<>"",Januar!H89<>"",Februar!H89<>"",April!H89<>"",Juni!H89<>"",Juli!H89,Septembar!H89<>"",Oktobar!H89<>"",Oktobar_2!H89<>""),MAX(Predrok_april!H89,Predrok_maj!H89,Januar!H89,Februar!H89,April!H89,Juni!H89,Juli!H89,Septembar!H89,Oktobar!H89,Oktobar_2!H89),"") -> 26 | I89: =IF(OR(Predrok_april!I89<>"",Predrok_maj!I89<>"",Januar!I89<>"",Februar!I89<>"",April!I89<>"",Juni!I89<>"",Juli!I89,Septembar!I89<>"",Oktobar!I89<>"",Oktobar_2!I89<>""),MAX(Predrok_april!I89,Predrok_maj!I89,Januar!I89,Februar!I89,April!I89,Juni!I89,Juli!I89,Septembar!I89,Oktobar!I89,Oktobar_2!I89),"") -> 14 | K89: DA | L89: 5 | M89: 5 | N89: 11 | O89: 12 | P89: 11 | Q89: 26 | S89: 20 | T89: 91.0 | U89: 10 | V89: Јул | W89: 2018-07-10 | X89: 10 | Y89: 2018-06-03 | Z89: 34 | AA89: 2018-06-13 | AB89: 26 | AC89: 2018-07-10 | AD89: 20 | AE89: 90 | AF89: 10 | AG89: 2018-07-10 | AI89: =Januar!R89 ->  | AJ89: =Februar!R89 ->  | AK89: =April!R89 ->  | AL89: =Juni!R89 -> Јун | AM89: =Juli!R89 -> Јул | AN89: =Septembar!R89 ->  | AO89: =Oktobar!R89 ->  | AP89: =Oktobar_2!R89 ->  | AR89: =Januar!T89 ->  | AS89: =Februar!T89 ->  | AT89: =April!T89 ->  | AU89: =Juni!T89 -> Јун | AV89: =Juli!T89 -> Јул | AW89: =Septembar!T89 ->  | AX89: =Oktobar!T89 ->  | AY89: =Oktobar_2!T89 ->  | AZ89: 2017/0002 | BA89: 1
A90: 88 | B90: =IF(Spisak_sluzba!A92<>"",Spisak_sluzba!A92,"") -> 2017/0112 | C90: =IF(Spisak_sluzba!B92<>"",Spisak_sluzba!B92,"") -> Стојшин Вукашин | D90: =IF(Spisak_sluzba!C92<>"",Spisak_sluzba!C92,"") ->  | E90: =IF(Spisak_sluzba!D92<>"",Spisak_sluzba!D92,"") ->  | F90: =IF(OR(Predrok_april!F90<>"",Predrok_maj!F90<>"",Januar!F90<>"",Februar!F90<>"",April!F90<>"",Juni!F90<>"",Juli!F90,Septembar!F90<>"",Oktobar!F90<>"",Oktobar_2!F90<>""),MAX(Predrok_april!F90,Predrok_maj!F90,Januar!F90,Februar!F90,April!F90,Juni!F90,Juli!F90,Septembar!F90,Oktobar!F90,Oktobar_2!F90),"") -> 27 | G90: =IF(OR(Predrok_april!G90<>"",Predrok_maj!G90<>"",Januar!G90<>"",Februar!G90<>"",April!G90<>"",Juni!G90<>"",Juli!G90,Septembar!G90<>"",Oktobar!G90<>"",Oktobar_2!G90<>""),MAX(Predrok_april!G90,Predrok_maj!G90,Januar!G90,Februar!G90,April!G90,Juni!G90,Juli!G90,Septembar!G90,Oktobar!G90,Oktobar_2!G90),"") -> 32 | H90: =IF(OR(Predrok_april!H90<>"",Predrok_maj!H90<>"",Januar!H90<>"",Februar!H90<>"",April!H90<>"",Juni!H90<>"",Juli!H90,Septembar!H90<>"",Oktobar!H90<>"",Oktobar_2!H90<>""),MAX(Predrok_april!H90,Predrok_maj!H90,Januar!H90,Februar!H90,April!H90,Juni!H90,Juli!H90,Septembar!H90,Oktobar!H90,Oktobar_2!H90),"") -> 28 | I90: =IF(OR(Predrok_april!I90<>"",Predrok_maj!I90<>"",Januar!I90<>"",Februar!I90<>"",April!I90<>"",Juni!I90<>"",Juli!I90,Septembar!I90<>"",Oktobar!I90<>"",Oktobar_2!I90<>""),MAX(Predrok_april!I90,Predrok_maj!I90,Januar!I90,Februar!I90,April!I90,Juni!I90,Juli!I90,Septembar!I90,Oktobar!I90,Oktobar_2!I90),"") -> 12 | K90: DA | L90: 5 | M90: 5 | N90: 12 | O90: 14 | P90: 12 | Q90: 22 | S90: 20 | T90: 91.0 | U90: 10 | V90: Јун | W90: 2018-06-13 | X90: 10 | Y90: 2018-06-03 | Z90: 38 | AA90: 2018-06-13 | AB90: 22 | AC90: 2018-06-13 | AD90: 20 | AE90: 90 | AF90: 10 | AG90: 2018-06-13 | AI90: =Januar!R90 ->  | AJ90: =Februar!R90 ->  | AK90: =April!R90 ->  | AL90: =Juni!R90 -> Јун | AM90: =Juli!R90 ->  | AN90: =Septembar!R90 ->  | AO90: =Oktobar!R90 ->  | AP90: =Oktobar_2!R90 ->  | AR90: =Januar!T90 ->  | AS90: =Februar!T90 ->  | AT90: =April!T90 ->  | AU90: =Juni!T90 -> Јун | AV90: =Juli!T90 ->  | AW90: =Septembar!T90 ->  | AX90: =Oktobar!T90 ->  | AY90: =Oktobar_2!T90 ->  | AZ90: 2017/0112 | BA90: 1
A91: 89 | B91: =IF(Spisak_sluzba!A93<>"",Spisak_sluzba!A93,"") -> 2017/0095 | C91: =IF(Spisak_sluzba!B93<>"",Spisak_sluzba!B93,"") -> Стошић Марина | D91: =IF(Spisak_sluzba!C93<>"",Spisak_sluzba!C93,"") ->  | E91: =IF(Spisak_sluzba!D93<>"",Spisak_sluzba!D93,"") ->  | F91: =IF(OR(Predrok_april!F91<>"",Predrok_maj!F91<>"",Januar!F91<>"",Februar!F91<>"",April!F91<>"",Juni!F91<>"",Juli!F91,Septembar!F91<>"",Oktobar!F91<>"",Oktobar_2!F91<>""),MAX(Predrok_april!F91,Predrok_maj!F91,Januar!F91,Februar!F91,April!F91,Juni!F91,Juli!F91,Septembar!F91,Oktobar!F91,Oktobar_2!F91),"") -> 25 | G91: =IF(OR(Predrok_april!G91<>"",Predrok_maj!G91<>"",Januar!G91<>"",Februar!G91<>"",April!G91<>"",Juni!G91<>"",Juli!G91,Septembar!G91<>"",Oktobar!G91<>"",Oktobar_2!G91<>""),MAX(Predrok_april!G91,Predrok_maj!G91,Januar!G91,Februar!G91,April!G91,Juni!G91,Juli!G91,Septembar!G91,Oktobar!G91,Oktobar_2!G91),"") -> 24 | H91: =IF(OR(Predrok_april!H91<>"",Predrok_maj!H91<>"",Januar!H91<>"",Februar!H91<>"",April!H91<>"",Juni!H91<>"",Juli!H91,Septembar!H91<>"",Oktobar!H91<>"",Oktobar_2!H91<>""),MAX(Predrok_april!H91,Predrok_maj!H91,Januar!H91,Februar!H91,April!H91,Juni!H91,Juli!H91,Septembar!H91,Oktobar!H91,Oktobar_2!H91),"") -> 25 | I91: =IF(OR(Predrok_april!I91<>"",Predrok_maj!I91<>"",Januar!I91<>"",Februar!I91<>"",April!I91<>"",Juni!I91<>"",Juli!I91,Septembar!I91<>"",Oktobar!I91<>"",Oktobar_2!I91<>""),MAX(Predrok_april!I91,Predrok_maj!I91,Januar!I91,Februar!I91,April!I91,Juni!I91,Juli!I91,Septembar!I91,Oktobar!I91,Oktobar_2!I91),"") -> 15 | K91: DA | L91: 5 | M91: 5 | N91: 11 | O91: 11 | P91: 11 | Q91: 28 | S91: 20 | T91: 91.0 | U91: 10 | V91: Јун | W91: 2018-06-13 | X91: 10 | Y91: 2018-06-03 | Z91: 32 | AA91: 2018-06-13 | AB91: 28 | AC91: 2018-06-13 | AD91: 20 | AE91: 90 | AF91: 10 | AG91: 2018-06-13 | AI91: =Januar!R91 ->  | AJ91: =Februar!R91 ->  | AK91: =April!R91 ->  | AL91: =Juni!R91 -> Јун | AM91: =Juli!R91 ->  | AN91: =Septembar!R91 ->  | AO91: =Oktobar!R91 ->  | AP91: =Oktobar_2!R91 ->  | AR91: =Januar!T91 ->  | AS91: =Februar!T91 ->  | AT91: =April!T91 ->  | AU91: =Juni!T91 -> Јун | AV91: =Juli!T91 ->  | AW91: =Septembar!T91 ->  | AX91: =Oktobar!T91 ->  | AY91: =Oktobar_2!T91 ->  | AZ91: 2017/0095 | BA91: 1
A92: 90 | B92: =IF(Spisak_sluzba!A94<>"",Spisak_sluzba!A94,"") -> 2017/0117 | C92: =IF(Spisak_sluzba!B94<>"",Spisak_sluzba!B94,"") -> Стошић Михајло | D92: =IF(Spisak_sluzba!C94<>"",Spisak_sluzba!C94,"") ->  | E92: =IF(Spisak_sluzba!D94<>"",Spisak_sluzba!D94,"") ->  | F92: =IF(OR(Predrok_april!F92<>"",Predrok_maj!F92<>"",Januar!F92<>"",Februar!F92<>"",April!F92<>"",Juni!F92<>"",Juli!F92,Septembar!F92<>"",Oktobar!F92<>"",Oktobar_2!F92<>""),MAX(Predrok_april!F92,Predrok_maj!F92,Januar!F92,Februar!F92,April!F92,Juni!F92,Juli!F92,Septembar!F92,Oktobar!F92,Oktobar_2!F92),"") -> 29 | G92: =IF(OR(Predrok_april!G92<>"",Predrok_maj!G92<>"",Januar!G92<>"",Februar!G92<>"",April!G92<>"",Juni!G92<>"",Juli!G92,Septembar!G92<>"",Oktobar!G92<>"",Oktobar_2!G92<>""),MAX(Predrok_april!G92,Predrok_maj!G92,Januar!G92,Februar!G92,April!G92,Juni!G92,Juli!G92,Septembar!G92,Oktobar!G92,Oktobar_2!G92),"") -> 29 | H92: =IF(OR(Predrok_april!H92<>"",Predrok_maj!H92<>"",Januar!H92<>"",Februar!H92<>"",April!H92<>"",Juni!H92<>"",Juli!H92,Septembar!H92<>"",Oktobar!H92<>"",Oktobar_2!H92<>""),MAX(Predrok_april!H92,Predrok_maj!H92,Januar!H92,Februar!H92,April!H92,Juni!H92,Juli!H92,Septembar!H92,Oktobar!H92,Oktobar_2!H92),"") -> 29 | I92: =IF(OR(Predrok_april!I92<>"",Predrok_maj!I92<>"",Januar!I92<>"",Februar!I92<>"",April!I92<>"",Juni!I92<>"",Juli!I92,Septembar!I92<>"",Oktobar!I92<>"",Oktobar_2!I92<>""),MAX(Predrok_april!I92,Predrok_maj!I92,Januar!I92,Februar!I92,April!I92,Juni!I92,Juli!I92,Septembar!I92,Oktobar!I92,Oktobar_2!I92),"") -> 10 | K92: DA | L92: 5 | M92: 5 | N92: 13 | O92: 13 | P92: 13 | Q92: 19 | S92: 20 | T92: 87.0 | U92: 9 | V92: Јун | W92: 2018-06-13 | X92: 10 | Y92: 2018-06-03 | Z92: 38 | AA92: 2018-06-13 | AB92: 19 | AC92: 2018-06-13 | AD92: 20 | AE92: 87 | AF92: 9 | AG92: 2018-06-13 | AI92: =Januar!R92 ->  | AJ92: =Februar!R92 ->  | AK92: =April!R92 ->  | AL92: =Juni!R92 -> Јун | AM92: =Juli!R92 ->  | AN92: =Septembar!R92 ->  | AO92: =Oktobar!R92 ->  | AP92: =Oktobar_2!R92 ->  | AR92: =Januar!T92 ->  | AS92: =Februar!T92 ->  | AT92: =April!T92 ->  | AU92: =Juni!T92 -> Јун | AV92: =Juli!T92 ->  | AW92: =Septembar!T92 ->  | AX92: =Oktobar!T92 ->  | AY92: =Oktobar_2!T92 ->  | AZ92: 2017/0117 | BA92: 1
A93: 91 | B93: =IF(Spisak_sluzba!A95<>"",Spisak_sluzba!A95,"") -> 2017/0026 | C93: =IF(Spisak_sluzba!B95<>"",Spisak_sluzba!B95,"") -> Тапић Немања | D93: =IF(Spisak_sluzba!C95<>"",Spisak_sluzba!C95,"") ->  | E93: =IF(Spisak_sluzba!D95<>"",Spisak_sluzba!D95,"") ->  | F93: =IF(OR(Predrok_april!F93<>"",Predrok_maj!F93<>"",Januar!F93<>"",Februar!F93<>"",April!F93<>"",Juni!F93<>"",Juli!F93,Septembar!F93<>"",Oktobar!F93<>"",Oktobar_2!F93<>""),MAX(Predrok_april!F93,Predrok_maj!F93,Januar!F93,Februar!F93,April!F93,Juni!F93,Juli!F93,Septembar!F93,Oktobar!F93,Oktobar_2!F93),"") -> 24 | G93: =IF(OR(Predrok_april!G93<>"",Predrok_maj!G93<>"",Januar!G93<>"",Februar!G93<>"",April!G93<>"",Juni!G93<>"",Juli!G93,Septembar!G93<>"",Oktobar!G93<>"",Oktobar_2!G93<>""),MAX(Predrok_april!G93,Predrok_maj!G93,Januar!G93,Februar!G93,April!G93,Juni!G93,Juli!G93,Septembar!G93,Oktobar!G93,Oktobar_2!G93),"") -> 28 | H93: =IF(OR(Predrok_april!H93<>"",Predrok_maj!H93<>"",Januar!H93<>"",Februar!H93<>"",April!H93<>"",Juni!H93<>"",Juli!H93,Septembar!H93<>"",Oktobar!H93<>"",Oktobar_2!H93<>""),MAX(Predrok_april!H93,Predrok_maj!H93,Januar!H93,Februar!H93,April!H93,Juni!H93,Juli!H93,Septembar!H93,Oktobar!H93,Oktobar_2!H93),"") -> 27 | I93: =IF(OR(Predrok_april!I93<>"",Predrok_maj!I93<>"",Januar!I93<>"",Februar!I93<>"",April!I93<>"",Juni!I93<>"",Juli!I93,Septembar!I93<>"",Oktobar!I93<>"",Oktobar_2!I93<>""),MAX(Predrok_april!I93,Predrok_maj!I93,Januar!I93,Februar!I93,April!I93,Juni!I93,Juli!I93,Septembar!I93,Oktobar!I93,Oktobar_2!I93),"") -> 12 | K93: DA | L93: 5 | M93: 5 | N93: 11 | O93: 12 | P93: 12 | Q93: 22 | S93: 20 | T93: 87.0 | U93: 9 | V93: Јун | W93: 2018-06-13 | X93: 10 | Y93: 2018-06-03 | Z93: 35 | AA93: 2018-06-13 | AB93: 22 | AC93: 2018-06-13 | AD93: 20 | AE93: 87 | AF93: 9 | AG93: 2018-06-13 | AI93: =Januar!R93 ->  | AJ93: =Februar!R93 ->  | AK93: =April!R93 ->  | AL93: =Juni!R93 -> Јун | AM93: =Juli!R93 ->  | AN93: =Septembar!R93 ->  | AO93: =Oktobar!R93 ->  | AP93: =Oktobar_2!R93 ->  | AR93: =Januar!T93 ->  | AS93: =Februar!T93 ->  | AT93: =April!T93 ->  | AU93: =Juni!T93 -> Јун | AV93: =Juli!T93 ->  | AW93: =Septembar!T93 ->  | AX93: =Oktobar!T93 ->  | AY93: =Oktobar_2!T93 ->  | AZ93: 2017/0026 | BA93: 1
A94: 92 | B94: =IF(Spisak_sluzba!A96<>"",Spisak_sluzba!A96,"") -> 2017/0036 | C94: =IF(Spisak_sluzba!B96<>"",Spisak_sluzba!B96,"") -> Томашевић Реља | D94: =IF(Spisak_sluzba!C96<>"",Spisak_sluzba!C96,"") ->  | E94: =IF(Spisak_sluzba!D96<>"",Spisak_sluzba!D96,"") ->  | F94: =IF(OR(Predrok_april!F94<>"",Predrok_maj!F94<>"",Januar!F94<>"",Februar!F94<>"",April!F94<>"",Juni!F94<>"",Juli!F94,Septembar!F94<>"",Oktobar!F94<>"",Oktobar_2!F94<>""),MAX(Predrok_april!F94,Predrok_maj!F94,Januar!F94,Februar!F94,April!F94,Juni!F94,Juli!F94,Septembar!F94,Oktobar!F94,Oktobar_2!F94),"") -> 28 | G94: =IF(OR(Predrok_april!G94<>"",Predrok_maj!G94<>"",Januar!G94<>"",Februar!G94<>"",April!G94<>"",Juni!G94<>"",Juli!G94,Septembar!G94<>"",Oktobar!G94<>"",Oktobar_2!G94<>""),MAX(Predrok_april!G94,Predrok_maj!G94,Januar!G94,Februar!G94,April!G94,Juni!G94,Juli!G94,Septembar!G94,Oktobar!G94,Oktobar_2!G94),"") -> 28 | H94: =IF(OR(Predrok_april!H94<>"",Predrok_maj!H94<>"",Januar!H94<>"",Februar!H94<>"",April!H94<>"",Juni!H94<>"",Juli!H94,Septembar!H94<>"",Oktobar!H94<>"",Oktobar_2!H94<>""),MAX(Predrok_april!H94,Predrok_maj!H94,Januar!H94,Februar!H94,April!H94,Juni!H94,Juli!H94,Septembar!H94,Oktobar!H94,Oktobar_2!H94),"") -> 27 | I94: =IF(OR(Predrok_april!I94<>"",Predrok_maj!I94<>"",Januar!I94<>"",Februar!I94<>"",April!I94<>"",Juni!I94<>"",Juli!I94,Septembar!I94<>"",Oktobar!I94<>"",Oktobar_2!I94<>""),MAX(Predrok_april!I94,Predrok_maj!I94,Januar!I94,Februar!I94,April!I94,Juni!I94,Juli!I94,Septembar!I94,Oktobar!I94,Oktobar_2!I94),"") -> 12 | K94: DA | L94: 5 | M94: 5 | N94: 12 | O94: 12 | P94: 12 | Q94: 22 | S94: 20 | T94: 89.0 | U94: 9 | V94: Јун | W94: 2018-06-13 | X94: 10 | Y94: 2018-06-03 | Z94: 36 | AA94: 2018-06-13 | AB94: 22 | AC94: 2018-06-13 | AD94: 20 | AE94: 89 | AF94: 9 | AG94: 2018-06-13 | AI94: =Januar!R94 ->  | AJ94: =Februar!R94 ->  | AK94: =April!R94 ->  | AL94: =Juni!R94 -> Јун | AM94: =Juli!R94 ->  | AN94: =Septembar!R94 ->  | AO94: =Oktobar!R94 ->  | AP94: =Oktobar_2!R94 ->  | AR94: =Januar!T94 ->  | AS94: =Februar!T94 ->  | AT94: =April!T94 ->  | AU94: =Juni!T94 -> Јун | AV94: =Juli!T94 ->  | AW94: =Septembar!T94 ->  | AX94: =Oktobar!T94 ->  | AY94: =Oktobar_2!T94 ->  | AZ94: 2017/0036 | BA94: 1
A95: 93 | B95: =IF(Spisak_sluzba!A97<>"",Spisak_sluzba!A97,"") -> 2017/0096 | C95: =IF(Spisak_sluzba!B97<>"",Spisak_sluzba!B97,"") -> Туфегџић Сања | D95: =IF(Spisak_sluzba!C97<>"",Spisak_sluzba!C97,"") ->  | E95: =IF(Spisak_sluzba!D97<>"",Spisak_sluzba!D97,"") ->  | F95: =IF(OR(Predrok_april!F95<>"",Predrok_maj!F95<>"",Januar!F95<>"",Februar!F95<>"",April!F95<>"",Juni!F95<>"",Juli!F95,Septembar!F95<>"",Oktobar!F95<>"",Oktobar_2!F95<>""),MAX(Predrok_april!F95,Predrok_maj!F95,Januar!F95,Februar!F95,April!F95,Juni!F95,Juli!F95,Septembar!F95,Oktobar!F95,Oktobar_2!F95),"") -> 29 | G95: =IF(OR(Predrok_april!G95<>"",Predrok_maj!G95<>"",Januar!G95<>"",Februar!G95<>"",April!G95<>"",Juni!G95<>"",Juli!G95,Septembar!G95<>"",Oktobar!G95<>"",Oktobar_2!G95<>""),MAX(Predrok_april!G95,Predrok_maj!G95,Januar!G95,Februar!G95,April!G95,Juni!G95,Juli!G95,Septembar!G95,Oktobar!G95,Oktobar_2!G95),"") -> 27 | H95: =IF(OR(Predrok_april!H95<>"",Predrok_maj!H95<>"",Januar!H95<>"",Februar!H95<>"",April!H95<>"",Juni!H95<>"",Juli!H95,Septembar!H95<>"",Oktobar!H95<>"",Oktobar_2!H95<>""),MAX(Predrok_april!H95,Predrok_maj!H95,Januar!H95,Februar!H95,April!H95,Juni!H95,Juli!H95,Septembar!H95,Oktobar!H95,Oktobar_2!H95),"") -> 26 | I95: =IF(OR(Predrok_april!I95<>"",Predrok_maj!I95<>"",Januar!I95<>"",Februar!I95<>"",April!I95<>"",Juni!I95<>"",Juli!I95,Septembar!I95<>"",Oktobar!I95<>"",Oktobar_2!I95<>""),MAX(Predrok_april!I95,Predrok_maj!I95,Januar!I95,Februar!I95,April!I95,Juni!I95,Juli!I95,Septembar!I95,Oktobar!I95,Oktobar_2!I95),"") -> 12 | K95: DA | L95: 5 | M95: 5 | N95: 13 | O95: 12 | P95: 11 | Q95: 22 | S95: 20 | T95: 89.0 | U95: 9 | V95: Јун | W95: 2018-06-13 | X95: 10 | Y95: 2018-06-03 | Z95: 36 | AA95: 2018-06-13 | AB95: 22 | AC95: 2018-06-13 | AD95: 20 | AE95: 88 | AF95: 9 | AG95: 2018-06-13 | AI95: =Januar!R95 ->  | AJ95: =Februar!R95 ->  | AK95: =April!R95 ->  | AL95: =Juni!R95 -> Јун | AM95: =Juli!R95 ->  | AN95: =Septembar!R95 ->  | AO95: =Oktobar!R95 ->  | AP95: =Oktobar_2!R95 ->  | AR95: =Januar!T95 ->  | AS95: =Februar!T95 ->  | AT95: =April!T95 ->  | AU95: =Juni!T95 -> Јун | AV95: =Juli!T95 ->  | AW95: =Septembar!T95 ->  | AX95: =Oktobar!T95 ->  | AY95: =Oktobar_2!T95 ->  | AZ95: 2017/0096 | BA95: 1
A96: 94 | B96: =IF(Spisak_sluzba!A98<>"",Spisak_sluzba!A98,"") -> 2017/0001 | C96: =IF(Spisak_sluzba!B98<>"",Spisak_sluzba!B98,"") -> Хас Давид | D96: =IF(Spisak_sluzba!C98<>"",Spisak_sluzba!C98,"") ->  | E96: =IF(Spisak_sluzba!D98<>"",Spisak_sluzba!D98,"") ->  | F96: =IF(OR(Predrok_april!F96<>"",Predrok_maj!F96<>"",Januar!F96<>"",Februar!F96<>"",April!F96<>"",Juni!F96<>"",Juli!F96,Septembar!F96<>"",Oktobar!F96<>"",Oktobar_2!F96<>""),MAX(Predrok_april!F96,Predrok_maj!F96,Januar!F96,Februar!F96,April!F96,Juni!F96,Juli!F96,Septembar!F96,Oktobar!F96,Oktobar_2!F96),"") -> 25 | G96: =IF(OR(Predrok_april!G96<>"",Predrok_maj!G96<>"",Januar!G96<>"",Februar!G96<>"",April!G96<>"",Juni!G96<>"",Juli!G96,Septembar!G96<>"",Oktobar!G96<>"",Oktobar_2!G96<>""),MAX(Predrok_april!G96,Predrok_maj!G96,Januar!G96,Februar!G96,April!G96,Juni!G96,Juli!G96,Septembar!G96,Oktobar!G96,Oktobar_2!G96),"") -> 27 | H96: =IF(OR(Predrok_april!H96<>"",Predrok_maj!H96<>"",Januar!H96<>"",Februar!H96<>"",April!H96<>"",Juni!H96<>"",Juli!H96,Septembar!H96<>"",Oktobar!H96<>"",Oktobar_2!H96<>""),MAX(Predrok_april!H96,Predrok_maj!H96,Januar!H96,Februar!H96,April!H96,Juni!H96,Juli!H96,Septembar!H96,Oktobar!H96,Oktobar_2!H96),"") -> 29 | I96: =IF(OR(Predrok_april!I96<>"",Predrok_maj!I96<>"",Januar!I96<>"",Februar!I96<>"",April!I96<>"",Juni!I96<>"",Juli!I96,Septembar!I96<>"",Oktobar!I96<>"",Oktobar_2!I96<>""),MAX(Predrok_april!I96,Predrok_maj!I96,Januar!I96,Februar!I96,April!I96,Juni!I96,Juli!I96,Septembar!I96,Oktobar!I96,Oktobar_2!I96),"") -> 15 | K96: DA | L96: 5 | M96: 5 | N96: 11 | O96: 12 | P96: 13 | Q96: 28 | S96: 20 | T96: 94.0 | U96: 10 | V96: Јун | W96: 2018-06-13 | X96: 10 | Y96: 2018-06-03 | Z96: 35 | AA96: 2018-06-13 | AB96: 28 | AC96: 2018-06-13 | AD96: 20 | AE96: 93 | AF96: 10 | AG96: 2018-06-13 | AI96: =Januar!R96 ->  | AJ96: =Februar!R96 ->  | AK96: =April!R96 ->  | AL96: =Juni!R96 -> Јун | AM96: =Juli!R96 ->  | AN96: =Septembar!R96 ->  | AO96: =Oktobar!R96 ->  | AP96: =Oktobar_2!R96 ->  | AR96: =Januar!T96 ->  | AS96: =Februar!T96 ->  | AT96: =April!T96 ->  | AU96: =Juni!T96 -> Јун | AV96: =Juli!T96 ->  | AW96: =Septembar!T96 ->  | AX96: =Oktobar!T96 ->  | AY96: =Oktobar_2!T96 ->  | AZ96: 2017/0001 | BA96: 1
A97: 95 | B97: =IF(Spisak_sluzba!A99<>"",Spisak_sluzba!A99,"") -> 2017/0009 | C97: =IF(Spisak_sluzba!B99<>"",Spisak_sluzba!B99,"") -> Цвјетиновић Јована | D97: =IF(Spisak_sluzba!C99<>"",Spisak_sluzba!C99,"") ->  | E97: =IF(Spisak_sluzba!D99<>"",Spisak_sluzba!D99,"") ->  | F97: =IF(OR(Predrok_april!F97<>"",Predrok_maj!F97<>"",Januar!F97<>"",Februar!F97<>"",April!F97<>"",Juni!F97<>"",Juli!F97,Septembar!F97<>"",Oktobar!F97<>"",Oktobar_2!F97<>""),MAX(Predrok_april!F97,Predrok_maj!F97,Januar!F97,Februar!F97,April!F97,Juni!F97,Juli!F97,Septembar!F97,Oktobar!F97,Oktobar_2!F97),"") -> 29 | G97: =IF(OR(Predrok_april!G97<>"",Predrok_maj!G97<>"",Januar!G97<>"",Februar!G97<>"",April!G97<>"",Juni!G97<>"",Juli!G97,Septembar!G97<>"",Oktobar!G97<>"",Oktobar_2!G97<>""),MAX(Predrok_april!G97,Predrok_maj!G97,Januar!G97,Februar!G97,April!G97,Juni!G97,Juli!G97,Septembar!G97,Oktobar!G97,Oktobar_2!G97),"") -> 26 | H97: =IF(OR(Predrok_april!H97<>"",Predrok_maj!H97<>"",Januar!H97<>"",Februar!H97<>"",April!H97<>"",Juni!H97<>"",Juli!H97,Septembar!H97<>"",Oktobar!H97<>"",Oktobar_2!H97<>""),MAX(Predrok_april!H97,Predrok_maj!H97,Januar!H97,Februar!H97,April!H97,Juni!H97,Juli!H97,Septembar!H97,Oktobar!H97,Oktobar_2!H97),"") -> 25 | I97: =IF(OR(Predrok_april!I97<>"",Predrok_maj!I97<>"",Januar!I97<>"",Februar!I97<>"",April!I97<>"",Juni!I97<>"",Juli!I97,Septembar!I97<>"",Oktobar!I97<>"",Oktobar_2!I97<>""),MAX(Predrok_april!I97,Predrok_maj!I97,Januar!I97,Februar!I97,April!I97,Juni!I97,Juli!I97,Septembar!I97,Oktobar!I97,Oktobar_2!I97),"") -> 15 | K97: DA | L97: 5 | M97: 5 | N97: 13 | O97: 11 | P97: 11 | Q97: 28 | S97: 20 | T97: 93.0 | U97: 10 | V97: Јун | W97: 2018-06-13 | X97: 10 | Y97: 2018-06-03 | Z97: 35 | AA97: 2018-06-13 | AB97: 28 | AC97: 2018-06-13 | AD97: 20 | AE97: 93 | AF97: 10 | AG97: 2018-06-13 | AI97: =Januar!R97 ->  | AJ97: =Februar!R97 ->  | AK97: =April!R97 ->  | AL97: =Juni!R97 -> Јун | AM97: =Juli!R97 ->  | AN97: =Septembar!R97 ->  | AO97: =Oktobar!R97 ->  | AP97: =Oktobar_2!R97 ->  | AR97: =Januar!T97 ->  | AS97: =Februar!T97 ->  | AT97: =April!T97 ->  | AU97: =Juni!T97 -> Јун | AV97: =Juli!T97 ->  | AW97: =Septembar!T97 ->  | AX97: =Oktobar!T97 ->  | AY97: =Oktobar_2!T97 ->  | AZ97: 2017/0009 | BA97: 1
A98: 96 | B98: =IF(Spisak_sluzba!A100<>"",Spisak_sluzba!A100,"") -> 2017/0070 | C98: =IF(Spisak_sluzba!B100<>"",Spisak_sluzba!B100,"") -> Црногорац Лука | D98: =IF(Spisak_sluzba!C100<>"",Spisak_sluzba!C100,"") ->  | E98: =IF(Spisak_sluzba!D100<>"",Spisak_sluzba!D100,"") ->  | F98: =IF(OR(Predrok_april!F98<>"",Predrok_maj!F98<>"",Januar!F98<>"",Februar!F98<>"",April!F98<>"",Juni!F98<>"",Juli!F98,Septembar!F98<>"",Oktobar!F98<>"",Oktobar_2!F98<>""),MAX(Predrok_april!F98,Predrok_maj!F98,Januar!F98,Februar!F98,April!F98,Juni!F98,Juli!F98,Septembar!F98,Oktobar!F98,Oktobar_2!F98),"") -> 25 | G98: =IF(OR(Predrok_april!G98<>"",Predrok_maj!G98<>"",Januar!G98<>"",Februar!G98<>"",April!G98<>"",Juni!G98<>"",Juli!G98,Septembar!G98<>"",Oktobar!G98<>"",Oktobar_2!G98<>""),MAX(Predrok_april!G98,Predrok_maj!G98,Januar!G98,Februar!G98,April!G98,Juni!G98,Juli!G98,Septembar!G98,Oktobar!G98,Oktobar_2!G98),"") -> 27 | H98: =IF(OR(Predrok_april!H98<>"",Predrok_maj!H98<>"",Januar!H98<>"",Februar!H98<>"",April!H98<>"",Juni!H98<>"",Juli!H98,Septembar!H98<>"",Oktobar!H98<>"",Oktobar_2!H98<>""),MAX(Predrok_april!H98,Predrok_maj!H98,Januar!H98,Februar!H98,April!H98,Juni!H98,Juli!H98,Septembar!H98,Oktobar!H98,Oktobar_2!H98),"") -> 24 | I98: =IF(OR(Predrok_april!I98<>"",Predrok_maj!I98<>"",Januar!I98<>"",Februar!I98<>"",April!I98<>"",Juni!I98<>"",Juli!I98,Septembar!I98<>"",Oktobar!I98<>"",Oktobar_2!I98<>""),MAX(Predrok_april!I98,Predrok_maj!I98,Januar!I98,Februar!I98,April!I98,Juni!I98,Juli!I98,Septembar!I98,Oktobar!I98,Oktobar_2!I98),"") -> 11 | K98: DA | L98: 5 | M98: 5 | N98: 11 | O98: 12 | P98: 11 | Q98: 21 | S98: 20 | T98: 84.0 | U98: 9 | V98: Јун | W98: 2018-06-13 | X98: 10 | Y98: 2018-06-03 | Z98: 33 | AA98: 2018-06-13 | AB98: 21 | AC98: 2018-06-13 | AD98: 20 | AE98: 84 | AF98: 9 | AG98: 2018-06-13 | AI98: =Januar!R98 ->  | AJ98: =Februar!R98 ->  | AK98: =April!R98 ->  | AL98: =Juni!R98 -> Јун | AM98: =Juli!R98 ->  | AN98: =Septembar!R98 ->  | AO98: =Oktobar!R98 ->  | AP98: =Oktobar_2!R98 ->  | AR98: =Januar!T98 ->  | AS98: =Februar!T98 ->  | AT98: =April!T98 ->  | AU98: =Juni!T98 -> Јун | AV98: =Juli!T98 ->  | AW98: =Septembar!T98 ->  | AX98: =Oktobar!T98 ->  | AY98: =Oktobar_2!T98 ->  | AZ98: 2017/0070 | BA98: 1
A99: 97 | B99: =IF(Spisak_sluzba!A101<>"",Spisak_sluzba!A101,"") -> 2017/0030 | C99: =IF(Spisak_sluzba!B101<>"",Spisak_sluzba!B101,"") -> Чешљаров Данијела | D99: =IF(Spisak_sluzba!C101<>"",Spisak_sluzba!C101,"") ->  | E99: =IF(Spisak_sluzba!D101<>"",Spisak_sluzba!D101,"") ->  | F99: =IF(OR(Predrok_april!F99<>"",Predrok_maj!F99<>"",Januar!F99<>"",Februar!F99<>"",April!F99<>"",Juni!F99<>"",Juli!F99,Septembar!F99<>"",Oktobar!F99<>"",Oktobar_2!F99<>""),MAX(Predrok_april!F99,Predrok_maj!F99,Januar!F99,Februar!F99,April!F99,Juni!F99,Juli!F99,Septembar!F99,Oktobar!F99,Oktobar_2!F99),"") -> 31 | G99: =IF(OR(Predrok_april!G99<>"",Predrok_maj!G99<>"",Januar!G99<>"",Februar!G99<>"",April!G99<>"",Juni!G99<>"",Juli!G99,Septembar!G99<>"",Oktobar!G99<>"",Oktobar_2!G99<>""),MAX(Predrok_april!G99,Predrok_maj!G99,Januar!G99,Februar!G99,April!G99,Juni!G99,Juli!G99,Septembar!G99,Oktobar!G99,Oktobar_2!G99),"") -> 30 | H99: =IF(OR(Predrok_april!H99<>"",Predrok_maj!H99<>"",Januar!H99<>"",Februar!H99<>"",April!H99<>"",Juni!H99<>"",Juli!H99,Septembar!H99<>"",Oktobar!H99<>"",Oktobar_2!H99<>""),MAX(Predrok_april!H99,Predrok_maj!H99,Januar!H99,Februar!H99,April!H99,Juni!H99,Juli!H99,Septembar!H99,Oktobar!H99,Oktobar_2!H99),"") -> 30 | I99: =IF(OR(Predrok_april!I99<>"",Predrok_maj!I99<>"",Januar!I99<>"",Februar!I99<>"",April!I99<>"",Juni!I99<>"",Juli!I99,Septembar!I99<>"",Oktobar!I99<>"",Oktobar_2!I99<>""),MAX(Predrok_april!I99,Predrok_maj!I99,Januar!I99,Februar!I99,April!I99,Juni!I99,Juli!I99,Septembar!I99,Oktobar!I99,Oktobar_2!I99),"") -> 13 | K99: DA | L99: 5 | M99: 5 | N99: =IF(F99<>"",IF(F99>=24,(F99/32)*14,""),"") -> 14 | O99: =IF(G99<>"",IF(G99>=24,(G99/32)*14,""),"") -> 13 | P99: 13 | Q99: 24 | S99: 20 | T99: 95.0 | U99: =IF(T99<>"",VLOOKUP(T99,$BK$3:$BM$7,3),"") -> 10 | V99: Јун | W99: 2018-06-13 | X99: 10 | Y99: 2018-06-03 | Z99: =IF(X99<>"",SUM(N99,O99,P99),"") -> 40 | AA99: 2018-06-13 | AB99: =IF(X99<>"",Q99+R99,"") -> 24 | AC99: 2018-06-13 | AD99: =IF(AND(U99<>"",V99<>""),S99,"") -> 20 | AE99: 94 | AF99: =IF(AND(U99<>"",V99<>""),U99,"") -> 10 | AG99: 2018-06-13 | AI99: =Januar!R99 ->  | AJ99: =Februar!R99 ->  | AK99: =April!R99 ->  | AL99: =Juni!R99 -> Јун | AM99: =Juli!R99 ->  | AN99: =Septembar!R99 ->  | AO99: =Oktobar!R99 ->  | AP99: =Oktobar_2!R99 ->  | AR99: =Januar!T99 ->  | AS99: =Februar!T99 ->  | AT99: =April!T99 ->  | AU99: =Juni!T99 -> Јун | AV99: =Juli!T99 ->  | AW99: =Septembar!T99 ->  | AX99: =Oktobar!T99 ->  | AY99: =Oktobar_2!T99 ->  | AZ99: 2017/0030 | BA99: 1
A100: 98 | B100: =IF(Spisak_sluzba!A102<>"",Spisak_sluzba!A102,"") -> 2017/0154 | C100: =IF(Spisak_sluzba!B102<>"",Spisak_sluzba!B102,"") -> Џаврић Миљан | D100: =IF(Spisak_sluzba!C102<>"",Spisak_sluzba!C102,"") ->  | E100: =IF(Spisak_sluzba!D102<>"",Spisak_sluzba!D102,"") ->  | F100: =IF(OR(Predrok_april!F100<>"",Predrok_maj!F100<>"",Januar!F100<>"",Februar!F100<>"",April!F100<>"",Juni!F100<>"",Juli!F100,Septembar!F100<>"",Oktobar!F100<>"",Oktobar_2!F100<>""),MAX(Predrok_april!F100,Predrok_maj!F100,Januar!F100,Februar!F100,April!F100,Juni!F100,Juli!F100,Septembar!F100,Oktobar!F100,Oktobar_2!F100),"") -> 24 | G100: =IF(OR(Predrok_april!G100<>"",Predrok_maj!G100<>"",Januar!G100<>"",Februar!G100<>"",April!G100<>"",Juni!G100<>"",Juli!G100,Septembar!G100<>"",Oktobar!G100<>"",Oktobar_2!G100<>""),MAX(Predrok_april!G100,Predrok_maj!G100,Januar!G100,Februar!G100,April!G100,Juni!G100,Juli!G100,Septembar!G100,Oktobar!G100,Oktobar_2!G100),"") -> 26 | H100: =IF(OR(Predrok_april!H100<>"",Predrok_maj!H100<>"",Januar!H100<>"",Februar!H100<>"",April!H100<>"",Juni!H100<>"",Juli!H100,Septembar!H100<>"",Oktobar!H100<>"",Oktobar_2!H100<>""),MAX(Predrok_april!H100,Predrok_maj!H100,Januar!H100,Februar!H100,April!H100,Juni!H100,Juli!H100,Septembar!H100,Oktobar!H100,Oktobar_2!H100),"") -> 24 | I100: =IF(OR(Predrok_april!I100<>"",Predrok_maj!I100<>"",Januar!I100<>"",Februar!I100<>"",April!I100<>"",Juni!I100<>"",Juli!I100,Septembar!I100<>"",Oktobar!I100<>"",Oktobar_2!I100<>""),MAX(Predrok_april!I100,Predrok_maj!I100,Januar!I100,Februar!I100,April!I100,Juni!I100,Juli!I100,Septembar!I100,Oktobar!I100,Oktobar_2!I100),"") -> 11 | K100: DA | L100: 5 | M100: 5 | N100: 11 | O100: 11 | P100: 11 | Q100: 21 | S100: 15 | T100: 78.0 | U100: 8 | V100: Септембар | W100: 2018-09-01 | X100: 10 | Y100: 2018-06-03 | Z100: 32 | AA100: 2018-06-13 | AB100: 21 | AC100: 2018-09-01 | AD100: 15 | AE100: 78 | AF100: 8 | AG100: 2018-09-01 | AI100: =Januar!R100 ->  | AJ100: =Februar!R100 ->  | AK100: =April!R100 ->  | AL100: =Juni!R100 -> Јун | AM100: =Juli!R100 -> Јул | AN100: =Septembar!R100 -> Септембар | AO100: =Oktobar!R100 ->  | AP100: =Oktobar_2!R100 ->  | AR100: =Januar!T100 ->  | AS100: =Februar!T100 ->  | AT100: =April!T100 ->  | AU100: =Juni!T100 -> Јун | AV100: =Juli!T100 -> Јул | AW100: =Septembar!T100 -> Септембар | AX100: =Oktobar!T100 ->  | AY100: =Oktobar_2!T100 ->  | AZ100: 2017/0154 | BA100: 1
A101: 99 | B101: =IF(Spisak_sluzba!A103<>"",Spisak_sluzba!A103,"") -> 2017/0055 | C101: =IF(Spisak_sluzba!B103<>"",Spisak_sluzba!B103,"") -> Шулкић Милан | D101: =IF(Spisak_sluzba!C103<>"",Spisak_sluzba!C103,"") ->  | E101: =IF(Spisak_sluzba!D103<>"",Spisak_sluzba!D103,"") ->  | F101: =IF(OR(Predrok_april!F101<>"",Predrok_maj!F101<>"",Januar!F101<>"",Februar!F101<>"",April!F101<>"",Juni!F101<>"",Juli!F101,Septembar!F101<>"",Oktobar!F101<>"",Oktobar_2!F101<>""),MAX(Predrok_april!F101,Predrok_maj!F101,Januar!F101,Februar!F101,April!F101,Juni!F101,Juli!F101,Septembar!F101,Oktobar!F101,Oktobar_2!F101),"") -> 31 | G101: =IF(OR(Predrok_april!G101<>"",Predrok_maj!G101<>"",Januar!G101<>"",Februar!G101<>"",April!G101<>"",Juni!G101<>"",Juli!G101,Septembar!G101<>"",Oktobar!G101<>"",Oktobar_2!G101<>""),MAX(Predrok_april!G101,Predrok_maj!G101,Januar!G101,Februar!G101,April!G101,Juni!G101,Juli!G101,Septembar!G101,Oktobar!G101,Oktobar_2!G101),"") -> 30 | H101: =IF(OR(Predrok_april!H101<>"",Predrok_maj!H101<>"",Januar!H101<>"",Februar!H101<>"",April!H101<>"",Juni!H101<>"",Juli!H101,Septembar!H101<>"",Oktobar!H101<>"",Oktobar_2!H101<>""),MAX(Predrok_april!H101,Predrok_maj!H101,Januar!H101,Februar!H101,April!H101,Juni!H101,Juli!H101,Septembar!H101,Oktobar!H101,Oktobar_2!H101),"") -> 29 | I101: =IF(OR(Predrok_april!I101<>"",Predrok_maj!I101<>"",Januar!I101<>"",Februar!I101<>"",April!I101<>"",Juni!I101<>"",Juli!I101,Septembar!I101<>"",Oktobar!I101<>"",Oktobar_2!I101<>""),MAX(Predrok_april!I101,Predrok_maj!I101,Januar!I101,Februar!I101,April!I101,Juni!I101,Juli!I101,Septembar!I101,Oktobar!I101,Oktobar_2!I101),"") -> 15 | K101: DA | L101: 5 | M101: 5 | N101: 14 | O101: 13 | P101: 13 | Q101: 28 | S101: 20 | T101: 98.0 | U101: 10 | V101: Јун | W101: 2018-06-13 | X101: 10 | Y101: 2018-06-03 | Z101: 39 | AA101: 2018-06-13 | AB101: 28 | AC101: 2018-06-13 | AD101: 20 | AE101: 97 | AF101: 10 | AG101: 2018-06-13 | AI101: =Januar!R101 ->  | AJ101: =Februar!R101 ->  | AK101: =April!R101 ->  | AL101: =Juni!R101 -> Јун | AM101: =Juli!R101 ->  | AN101: =Septembar!R101 ->  | AO101: =Oktobar!R101 ->  | AP101: =Oktobar_2!R101 ->  | AR101: =Januar!T101 ->  | AS101: =Februar!T101 ->  | AT101: =April!T101 ->  | AU101: =Juni!T101 -> Јун | AV101: =Juli!T101 ->  | AW101: =Septembar!T101 ->  | AX101: =Oktobar!T101 ->  | AY101: =Oktobar_2!T101 ->  | AZ101: 2017/0055 | BA101: 1
A102: 100 | B102: =IF(Spisak_sluzba!A104<>"",Spisak_sluzba!A104,"") ->  | C102: =IF(Spisak_sluzba!B104<>"",Spisak_sluzba!B104,"") ->  | D102: =IF(Spisak_sluzba!C104<>"",Spisak_sluzba!C104,"") ->  | E102: =IF(Spisak_sluzba!D104<>"",Spisak_sluzba!D104,"") ->  | F102: =IF(OR(Predrok_april!F102<>"",Predrok_maj!F102<>"",Januar!F102<>"",Februar!F102<>"",April!F102<>"",Juni!F102<>"",Juli!F102,Septembar!F102<>"",Oktobar!F102<>"",Oktobar_2!F102<>""),MAX(Predrok_april!F102,Predrok_maj!F102,Januar!F102,Februar!F102,April!F102,Juni!F102,Juli!F102,Septembar!F102,Oktobar!F102,Oktobar_2!F102),"") ->  | G102: =IF(OR(Predrok_april!G102<>"",Predrok_maj!G102<>"",Januar!G102<>"",Februar!G102<>"",April!G102<>"",Juni!G102<>"",Juli!G102,Septembar!G102<>"",Oktobar!G102<>"",Oktobar_2!G102<>""),MAX(Predrok_april!G102,Predrok_maj!G102,Januar!G102,Februar!G102,April!G102,Juni!G102,Juli!G102,Septembar!G102,Oktobar!G102,Oktobar_2!G102),"") ->  | H102: =IF(OR(Predrok_april!H102<>"",Predrok_maj!H102<>"",Januar!H102<>"",Februar!H102<>"",April!H102<>"",Juni!H102<>"",Juli!H102,Septembar!H102<>"",Oktobar!H102<>"",Oktobar_2!H102<>""),MAX(Predrok_april!H102,Predrok_maj!H102,Januar!H102,Februar!H102,April!H102,Juni!H102,Juli!H102,Septembar!H102,Oktobar!H102,Oktobar_2!H102),"") ->  | I102: =IF(OR(Predrok_april!I102<>"",Predrok_maj!I102<>"",Januar!I102<>"",Februar!I102<>"",April!I102<>"",Juni!I102<>"",Juli!I102,Septembar!I102<>"",Oktobar!I102<>"",Oktobar_2!I102<>""),MAX(Predrok_april!I102,Predrok_maj!I102,Januar!I102,Februar!I102,April!I102,Juni!I102,Juli!I102,Septembar!I102,Oktobar!I102,Oktobar_2!I102),"") ->  | AI102: =Januar!R102 ->  | AJ102: =Februar!R102 ->  | AK102: =April!R102 ->  | AL102: =Juni!R102 ->  | AM102: =Juli!R102 ->  | AN102: =Septembar!R102 ->  | AO102: =Oktobar!R102 ->  | AP102: =Oktobar_2!R102 ->  | AR102: =Januar!T102 ->  | AS102: =Februar!T102 ->  | AT102: =April!T102 ->  | AU102: =Juni!T102 ->  | AV102: =Juli!T102 ->  | AW102: =Septembar!T102 ->  | AX102: =Oktobar!T102 ->  | AY102: =Oktobar_2!T102 -> 
A103: 101 | B103: =IF(Spisak_sluzba!A105<>"",Spisak_sluzba!A105,"") ->  | C103: =IF(Spisak_sluzba!B105<>"",Spisak_sluzba!B105,"") ->  | D103: =IF(Spisak_sluzba!C105<>"",Spisak_sluzba!C105,"") ->  | E103: =IF(Spisak_sluzba!D105<>"",Spisak_sluzba!D105,"") ->  | F103: =IF(OR(Predrok_april!F103<>"",Predrok_maj!F103<>"",Januar!F103<>"",Februar!F103<>"",April!F103<>"",Juni!F103<>"",Juli!F103,Septembar!F103<>"",Oktobar!F103<>"",Oktobar_2!F103<>""),MAX(Predrok_april!F103,Predrok_maj!F103,Januar!F103,Februar!F103,April!F103,Juni!F103,Juli!F103,Septembar!F103,Oktobar!F103,Oktobar_2!F103),"") ->  | G103: =IF(OR(Predrok_april!G103<>"",Predrok_maj!G103<>"",Januar!G103<>"",Februar!G103<>"",April!G103<>"",Juni!G103<>"",Juli!G103,Septembar!G103<>"",Oktobar!G103<>"",Oktobar_2!G103<>""),MAX(Predrok_april!G103,Predrok_maj!G103,Januar!G103,Februar!G103,April!G103,Juni!G103,Juli!G103,Septembar!G103,Oktobar!G103,Oktobar_2!G103),"") ->  | H103: =IF(OR(Predrok_april!H103<>"",Predrok_maj!H103<>"",Januar!H103<>"",Februar!H103<>"",April!H103<>"",Juni!H103<>"",Juli!H103,Septembar!H103<>"",Oktobar!H103<>"",Oktobar_2!H103<>""),MAX(Predrok_april!H103,Predrok_maj!H103,Januar!H103,Februar!H103,April!H103,Juni!H103,Juli!H103,Septembar!H103,Oktobar!H103,Oktobar_2!H103),"") ->  | I103: =IF(OR(Predrok_april!I103<>"",Predrok_maj!I103<>"",Januar!I103<>"",Februar!I103<>"",April!I103<>"",Juni!I103<>"",Juli!I103,Septembar!I103<>"",Oktobar!I103<>"",Oktobar_2!I103<>""),MAX(Predrok_april!I103,Predrok_maj!I103,Januar!I103,Februar!I103,April!I103,Juni!I103,Juli!I103,Septembar!I103,Oktobar!I103,Oktobar_2!I103),"") ->  | AI103: =Januar!R103 ->  | AJ103: =Februar!R103 ->  | AK103: =April!R103 ->  | AL103: =Juni!R103 ->  | AM103: =Juli!R103 ->  | AN103: =Septembar!R103 ->  | AO103: =Oktobar!R103 ->  | AP103: =Oktobar_2!R103 ->  | AR103: =Januar!T103 ->  | AS103: =Februar!T103 ->  | AT103: =April!T103 ->  | AU103: =Juni!T103 ->  | AV103: =Juli!T103 ->  | AW103: =Septembar!T103 ->  | AX103: =Oktobar!T103 ->  | AY103: =Oktobar_2!T103 -> 
A104: 102 | B104: =IF(Spisak_sluzba!A106<>"",Spisak_sluzba!A106,"") ->  | C104: =IF(Spisak_sluzba!B106<>"",Spisak_sluzba!B106,"") ->  | D104: =IF(Spisak_sluzba!C106<>"",Spisak_sluzba!C106,"") ->  | E104: =IF(Spisak_sluzba!D106<>"",Spisak_sluzba!D106,"") ->  | F104: =IF(OR(Predrok_april!F104<>"",Predrok_maj!F104<>"",Januar!F104<>"",Februar!F104<>"",April!F104<>"",Juni!F104<>"",Juli!F104,Septembar!F104<>"",Oktobar!F104<>"",Oktobar_2!F104<>""),MAX(Predrok_april!F104,Predrok_maj!F104,Januar!F104,Februar!F104,April!F104,Juni!F104,Juli!F104,Septembar!F104,Oktobar!F104,Oktobar_2!F104),"") ->  | G104: =IF(OR(Predrok_april!G104<>"",Predrok_maj!G104<>"",Januar!G104<>"",Februar!G104<>"",April!G104<>"",Juni!G104<>"",Juli!G104,Septembar!G104<>"",Oktobar!G104<>"",Oktobar_2!G104<>""),MAX(Predrok_april!G104,Predrok_maj!G104,Januar!G104,Februar!G104,April!G104,Juni!G104,Juli!G104,Septembar!G104,Oktobar!G104,Oktobar_2!G104),"") ->  | H104: =IF(OR(Predrok_april!H104<>"",Predrok_maj!H104<>"",Januar!H104<>"",Februar!H104<>"",April!H104<>"",Juni!H104<>"",Juli!H104,Septembar!H104<>"",Oktobar!H104<>"",Oktobar_2!H104<>""),MAX(Predrok_april!H104,Predrok_maj!H104,Januar!H104,Februar!H104,April!H104,Juni!H104,Juli!H104,Septembar!H104,Oktobar!H104,Oktobar_2!H104),"") ->  | I104: =IF(OR(Predrok_april!I104<>"",Predrok_maj!I104<>"",Januar!I104<>"",Februar!I104<>"",April!I104<>"",Juni!I104<>"",Juli!I104,Septembar!I104<>"",Oktobar!I104<>"",Oktobar_2!I104<>""),MAX(Predrok_april!I104,Predrok_maj!I104,Januar!I104,Februar!I104,April!I104,Juni!I104,Juli!I104,Septembar!I104,Oktobar!I104,Oktobar_2!I104),"") ->  | AI104: =Januar!R104 ->  | AJ104: =Februar!R104 ->  | AK104: =April!R104 ->  | AL104: =Juni!R104 ->  | AM104: =Juli!R104 ->  | AN104: =Septembar!R104 ->  | AO104: =Oktobar!R104 ->  | AP104: =Oktobar_2!R104 ->  | AR104: =Januar!T104 ->  | AS104: =Februar!T104 ->  | AT104: =April!T104 ->  | AU104: =Juni!T104 ->  | AV104: =Juli!T104 ->  | AW104: =Septembar!T104 ->  | AX104: =Oktobar!T104 ->  | AY104: =Oktobar_2!T104 -> 
A105: 103 | B105: =IF(Spisak_sluzba!A107<>"",Spisak_sluzba!A107,"") ->  | C105: =IF(Spisak_sluzba!B107<>"",Spisak_sluzba!B107,"") ->  | D105: =IF(Spisak_sluzba!C107<>"",Spisak_sluzba!C107,"") ->  | E105: =IF(Spisak_sluzba!D107<>"",Spisak_sluzba!D107,"") ->  | F105: =IF(OR(Predrok_april!F105<>"",Predrok_maj!F105<>"",Januar!F105<>"",Februar!F105<>"",April!F105<>"",Juni!F105<>"",Juli!F105,Septembar!F105<>"",Oktobar!F105<>"",Oktobar_2!F105<>""),MAX(Predrok_april!F105,Predrok_maj!F105,Januar!F105,Februar!F105,April!F105,Juni!F105,Juli!F105,Septembar!F105,Oktobar!F105,Oktobar_2!F105),"") ->  | G105: =IF(OR(Predrok_april!G105<>"",Predrok_maj!G105<>"",Januar!G105<>"",Februar!G105<>"",April!G105<>"",Juni!G105<>"",Juli!G105,Septembar!G105<>"",Oktobar!G105<>"",Oktobar_2!G105<>""),MAX(Predrok_april!G105,Predrok_maj!G105,Januar!G105,Februar!G105,April!G105,Juni!G105,Juli!G105,Septembar!G105,Oktobar!G105,Oktobar_2!G105),"") ->  | H105: =IF(OR(Predrok_april!H105<>"",Predrok_maj!H105<>"",Januar!H105<>"",Februar!H105<>"",April!H105<>"",Juni!H105<>"",Juli!H105,Septembar!H105<>"",Oktobar!H105<>"",Oktobar_2!H105<>""),MAX(Predrok_april!H105,Predrok_maj!H105,Januar!H105,Februar!H105,April!H105,Juni!H105,Juli!H105,Septembar!H105,Oktobar!H105,Oktobar_2!H105),"") ->  | I105: =IF(OR(Predrok_april!I105<>"",Predrok_maj!I105<>"",Januar!I105<>"",Februar!I105<>"",April!I105<>"",Juni!I105<>"",Juli!I105,Septembar!I105<>"",Oktobar!I105<>"",Oktobar_2!I105<>""),MAX(Predrok_april!I105,Predrok_maj!I105,Januar!I105,Februar!I105,April!I105,Juni!I105,Juli!I105,Septembar!I105,Oktobar!I105,Oktobar_2!I105),"") ->  | AI105: =Januar!R105 ->  | AJ105: =Februar!R105 ->  | AK105: =April!R105 ->  | AL105: =Juni!R105 ->  | AM105: =Juli!R105 ->  | AN105: =Septembar!R105 ->  | AO105: =Oktobar!R105 ->  | AP105: =Oktobar_2!R105 ->  | AR105: =Januar!T105 ->  | AS105: =Februar!T105 ->  | AT105: =April!T105 ->  | AU105: =Juni!T105 ->  | AV105: =Juli!T105 ->  | AW105: =Septembar!T105 ->  | AX105: =Oktobar!T105 ->  | AY105: =Oktobar_2!T105 -> 
A106: 104 | B106: =IF(Spisak_sluzba!A108<>"",Spisak_sluzba!A108,"") ->  | C106: =IF(Spisak_sluzba!B108<>"",Spisak_sluzba!B108,"") ->  | D106: =IF(Spisak_sluzba!C108<>"",Spisak_sluzba!C108,"") ->  | E106: =IF(Spisak_sluzba!D108<>"",Spisak_sluzba!D108,"") ->  | F106: =IF(OR(Predrok_april!F106<>"",Predrok_maj!F106<>"",Januar!F106<>"",Februar!F106<>"",April!F106<>"",Juni!F106<>"",Juli!F106,Septembar!F106<>"",Oktobar!F106<>"",Oktobar_2!F106<>""),MAX(Predrok_april!F106,Predrok_maj!F106,Januar!F106,Februar!F106,April!F106,Juni!F106,Juli!F106,Septembar!F106,Oktobar!F106,Oktobar_2!F106),"") ->  | G106: =IF(OR(Predrok_april!G106<>"",Predrok_maj!G106<>"",Januar!G106<>"",Februar!G106<>"",April!G106<>"",Juni!G106<>"",Juli!G106,Septembar!G106<>"",Oktobar!G106<>"",Oktobar_2!G106<>""),MAX(Predrok_april!G106,Predrok_maj!G106,Januar!G106,Februar!G106,April!G106,Juni!G106,Juli!G106,Septembar!G106,Oktobar!G106,Oktobar_2!G106),"") ->  | H106: =IF(OR(Predrok_april!H106<>"",Predrok_maj!H106<>"",Januar!H106<>"",Februar!H106<>"",April!H106<>"",Juni!H106<>"",Juli!H106,Septembar!H106<>"",Oktobar!H106<>"",Oktobar_2!H106<>""),MAX(Predrok_april!H106,Predrok_maj!H106,Januar!H106,Februar!H106,April!H106,Juni!H106,Juli!H106,Septembar!H106,Oktobar!H106,Oktobar_2!H106),"") ->  | I106: =IF(OR(Predrok_april!I106<>"",Predrok_maj!I106<>"",Januar!I106<>"",Februar!I106<>"",April!I106<>"",Juni!I106<>"",Juli!I106,Septembar!I106<>"",Oktobar!I106<>"",Oktobar_2!I106<>""),MAX(Predrok_april!I106,Predrok_maj!I106,Januar!I106,Februar!I106,April!I106,Juni!I106,Juli!I106,Septembar!I106,Oktobar!I106,Oktobar_2!I106),"") ->  | AI106: =Januar!R106 ->  | AJ106: =Februar!R106 ->  | AK106: =April!R106 ->  | AL106: =Juni!R106 ->  | AM106: =Juli!R106 ->  | AN106: =Septembar!R106 ->  | AO106: =Oktobar!R106 ->  | AP106: =Oktobar_2!R106 ->  | AR106: =Januar!T106 ->  | AS106: =Februar!T106 ->  | AT106: =April!T106 ->  | AU106: =Juni!T106 ->  | AV106: =Juli!T106 ->  | AW106: =Septembar!T106 ->  | AX106: =Oktobar!T106 ->  | AY106: =Oktobar_2!T106 -> 
A107: 105 | B107: =IF(Spisak_sluzba!A109<>"",Spisak_sluzba!A109,"") ->  | C107: =IF(Spisak_sluzba!B109<>"",Spisak_sluzba!B109,"") ->  | D107: =IF(Spisak_sluzba!C109<>"",Spisak_sluzba!C109,"") ->  | E107: =IF(Spisak_sluzba!D109<>"",Spisak_sluzba!D109,"") ->  | F107: =IF(OR(Predrok_april!F107<>"",Predrok_maj!F107<>"",Januar!F107<>"",Februar!F107<>"",April!F107<>"",Juni!F107<>"",Juli!F107,Septembar!F107<>"",Oktobar!F107<>"",Oktobar_2!F107<>""),MAX(Predrok_april!F107,Predrok_maj!F107,Januar!F107,Februar!F107,April!F107,Juni!F107,Juli!F107,Septembar!F107,Oktobar!F107,Oktobar_2!F107),"") ->  | G107: =IF(OR(Predrok_april!G107<>"",Predrok_maj!G107<>"",Januar!G107<>"",Februar!G107<>"",April!G107<>"",Juni!G107<>"",Juli!G107,Septembar!G107<>"",Oktobar!G107<>"",Oktobar_2!G107<>""),MAX(Predrok_april!G107,Predrok_maj!G107,Januar!G107,Februar!G107,April!G107,Juni!G107,Juli!G107,Septembar!G107,Oktobar!G107,Oktobar_2!G107),"") ->  | H107: =IF(OR(Predrok_april!H107<>"",Predrok_maj!H107<>"",Januar!H107<>"",Februar!H107<>"",April!H107<>"",Juni!H107<>"",Juli!H107,Septembar!H107<>"",Oktobar!H107<>"",Oktobar_2!H107<>""),MAX(Predrok_april!H107,Predrok_maj!H107,Januar!H107,Februar!H107,April!H107,Juni!H107,Juli!H107,Septembar!H107,Oktobar!H107,Oktobar_2!H107),"") ->  | I107: =IF(OR(Predrok_april!I107<>"",Predrok_maj!I107<>"",Januar!I107<>"",Februar!I107<>"",April!I107<>"",Juni!I107<>"",Juli!I107,Septembar!I107<>"",Oktobar!I107<>"",Oktobar_2!I107<>""),MAX(Predrok_april!I107,Predrok_maj!I107,Januar!I107,Februar!I107,April!I107,Juni!I107,Juli!I107,Septembar!I107,Oktobar!I107,Oktobar_2!I107),"") ->  | AI107: =Januar!R107 ->  | AJ107: =Februar!R107 ->  | AK107: =April!R107 ->  | AL107: =Juni!R107 ->  | AM107: =Juli!R107 ->  | AN107: =Septembar!R107 ->  | AO107: =Oktobar!R107 ->  | AP107: =Oktobar_2!R107 ->  | AR107: =Januar!T107 ->  | AS107: =Februar!T107 ->  | AT107: =April!T107 ->  | AU107: =Juni!T107 ->  | AV107: =Juli!T107 ->  | AW107: =Septembar!T107 ->  | AX107: =Oktobar!T107 ->  | AY107: =Oktobar_2!T107 -> 
A108: 106 | B108: =IF(Spisak_sluzba!A110<>"",Spisak_sluzba!A110,"") ->  | C108: =IF(Spisak_sluzba!B110<>"",Spisak_sluzba!B110,"") ->  | D108: =IF(Spisak_sluzba!C110<>"",Spisak_sluzba!C110,"") ->  | E108: =IF(Spisak_sluzba!D110<>"",Spisak_sluzba!D110,"") ->  | F108: =IF(OR(Predrok_april!F108<>"",Predrok_maj!F108<>"",Januar!F108<>"",Februar!F108<>"",April!F108<>"",Juni!F108<>"",Juli!F108,Septembar!F108<>"",Oktobar!F108<>"",Oktobar_2!F108<>""),MAX(Predrok_april!F108,Predrok_maj!F108,Januar!F108,Februar!F108,April!F108,Juni!F108,Juli!F108,Septembar!F108,Oktobar!F108,Oktobar_2!F108),"") ->  | G108: =IF(OR(Predrok_april!G108<>"",Predrok_maj!G108<>"",Januar!G108<>"",Februar!G108<>"",April!G108<>"",Juni!G108<>"",Juli!G108,Septembar!G108<>"",Oktobar!G108<>"",Oktobar_2!G108<>""),MAX(Predrok_april!G108,Predrok_maj!G108,Januar!G108,Februar!G108,April!G108,Juni!G108,Juli!G108,Septembar!G108,Oktobar!G108,Oktobar_2!G108),"") ->  | H108: =IF(OR(Predrok_april!H108<>"",Predrok_maj!H108<>"",Januar!H108<>"",Februar!H108<>"",April!H108<>"",Juni!H108<>"",Juli!H108,Septembar!H108<>"",Oktobar!H108<>"",Oktobar_2!H108<>""),MAX(Predrok_april!H108,Predrok_maj!H108,Januar!H108,Februar!H108,April!H108,Juni!H108,Juli!H108,Septembar!H108,Oktobar!H108,Oktobar_2!H108),"") ->  | I108: =IF(OR(Predrok_april!I108<>"",Predrok_maj!I108<>"",Januar!I108<>"",Februar!I108<>"",April!I108<>"",Juni!I108<>"",Juli!I108,Septembar!I108<>"",Oktobar!I108<>"",Oktobar_2!I108<>""),MAX(Predrok_april!I108,Predrok_maj!I108,Januar!I108,Februar!I108,April!I108,Juni!I108,Juli!I108,Septembar!I108,Oktobar!I108,Oktobar_2!I108),"") ->  | AI108: =Januar!R108 ->  | AJ108: =Februar!R108 ->  | AK108: =April!R108 ->  | AL108: =Juni!R108 ->  | AM108: =Juli!R108 ->  | AN108: =Septembar!R108 ->  | AO108: =Oktobar!R108 ->  | AP108: =Oktobar_2!R108 ->  | AR108: =Januar!T108 ->  | AS108: =Februar!T108 ->  | AT108: =April!T108 ->  | AU108: =Juni!T108 ->  | AV108: =Juli!T108 ->  | AW108: =Septembar!T108 ->  | AX108: =Oktobar!T108 ->  | AY108: =Oktobar_2!T108 -> 
A109: 107 | B109: =IF(Spisak_sluzba!A111<>"",Spisak_sluzba!A111,"") ->  | C109: =IF(Spisak_sluzba!B111<>"",Spisak_sluzba!B111,"") ->  | D109: =IF(Spisak_sluzba!C111<>"",Spisak_sluzba!C111,"") ->  | E109: =IF(Spisak_sluzba!D111<>"",Spisak_sluzba!D111,"") ->  | F109: =IF(OR(Predrok_april!F109<>"",Predrok_maj!F109<>"",Januar!F109<>"",Februar!F109<>"",April!F109<>"",Juni!F109<>"",Juli!F109,Septembar!F109<>"",Oktobar!F109<>"",Oktobar_2!F109<>""),MAX(Predrok_april!F109,Predrok_maj!F109,Januar!F109,Februar!F109,April!F109,Juni!F109,Juli!F109,Septembar!F109,Oktobar!F109,Oktobar_2!F109),"") ->  | G109: =IF(OR(Predrok_april!G109<>"",Predrok_maj!G109<>"",Januar!G109<>"",Februar!G109<>"",April!G109<>"",Juni!G109<>"",Juli!G109,Septembar!G109<>"",Oktobar!G109<>"",Oktobar_2!G109<>""),MAX(Predrok_april!G109,Predrok_maj!G109,Januar!G109,Februar!G109,April!G109,Juni!G109,Juli!G109,Septembar!G109,Oktobar!G109,Oktobar_2!G109),"") ->  | H109: =IF(OR(Predrok_april!H109<>"",Predrok_maj!H109<>"",Januar!H109<>"",Februar!H109<>"",April!H109<>"",Juni!H109<>"",Juli!H109,Septembar!H109<>"",Oktobar!H109<>"",Oktobar_2!H109<>""),MAX(Predrok_april!H109,Predrok_maj!H109,Januar!H109,Februar!H109,April!H109,Juni!H109,Juli!H109,Septembar!H109,Oktobar!H109,Oktobar_2!H109),"") ->  | I109: =IF(OR(Predrok_april!I109<>"",Predrok_maj!I109<>"",Januar!I109<>"",Februar!I109<>"",April!I109<>"",Juni!I109<>"",Juli!I109,Septembar!I109<>"",Oktobar!I109<>"",Oktobar_2!I109<>""),MAX(Predrok_april!I109,Predrok_maj!I109,Januar!I109,Februar!I109,April!I109,Juni!I109,Juli!I109,Septembar!I109,Oktobar!I109,Oktobar_2!I109),"") ->  | AI109: =Januar!R109 ->  | AJ109: =Februar!R109 ->  | AK109: =April!R109 ->  | AL109: =Juni!R109 ->  | AM109: =Juli!R109 ->  | AN109: =Septembar!R109 ->  | AO109: =Oktobar!R109 ->  | AP109: =Oktobar_2!R109 ->  | AR109: =Januar!T109 ->  | AS109: =Februar!T109 ->  | AT109: =April!T109 ->  | AU109: =Juni!T109 ->  | AV109: =Juli!T109 ->  | AW109: =Septembar!T109 ->  | AX109: =Oktobar!T109 ->  | AY109: =Oktobar_2!T109 -> 
A110: 108 | B110: =IF(Spisak_sluzba!A112<>"",Spisak_sluzba!A112,"") ->  | C110: =IF(Spisak_sluzba!B112<>"",Spisak_sluzba!B112,"") ->  | D110: =IF(Spisak_sluzba!C112<>"",Spisak_sluzba!C112,"") ->  | E110: =IF(Spisak_sluzba!D112<>"",Spisak_sluzba!D112,"") ->  | F110: =IF(OR(Predrok_april!F110<>"",Predrok_maj!F110<>"",Januar!F110<>"",Februar!F110<>"",April!F110<>"",Juni!F110<>"",Juli!F110,Septembar!F110<>"",Oktobar!F110<>"",Oktobar_2!F110<>""),MAX(Predrok_april!F110,Predrok_maj!F110,Januar!F110,Februar!F110,April!F110,Juni!F110,Juli!F110,Septembar!F110,Oktobar!F110,Oktobar_2!F110),"") ->  | G110: =IF(OR(Predrok_april!G110<>"",Predrok_maj!G110<>"",Januar!G110<>"",Februar!G110<>"",April!G110<>"",Juni!G110<>"",Juli!G110,Septembar!G110<>"",Oktobar!G110<>"",Oktobar_2!G110<>""),MAX(Predrok_april!G110,Predrok_maj!G110,Januar!G110,Februar!G110,April!G110,Juni!G110,Juli!G110,Septembar!G110,Oktobar!G110,Oktobar_2!G110),"") ->  | H110: =IF(OR(Predrok_april!H110<>"",Predrok_maj!H110<>"",Januar!H110<>"",Februar!H110<>"",April!H110<>"",Juni!H110<>"",Juli!H110,Septembar!H110<>"",Oktobar!H110<>"",Oktobar_2!H110<>""),MAX(Predrok_april!H110,Predrok_maj!H110,Januar!H110,Februar!H110,April!H110,Juni!H110,Juli!H110,Septembar!H110,Oktobar!H110,Oktobar_2!H110),"") ->  | I110: =IF(OR(Predrok_april!I110<>"",Predrok_maj!I110<>"",Januar!I110<>"",Februar!I110<>"",April!I110<>"",Juni!I110<>"",Juli!I110,Septembar!I110<>"",Oktobar!I110<>"",Oktobar_2!I110<>""),MAX(Predrok_april!I110,Predrok_maj!I110,Januar!I110,Februar!I110,April!I110,Juni!I110,Juli!I110,Septembar!I110,Oktobar!I110,Oktobar_2!I110),"") ->  | AI110: =Januar!R110 ->  | AJ110: =Februar!R110 ->  | AK110: =April!R110 ->  | AL110: =Juni!R110 ->  | AM110: =Juli!R110 ->  | AN110: =Septembar!R110 ->  | AO110: =Oktobar!R110 ->  | AP110: =Oktobar_2!R110 ->  | AR110: =Januar!T110 ->  | AS110: =Februar!T110 ->  | AT110: =April!T110 ->  | AU110: =Juni!T110 ->  | AV110: =Juli!T110 ->  | AW110: =Septembar!T110 ->  | AX110: =Oktobar!T110 ->  | AY110: =Oktobar_2!T110 -> 
A111: 109 | B111: =IF(Spisak_sluzba!A113<>"",Spisak_sluzba!A113,"") ->  | C111: =IF(Spisak_sluzba!B113<>"",Spisak_sluzba!B113,"") ->  | D111: =IF(Spisak_sluzba!C113<>"",Spisak_sluzba!C113,"") ->  | E111: =IF(Spisak_sluzba!D113<>"",Spisak_sluzba!D113,"") ->  | F111: =IF(OR(Predrok_april!F111<>"",Predrok_maj!F111<>"",Januar!F111<>"",Februar!F111<>"",April!F111<>"",Juni!F111<>"",Juli!F111,Septembar!F111<>"",Oktobar!F111<>"",Oktobar_2!F111<>""),MAX(Predrok_april!F111,Predrok_maj!F111,Januar!F111,Februar!F111,April!F111,Juni!F111,Juli!F111,Septembar!F111,Oktobar!F111,Oktobar_2!F111),"") ->  | G111: =IF(OR(Predrok_april!G111<>"",Predrok_maj!G111<>"",Januar!G111<>"",Februar!G111<>"",April!G111<>"",Juni!G111<>"",Juli!G111,Septembar!G111<>"",Oktobar!G111<>"",Oktobar_2!G111<>""),MAX(Predrok_april!G111,Predrok_maj!G111,Januar!G111,Februar!G111,April!G111,Juni!G111,Juli!G111,Septembar!G111,Oktobar!G111,Oktobar_2!G111),"") ->  | H111: =IF(OR(Predrok_april!H111<>"",Predrok_maj!H111<>"",Januar!H111<>"",Februar!H111<>"",April!H111<>"",Juni!H111<>"",Juli!H111,Septembar!H111<>"",Oktobar!H111<>"",Oktobar_2!H111<>""),MAX(Predrok_april!H111,Predrok_maj!H111,Januar!H111,Februar!H111,April!H111,Juni!H111,Juli!H111,Septembar!H111,Oktobar!H111,Oktobar_2!H111),"") ->  | I111: =IF(OR(Predrok_april!I111<>"",Predrok_maj!I111<>"",Januar!I111<>"",Februar!I111<>"",April!I111<>"",Juni!I111<>"",Juli!I111,Septembar!I111<>"",Oktobar!I111<>"",Oktobar_2!I111<>""),MAX(Predrok_april!I111,Predrok_maj!I111,Januar!I111,Februar!I111,April!I111,Juni!I111,Juli!I111,Septembar!I111,Oktobar!I111,Oktobar_2!I111),"") ->  | AI111: =Januar!R111 ->  | AJ111: =Februar!R111 ->  | AK111: =April!R111 ->  | AL111: =Juni!R111 ->  | AM111: =Juli!R111 ->  | AN111: =Septembar!R111 ->  | AO111: =Oktobar!R111 ->  | AP111: =Oktobar_2!R111 ->  | AR111: =Januar!T111 ->  | AS111: =Februar!T111 ->  | AT111: =April!T111 ->  | AU111: =Juni!T111 ->  | AV111: =Juli!T111 ->  | AW111: =Septembar!T111 ->  | AX111: =Oktobar!T111 ->  | AY111: =Oktobar_2!T111 -> 
A112: 110 | B112: =IF(Spisak_sluzba!A114<>"",Spisak_sluzba!A114,"") ->  | C112: =IF(Spisak_sluzba!B114<>"",Spisak_sluzba!B114,"") ->  | D112: =IF(Spisak_sluzba!C114<>"",Spisak_sluzba!C114,"") ->  | E112: =IF(Spisak_sluzba!D114<>"",Spisak_sluzba!D114,"") ->  | F112: =IF(OR(Predrok_april!F112<>"",Predrok_maj!F112<>"",Januar!F112<>"",Februar!F112<>"",April!F112<>"",Juni!F112<>"",Juli!F112,Septembar!F112<>"",Oktobar!F112<>"",Oktobar_2!F112<>""),MAX(Predrok_april!F112,Predrok_maj!F112,Januar!F112,Februar!F112,April!F112,Juni!F112,Juli!F112,Septembar!F112,Oktobar!F112,Oktobar_2!F112),"") ->  | G112: =IF(OR(Predrok_april!G112<>"",Predrok_maj!G112<>"",Januar!G112<>"",Februar!G112<>"",April!G112<>"",Juni!G112<>"",Juli!G112,Septembar!G112<>"",Oktobar!G112<>"",Oktobar_2!G112<>""),MAX(Predrok_april!G112,Predrok_maj!G112,Januar!G112,Februar!G112,April!G112,Juni!G112,Juli!G112,Septembar!G112,Oktobar!G112,Oktobar_2!G112),"") ->  | H112: =IF(OR(Predrok_april!H112<>"",Predrok_maj!H112<>"",Januar!H112<>"",Februar!H112<>"",April!H112<>"",Juni!H112<>"",Juli!H112,Septembar!H112<>"",Oktobar!H112<>"",Oktobar_2!H112<>""),MAX(Predrok_april!H112,Predrok_maj!H112,Januar!H112,Februar!H112,April!H112,Juni!H112,Juli!H112,Septembar!H112,Oktobar!H112,Oktobar_2!H112),"") ->  | I112: =IF(OR(Predrok_april!I112<>"",Predrok_maj!I112<>"",Januar!I112<>"",Februar!I112<>"",April!I112<>"",Juni!I112<>"",Juli!I112,Septembar!I112<>"",Oktobar!I112<>"",Oktobar_2!I112<>""),MAX(Predrok_april!I112,Predrok_maj!I112,Januar!I112,Februar!I112,April!I112,Juni!I112,Juli!I112,Septembar!I112,Oktobar!I112,Oktobar_2!I112),"") ->  | AI112: =Januar!R112 ->  | AJ112: =Februar!R112 ->  | AK112: =April!R112 ->  | AL112: =Juni!R112 ->  | AM112: =Juli!R112 ->  | AN112: =Septembar!R112 ->  | AO112: =Oktobar!R112 ->  | AP112: =Oktobar_2!R112 ->  | AR112: =Januar!T112 ->  | AS112: =Februar!T112 ->  | AT112: =April!T112 ->  | AU112: =Juni!T112 ->  | AV112: =Juli!T112 ->  | AW112: =Septembar!T112 ->  | AX112: =Oktobar!T112 ->  | AY112: =Oktobar_2!T112 -> 
A113: 111 | B113: =IF(Spisak_sluzba!A115<>"",Spisak_sluzba!A115,"") ->  | C113: =IF(Spisak_sluzba!B115<>"",Spisak_sluzba!B115,"") ->  | D113: =IF(Spisak_sluzba!C115<>"",Spisak_sluzba!C115,"") ->  | E113: =IF(Spisak_sluzba!D115<>"",Spisak_sluzba!D115,"") ->  | F113: =IF(OR(Predrok_april!F113<>"",Predrok_maj!F113<>"",Januar!F113<>"",Februar!F113<>"",April!F113<>"",Juni!F113<>"",Juli!F113,Septembar!F113<>"",Oktobar!F113<>"",Oktobar_2!F113<>""),MAX(Predrok_april!F113,Predrok_maj!F113,Januar!F113,Februar!F113,April!F113,Juni!F113,Juli!F113,Septembar!F113,Oktobar!F113,Oktobar_2!F113),"") ->  | G113: =IF(OR(Predrok_april!G113<>"",Predrok_maj!G113<>"",Januar!G113<>"",Februar!G113<>"",April!G113<>"",Juni!G113<>"",Juli!G113,Septembar!G113<>"",Oktobar!G113<>"",Oktobar_2!G113<>""),MAX(Predrok_april!G113,Predrok_maj!G113,Januar!G113,Februar!G113,April!G113,Juni!G113,Juli!G113,Septembar!G113,Oktobar!G113,Oktobar_2!G113),"") ->  | H113: =IF(OR(Predrok_april!H113<>"",Predrok_maj!H113<>"",Januar!H113<>"",Februar!H113<>"",April!H113<>"",Juni!H113<>"",Juli!H113,Septembar!H113<>"",Oktobar!H113<>"",Oktobar_2!H113<>""),MAX(Predrok_april!H113,Predrok_maj!H113,Januar!H113,Februar!H113,April!H113,Juni!H113,Juli!H113,Septembar!H113,Oktobar!H113,Oktobar_2!H113),"") ->  | I113: =IF(OR(Predrok_april!I113<>"",Predrok_maj!I113<>"",Januar!I113<>"",Februar!I113<>"",April!I113<>"",Juni!I113<>"",Juli!I113,Septembar!I113<>"",Oktobar!I113<>"",Oktobar_2!I113<>""),MAX(Predrok_april!I113,Predrok_maj!I113,Januar!I113,Februar!I113,April!I113,Juni!I113,Juli!I113,Septembar!I113,Oktobar!I113,Oktobar_2!I113),"") ->  | AE113: =IF(X113<>"",SUM(X113,AD113,Z113,AB113),"") ->  | AI113: =Januar!R113 ->  | AJ113: =Februar!R113 ->  | AK113: =April!R113 ->  | AL113: =Juni!R113 ->  | AM113: =Juli!R113 ->  | AN113: =Septembar!R113 ->  | AO113: =Oktobar!R113 ->  | AP113: =Oktobar_2!R113 ->  | AR113: =Januar!T113 ->  | AS113: =Februar!T113 ->  | AT113: =April!T113 ->  | AU113: =Juni!T113 ->  | AV113: =Juli!T113 ->  | AW113: =Septembar!T113 ->  | AX113: =Oktobar!T113 ->  | AY113: =Oktobar_2!T113 -> 
A114: 112 | B114: =IF(Spisak_sluzba!A116<>"",Spisak_sluzba!A116,"") ->  | C114: =IF(Spisak_sluzba!B116<>"",Spisak_sluzba!B116,"") ->  | D114: =IF(Spisak_sluzba!C116<>"",Spisak_sluzba!C116,"") ->  | E114: =IF(Spisak_sluzba!D116<>"",Spisak_sluzba!D116,"") ->  | F114: =IF(OR(Predrok_april!F114<>"",Predrok_maj!F114<>"",Januar!F114<>"",Februar!F114<>"",April!F114<>"",Juni!F114<>"",Juli!F114,Septembar!F114<>"",Oktobar!F114<>"",Oktobar_2!F114<>""),MAX(Predrok_april!F114,Predrok_maj!F114,Januar!F114,Februar!F114,April!F114,Juni!F114,Juli!F114,Septembar!F114,Oktobar!F114,Oktobar_2!F114),"") ->  | G114: =IF(OR(Predrok_april!G114<>"",Predrok_maj!G114<>"",Januar!G114<>"",Februar!G114<>"",April!G114<>"",Juni!G114<>"",Juli!G114,Septembar!G114<>"",Oktobar!G114<>"",Oktobar_2!G114<>""),MAX(Predrok_april!G114,Predrok_maj!G114,Januar!G114,Februar!G114,April!G114,Juni!G114,Juli!G114,Septembar!G114,Oktobar!G114,Oktobar_2!G114),"") ->  | H114: =IF(OR(Predrok_april!H114<>"",Predrok_maj!H114<>"",Januar!H114<>"",Februar!H114<>"",April!H114<>"",Juni!H114<>"",Juli!H114,Septembar!H114<>"",Oktobar!H114<>"",Oktobar_2!H114<>""),MAX(Predrok_april!H114,Predrok_maj!H114,Januar!H114,Februar!H114,April!H114,Juni!H114,Juli!H114,Septembar!H114,Oktobar!H114,Oktobar_2!H114),"") ->  | I114: =IF(OR(Predrok_april!I114<>"",Predrok_maj!I114<>"",Januar!I114<>"",Februar!I114<>"",April!I114<>"",Juni!I114<>"",Juli!I114,Septembar!I114<>"",Oktobar!I114<>"",Oktobar_2!I114<>""),MAX(Predrok_april!I114,Predrok_maj!I114,Januar!I114,Februar!I114,April!I114,Juni!I114,Juli!I114,Septembar!I114,Oktobar!I114,Oktobar_2!I114),"") ->  | AI114: =Januar!R114 ->  | AJ114: =Februar!R114 ->  | AK114: =April!R114 ->  | AL114: =Juni!R114 ->  | AM114: =Juli!R114 ->  | AN114: =Septembar!R114 ->  | AO114: =Oktobar!R114 ->  | AP114: =Oktobar_2!R114 ->  | AR114: =Januar!T114 ->  | AS114: =Februar!T114 ->  | AT114: =April!T114 ->  | AU114: =Juni!T114 ->  | AV114: =Juli!T114 ->  | AW114: =Septembar!T114 ->  | AX114: =Oktobar!T114 ->  | AY114: =Oktobar_2!T114 -> 
A115: 113 | B115: =IF(Spisak_sluzba!A117<>"",Spisak_sluzba!A117,"") ->  | C115: =IF(Spisak_sluzba!B117<>"",Spisak_sluzba!B117,"") ->  | D115: =IF(Spisak_sluzba!C117<>"",Spisak_sluzba!C117,"") ->  | E115: =IF(Spisak_sluzba!D117<>"",Spisak_sluzba!D117,"") ->  | F115: =IF(OR(Predrok_april!F115<>"",Predrok_maj!F115<>"",Januar!F115<>"",Februar!F115<>"",April!F115<>"",Juni!F115<>"",Juli!F115,Septembar!F115<>"",Oktobar!F115<>"",Oktobar_2!F115<>""),MAX(Predrok_april!F115,Predrok_maj!F115,Januar!F115,Februar!F115,April!F115,Juni!F115,Juli!F115,Septembar!F115,Oktobar!F115,Oktobar_2!F115),"") ->  | G115: =IF(OR(Predrok_april!G115<>"",Predrok_maj!G115<>"",Januar!G115<>"",Februar!G115<>"",April!G115<>"",Juni!G115<>"",Juli!G115,Septembar!G115<>"",Oktobar!G115<>"",Oktobar_2!G115<>""),MAX(Predrok_april!G115,Predrok_maj!G115,Januar!G115,Februar!G115,April!G115,Juni!G115,Juli!G115,Septembar!G115,Oktobar!G115,Oktobar_2!G115),"") ->  | H115: =IF(OR(Predrok_april!H115<>"",Predrok_maj!H115<>"",Januar!H115<>"",Februar!H115<>"",April!H115<>"",Juni!H115<>"",Juli!H115,Septembar!H115<>"",Oktobar!H115<>"",Oktobar_2!H115<>""),MAX(Predrok_april!H115,Predrok_maj!H115,Januar!H115,Februar!H115,April!H115,Juni!H115,Juli!H115,Septembar!H115,Oktobar!H115,Oktobar_2!H115),"") ->  | I115: =IF(OR(Predrok_april!I115<>"",Predrok_maj!I115<>"",Januar!I115<>"",Februar!I115<>"",April!I115<>"",Juni!I115<>"",Juli!I115,Septembar!I115<>"",Oktobar!I115<>"",Oktobar_2!I115<>""),MAX(Predrok_april!I115,Predrok_maj!I115,Januar!I115,Februar!I115,April!I115,Juni!I115,Juli!I115,Septembar!I115,Oktobar!I115,Oktobar_2!I115),"") ->  | AI115: =Januar!R115 ->  | AJ115: =Februar!R115 ->  | AK115: =April!R115 ->  | AL115: =Juni!R115 ->  | AM115: =Juli!R115 ->  | AN115: =Septembar!R115 ->  | AO115: =Oktobar!R115 ->  | AP115: =Oktobar_2!R115 ->  | AR115: =Januar!T115 ->  | AS115: =Februar!T115 ->  | AT115: =April!T115 ->  | AU115: =Juni!T115 ->  | AV115: =Juli!T115 ->  | AW115: =Septembar!T115 ->  | AX115: =Oktobar!T115 ->  | AY115: =Oktobar_2!T115 -> 
A116: 114 | B116: =IF(Spisak_sluzba!A118<>"",Spisak_sluzba!A118,"") ->  | C116: =IF(Spisak_sluzba!B118<>"",Spisak_sluzba!B118,"") ->  | D116: =IF(Spisak_sluzba!C118<>"",Spisak_sluzba!C118,"") ->  | E116: =IF(Spisak_sluzba!D118<>"",Spisak_sluzba!D118,"") ->  | F116: =IF(OR(Predrok_april!F116<>"",Predrok_maj!F116<>"",Januar!F116<>"",Februar!F116<>"",April!F116<>"",Juni!F116<>"",Juli!F116,Septembar!F116<>"",Oktobar!F116<>"",Oktobar_2!F116<>""),MAX(Predrok_april!F116,Predrok_maj!F116,Januar!F116,Februar!F116,April!F116,Juni!F116,Juli!F116,Septembar!F116,Oktobar!F116,Oktobar_2!F116),"") ->  | G116: =IF(OR(Predrok_april!G116<>"",Predrok_maj!G116<>"",Januar!G116<>"",Februar!G116<>"",April!G116<>"",Juni!G116<>"",Juli!G116,Septembar!G116<>"",Oktobar!G116<>"",Oktobar_2!G116<>""),MAX(Predrok_april!G116,Predrok_maj!G116,Januar!G116,Februar!G116,April!G116,Juni!G116,Juli!G116,Septembar!G116,Oktobar!G116,Oktobar_2!G116),"") ->  | H116: =IF(OR(Predrok_april!H116<>"",Predrok_maj!H116<>"",Januar!H116<>"",Februar!H116<>"",April!H116<>"",Juni!H116<>"",Juli!H116,Septembar!H116<>"",Oktobar!H116<>"",Oktobar_2!H116<>""),MAX(Predrok_april!H116,Predrok_maj!H116,Januar!H116,Februar!H116,April!H116,Juni!H116,Juli!H116,Septembar!H116,Oktobar!H116,Oktobar_2!H116),"") ->  | I116: =IF(OR(Predrok_april!I116<>"",Predrok_maj!I116<>"",Januar!I116<>"",Februar!I116<>"",April!I116<>"",Juni!I116<>"",Juli!I116,Septembar!I116<>"",Oktobar!I116<>"",Oktobar_2!I116<>""),MAX(Predrok_april!I116,Predrok_maj!I116,Januar!I116,Februar!I116,April!I116,Juni!I116,Juli!I116,Septembar!I116,Oktobar!I116,Oktobar_2!I116),"") ->  | AI116: =Januar!R116 ->  | AJ116: =Februar!R116 ->  | AK116: =April!R116 ->  | AL116: =Juni!R116 ->  | AM116: =Juli!R116 ->  | AN116: =Septembar!R116 ->  | AO116: =Oktobar!R116 ->  | AP116: =Oktobar_2!R116 ->  | AR116: =Januar!T116 ->  | AS116: =Februar!T116 ->  | AT116: =April!T116 ->  | AU116: =Juni!T116 ->  | AV116: =Juli!T116 ->  | AW116: =Septembar!T116 ->  | AX116: =Oktobar!T116 ->  | AY116: =Oktobar_2!T116 -> 
A117: 115 | B117: =IF(Spisak_sluzba!A119<>"",Spisak_sluzba!A119,"") ->  | C117: =IF(Spisak_sluzba!B119<>"",Spisak_sluzba!B119,"") ->  | D117: =IF(Spisak_sluzba!C119<>"",Spisak_sluzba!C119,"") ->  | E117: =IF(Spisak_sluzba!D119<>"",Spisak_sluzba!D119,"") ->  | F117: =IF(OR(Predrok_april!F117<>"",Predrok_maj!F117<>"",Januar!F117<>"",Februar!F117<>"",April!F117<>"",Juni!F117<>"",Juli!F117,Septembar!F117<>"",Oktobar!F117<>"",Oktobar_2!F117<>""),MAX(Predrok_april!F117,Predrok_maj!F117,Januar!F117,Februar!F117,April!F117,Juni!F117,Juli!F117,Septembar!F117,Oktobar!F117,Oktobar_2!F117),"") ->  | G117: =IF(OR(Predrok_april!G117<>"",Predrok_maj!G117<>"",Januar!G117<>"",Februar!G117<>"",April!G117<>"",Juni!G117<>"",Juli!G117,Septembar!G117<>"",Oktobar!G117<>"",Oktobar_2!G117<>""),MAX(Predrok_april!G117,Predrok_maj!G117,Januar!G117,Februar!G117,April!G117,Juni!G117,Juli!G117,Septembar!G117,Oktobar!G117,Oktobar_2!G117),"") ->  | H117: =IF(OR(Predrok_april!H117<>"",Predrok_maj!H117<>"",Januar!H117<>"",Februar!H117<>"",April!H117<>"",Juni!H117<>"",Juli!H117,Septembar!H117<>"",Oktobar!H117<>"",Oktobar_2!H117<>""),MAX(Predrok_april!H117,Predrok_maj!H117,Januar!H117,Februar!H117,April!H117,Juni!H117,Juli!H117,Septembar!H117,Oktobar!H117,Oktobar_2!H117),"") ->  | I117: =IF(OR(Predrok_april!I117<>"",Predrok_maj!I117<>"",Januar!I117<>"",Februar!I117<>"",April!I117<>"",Juni!I117<>"",Juli!I117,Septembar!I117<>"",Oktobar!I117<>"",Oktobar_2!I117<>""),MAX(Predrok_april!I117,Predrok_maj!I117,Januar!I117,Februar!I117,April!I117,Juni!I117,Juli!I117,Septembar!I117,Oktobar!I117,Oktobar_2!I117),"") ->  | AI117: =Januar!R117 ->  | AJ117: =Februar!R117 ->  | AK117: =April!R117 ->  | AL117: =Juni!R117 ->  | AM117: =Juli!R117 ->  | AN117: =Septembar!R117 ->  | AO117: =Oktobar!R117 ->  | AP117: =Oktobar_2!R117 ->  | AR117: =Januar!T117 ->  | AS117: =Februar!T117 ->  | AT117: =April!T117 ->  | AU117: =Juni!T117 ->  | AV117: =Juli!T117 ->  | AW117: =Septembar!T117 ->  | AX117: =Oktobar!T117 ->  | AY117: =Oktobar_2!T117 -> 
A118: 116 | B118: =IF(Spisak_sluzba!A120<>"",Spisak_sluzba!A120,"") ->  | C118: =IF(Spisak_sluzba!B120<>"",Spisak_sluzba!B120,"") ->  | D118: =IF(Spisak_sluzba!C120<>"",Spisak_sluzba!C120,"") ->  | E118: =IF(Spisak_sluzba!D120<>"",Spisak_sluzba!D120,"") ->  | F118: =IF(OR(Predrok_april!F118<>"",Predrok_maj!F118<>"",Januar!F118<>"",Februar!F118<>"",April!F118<>"",Juni!F118<>"",Juli!F118,Septembar!F118<>"",Oktobar!F118<>"",Oktobar_2!F118<>""),MAX(Predrok_april!F118,Predrok_maj!F118,Januar!F118,Februar!F118,April!F118,Juni!F118,Juli!F118,Septembar!F118,Oktobar!F118,Oktobar_2!F118),"") ->  | G118: =IF(OR(Predrok_april!G118<>"",Predrok_maj!G118<>"",Januar!G118<>"",Februar!G118<>"",April!G118<>"",Juni!G118<>"",Juli!G118,Septembar!G118<>"",Oktobar!G118<>"",Oktobar_2!G118<>""),MAX(Predrok_april!G118,Predrok_maj!G118,Januar!G118,Februar!G118,April!G118,Juni!G118,Juli!G118,Septembar!G118,Oktobar!G118,Oktobar_2!G118),"") ->  | H118: =IF(OR(Predrok_april!H118<>"",Predrok_maj!H118<>"",Januar!H118<>"",Februar!H118<>"",April!H118<>"",Juni!H118<>"",Juli!H118,Septembar!H118<>"",Oktobar!H118<>"",Oktobar_2!H118<>""),MAX(Predrok_april!H118,Predrok_maj!H118,Januar!H118,Februar!H118,April!H118,Juni!H118,Juli!H118,Septembar!H118,Oktobar!H118,Oktobar_2!H118),"") ->  | I118: =IF(OR(Predrok_april!I118<>"",Predrok_maj!I118<>"",Januar!I118<>"",Februar!I118<>"",April!I118<>"",Juni!I118<>"",Juli!I118,Septembar!I118<>"",Oktobar!I118<>"",Oktobar_2!I118<>""),MAX(Predrok_april!I118,Predrok_maj!I118,Januar!I118,Februar!I118,April!I118,Juni!I118,Juli!I118,Septembar!I118,Oktobar!I118,Oktobar_2!I118),"") ->  | AI118: =Januar!R118 ->  | AJ118: =Februar!R118 ->  | AK118: =April!R118 ->  | AL118: =Juni!R118 ->  | AM118: =Juli!R118 ->  | AN118: =Septembar!R118 ->  | AO118: =Oktobar!R118 ->  | AP118: =Oktobar_2!R118 ->  | AR118: =Januar!T118 ->  | AS118: =Februar!T118 ->  | AT118: =April!T118 ->  | AU118: =Juni!T118 ->  | AV118: =Juli!T118 ->  | AW118: =Septembar!T118 ->  | AX118: =Oktobar!T118 ->  | AY118: =Oktobar_2!T118 -> 
A119: 117 | B119: =IF(Spisak_sluzba!A121<>"",Spisak_sluzba!A121,"") ->  | C119: =IF(Spisak_sluzba!B121<>"",Spisak_sluzba!B121,"") ->  | D119: =IF(Spisak_sluzba!C121<>"",Spisak_sluzba!C121,"") ->  | E119: =IF(Spisak_sluzba!D121<>"",Spisak_sluzba!D121,"") ->  | F119: =IF(OR(Predrok_april!F119<>"",Predrok_maj!F119<>"",Januar!F119<>"",Februar!F119<>"",April!F119<>"",Juni!F119<>"",Juli!F119,Septembar!F119<>"",Oktobar!F119<>"",Oktobar_2!F119<>""),MAX(Predrok_april!F119,Predrok_maj!F119,Januar!F119,Februar!F119,April!F119,Juni!F119,Juli!F119,Septembar!F119,Oktobar!F119,Oktobar_2!F119),"") ->  | G119: =IF(OR(Predrok_april!G119<>"",Predrok_maj!G119<>"",Januar!G119<>"",Februar!G119<>"",April!G119<>"",Juni!G119<>"",Juli!G119,Septembar!G119<>"",Oktobar!G119<>"",Oktobar_2!G119<>""),MAX(Predrok_april!G119,Predrok_maj!G119,Januar!G119,Februar!G119,April!G119,Juni!G119,Juli!G119,Septembar!G119,Oktobar!G119,Oktobar_2!G119),"") ->  | H119: =IF(OR(Predrok_april!H119<>"",Predrok_maj!H119<>"",Januar!H119<>"",Februar!H119<>"",April!H119<>"",Juni!H119<>"",Juli!H119,Septembar!H119<>"",Oktobar!H119<>"",Oktobar_2!H119<>""),MAX(Predrok_april!H119,Predrok_maj!H119,Januar!H119,Februar!H119,April!H119,Juni!H119,Juli!H119,Septembar!H119,Oktobar!H119,Oktobar_2!H119),"") ->  | I119: =IF(OR(Predrok_april!I119<>"",Predrok_maj!I119<>"",Januar!I119<>"",Februar!I119<>"",April!I119<>"",Juni!I119<>"",Juli!I119,Septembar!I119<>"",Oktobar!I119<>"",Oktobar_2!I119<>""),MAX(Predrok_april!I119,Predrok_maj!I119,Januar!I119,Februar!I119,April!I119,Juni!I119,Juli!I119,Septembar!I119,Oktobar!I119,Oktobar_2!I119),"") ->  | AI119: =Januar!R119 ->  | AJ119: =Februar!R119 ->  | AK119: =April!R119 ->  | AL119: =Juni!R119 ->  | AM119: =Juli!R119 ->  | AN119: =Septembar!R119 ->  | AO119: =Oktobar!R119 ->  | AP119: =Oktobar_2!R119 ->  | AR119: =Januar!T119 ->  | AS119: =Februar!T119 ->  | AT119: =April!T119 ->  | AU119: =Juni!T119 ->  | AV119: =Juli!T119 ->  | AW119: =Septembar!T119 ->  | AX119: =Oktobar!T119 ->  | AY119: =Oktobar_2!T119 -> 
A120: 118 | B120: =IF(Spisak_sluzba!A122<>"",Spisak_sluzba!A122,"") ->  | C120: =IF(Spisak_sluzba!B122<>"",Spisak_sluzba!B122,"") ->  | D120: =IF(Spisak_sluzba!C122<>"",Spisak_sluzba!C122,"") ->  | E120: =IF(Spisak_sluzba!D122<>"",Spisak_sluzba!D122,"") ->  | F120: =IF(OR(Predrok_april!F120<>"",Predrok_maj!F120<>"",Januar!F120<>"",Februar!F120<>"",April!F120<>"",Juni!F120<>"",Juli!F120,Septembar!F120<>"",Oktobar!F120<>"",Oktobar_2!F120<>""),MAX(Predrok_april!F120,Predrok_maj!F120,Januar!F120,Februar!F120,April!F120,Juni!F120,Juli!F120,Septembar!F120,Oktobar!F120,Oktobar_2!F120),"") ->  | G120: =IF(OR(Predrok_april!G120<>"",Predrok_maj!G120<>"",Januar!G120<>"",Februar!G120<>"",April!G120<>"",Juni!G120<>"",Juli!G120,Septembar!G120<>"",Oktobar!G120<>"",Oktobar_2!G120<>""),MAX(Predrok_april!G120,Predrok_maj!G120,Januar!G120,Februar!G120,April!G120,Juni!G120,Juli!G120,Septembar!G120,Oktobar!G120,Oktobar_2!G120),"") ->  | H120: =IF(OR(Predrok_april!H120<>"",Predrok_maj!H120<>"",Januar!H120<>"",Februar!H120<>"",April!H120<>"",Juni!H120<>"",Juli!H120,Septembar!H120<>"",Oktobar!H120<>"",Oktobar_2!H120<>""),MAX(Predrok_april!H120,Predrok_maj!H120,Januar!H120,Februar!H120,April!H120,Juni!H120,Juli!H120,Septembar!H120,Oktobar!H120,Oktobar_2!H120),"") ->  | I120: =IF(OR(Predrok_april!I120<>"",Predrok_maj!I120<>"",Januar!I120<>"",Februar!I120<>"",April!I120<>"",Juni!I120<>"",Juli!I120,Septembar!I120<>"",Oktobar!I120<>"",Oktobar_2!I120<>""),MAX(Predrok_april!I120,Predrok_maj!I120,Januar!I120,Februar!I120,April!I120,Juni!I120,Juli!I120,Septembar!I120,Oktobar!I120,Oktobar_2!I120),"") ->  | AI120: =Januar!R120 ->  | AJ120: =Februar!R120 ->  | AK120: =April!R120 ->  | AL120: =Juni!R120 ->  | AM120: =Juli!R120 ->  | AN120: =Septembar!R120 ->  | AO120: =Oktobar!R120 ->  | AP120: =Oktobar_2!R120 ->  | AR120: =Januar!T120 ->  | AS120: =Februar!T120 ->  | AT120: =April!T120 ->  | AU120: =Juni!T120 ->  | AV120: =Juli!T120 ->  | AW120: =Septembar!T120 ->  | AX120: =Oktobar!T120 ->  | AY120: =Oktobar_2!T120 -> 
A121: 119 | B121: =IF(Spisak_sluzba!A123<>"",Spisak_sluzba!A123,"") ->  | C121: =IF(Spisak_sluzba!B123<>"",Spisak_sluzba!B123,"") ->  | D121: =IF(Spisak_sluzba!C123<>"",Spisak_sluzba!C123,"") ->  | E121: =IF(Spisak_sluzba!D123<>"",Spisak_sluzba!D123,"") ->  | F121: =IF(OR(Predrok_april!F121<>"",Predrok_maj!F121<>"",Januar!F121<>"",Februar!F121<>"",April!F121<>"",Juni!F121<>"",Juli!F121,Septembar!F121<>"",Oktobar!F121<>"",Oktobar_2!F121<>""),MAX(Predrok_april!F121,Predrok_maj!F121,Januar!F121,Februar!F121,April!F121,Juni!F121,Juli!F121,Septembar!F121,Oktobar!F121,Oktobar_2!F121),"") ->  | G121: =IF(OR(Predrok_april!G121<>"",Predrok_maj!G121<>"",Januar!G121<>"",Februar!G121<>"",April!G121<>"",Juni!G121<>"",Juli!G121,Septembar!G121<>"",Oktobar!G121<>"",Oktobar_2!G121<>""),MAX(Predrok_april!G121,Predrok_maj!G121,Januar!G121,Februar!G121,April!G121,Juni!G121,Juli!G121,Septembar!G121,Oktobar!G121,Oktobar_2!G121),"") ->  | H121: =IF(OR(Predrok_april!H121<>"",Predrok_maj!H121<>"",Januar!H121<>"",Februar!H121<>"",April!H121<>"",Juni!H121<>"",Juli!H121,Septembar!H121<>"",Oktobar!H121<>"",Oktobar_2!H121<>""),MAX(Predrok_april!H121,Predrok_maj!H121,Januar!H121,Februar!H121,April!H121,Juni!H121,Juli!H121,Septembar!H121,Oktobar!H121,Oktobar_2!H121),"") ->  | I121: =IF(OR(Predrok_april!I121<>"",Predrok_maj!I121<>"",Januar!I121<>"",Februar!I121<>"",April!I121<>"",Juni!I121<>"",Juli!I121,Septembar!I121<>"",Oktobar!I121<>"",Oktobar_2!I121<>""),MAX(Predrok_april!I121,Predrok_maj!I121,Januar!I121,Februar!I121,April!I121,Juni!I121,Juli!I121,Septembar!I121,Oktobar!I121,Oktobar_2!I121),"") ->  | AI121: =Januar!R121 ->  | AJ121: =Februar!R121 ->  | AK121: =April!R121 ->  | AL121: =Juni!R121 ->  | AM121: =Juli!R121 ->  | AN121: =Septembar!R121 ->  | AO121: =Oktobar!R121 ->  | AP121: =Oktobar_2!R121 ->  | AR121: =Januar!T121 ->  | AS121: =Februar!T121 ->  | AT121: =April!T121 ->  | AU121: =Juni!T121 ->  | AV121: =Juli!T121 ->  | AW121: =Septembar!T121 ->  | AX121: =Oktobar!T121 ->  | AY121: =Oktobar_2!T121 -> 
A122: 120 | B122: =IF(Spisak_sluzba!A124<>"",Spisak_sluzba!A124,"") ->  | C122: =IF(Spisak_sluzba!B124<>"",Spisak_sluzba!B124,"") ->  | D122: =IF(Spisak_sluzba!C124<>"",Spisak_sluzba!C124,"") ->  | E122: =IF(Spisak_sluzba!D124<>"",Spisak_sluzba!D124,"") ->  | F122: =IF(OR(Predrok_april!F122<>"",Predrok_maj!F122<>"",Januar!F122<>"",Februar!F122<>"",April!F122<>"",Juni!F122<>"",Juli!F122,Septembar!F122<>"",Oktobar!F122<>"",Oktobar_2!F122<>""),MAX(Predrok_april!F122,Predrok_maj!F122,Januar!F122,Februar!F122,April!F122,Juni!F122,Juli!F122,Septembar!F122,Oktobar!F122,Oktobar_2!F122),"") ->  | G122: =IF(OR(Predrok_april!G122<>"",Predrok_maj!G122<>"",Januar!G122<>"",Februar!G122<>"",April!G122<>"",Juni!G122<>"",Juli!G122,Septembar!G122<>"",Oktobar!G122<>"",Oktobar_2!G122<>""),MAX(Predrok_april!G122,Predrok_maj!G122,Januar!G122,Februar!G122,April!G122,Juni!G122,Juli!G122,Septembar!G122,Oktobar!G122,Oktobar_2!G122),"") ->  | H122: =IF(OR(Predrok_april!H122<>"",Predrok_maj!H122<>"",Januar!H122<>"",Februar!H122<>"",April!H122<>"",Juni!H122<>"",Juli!H122,Septembar!H122<>"",Oktobar!H122<>"",Oktobar_2!H122<>""),MAX(Predrok_april!H122,Predrok_maj!H122,Januar!H122,Februar!H122,April!H122,Juni!H122,Juli!H122,Septembar!H122,Oktobar!H122,Oktobar_2!H122),"") ->  | I122: =IF(OR(Predrok_april!I122<>"",Predrok_maj!I122<>"",Januar!I122<>"",Februar!I122<>"",April!I122<>"",Juni!I122<>"",Juli!I122,Septembar!I122<>"",Oktobar!I122<>"",Oktobar_2!I122<>""),MAX(Predrok_april!I122,Predrok_maj!I122,Januar!I122,Februar!I122,April!I122,Juni!I122,Juli!I122,Septembar!I122,Oktobar!I122,Oktobar_2!I122),"") ->  | AI122: =Januar!R122 ->  | AJ122: =Februar!R122 ->  | AK122: =April!R122 ->  | AL122: =Juni!R122 ->  | AM122: =Juli!R122 ->  | AN122: =Septembar!R122 ->  | AO122: =Oktobar!R122 ->  | AP122: =Oktobar_2!R122 ->  | AR122: =Januar!T122 ->  | AS122: =Februar!T122 ->  | AT122: =April!T122 ->  | AU122: =Juni!T122 ->  | AV122: =Juli!T122 ->  | AW122: =Septembar!T122 ->  | AX122: =Oktobar!T122 ->  | AY122: =Oktobar_2!T122 -> 
A123: 121 | B123: =IF(Spisak_sluzba!A125<>"",Spisak_sluzba!A125,"") ->  | C123: =IF(Spisak_sluzba!B125<>"",Spisak_sluzba!B125,"") ->  | D123: =IF(Spisak_sluzba!C125<>"",Spisak_sluzba!C125,"") ->  | E123: =IF(Spisak_sluzba!D125<>"",Spisak_sluzba!D125,"") ->  | F123: =IF(OR(Predrok_april!F123<>"",Predrok_maj!F123<>"",Januar!F123<>"",Februar!F123<>"",April!F123<>"",Juni!F123<>"",Juli!F123,Septembar!F123<>"",Oktobar!F123<>"",Oktobar_2!F123<>""),MAX(Predrok_april!F123,Predrok_maj!F123,Januar!F123,Februar!F123,April!F123,Juni!F123,Juli!F123,Septembar!F123,Oktobar!F123,Oktobar_2!F123),"") ->  | G123: =IF(OR(Predrok_april!G123<>"",Predrok_maj!G123<>"",Januar!G123<>"",Februar!G123<>"",April!G123<>"",Juni!G123<>"",Juli!G123,Septembar!G123<>"",Oktobar!G123<>"",Oktobar_2!G123<>""),MAX(Predrok_april!G123,Predrok_maj!G123,Januar!G123,Februar!G123,April!G123,Juni!G123,Juli!G123,Septembar!G123,Oktobar!G123,Oktobar_2!G123),"") ->  | H123: =IF(OR(Predrok_april!H123<>"",Predrok_maj!H123<>"",Januar!H123<>"",Februar!H123<>"",April!H123<>"",Juni!H123<>"",Juli!H123,Septembar!H123<>"",Oktobar!H123<>"",Oktobar_2!H123<>""),MAX(Predrok_april!H123,Predrok_maj!H123,Januar!H123,Februar!H123,April!H123,Juni!H123,Juli!H123,Septembar!H123,Oktobar!H123,Oktobar_2!H123),"") ->  | I123: =IF(OR(Predrok_april!I123<>"",Predrok_maj!I123<>"",Januar!I123<>"",Februar!I123<>"",April!I123<>"",Juni!I123<>"",Juli!I123,Septembar!I123<>"",Oktobar!I123<>"",Oktobar_2!I123<>""),MAX(Predrok_april!I123,Predrok_maj!I123,Januar!I123,Februar!I123,April!I123,Juni!I123,Juli!I123,Septembar!I123,Oktobar!I123,Oktobar_2!I123),"") ->  | AI123: =Januar!R123 ->  | AJ123: =Februar!R123 ->  | AK123: =April!R123 ->  | AL123: =Juni!R123 ->  | AM123: =Juli!R123 ->  | AN123: =Septembar!R123 ->  | AO123: =Oktobar!R123 ->  | AP123: =Oktobar_2!R123 ->  | AR123: =Januar!T123 ->  | AS123: =Februar!T123 ->  | AT123: =April!T123 ->  | AU123: =Juni!T123 ->  | AV123: =Juli!T123 ->  | AW123: =Septembar!T123 ->  | AX123: =Oktobar!T123 ->  | AY123: =Oktobar_2!T123 -> 
A124: 122 | B124: =IF(Spisak_sluzba!A126<>"",Spisak_sluzba!A126,"") ->  | C124: =IF(Spisak_sluzba!B126<>"",Spisak_sluzba!B126,"") ->  | D124: =IF(Spisak_sluzba!C126<>"",Spisak_sluzba!C126,"") ->  | E124: =IF(Spisak_sluzba!D126<>"",Spisak_sluzba!D126,"") ->  | F124: =IF(OR(Predrok_april!F124<>"",Predrok_maj!F124<>"",Januar!F124<>"",Februar!F124<>"",April!F124<>"",Juni!F124<>"",Juli!F124,Septembar!F124<>"",Oktobar!F124<>"",Oktobar_2!F124<>""),MAX(Predrok_april!F124,Predrok_maj!F124,Januar!F124,Februar!F124,April!F124,Juni!F124,Juli!F124,Septembar!F124,Oktobar!F124,Oktobar_2!F124),"") ->  | G124: =IF(OR(Predrok_april!G124<>"",Predrok_maj!G124<>"",Januar!G124<>"",Februar!G124<>"",April!G124<>"",Juni!G124<>"",Juli!G124,Septembar!G124<>"",Oktobar!G124<>"",Oktobar_2!G124<>""),MAX(Predrok_april!G124,Predrok_maj!G124,Januar!G124,Februar!G124,April!G124,Juni!G124,Juli!G124,Septembar!G124,Oktobar!G124,Oktobar_2!G124),"") ->  | H124: =IF(OR(Predrok_april!H124<>"",Predrok_maj!H124<>"",Januar!H124<>"",Februar!H124<>"",April!H124<>"",Juni!H124<>"",Juli!H124,Septembar!H124<>"",Oktobar!H124<>"",Oktobar_2!H124<>""),MAX(Predrok_april!H124,Predrok_maj!H124,Januar!H124,Februar!H124,April!H124,Juni!H124,Juli!H124,Septembar!H124,Oktobar!H124,Oktobar_2!H124),"") ->  | I124: =IF(OR(Predrok_april!I124<>"",Predrok_maj!I124<>"",Januar!I124<>"",Februar!I124<>"",April!I124<>"",Juni!I124<>"",Juli!I124,Septembar!I124<>"",Oktobar!I124<>"",Oktobar_2!I124<>""),MAX(Predrok_april!I124,Predrok_maj!I124,Januar!I124,Februar!I124,April!I124,Juni!I124,Juli!I124,Septembar!I124,Oktobar!I124,Oktobar_2!I124),"") ->  | AI124: =Januar!R124 ->  | AJ124: =Februar!R124 ->  | AK124: =April!R124 ->  | AL124: =Juni!R124 ->  | AM124: =Juli!R124 ->  | AN124: =Septembar!R124 ->  | AO124: =Oktobar!R124 ->  | AP124: =Oktobar_2!R124 ->  | AR124: =Januar!T124 ->  | AS124: =Februar!T124 ->  | AT124: =April!T124 ->  | AU124: =Juni!T124 ->  | AV124: =Juli!T124 ->  | AW124: =Septembar!T124 ->  | AX124: =Oktobar!T124 ->  | AY124: =Oktobar_2!T124 -> 
A125: 123 | B125: =IF(Spisak_sluzba!A127<>"",Spisak_sluzba!A127,"") ->  | C125: =IF(Spisak_sluzba!B127<>"",Spisak_sluzba!B127,"") ->  | D125: =IF(Spisak_sluzba!C127<>"",Spisak_sluzba!C127,"") ->  | E125: =IF(Spisak_sluzba!D127<>"",Spisak_sluzba!D127,"") ->  | F125: =IF(OR(Predrok_april!F125<>"",Predrok_maj!F125<>"",Januar!F125<>"",Februar!F125<>"",April!F125<>"",Juni!F125<>"",Juli!F125,Septembar!F125<>"",Oktobar!F125<>"",Oktobar_2!F125<>""),MAX(Predrok_april!F125,Predrok_maj!F125,Januar!F125,Februar!F125,April!F125,Juni!F125,Juli!F125,Septembar!F125,Oktobar!F125,Oktobar_2!F125),"") ->  | G125: =IF(OR(Predrok_april!G125<>"",Predrok_maj!G125<>"",Januar!G125<>"",Februar!G125<>"",April!G125<>"",Juni!G125<>"",Juli!G125,Septembar!G125<>"",Oktobar!G125<>"",Oktobar_2!G125<>""),MAX(Predrok_april!G125,Predrok_maj!G125,Januar!G125,Februar!G125,April!G125,Juni!G125,Juli!G125,Septembar!G125,Oktobar!G125,Oktobar_2!G125),"") ->  | H125: =IF(OR(Predrok_april!H125<>"",Predrok_maj!H125<>"",Januar!H125<>"",Februar!H125<>"",April!H125<>"",Juni!H125<>"",Juli!H125,Septembar!H125<>"",Oktobar!H125<>"",Oktobar_2!H125<>""),MAX(Predrok_april!H125,Predrok_maj!H125,Januar!H125,Februar!H125,April!H125,Juni!H125,Juli!H125,Septembar!H125,Oktobar!H125,Oktobar_2!H125),"") ->  | I125: =IF(OR(Predrok_april!I125<>"",Predrok_maj!I125<>"",Januar!I125<>"",Februar!I125<>"",April!I125<>"",Juni!I125<>"",Juli!I125,Septembar!I125<>"",Oktobar!I125<>"",Oktobar_2!I125<>""),MAX(Predrok_april!I125,Predrok_maj!I125,Januar!I125,Februar!I125,April!I125,Juni!I125,Juli!I125,Septembar!I125,Oktobar!I125,Oktobar_2!I125),"") ->  | AI125: =Januar!R125 ->  | AJ125: =Februar!R125 ->  | AK125: =April!R125 ->  | AL125: =Juni!R125 ->  | AM125: =Juli!R125 ->  | AN125: =Septembar!R125 ->  | AO125: =Oktobar!R125 ->  | AP125: =Oktobar_2!R125 ->  | AR125: =Januar!T125 ->  | AS125: =Februar!T125 ->  | AT125: =April!T125 ->  | AU125: =Juni!T125 ->  | AV125: =Juli!T125 ->  | AW125: =Septembar!T125 ->  | AX125: =Oktobar!T125 ->  | AY125: =Oktobar_2!T125 -> 
A126: 124 | B126: =IF(Spisak_sluzba!A128<>"",Spisak_sluzba!A128,"") ->  | C126: =IF(Spisak_sluzba!B128<>"",Spisak_sluzba!B128,"") ->  | D126: =IF(Spisak_sluzba!C128<>"",Spisak_sluzba!C128,"") ->  | E126: =IF(Spisak_sluzba!D128<>"",Spisak_sluzba!D128,"") ->  | F126: =IF(OR(Predrok_april!F126<>"",Predrok_maj!F126<>"",Januar!F126<>"",Februar!F126<>"",April!F126<>"",Juni!F126<>"",Juli!F126,Septembar!F126<>"",Oktobar!F126<>"",Oktobar_2!F126<>""),MAX(Predrok_april!F126,Predrok_maj!F126,Januar!F126,Februar!F126,April!F126,Juni!F126,Juli!F126,Septembar!F126,Oktobar!F126,Oktobar_2!F126),"") ->  | G126: =IF(OR(Predrok_april!G126<>"",Predrok_maj!G126<>"",Januar!G126<>"",Februar!G126<>"",April!G126<>"",Juni!G126<>"",Juli!G126,Septembar!G126<>"",Oktobar!G126<>"",Oktobar_2!G126<>""),MAX(Predrok_april!G126,Predrok_maj!G126,Januar!G126,Februar!G126,April!G126,Juni!G126,Juli!G126,Septembar!G126,Oktobar!G126,Oktobar_2!G126),"") ->  | H126: =IF(OR(Predrok_april!H126<>"",Predrok_maj!H126<>"",Januar!H126<>"",Februar!H126<>"",April!H126<>"",Juni!H126<>"",Juli!H126,Septembar!H126<>"",Oktobar!H126<>"",Oktobar_2!H126<>""),MAX(Predrok_april!H126,Predrok_maj!H126,Januar!H126,Februar!H126,April!H126,Juni!H126,Juli!H126,Septembar!H126,Oktobar!H126,Oktobar_2!H126),"") ->  | I126: =IF(OR(Predrok_april!I126<>"",Predrok_maj!I126<>"",Januar!I126<>"",Februar!I126<>"",April!I126<>"",Juni!I126<>"",Juli!I126,Septembar!I126<>"",Oktobar!I126<>"",Oktobar_2!I126<>""),MAX(Predrok_april!I126,Predrok_maj!I126,Januar!I126,Februar!I126,April!I126,Juni!I126,Juli!I126,Septembar!I126,Oktobar!I126,Oktobar_2!I126),"") ->  | AI126: =Januar!R126 ->  | AJ126: =Februar!R126 ->  | AK126: =April!R126 ->  | AL126: =Juni!R126 ->  | AM126: =Juli!R126 ->  | AN126: =Septembar!R126 ->  | AO126: =Oktobar!R126 ->  | AP126: =Oktobar_2!R126 ->  | AR126: =Januar!T126 ->  | AS126: =Februar!T126 ->  | AT126: =April!T126 ->  | AU126: =Juni!T126 ->  | AV126: =Juli!T126 ->  | AW126: =Septembar!T126 ->  | AX126: =Oktobar!T126 ->  | AY126: =Oktobar_2!T126 -> 
A127: 125 | B127: =IF(Spisak_sluzba!A129<>"",Spisak_sluzba!A129,"") ->  | C127: =IF(Spisak_sluzba!B129<>"",Spisak_sluzba!B129,"") ->  | D127: =IF(Spisak_sluzba!C129<>"",Spisak_sluzba!C129,"") ->  | E127: =IF(Spisak_sluzba!D129<>"",Spisak_sluzba!D129,"") ->  | F127: =IF(OR(Predrok_april!F127<>"",Predrok_maj!F127<>"",Januar!F127<>"",Februar!F127<>"",April!F127<>"",Juni!F127<>"",Juli!F127,Septembar!F127<>"",Oktobar!F127<>"",Oktobar_2!F127<>""),MAX(Predrok_april!F127,Predrok_maj!F127,Januar!F127,Februar!F127,April!F127,Juni!F127,Juli!F127,Septembar!F127,Oktobar!F127,Oktobar_2!F127),"") ->  | G127: =IF(OR(Predrok_april!G127<>"",Predrok_maj!G127<>"",Januar!G127<>"",Februar!G127<>"",April!G127<>"",Juni!G127<>"",Juli!G127,Septembar!G127<>"",Oktobar!G127<>"",Oktobar_2!G127<>""),MAX(Predrok_april!G127,Predrok_maj!G127,Januar!G127,Februar!G127,April!G127,Juni!G127,Juli!G127,Septembar!G127,Oktobar!G127,Oktobar_2!G127),"") ->  | H127: =IF(OR(Predrok_april!H127<>"",Predrok_maj!H127<>"",Januar!H127<>"",Februar!H127<>"",April!H127<>"",Juni!H127<>"",Juli!H127,Septembar!H127<>"",Oktobar!H127<>"",Oktobar_2!H127<>""),MAX(Predrok_april!H127,Predrok_maj!H127,Januar!H127,Februar!H127,April!H127,Juni!H127,Juli!H127,Septembar!H127,Oktobar!H127,Oktobar_2!H127),"") ->  | I127: =IF(OR(Predrok_april!I127<>"",Predrok_maj!I127<>"",Januar!I127<>"",Februar!I127<>"",April!I127<>"",Juni!I127<>"",Juli!I127,Septembar!I127<>"",Oktobar!I127<>"",Oktobar_2!I127<>""),MAX(Predrok_april!I127,Predrok_maj!I127,Januar!I127,Februar!I127,April!I127,Juni!I127,Juli!I127,Septembar!I127,Oktobar!I127,Oktobar_2!I127),"") ->  | AI127: =Januar!R127 ->  | AJ127: =Februar!R127 ->  | AK127: =April!R127 ->  | AL127: =Juni!R127 ->  | AM127: =Juli!R127 ->  | AN127: =Septembar!R127 ->  | AO127: =Oktobar!R127 ->  | AP127: =Oktobar_2!R127 ->  | AR127: =Januar!T127 ->  | AS127: =Februar!T127 ->  | AT127: =April!T127 ->  | AU127: =Juni!T127 ->  | AV127: =Juli!T127 ->  | AW127: =Septembar!T127 ->  | AX127: =Oktobar!T127 ->  | AY127: =Oktobar_2!T127 -> 
A128: 126 | B128: =IF(Spisak_sluzba!A130<>"",Spisak_sluzba!A130,"") ->  | C128: =IF(Spisak_sluzba!B130<>"",Spisak_sluzba!B130,"") ->  | D128: =IF(Spisak_sluzba!C130<>"",Spisak_sluzba!C130,"") ->  | E128: =IF(Spisak_sluzba!D130<>"",Spisak_sluzba!D130,"") ->  | F128: =IF(OR(Predrok_april!F128<>"",Predrok_maj!F128<>"",Januar!F128<>"",Februar!F128<>"",April!F128<>"",Juni!F128<>"",Juli!F128,Septembar!F128<>"",Oktobar!F128<>"",Oktobar_2!F128<>""),MAX(Predrok_april!F128,Predrok_maj!F128,Januar!F128,Februar!F128,April!F128,Juni!F128,Juli!F128,Septembar!F128,Oktobar!F128,Oktobar_2!F128),"") ->  | G128: =IF(OR(Predrok_april!G128<>"",Predrok_maj!G128<>"",Januar!G128<>"",Februar!G128<>"",April!G128<>"",Juni!G128<>"",Juli!G128,Septembar!G128<>"",Oktobar!G128<>"",Oktobar_2!G128<>""),MAX(Predrok_april!G128,Predrok_maj!G128,Januar!G128,Februar!G128,April!G128,Juni!G128,Juli!G128,Septembar!G128,Oktobar!G128,Oktobar_2!G128),"") ->  | H128: =IF(OR(Predrok_april!H128<>"",Predrok_maj!H128<>"",Januar!H128<>"",Februar!H128<>"",April!H128<>"",Juni!H128<>"",Juli!H128,Septembar!H128<>"",Oktobar!H128<>"",Oktobar_2!H128<>""),MAX(Predrok_april!H128,Predrok_maj!H128,Januar!H128,Februar!H128,April!H128,Juni!H128,Juli!H128,Septembar!H128,Oktobar!H128,Oktobar_2!H128),"") ->  | I128: =IF(OR(Predrok_april!I128<>"",Predrok_maj!I128<>"",Januar!I128<>"",Februar!I128<>"",April!I128<>"",Juni!I128<>"",Juli!I128,Septembar!I128<>"",Oktobar!I128<>"",Oktobar_2!I128<>""),MAX(Predrok_april!I128,Predrok_maj!I128,Januar!I128,Februar!I128,April!I128,Juni!I128,Juli!I128,Septembar!I128,Oktobar!I128,Oktobar_2!I128),"") ->  | AI128: =Januar!R128 ->  | AJ128: =Februar!R128 ->  | AK128: =April!R128 ->  | AL128: =Juni!R128 ->  | AM128: =Juli!R128 ->  | AN128: =Septembar!R128 ->  | AO128: =Oktobar!R128 ->  | AP128: =Oktobar_2!R128 ->  | AR128: =Januar!T128 ->  | AS128: =Februar!T128 ->  | AT128: =April!T128 ->  | AU128: =Juni!T128 ->  | AV128: =Juli!T128 ->  | AW128: =Septembar!T128 ->  | AX128: =Oktobar!T128 ->  | AY128: =Oktobar_2!T128 -> 
A129: 127 | B129: =IF(Spisak_sluzba!A131<>"",Spisak_sluzba!A131,"") ->  | C129: =IF(Spisak_sluzba!B131<>"",Spisak_sluzba!B131,"") ->  | D129: =IF(Spisak_sluzba!C131<>"",Spisak_sluzba!C131,"") ->  | E129: =IF(Spisak_sluzba!D131<>"",Spisak_sluzba!D131,"") ->  | F129: =IF(OR(Predrok_april!F129<>"",Predrok_maj!F129<>"",Januar!F129<>"",Februar!F129<>"",April!F129<>"",Juni!F129<>"",Juli!F129,Septembar!F129<>"",Oktobar!F129<>"",Oktobar_2!F129<>""),MAX(Predrok_april!F129,Predrok_maj!F129,Januar!F129,Februar!F129,April!F129,Juni!F129,Juli!F129,Septembar!F129,Oktobar!F129,Oktobar_2!F129),"") ->  | G129: =IF(OR(Predrok_april!G129<>"",Predrok_maj!G129<>"",Januar!G129<>"",Februar!G129<>"",April!G129<>"",Juni!G129<>"",Juli!G129,Septembar!G129<>"",Oktobar!G129<>"",Oktobar_2!G129<>""),MAX(Predrok_april!G129,Predrok_maj!G129,Januar!G129,Februar!G129,April!G129,Juni!G129,Juli!G129,Septembar!G129,Oktobar!G129,Oktobar_2!G129),"") ->  | H129: =IF(OR(Predrok_april!H129<>"",Predrok_maj!H129<>"",Januar!H129<>"",Februar!H129<>"",April!H129<>"",Juni!H129<>"",Juli!H129,Septembar!H129<>"",Oktobar!H129<>"",Oktobar_2!H129<>""),MAX(Predrok_april!H129,Predrok_maj!H129,Januar!H129,Februar!H129,April!H129,Juni!H129,Juli!H129,Septembar!H129,Oktobar!H129,Oktobar_2!H129),"") ->  | I129: =IF(OR(Predrok_april!I129<>"",Predrok_maj!I129<>"",Januar!I129<>"",Februar!I129<>"",April!I129<>"",Juni!I129<>"",Juli!I129,Septembar!I129<>"",Oktobar!I129<>"",Oktobar_2!I129<>""),MAX(Predrok_april!I129,Predrok_maj!I129,Januar!I129,Februar!I129,April!I129,Juni!I129,Juli!I129,Septembar!I129,Oktobar!I129,Oktobar_2!I129),"") ->  | AI129: =Januar!R129 ->  | AJ129: =Februar!R129 ->  | AK129: =April!R129 ->  | AL129: =Juni!R129 ->  | AM129: =Juli!R129 ->  | AN129: =Septembar!R129 ->  | AO129: =Oktobar!R129 ->  | AP129: =Oktobar_2!R129 ->  | AR129: =Januar!T129 ->  | AS129: =Februar!T129 ->  | AT129: =April!T129 ->  | AU129: =Juni!T129 ->  | AV129: =Juli!T129 ->  | AW129: =Septembar!T129 ->  | AX129: =Oktobar!T129 ->  | AY129: =Oktobar_2!T129 -> 
A130: 128 | B130: =IF(Spisak_sluzba!A132<>"",Spisak_sluzba!A132,"") ->  | C130: =IF(Spisak_sluzba!B132<>"",Spisak_sluzba!B132,"") ->  | D130: =IF(Spisak_sluzba!C132<>"",Spisak_sluzba!C132,"") ->  | E130: =IF(Spisak_sluzba!D132<>"",Spisak_sluzba!D132,"") ->  | F130: =IF(OR(Predrok_april!F130<>"",Predrok_maj!F130<>"",Januar!F130<>"",Februar!F130<>"",April!F130<>"",Juni!F130<>"",Juli!F130,Septembar!F130<>"",Oktobar!F130<>"",Oktobar_2!F130<>""),MAX(Predrok_april!F130,Predrok_maj!F130,Januar!F130,Februar!F130,April!F130,Juni!F130,Juli!F130,Septembar!F130,Oktobar!F130,Oktobar_2!F130),"") ->  | G130: =IF(OR(Predrok_april!G130<>"",Predrok_maj!G130<>"",Januar!G130<>"",Februar!G130<>"",April!G130<>"",Juni!G130<>"",Juli!G130,Septembar!G130<>"",Oktobar!G130<>"",Oktobar_2!G130<>""),MAX(Predrok_april!G130,Predrok_maj!G130,Januar!G130,Februar!G130,April!G130,Juni!G130,Juli!G130,Septembar!G130,Oktobar!G130,Oktobar_2!G130),"") ->  | H130: =IF(OR(Predrok_april!H130<>"",Predrok_maj!H130<>"",Januar!H130<>"",Februar!H130<>"",April!H130<>"",Juni!H130<>"",Juli!H130,Septembar!H130<>"",Oktobar!H130<>"",Oktobar_2!H130<>""),MAX(Predrok_april!H130,Predrok_maj!H130,Januar!H130,Februar!H130,April!H130,Juni!H130,Juli!H130,Septembar!H130,Oktobar!H130,Oktobar_2!H130),"") ->  | I130: =IF(OR(Predrok_april!I130<>"",Predrok_maj!I130<>"",Januar!I130<>"",Februar!I130<>"",April!I130<>"",Juni!I130<>"",Juli!I130,Septembar!I130<>"",Oktobar!I130<>"",Oktobar_2!I130<>""),MAX(Predrok_april!I130,Predrok_maj!I130,Januar!I130,Februar!I130,April!I130,Juni!I130,Juli!I130,Septembar!I130,Oktobar!I130,Oktobar_2!I130),"") ->  | L130: =IF(S130<>"",5,"") ->  | M130: =IF(S130<>"",5,"") ->  | AD130: =IF(AND(U130<>"",V130<>""),S130,"") ->  | AI130: =Januar!R130 ->  | AJ130: =Februar!R130 ->  | AK130: =April!R130 ->  | AL130: =Juni!R130 ->  | AM130: =Juli!R130 ->  | AN130: =Septembar!R130 ->  | AO130: =Oktobar!R130 ->  | AP130: =Oktobar_2!R130 ->  | AR130: =Januar!T130 ->  | AS130: =Februar!T130 ->  | AT130: =April!T130 ->  | AU130: =Juni!T130 ->  | AV130: =Juli!T130 ->  | AW130: =Septembar!T130 ->  | AX130: =Oktobar!T130 ->  | AY130: =Oktobar_2!T130 -> 
A131: 129 | B131: =IF(Spisak_sluzba!A133<>"",Spisak_sluzba!A133,"") ->  | C131: =IF(Spisak_sluzba!B133<>"",Spisak_sluzba!B133,"") ->  | D131: =IF(Spisak_sluzba!C133<>"",Spisak_sluzba!C133,"") ->  | E131: =IF(Spisak_sluzba!D133<>"",Spisak_sluzba!D133,"") ->  | F131: =IF(OR(Predrok_april!F131<>"",Predrok_maj!F131<>"",Januar!F131<>"",Februar!F131<>"",April!F131<>"",Juni!F131<>"",Juli!F131,Septembar!F131<>"",Oktobar!F131<>"",Oktobar_2!F131<>""),MAX(Predrok_april!F131,Predrok_maj!F131,Januar!F131,Februar!F131,April!F131,Juni!F131,Juli!F131,Septembar!F131,Oktobar!F131,Oktobar_2!F131),"") ->  | G131: =IF(OR(Predrok_april!G131<>"",Predrok_maj!G131<>"",Januar!G131<>"",Februar!G131<>"",April!G131<>"",Juni!G131<>"",Juli!G131,Septembar!G131<>"",Oktobar!G131<>"",Oktobar_2!G131<>""),MAX(Predrok_april!G131,Predrok_maj!G131,Januar!G131,Februar!G131,April!G131,Juni!G131,Juli!G131,Septembar!G131,Oktobar!G131,Oktobar_2!G131),"") ->  | H131: =IF(OR(Predrok_april!H131<>"",Predrok_maj!H131<>"",Januar!H131<>"",Februar!H131<>"",April!H131<>"",Juni!H131<>"",Juli!H131,Septembar!H131<>"",Oktobar!H131<>"",Oktobar_2!H131<>""),MAX(Predrok_april!H131,Predrok_maj!H131,Januar!H131,Februar!H131,April!H131,Juni!H131,Juli!H131,Septembar!H131,Oktobar!H131,Oktobar_2!H131),"") ->  | I131: =IF(OR(Predrok_april!I131<>"",Predrok_maj!I131<>"",Januar!I131<>"",Februar!I131<>"",April!I131<>"",Juni!I131<>"",Juli!I131,Septembar!I131<>"",Oktobar!I131<>"",Oktobar_2!I131<>""),MAX(Predrok_april!I131,Predrok_maj!I131,Januar!I131,Februar!I131,April!I131,Juni!I131,Juli!I131,Septembar!I131,Oktobar!I131,Oktobar_2!I131),"") ->  | K131: =IF(B131<>"",IF(AND(F131<>"",G131<>"",H131<>"",I131<>""),"DA","NE"),"") ->  | N131: =IF(F131<>"",IF(F131>=24,(F131/32)*14,""),"") ->  | O131: =IF(G131<>"",IF(G131>=24,(G131/32)*14,""),"") ->  | P131: =IF(H131<>"",IF(H131>=11,(H131/32)*14,""),"") ->  | Q131: =IF(I131<>"",IF(I131>=9,(I131/15)*28,""),"") ->  | S131: =IF(V131<>"",IF(AND(N131<>"",O131<>"",P131<>"",Q131<>""),IF(OR(V131="Јун",V131="Јул"),20,IF(OR(V131="Септембар",V131="Октобар"),15,10)),""),"") ->  | T131: =IF(AND(L131<>"",M131<>"",S131<>"",N131<>"",O131<>"",Q131<>"",P131<>""),ROUNDUP(SUM(L131,M131,S131,N131,O131,Q131,P131,R131),0),"") ->  | U131: =IF(T131<>"",VLOOKUP(T131,$BK$3:$BM$7,3),"") ->  | X131: =IF(AND(U131<>"",V131<>""),M131+L131,"") ->  | Y131: =IF(X131<>"",VLOOKUP(V131,$BP$2:$BU$10,2,FALSE),"") ->  | Z131: =IF(X131<>"",SUM(N131,O131,P131),"") ->  | AA131: =IF(X131<>"",VLOOKUP(V131,$BP$2:$BU$10,4,FALSE),"") ->  | AB131: =IF(X131<>"",Q131+R131,"") ->  | AC131: =IF(X131<>"",VLOOKUP(V131,$BP$2:$BU$10,5,FALSE),"") ->  | AF131: =IF(AND(U131<>"",V131<>""),U131,"") ->  | AG131: =IF(X131<>"",VLOOKUP(V131,$BP$2:$BU$10,6,FALSE),"") ->  | AI131: =Januar!R131 ->  | AJ131: =Februar!R131 ->  | AK131: =April!R131 ->  | AL131: =Juni!R131 ->  | AM131: =Juli!R131 ->  | AN131: =Septembar!R131 ->  | AO131: =Oktobar!R131 ->  | AP131: =Oktobar_2!R131 ->  | AR131: =Januar!T131 ->  | AS131: =Februar!T131 ->  | AT131: =April!T131 ->  | AU131: =Juni!T131 ->  | AV131: =Juli!T131 ->  | AW131: =Septembar!T131 ->  | AX131: =Oktobar!T131 ->  | AY131: =Oktobar_2!T131 -> 
A132: 130 | B132: =IF(Spisak_sluzba!A134<>"",Spisak_sluzba!A134,"") ->  | C132: =IF(Spisak_sluzba!B134<>"",Spisak_sluzba!B134,"") ->  | D132: =IF(Spisak_sluzba!C134<>"",Spisak_sluzba!C134,"") ->  | E132: =IF(Spisak_sluzba!D134<>"",Spisak_sluzba!D134,"") ->  | F132: =IF(OR(Predrok_april!F132<>"",Predrok_maj!F132<>"",Januar!F132<>"",Februar!F132<>"",April!F132<>"",Juni!F132<>"",Juli!F132,Septembar!F132<>"",Oktobar!F132<>"",Oktobar_2!F132<>""),MAX(Predrok_april!F132,Predrok_maj!F132,Januar!F132,Februar!F132,April!F132,Juni!F132,Juli!F132,Septembar!F132,Oktobar!F132,Oktobar_2!F132),"") ->  | G132: =IF(OR(Predrok_april!G132<>"",Predrok_maj!G132<>"",Januar!G132<>"",Februar!G132<>"",April!G132<>"",Juni!G132<>"",Juli!G132,Septembar!G132<>"",Oktobar!G132<>"",Oktobar_2!G132<>""),MAX(Predrok_april!G132,Predrok_maj!G132,Januar!G132,Februar!G132,April!G132,Juni!G132,Juli!G132,Septembar!G132,Oktobar!G132,Oktobar_2!G132),"") ->  | H132: =IF(OR(Predrok_april!H132<>"",Predrok_maj!H132<>"",Januar!H132<>"",Februar!H132<>"",April!H132<>"",Juni!H132<>"",Juli!H132,Septembar!H132<>"",Oktobar!H132<>"",Oktobar_2!H132<>""),MAX(Predrok_april!H132,Predrok_maj!H132,Januar!H132,Februar!H132,April!H132,Juni!H132,Juli!H132,Septembar!H132,Oktobar!H132,Oktobar_2!H132),"") ->  | I132: =IF(OR(Predrok_april!I132<>"",Predrok_maj!I132<>"",Januar!I132<>"",Februar!I132<>"",April!I132<>"",Juni!I132<>"",Juli!I132,Septembar!I132<>"",Oktobar!I132<>"",Oktobar_2!I132<>""),MAX(Predrok_april!I132,Predrok_maj!I132,Januar!I132,Februar!I132,April!I132,Juni!I132,Juli!I132,Septembar!I132,Oktobar!I132,Oktobar_2!I132),"") ->  | W132: =IF(X132<>"",VLOOKUP(V132,$BP$3:$BU$10,6,FALSE),"") ->  | AI132: =Januar!R132 ->  | AJ132: =Februar!R132 ->  | AK132: =April!R132 ->  | AL132: =Juni!R132 ->  | AM132: =Juli!R132 ->  | AN132: =Septembar!R132 ->  | AO132: =Oktobar!R132 ->  | AP132: =Oktobar_2!R132 ->  | AR132: =Januar!T132 ->  | AS132: =Februar!T132 ->  | AT132: =April!T132 ->  | AU132: =Juni!T132 ->  | AV132: =Juli!T132 ->  | AW132: =Septembar!T132 ->  | AX132: =Oktobar!T132 ->  | AY132: =Oktobar_2!T132 ->  | AZ132: =IF(B132<>"",B132,"") ->  | BA132: =IF(AU132<>"",1,"") -> 
